Workbook

Sheet INSTRUCTIONS
A1: INSTRUCTIONS FOR THE CBP 2021 BID CALCULATOR TOOL
A2: *Please enable macros to use this calculator. If you disabled macros when opening this workbook, please close and reopen the workbook to enable macros or go into your security settings.
A3: 1. Choose the CBA you would like to bid on.
A4: 2. Enter your bid amount for the lead item in cell B5.
A5: 3. Column E (Single Payment Amount Based on Lead Item Bid Price) will display your bid amount for each of the non-lead items.
A6: 4. Column F will display the % difference between the 2019 fee schedule and the bid price calculated based on your lead item bid price. The cell will turn red, if the bid price for the non-lead item is lower than the 2019 rate. The cell will turn green, if the bid price for the non-lead item is higher than the 2019 rate.
A7: 5. Column G will display the $ difference between the 2019 fee schedule and the bid price calculated based on your lead item bid price. The cell will turn red, if the bid price for the non-lead item is lower than the 2019 rate. The cell will turn green, if the bid price for the non-lead item is higher than the 2019 rate.
A8: 6. You have the option to enter the costs associated with each item for your business in columns H-J. Column K will aggregate the total costs you entered into columns H-J and Column L will calculate the net profits/loss based on your bid price and total costs.
A10: Disclaimer: This bid calculator compiles publicly available information from government sources on the Medicare competitive bidding program (CBP) for durable medical equipment, prosthetics, orthotics and supplies (DMEPOS). The information comes from CMS’ web site (www.cms.gov) and the CBIC web site (www.dmecompetitivebid.com). This bid calculator is an educational tool and is not intended to provide legal or bidding advice. Bidders are responsible for their bids and should consult their own counsel for legal advice.

Sheet Power WC
A1: Choose CBA: | B1: Aiken & Edgefield Counties, SC | D1: *new HCPCS Competitive Bidding 2021
A2: Lead Item HCPCS: | B2: K0823
A3: Description: | B3: Power Wheelchair, Group 2 Standard, Captains Chair, Patient Weight Capacity Up To And Including 300 Pounds
A4: Lead Item Not to Exceed Bid Ceiling: | B4: =VLOOKUP(B1,statebidceiling!A:B,2,FALSE) -> 3993.2
A5: Enter Your Bid:
H6: COMPANY SPECIFIC INFORMATION
A7: HCPCS Code | B7: Description | C7: Ratios from CMS Calculator | D7: Jan 2019 Rate | E7: Single Payment Amount Based on Lead Item Bid Price | F7: % Change From Jan 2019 Rate | G7: $ Change From Jan 2019 Rate | H7: AVG ACQUISITION COST FOR PRODUCTS | I7: INDIRECT COST | J7: PROFIT MARGIN | K7: TOTAL COST | L7: NET PROFIT/LOSS
A8: K0823 | B8: Power Wheelchair, Group 2 Standard, Captains Chair, Patient Weight Capacity Up To And Including 300 Pounds | C8: NA | D8: =D9/0.15 -> 1802.4 | E8: =B5 -> 0 | F8: =(E8-D8)/D8 -> -1 | G8: =E8-D8 -> -1802.4 | K8: =SUM(H8:J8) -> 0 | L8: =E8-K8 -> 0
A9: K0823 RR | B9: Power Wheelchair, Group 2 Standard, Captains Chair, Patient Weight Capacity Up To And Including 300 Pounds (1st Month) | C9: 1 | D9: =INDEX('2019 rates'!$B$2:$EA$601,MATCH('Power WC'!A9,'2019 rates'!$A$2:$A$601,0),MATCH('Power WC'!$B$1,'2019 rates'!$B$1:$EA$1,0)) -> 270.36 | E9: =ROUND(E8*0.15,2) -> 0 | F9: -1 | G9: -270.36 | K9: =SUM(H9:J9) -> 0 | L9: =E9-K9 -> 0
A10: E1028 NU | B10: Wheelchair Accessory, Manual Swingaway, Retractable Or Removable Mounting Hardware For Joystick, Other Control Interface Or Positioning Accessory | C10: 0.342846 | D10: =INDEX('2019 rates'!$B$2:$EA$629,MATCH('Power WC'!A10,'2019 rates'!$A$2:$A$629,0),MATCH('Power WC'!$B$1,'2019 rates'!$B$1:$EA$1,0)) -> 82 | E10: =$E$9*C10 -> 0 | F10: -1 | G10: -82 | K10: 0 | L10: 0
A11: E2611 NU | B11: General Use Wheelchair Back Cushion, Width Less Than 22 Inches, Any Height, Including Any Type Mounting Hardware | C11: 0.518487 | D11: =INDEX('2019 rates'!$B$2:$EA$629,MATCH('Power WC'!A11,'2019 rates'!$A$2:$A$629,0),MATCH('Power WC'!$B$1,'2019 rates'!$B$1:$EA$1,0)) -> 148.63 | E11: 0 | F11: -1 | G11: -148.63 | K11: =SUM(H11:J11) -> 0 | L11: 0
A12: E2370 NU | B12: Power Wheelchair Component, Integrated Drive Wheel Motor And Gear Box Combination, Replacement Only | C12: 1.332648 | D12: =INDEX('2019 rates'!$B$2:$EA$629,MATCH('Power WC'!A12,'2019 rates'!$A$2:$A$629,0),MATCH('Power WC'!$B$1,'2019 rates'!$B$1:$EA$1,0)) -> 341.6666667 | E12: 0 | F12: -1 | G12: -341.6666667 | K12: 0 | L12: 0
A13: K0825 RR | B13: Power Wheelchair, Group 2 Heavy Duty, Captains Chair, Patient Weight Capacity 301 To 450 Pounds | C13: 1.101796 | D13: =INDEX('2019 rates'!$B$2:$EA$629,MATCH('Power WC'!A13,'2019 rates'!$A$2:$A$629,0),MATCH('Power WC'!$B$1,'2019 rates'!$B$1:$EA$1,0)) -> 389.3 | E13: 0 | F13: -1 | G13: -389.3 | K13: 0 | L13: 0
A14: K0195 RR | B14: Elevating Leg Rests, Pair (for Use With Capped Rental Wheelchair Base) | C14: 0.033897 | D14: =INDEX('2019 rates'!$B$2:$EA$629,MATCH('Power WC'!A14,'2019 rates'!$A$2:$A$629,0),MATCH('Power WC'!$B$1,'2019 rates'!$B$1:$EA$1,0)) -> 8.71 | E14: 0 | F14: -1 | G14: -8.71 | K14: 0 | L14: 0
A15: E0973 NU | B15: Wheelchair Accessory, Adjustable Height, Detachable Armrest, Complete Assembly, Each | C15: 0.178078 | D15: =INDEX('2019 rates'!$B$2:$EA$629,MATCH('Power WC'!A15,'2019 rates'!$A$2:$A$629,0),MATCH('Power WC'!$B$1,'2019 rates'!$B$1:$EA$1,0)) -> 46.37 | E15: 0 | F15: -1 | G15: -46.37 | K15: 0 | L15: 0
A16: E2361 NU | B16: Power Wheelchair Accessory, 22nf Sealed Lead Acid Battery, Each, (e.g., Gel Cell, Absorbed Glassmat) | C16: 0.23042 | D16: =INDEX('2019 rates'!$B$2:$EA$629,MATCH('Power WC'!A16,'2019 rates'!$A$2:$A$629,0),MATCH('Power WC'!$B$1,'2019 rates'!$B$1:$EA$1,0)) -> 109.41 | E16: 0 | F16: -1 | G16: -109.41 | K16: 0 | L16: 0
A17: E2365 NU | B17: Power Wheelchair Accessory, U-1 Sealed Lead Acid Battery, Each (e.g., Gel Cell, Absorbed Glassmat) | C17: 0.18539 | D17: =INDEX('2019 rates'!$B$2:$EA$629,MATCH('Power WC'!A17,'2019 rates'!$A$2:$A$629,0),MATCH('Power WC'!$B$1,'2019 rates'!$B$1:$EA$1,0)) -> 73.8 | E17: 0 | F17: -1 | G17: -73.8 | K17: 0 | L17: 0
A18: E2620 NU | B18: Positioning Wheelchair Back Cushion, Planar Back With Lateral Supports, Width Less Than 22 Inches, Any Height, Including Any Type Mounting Hardware | C18: 0.909129 | D18: =INDEX('2019 rates'!$B$2:$EA$629,MATCH('Power WC'!A18,'2019 rates'!$A$2:$A$629,0),MATCH('Power WC'!$B$1,'2019 rates'!$B$1:$EA$1,0)) -> 389.5 | E18: 0 | F18: -1 | G18: -389.5 | K18: 0 | L18: 0
A19: E2601 NU | B19: General Use Wheelchair Seat Cushion, Width Less Than 22 Inches, Any Depth | C19: 0.101502 | D19: =INDEX('2019 rates'!$B$2:$EA$629,MATCH('Power WC'!A19,'2019 rates'!$A$2:$A$629,0),MATCH('Power WC'!$B$1,'2019 rates'!$B$1:$EA$1,0)) -> 35.98 | E19: 0 | F19: -1 | G19: -35.98 | K19: =SUM(H19:J19) -> 0 | L19: 0
A20: K0800 NU | B20: Power Operated Vehicle, Group 1 Standard, Patient Weight Capacity Up To And Including 300 Pounds | C20: 2.141847 | D20: =INDEX('2019 rates'!$B$2:$EA$629,MATCH('Power WC'!A20,'2019 rates'!$A$2:$A$629,0),MATCH('Power WC'!$B$1,'2019 rates'!$B$1:$EA$1,0)) -> 830.69 | E20: 0 | F20: -1 | G20: -830.69 | K20: 0 | L20: 0
A21: E0955 NU | B21: Wheelchair Accessory, Headrest, Cushioned, Any Type, Including Fixed Mounting Hardware, Each | C21: 0.335621 | D21: =INDEX('2019 rates'!$B$2:$EA$629,MATCH('Power WC'!A21,'2019 rates'!$A$2:$A$629,0),MATCH('Power WC'!$B$1,'2019 rates'!$B$1:$EA$1,0)) -> 92.26666667 | E21: 0 | F21: -1 | G21: -92.26666667 | K21: 0 | L21: 0
A22: E2375 NU | B22: Power Wheelchair Accessory, Non-expandable Controller, Including All Related Electronics And Mounting Hardware, Replacement Only | C22: 1.419146 | D22: =INDEX('2019 rates'!$B$2:$EA$629,MATCH('Power WC'!A22,'2019 rates'!$A$2:$A$629,0),MATCH('Power WC'!$B$1,'2019 rates'!$B$1:$EA$1,0)) -> 437.3333333 | E22: 0 | F22: -1 | G22: -437.3333333 | K22: 0 | L22: 0
A23: E2386 NU | B23: Power Wheelchair Accessory, Foam Filled Drive Wheel Tire, Any Size, Replacement Only, Each | C23: 0.248725 | D23: =INDEX('2019 rates'!$B$2:$EA$629,MATCH('Power WC'!A23,'2019 rates'!$A$2:$A$629,0),MATCH('Power WC'!$B$1,'2019 rates'!$B$1:$EA$1,0)) -> 103.31 | E23: 0 | F23: -1 | G23: -103.31 | K23: 0 | L23: 0
A24: K0816 RR | B24: Power Wheelchair, Group 1 Standard, Captains Chair, Patient Weight Capacity Up To And Including 300 Pounds | C24: 0.836874 | D24: =INDEX('2019 rates'!$B$2:$EA$629,MATCH('Power WC'!A24,'2019 rates'!$A$2:$A$629,0),MATCH('Power WC'!$B$1,'2019 rates'!$B$1:$EA$1,0)) -> 276.75 | E24: 0 | F24: -1 | G24: -276.75 | K24: 0 | L24: 0
A25: K0822 RR | B25: Power Wheelchair, Group 2 Standard, Sling/solid Seat/back, Patient Weight Capacity Up To And Including 300 Pounds | C25: 0.993466 | D25: =INDEX('2019 rates'!$B$2:$EA$629,MATCH('Power WC'!A25,'2019 rates'!$A$2:$A$629,0),MATCH('Power WC'!$B$1,'2019 rates'!$B$1:$EA$1,0)) -> 277.52 | E25: 0 | F25: -1 | G25: -277.52 | K25: 0 | L25: 0
A26: E2363 NU | B26: Power Wheelchair Accessory, Group 24 Sealed Lead Acid Battery, Each (e.g., Gel Cell, Absorbed Glassmat) | C26: 0.307393 | D26: =INDEX('2019 rates'!$B$2:$EA$629,MATCH('Power WC'!A26,'2019 rates'!$A$2:$A$629,0),MATCH('Power WC'!$B$1,'2019 rates'!$B$1:$EA$1,0)) -> 144.53 | E26: 0 | F26: -1 | G26: -144.53 | K26: 0 | L26: 0
A27: K0821 RR | B27: Power Wheelchair, Group 2 Standard, Portable, Captains Chair, Patient Weight Capacity Up To And Including 300 Pounds | C27: 0.822026 | D27: =INDEX('2019 rates'!$B$2:$EA$629,MATCH('Power WC'!A27,'2019 rates'!$A$2:$A$629,0),MATCH('Power WC'!$B$1,'2019 rates'!$B$1:$EA$1,0)) -> 293.36 | E27: 0 | F27: -1 | G27: -293.36 | K27: 0 | L27: 0
A28: E2359 NU | B28: Power Wheelchair Accessory, Group 34 Sealed Lead Acid Battery, Each (e.g., Gel Cell, Absorbed Glassmat) | C28: 0.328793 | D28: =INDEX('2019 rates'!$B$2:$EA$629,MATCH('Power WC'!A28,'2019 rates'!$A$2:$A$629,0),MATCH('Power WC'!$B$1,'2019 rates'!$B$1:$EA$1,0)) -> 158.5 | E28: 0 | F28: -1 | G28: -158.5 | K28: 0 | L28: 0
A29: E2366 NU | B29: Power Wheelchair Accessory, Battery Charger, Single Mode, For Use With Only One Battery Type, Sealed Or Non-sealed, Each | C29: 0.409137 | D29: =INDEX('2019 rates'!$B$2:$EA$629,MATCH('Power WC'!A29,'2019 rates'!$A$2:$A$629,0),MATCH('Power WC'!$B$1,'2019 rates'!$B$1:$EA$1,0)) -> 156.85 | E29: 0 | F29: -1 | G29: -156.85 | K29: 0 | L29: 0
A30: E0956 NU | B30: Wheelchair Accessory, Lateral Trunk Or Hip Support, Any Type, Including Fixed Mounting Hardware, Each | C30: 0.163627 | D30: =INDEX('2019 rates'!$B$2:$EA$629,MATCH('Power WC'!A30,'2019 rates'!$A$2:$A$629,0),MATCH('Power WC'!$B$1,'2019 rates'!$B$1:$EA$1,0)) -> 74.05 | E30: 0 | F30: -1 | G30: -74.05 | K30: 0 | L30: 0
A31: E2627 NU | B31: Wheelchair Accessory, Shoulder Elbow, Mobile Arm Support Attached To Wheelchair, Balanced, Adjustable Rancho Type | C31: 1.844687 | D31: =INDEX('2019 rates'!$B$2:$EA$629,MATCH('Power WC'!A31,'2019 rates'!$A$2:$A$629,0),MATCH('Power WC'!$B$1,'2019 rates'!$B$1:$EA$1,0)) -> 910.54 | E31: 0 | F31: -1 | G31: -910.54 | K31: =SUM(H31:J31) -> 0 | L31: =E31-K31 -> 0
A32: E2392 NU | B32: Power Wheelchair Accessory, Solid (rubber/plastic) Caster Tire With Integrated Wheel, Any Size, Replacement Only, Each | C32: 0.089419 | D32: =INDEX('2019 rates'!$B$2:$EA$629,MATCH('Power WC'!A32,'2019 rates'!$A$2:$A$629,0),MATCH('Power WC'!$B$1,'2019 rates'!$B$1:$EA$1,0)) -> 40.49 | E32: 0 | F32: -1 | G32: -40.49 | K32: 0 | L32: 0
A33: E2607 NU | B33: Skin Protection And Positioning Wheelchair Seat Cushion, Width Less Than 22 Inches, Any Depth | C33: 0.481133 | D33: =INDEX('2019 rates'!$B$2:$EA$629,MATCH('Power WC'!A33,'2019 rates'!$A$2:$A$629,0),MATCH('Power WC'!$B$1,'2019 rates'!$B$1:$EA$1,0)) -> 203.98 | E33: 0 | F33: -1 | G33: -203.98 | K33: 0 | L33: 0
A34: K0040 NU | B34: Adjustable Angle Footplate, Each | C34: 0.123403 | D34: =INDEX('2019 rates'!$B$2:$EA$629,MATCH('Power WC'!A34,'2019 rates'!$A$2:$A$629,0),MATCH('Power WC'!$B$1,'2019 rates'!$B$1:$EA$1,0)) -> 52.28 | E34: 0 | F34: -1 | G34: -52.28 | K34: 0 | L34: 0
A35: E2394 NU | B35: Power Wheelchair Accessory, Drive Wheel Excludes Tire, Any Size, Replacement Only, Each | C35: 0.127431 | D35: =INDEX('2019 rates'!$B$2:$EA$629,MATCH('Power WC'!A35,'2019 rates'!$A$2:$A$629,0),MATCH('Power WC'!$B$1,'2019 rates'!$B$1:$EA$1,0)) -> 56.46 | E35: 0 | F35: -1 | G35: -56.46 | K35: 0 | L35: 0
A36: E2615 NU | B36: Positioning Wheelchair Back Cushion, Posterior-lateral, Width Less Than 22 Inches, Any Height, Including Any Type Mounting Hardware | C36: 0.750791 | D36: =INDEX('2019 rates'!$B$2:$EA$629,MATCH('Power WC'!A36,'2019 rates'!$A$2:$A$629,0),MATCH('Power WC'!$B$1,'2019 rates'!$B$1:$EA$1,0)) -> 346.45 | E36: 0 | F36: -1 | G36: -346.45 | K36: 0 | L36: 0
A37: E0705 NU | B37: Transfer Device, Any Type, Each | C37: 0.101312 | D37: =INDEX('2019 rates'!$B$2:$EA$629,MATCH('Power WC'!A37,'2019 rates'!$A$2:$A$629,0),MATCH('Power WC'!$B$1,'2019 rates'!$B$1:$EA$1,0)) -> 49.49 | E37: 0 | F37: -1 | G37: -49.49 | K37: 0 | L37: 0
A38: E0950 NU | B38: Wheelchair Accessory, Tray, Each | C38: 0.163938 | D38: =INDEX('2019 rates'!$B$2:$EA$629,MATCH('Power WC'!A38,'2019 rates'!$A$2:$A$629,0),MATCH('Power WC'!$B$1,'2019 rates'!$B$1:$EA$1,0)) -> 72.78 | E38: =$E$9*C38 -> 0 | F38: =(E38-D38)/D38 -> -1 | G38: -72.78 | K38: 0 | L38: 0
A39: E0951 NU | B39: Heel Loop/holder, Any Type, With Or Without Ankle Strap, Each | C39: 0.031771 | D39: =INDEX('2019 rates'!$B$2:$EA$629,MATCH('Power WC'!A39,'2019 rates'!$A$2:$A$629,0),MATCH('Power WC'!$B$1,'2019 rates'!$B$1:$EA$1,0)) -> 13.07 | E39: 0 | F39: -1 | G39: =E39-D39 -> -13.07 | K39: 0 | L39: 0
A40: E0952 NU* | B40: Toe Loop/holder, Any Type, Each | C40: 0.030959 | D40: =INDEX('2019 rates'!$B$2:$EA$629,MATCH('Power WC'!A40,'2019 rates'!$A$2:$A$629,0),MATCH('Power WC'!$B$1,'2019 rates'!$B$1:$EA$1,0)) -> 16.2 | E40: 0 | F40: -1 | G40: -16.2 | K40: 0 | L40: 0
A41: E0953 NU* | B41: Wheelchair Accessory, Lateral Thigh Or Knee Support, Any Type Including Fixed Mounting Hardware, Each | C41: 0.163627 | D41: =INDEX('2019 rates'!$B$2:$EA$629,MATCH('Power WC'!A41,'2019 rates'!$A$2:$A$629,0),MATCH('Power WC'!$B$1,'2019 rates'!$B$1:$EA$1,0)) -> 72.9 | E41: 0 | F41: -1 | G41: -72.9 | K41: 0 | L41: 0
A42: E0954 NU* | B42: Wheelchair Accessory, Foot Box, Any Type, Includes Attachment And Mounting Hardware, Each Foot | C42: 0.102833 | D42: =INDEX('2019 rates'!$B$2:$EA$629,MATCH('Power WC'!A42,'2019 rates'!$A$2:$A$629,0),MATCH('Power WC'!$B$1,'2019 rates'!$B$1:$EA$1,0)) -> 52 | E42: 0 | F42: -1 | G42: -52 | K42: 0 | L42: 0
A43: E0957 NU | B43: Wheelchair Accessory, Medial Thigh Support, Any Type, Including Fixed Mounting Hardware, Each | C43: 0.228968 | D43: =INDEX('2019 rates'!$B$2:$EA$629,MATCH('Power WC'!A43,'2019 rates'!$A$2:$A$629,0),MATCH('Power WC'!$B$1,'2019 rates'!$B$1:$EA$1,0)) -> 114.78 | E43: 0 | F43: -1 | G43: -114.78 | K43: 0 | L43: 0
A44: E0960 NU | B44: Wheelchair Accessory, Shoulder Harness/straps Or Chest Strap, Including Any Type Mounting Hardware | C44: 0.151026 | D44: =INDEX('2019 rates'!$B$2:$EA$629,MATCH('Power WC'!A44,'2019 rates'!$A$2:$A$629,0),MATCH('Power WC'!$B$1,'2019 rates'!$B$1:$EA$1,0)) -> 71.37 | E44: 0 | F44: -1 | G44: -71.37 | K44: 0 | L44: 0
A45: E0978 NU | B45: Wheelchair Accessory, Positioning Belt/safety Belt/pelvic Strap, Each | C45: 0.0684 | D45: =INDEX('2019 rates'!$B$2:$EA$629,MATCH('Power WC'!A45,'2019 rates'!$A$2:$A$629,0),MATCH('Power WC'!$B$1,'2019 rates'!$B$1:$EA$1,0)) -> 23.58 | E45: 0 | F45: -1 | G45: -23.58 | K45: 0 | L45: 0
A46: E0981 NU* | B46: Wheelchair Accessory, Seat Upholstery, Replacement Only, Each | C46: 0.076628 | D46: =INDEX('2019 rates'!$B$2:$EA$629,MATCH('Power WC'!A46,'2019 rates'!$A$2:$A$629,0),MATCH('Power WC'!$B$1,'2019 rates'!$B$1:$EA$1,0)) -> 40.59 | E46: 0 | F46: -1 | G46: -40.59 | K46: 0 | L46: 0
A47: E0982 NU* | B47: Wheelchair Accessory, Back Upholstery, Replacement Only, Each | C47: 0.081278 | D47: =INDEX('2019 rates'!$B$2:$EA$629,MATCH('Power WC'!A47,'2019 rates'!$A$2:$A$629,0),MATCH('Power WC'!$B$1,'2019 rates'!$B$1:$EA$1,0)) -> 44.94 | E47: 0 | F47: -1 | G47: -44.94 | K47: 0 | L47: 0
A48: E0985 NU | B48: Wheelchair Accessory, Seat Lift Mechanism | C48: 0.390676 | D48: =INDEX('2019 rates'!$B$2:$EA$629,MATCH('Power WC'!A48,'2019 rates'!$A$2:$A$629,0),MATCH('Power WC'!$B$1,'2019 rates'!$B$1:$EA$1,0)) -> 130.3333333 | E48: 0 | F48: -1 | G48: -130.3333333 | K48: 0 | L48: 0
A49: E0990 NU | B49: Wheelchair Accessory, Elevating Leg Rest, Complete Assembly, Each | C49: 0.189055 | D49: =INDEX('2019 rates'!$B$2:$EA$629,MATCH('Power WC'!A49,'2019 rates'!$A$2:$A$629,0),MATCH('Power WC'!$B$1,'2019 rates'!$B$1:$EA$1,0)) -> 72.83 | E49: 0 | F49: -1 | G49: -72.83 | K49: 0 | L49: 0
A50: E0992 NU | B50: Manual Wheelchair Accessory, Solid Seat Insert | C50: 0.186151 | D50: =INDEX('2019 rates'!$B$2:$EA$629,MATCH('Power WC'!A50,'2019 rates'!$A$2:$A$629,0),MATCH('Power WC'!$B$1,'2019 rates'!$B$1:$EA$1,0)) -> 84.05 | E50: 0 | F50: -1 | G50: -84.05 | K50: 0 | L50: 0
A51: E0995 NU* | B51: Wheelchair Accessory, Calf Rest/pad, Replacement Only, Each | C51: 0.050163 | D51: =INDEX('2019 rates'!$B$2:$EA$629,MATCH('Power WC'!A51,'2019 rates'!$A$2:$A$629,0),MATCH('Power WC'!$B$1,'2019 rates'!$B$1:$EA$1,0)) -> 26.08 | E51: 0 | F51: -1 | G51: -26.08 | K51: 0 | L51: 0
A52: E1016 NU | B52: Shock Absorber For Power Wheelchair, Each | C52: 0.217974 | D52: =INDEX('2019 rates'!$B$2:$EA$629,MATCH('Power WC'!A52,'2019 rates'!$A$2:$A$629,0),MATCH('Power WC'!$B$1,'2019 rates'!$B$1:$EA$1,0)) -> 103.01 | E52: 0 | F52: -1 | G52: -103.01 | K52: 0 | L52: 0
A53: E1020 NU | B53: Residual Limb Support System For Wheelchair, Any Type | C53: 0.404038 | D53: =INDEX('2019 rates'!$B$2:$EA$629,MATCH('Power WC'!A53,'2019 rates'!$A$2:$A$629,0),MATCH('Power WC'!$B$1,'2019 rates'!$B$1:$EA$1,0)) -> 125.7333333 | E53: 0 | F53: -1 | G53: -125.7333333 | K53: 0 | L53: 0
A54: E2207 NU | B54: Wheelchair Accessory, Crutch And Cane Holder, Each | C54: 0.08311 | D54: =INDEX('2019 rates'!$B$2:$EA$629,MATCH('Power WC'!A54,'2019 rates'!$A$2:$A$629,0),MATCH('Power WC'!$B$1,'2019 rates'!$B$1:$EA$1,0)) -> 41.63 | E54: 0 | F54: -1 | G54: -41.63 | K54: 0 | L54: 0
A55: E2208 NU | B55: Wheelchair Accessory, Cylinder Tank Carrier, Each | C55: 0.19628 | D55: =INDEX('2019 rates'!$B$2:$EA$629,MATCH('Power WC'!A55,'2019 rates'!$A$2:$A$629,0),MATCH('Power WC'!$B$1,'2019 rates'!$B$1:$EA$1,0)) -> 78.39 | E55: 0 | F55: -1 | G55: -78.39 | K55: 0 | L55: 0
A56: E2209 NU | B56: Accessory, Arm Trough, With Or Without Hand Support, Each | C56: 0.17711 | D56: =INDEX('2019 rates'!$B$2:$EA$629,MATCH('Power WC'!A56,'2019 rates'!$A$2:$A$629,0),MATCH('Power WC'!$B$1,'2019 rates'!$B$1:$EA$1,0)) -> 81.69 | E56: 0 | F56: -1 | G56: -81.69 | K56: 0 | L56: 0
A57: E2210 NU | B57: Wheelchair Accessory, Bearings, Any Type, Replacement Only, Each | C57: 0.010855 | D57: =INDEX('2019 rates'!$B$2:$EA$629,MATCH('Power WC'!A57,'2019 rates'!$A$2:$A$629,0),MATCH('Power WC'!$B$1,'2019 rates'!$B$1:$EA$1,0)) -> 5.14 | E57: 0 | F57: -1 | G57: -5.14 | K57: 0 | L57: 0
A58: E2367 NU* | B58: Power Wheelchair Accessory, Battery Charger, Dual Mode, For Use With Either Battery Type, Sealed Or Non-sealed, Each | C58: 0.695615 | D58: =INDEX('2019 rates'!$B$2:$EA$629,MATCH('Power WC'!A58,'2019 rates'!$A$2:$A$629,0),MATCH('Power WC'!$B$1,'2019 rates'!$B$1:$EA$1,0)) -> 336.91 | E58: 0 | F58: -1 | G58: -336.91 | K58: 0 | L58: 0
A59: E2368 NU | B59: Power Wheelchair Component, Drive Wheel Motor, Replacement Only | C59: 0.857461 | D59: =INDEX('2019 rates'!$B$2:$EA$629,MATCH('Power WC'!A59,'2019 rates'!$A$2:$A$629,0),MATCH('Power WC'!$B$1,'2019 rates'!$B$1:$EA$1,0)) -> 269.8 | E59: 0 | F59: -1 | G59: -269.8 | K59: 0 | L59: 0
A60: E2369 NU | B60: Power Wheelchair Component, Drive Wheel Gear Box, Replacement Only | C60: 0.74685 | D60: =INDEX('2019 rates'!$B$2:$EA$629,MATCH('Power WC'!A60,'2019 rates'!$A$2:$A$629,0),MATCH('Power WC'!$B$1,'2019 rates'!$B$1:$EA$1,0)) -> 249.9333333 | E60: 0 | F60: -1 | G60: -249.9333333 | K60: 0 | L60: 0
A61: E2371 NU | B61: Power Wheelchair Accessory, Group 27 Sealed Lead Acid Battery, (e.g., Gel Cell, Absorbed Glassmat), Each | C61: 0.250212 | D61: =INDEX('2019 rates'!$B$2:$EA$629,MATCH('Power WC'!A61,'2019 rates'!$A$2:$A$629,0),MATCH('Power WC'!$B$1,'2019 rates'!$B$1:$EA$1,0)) -> 126.18 | E61: 0 | F61: -1 | G61: -126.18 | K61: 0 | L61: 0
A62: E2378 RR | B62: Power Wheelchair Component, Actuator, Replacement Only | C62: 0.098546 | D62: =INDEX('2019 rates'!$B$2:$EA$629,MATCH('Power WC'!A62,'2019 rates'!$A$2:$A$629,0),MATCH('Power WC'!$B$1,'2019 rates'!$B$1:$EA$1,0)) -> 56.38 | E62: 0 | F62: -1 | G62: -56.38 | K62: 0 | L62: 0
A63: E2381 NU | B63: Power Wheelchair Accessory, Pneumatic Drive Wheel Tire, Any Size, Replacement Only, Each | C63: 0.125841 | D63: =INDEX('2019 rates'!$B$2:$EA$629,MATCH('Power WC'!A63,'2019 rates'!$A$2:$A$629,0),MATCH('Power WC'!$B$1,'2019 rates'!$B$1:$EA$1,0)) -> 58.43 | E63: 0 | F63: -1 | G63: -58.43 | K63: 0 | L63: 0
A64: E2382 NU* | B64: Power Wheelchair Accessory, Tube For Pneumatic Drive Wheel Tire, Any Size, Replacement Only, Each | C64: 0.034312 | D64: =INDEX('2019 rates'!$B$2:$EA$629,MATCH('Power WC'!A64,'2019 rates'!$A$2:$A$629,0),MATCH('Power WC'!$B$1,'2019 rates'!$B$1:$EA$1,0)) -> 17.8 | E64: 0 | F64: -1 | G64: -17.8 | K64: 0 | L64: 0
A65: E2383 NU | B65: Power Wheelchair Accessory, Insert For Pneumatic Drive Wheel Tire (removable), Any Type, Any Size, Replacement Only, Each | C65: 0.25099 | D65: =INDEX('2019 rates'!$B$2:$EA$629,MATCH('Power WC'!A65,'2019 rates'!$A$2:$A$629,0),MATCH('Power WC'!$B$1,'2019 rates'!$B$1:$EA$1,0)) -> 119.15 | E65: 0 | F65: -1 | G65: -119.15 | K65: 0 | L65: 0
A66: E2384 NU | B66: Power Wheelchair Accessory, Pneumatic Caster Tire, Any Size, Replacement Only, Each | C66: 0.133723 | D66: =INDEX('2019 rates'!$B$2:$EA$629,MATCH('Power WC'!A66,'2019 rates'!$A$2:$A$629,0),MATCH('Power WC'!$B$1,'2019 rates'!$B$1:$EA$1,0)) -> 62.4 | E66: 0 | F66: -1 | G66: -62.4 | K66: 0 | L66: 0
A67: E2385 NU* | B67: Power Wheelchair Accessory, Tube For Pneumatic Caster Tire, Any Size, Replacement Only, Each | C67: 0.082436 | D67: =INDEX('2019 rates'!$B$2:$EA$629,MATCH('Power WC'!A67,'2019 rates'!$A$2:$A$629,0),MATCH('Power WC'!$B$1,'2019 rates'!$B$1:$EA$1,0)) -> 42.71 | E67: 0 | F67: -1 | G67: -42.71 | K67: 0 | L67: 0
A68: E2387 NU | B68: Power Wheelchair Accessory, Foam Filled Caster Tire, Any Size, Replacement Only, Each | C68: 0.109644 | D68: =INDEX('2019 rates'!$B$2:$EA$629,MATCH('Power WC'!A68,'2019 rates'!$A$2:$A$629,0),MATCH('Power WC'!$B$1,'2019 rates'!$B$1:$EA$1,0)) -> 49.67 | E68: 0 | F68: -1 | G68: -49.67 | K68: 0 | L68: 0
A69: E2388 NU* | B69: Power Wheelchair Accessory, Foam Drive Wheel Tire, Any Size, Replacement Only, Each | C69: 0.083456 | D69: =INDEX('2019 rates'!$B$2:$EA$629,MATCH('Power WC'!A69,'2019 rates'!$A$2:$A$629,0),MATCH('Power WC'!$B$1,'2019 rates'!$B$1:$EA$1,0)) -> 46.48 | E69: 0 | F69: -1 | G69: -46.48 | K69: 0 | L69: 0
A70: E2389 NU* | B70: Power Wheelchair Accessory, Foam Caster Tire, Any Size, Replacement Only, Each | C70: 0.045341 | D70: =INDEX('2019 rates'!$B$2:$EA$629,MATCH('Power WC'!A70,'2019 rates'!$A$2:$A$629,0),MATCH('Power WC'!$B$1,'2019 rates'!$B$1:$EA$1,0)) -> 25.98 | E70: 0 | F70: -1 | G70: -25.98 | K70: 0 | L70: 0
A71: E2390 NU* | B71: Power Wheelchair Accessory, Solid (rubber/plastic) Drive Wheel Tire, Any Size, Replacement Only, Each | C71: 0.070889 | D71: =INDEX('2019 rates'!$B$2:$EA$629,MATCH('Power WC'!A71,'2019 rates'!$A$2:$A$629,0),MATCH('Power WC'!$B$1,'2019 rates'!$B$1:$EA$1,0)) -> 40.22 | E71: 0 | F71: -1 | G71: -40.22 | K71: 0 | L71: 0
A72: E2391 NU | B72: Power Wheelchair Accessory, Solid (rubber/plastic) Caster Tire (removable), Any Size, Replacement Only, Each | C72: 0.033949 | D72: =INDEX('2019 rates'!$B$2:$EA$629,MATCH('Power WC'!A72,'2019 rates'!$A$2:$A$629,0),MATCH('Power WC'!$B$1,'2019 rates'!$B$1:$EA$1,0)) -> 16.27 | E72: 0 | F72: -1 | G72: -16.27 | K72: 0 | L72: 0
A73: E2395 NU | B73: Power Wheelchair Accessory, Caster Wheel Excludes Tire, Any Size, Replacement Only, Each | C73: 0.090543 | D73: =INDEX('2019 rates'!$B$2:$EA$629,MATCH('Power WC'!A73,'2019 rates'!$A$2:$A$629,0),MATCH('Power WC'!$B$1,'2019 rates'!$B$1:$EA$1,0)) -> 42.78 | E73: 0 | F73: -1 | G73: -42.78 | K73: 0 | L73: 0
A74: E2396 NU | B74: Power Wheelchair Accessory, Caster Fork, Any Size, Replacement Only, Each | C74: 0.110992 | D74: =INDEX('2019 rates'!$B$2:$EA$629,MATCH('Power WC'!A74,'2019 rates'!$A$2:$A$629,0),MATCH('Power WC'!$B$1,'2019 rates'!$B$1:$EA$1,0)) -> 50.23 | E74: 0 | F74: -1 | G74: -50.23 | K74: 0 | L74: 0
A75: E2397 NU | B75: Power Wheelchair Accessory, Lithium-based Battery, Each | C75: 0.797566 | D75: =INDEX('2019 rates'!$B$2:$EA$629,MATCH('Power WC'!A75,'2019 rates'!$A$2:$A$629,0),MATCH('Power WC'!$B$1,'2019 rates'!$B$1:$EA$1,0)) -> 398.79 | E75: 0 | F75: -1 | G75: -398.79 | K75: 0 | L75: 0
A76: E2602 NU | B76: General Use Wheelchair Seat Cushion, Width 22 Inches Or Greater, Any Depth | C76: 0.198182 | D76: =INDEX('2019 rates'!$B$2:$EA$629,MATCH('Power WC'!A76,'2019 rates'!$A$2:$A$629,0),MATCH('Power WC'!$B$1,'2019 rates'!$B$1:$EA$1,0)) -> 83.03 | E76: 0 | F76: -1 | G76: -83.03 | K76: 0 | L76: 0
A77: E2603 NU | B77: Skin Protection Wheelchair Seat Cushion, Width Less Than 22 Inches, Any Depth | C77: 0.251612 | D77: =INDEX('2019 rates'!$B$2:$EA$629,MATCH('Power WC'!A77,'2019 rates'!$A$2:$A$629,0),MATCH('Power WC'!$B$1,'2019 rates'!$B$1:$EA$1,0)) -> 104.05 | E77: 0 | F77: -1 | G77: -104.05 | K77: 0 | L77: 0
A78: E2604 NU | B78: Skin Protection Wheelchair Seat Cushion, Width 22 Inches Or Greater, Any Depth | C78: 0.312752 | D78: =INDEX('2019 rates'!$B$2:$EA$629,MATCH('Power WC'!A78,'2019 rates'!$A$2:$A$629,0),MATCH('Power WC'!$B$1,'2019 rates'!$B$1:$EA$1,0)) -> 147.81 | E78: 0 | F78: -1 | G78: -147.81 | K78: 0 | L78: 0
A79: E2605 NU | B79: Positioning Wheelchair Seat Cushion, Width Less Than 22 Inches, Any Depth | C79: 0.446803 | D79: =INDEX('2019 rates'!$B$2:$EA$629,MATCH('Power WC'!A79,'2019 rates'!$A$2:$A$629,0),MATCH('Power WC'!$B$1,'2019 rates'!$B$1:$EA$1,0)) -> 205 | E79: 0 | F79: -1 | G79: -205 | K79: 0 | L79: 0
A80: E2606 NU | B80: Positioning Wheelchair Seat Cushion, Width 22 Inches Or Greater, Any Depth | C80: 0.697067 | D80: =INDEX('2019 rates'!$B$2:$EA$629,MATCH('Power WC'!A80,'2019 rates'!$A$2:$A$629,0),MATCH('Power WC'!$B$1,'2019 rates'!$B$1:$EA$1,0)) -> 328 | E80: 0 | F80: -1 | G80: -328 | K80: 0 | L80: 0
A81: E2608 NU | B81: Skin Protection And Positioning Wheelchair Seat Cushion, Width 22 Inches Or Greater, Any Depth | C81: 0.577795 | D81: =INDEX('2019 rates'!$B$2:$EA$629,MATCH('Power WC'!A81,'2019 rates'!$A$2:$A$629,0),MATCH('Power WC'!$B$1,'2019 rates'!$B$1:$EA$1,0)) -> 246 | E81: 0 | F81: -1 | G81: -246 | K81: 0 | L81: 0
A82: E2612 NU | B82: General Use Wheelchair Back Cushion, Width 22 Inches Or Greater, Any Height, Including Any Type Mounting Hardware | C82: 0.701388 | D82: =INDEX('2019 rates'!$B$2:$EA$629,MATCH('Power WC'!A82,'2019 rates'!$A$2:$A$629,0),MATCH('Power WC'!$B$1,'2019 rates'!$B$1:$EA$1,0)) -> 320.67 | E82: 0 | F82: -1 | G82: -320.67 | K82: 0 | L82: 0
A83: E2613 NU | B83: Positioning Wheelchair Back Cushion, Posterior, Width Less Than 22 Inches, Any Height, Including Any Type Mounting Hardware | C83: 0.652417 | D83: =INDEX('2019 rates'!$B$2:$EA$629,MATCH('Power WC'!A83,'2019 rates'!$A$2:$A$629,0),MATCH('Power WC'!$B$1,'2019 rates'!$B$1:$EA$1,0)) -> 305.05 | E83: 0 | F83: -1 | G83: -305.05 | K83: 0 | L83: 0
A84: E2614 NU | B84: Positioning Wheelchair Back Cushion, Posterior, Width 22 Inches Or Greater, Any Height, Including Any Type Mounting Hardware | C84: 0.902888 | D84: =INDEX('2019 rates'!$B$2:$EA$629,MATCH('Power WC'!A84,'2019 rates'!$A$2:$A$629,0),MATCH('Power WC'!$B$1,'2019 rates'!$B$1:$EA$1,0)) -> 426.71 | E84: 0 | F84: -1 | G84: -426.71 | K84: 0 | L84: 0
A85: E2616 NU | B85: Positioning Wheelchair Back Cushion, Posterior-lateral, Width 22 Inches Or Greater, Any Height, Including Any Type Mounting Hardware | C85: 1.010199 | D85: =INDEX('2019 rates'!$B$2:$EA$629,MATCH('Power WC'!A85,'2019 rates'!$A$2:$A$629,0),MATCH('Power WC'!$B$1,'2019 rates'!$B$1:$EA$1,0)) -> 462.01 | E85: =$E$9*C85 -> 0 | F85: =(E85-D85)/D85 -> -1 | G85: =E85-D85 -> -462.01 | K85: 0 | L85: 0
A86: E2619 NU* | B86: Replacement Cover For Wheelchair Seat Cushion Or Back Cushion, Each | C86: 0.085184 | D86: =INDEX('2019 rates'!$B$2:$EA$629,MATCH('Power WC'!A86,'2019 rates'!$A$2:$A$629,0),MATCH('Power WC'!$B$1,'2019 rates'!$B$1:$EA$1,0)) -> 47.86 | E86: 0 | F86: -1 | G86: -47.86 | K86: 0 | L86: 0
A87: E2621 NU | B87: Positioning Wheelchair Back Cushion, Planar Back With Lateral Supports, Width 22 Inches Or Greater, Any Height, Including Any Type Mounting Hardware | C87: 0.954072 | D87: =INDEX('2019 rates'!$B$2:$EA$629,MATCH('Power WC'!A87,'2019 rates'!$A$2:$A$629,0),MATCH('Power WC'!$B$1,'2019 rates'!$B$1:$EA$1,0)) -> 450.89 | E87: 0 | F87: -1 | G87: -450.89 | K87: 0 | L87: 0
A88: E2626 NU | B88: Wheelchair Accessory, Shoulder Elbow, Mobile Arm Support Attached To Wheelchair, Balanced, Adjustable | C88: 1.183402 | D88: =INDEX('2019 rates'!$B$2:$EA$629,MATCH('Power WC'!A88,'2019 rates'!$A$2:$A$629,0),MATCH('Power WC'!$B$1,'2019 rates'!$B$1:$EA$1,0)) -> 570.63 | E88: 0 | F88: -1 | G88: -570.63 | K88: 0 | L88: 0
A89: E2628 NU | B89: Wheelchair Accessory, Shoulder Elbow, Mobile Arm Support Attached To Wheelchair, Balanced, Reclining | C89: 1.386441 | D89: =INDEX('2019 rates'!$B$2:$EA$629,MATCH('Power WC'!A89,'2019 rates'!$A$2:$A$629,0),MATCH('Power WC'!$B$1,'2019 rates'!$B$1:$EA$1,0)) -> 686.75 | E89: 0 | F89: -1 | G89: -686.75 | K89: 0 | L89: 0
A90: E2629 NU | B90: Wheelchair Accessory, Shoulder Elbow, Mobile Arm Support Attached To Wheelchair, Balanced, Friction Arm Support (friction Dampening To Proximal And Distal Joints) | C90: 1.752243 | D90: =INDEX('2019 rates'!$B$2:$EA$629,MATCH('Power WC'!A90,'2019 rates'!$A$2:$A$629,0),MATCH('Power WC'!$B$1,'2019 rates'!$B$1:$EA$1,0)) -> 897.15 | E90: 0 | F90: -1 | G90: -897.15 | K90: 0 | L90: 0
A91: E2630 NU | B91: Wheelchair Accessory, Shoulder Elbow, Mobile Arm Support, Monosuspension Arm And Hand Support, Overhead Elbow Forearm Hand Sling Support, Yoke Type Suspension Support | C91: 1.23156 | D91: =INDEX('2019 rates'!$B$2:$EA$629,MATCH('Power WC'!A91,'2019 rates'!$A$2:$A$629,0),MATCH('Power WC'!$B$1,'2019 rates'!$B$1:$EA$1,0)) -> 601.38 | E91: 0 | F91: -1 | G91: -601.38 | K91: 0 | L91: 0
A92: E2631 NU | B92: Wheelchair Accessory, Addition To Mobile Arm Support, Elevating Proximal Arm | C92: 0.491366 | D92: =INDEX('2019 rates'!$B$2:$EA$629,MATCH('Power WC'!A92,'2019 rates'!$A$2:$A$629,0),MATCH('Power WC'!$B$1,'2019 rates'!$B$1:$EA$1,0)) -> 254.63 | E92: 0 | F92: -1 | G92: -254.63 | K92: 0 | L92: 0
A93: E2632 NU | B93: Wheelchair Accessory, Addition To Mobile Arm Support, Offset Or Lateral Rocker Arm With Elastic Balance Control | C93: 0.311473 | D93: =INDEX('2019 rates'!$B$2:$EA$629,MATCH('Power WC'!A93,'2019 rates'!$A$2:$A$629,0),MATCH('Power WC'!$B$1,'2019 rates'!$B$1:$EA$1,0)) -> 158.39 | E93: 0 | F93: -1 | G93: -158.39 | K93: 0 | L93: 0
A94: E2633 NU | B94: Wheelchair Accessory, Addition To Mobile Arm Support, Supinator | C94: 0.265527 | D94: =INDEX('2019 rates'!$B$2:$EA$629,MATCH('Power WC'!A94,'2019 rates'!$A$2:$A$629,0),MATCH('Power WC'!$B$1,'2019 rates'!$B$1:$EA$1,0)) -> 126.3 | E94: 0 | F94: -1 | G94: -126.3 | K94: 0 | L94: 0
A95: K0015 NU | B95: Detachable, Non-adjustable Height Armrest, Replacement Only, Each | C95: 0.300202 | D95: =INDEX('2019 rates'!$B$2:$EA$629,MATCH('Power WC'!A95,'2019 rates'!$A$2:$A$629,0),MATCH('Power WC'!$B$1,'2019 rates'!$B$1:$EA$1,0)) -> 95.06666667 | E95: 0 | F95: -1 | G95: -95.06666667 | K95: =SUM(H95:J95) -> 0 | L95: =E95-K95 -> 0
A96: K0017 NU* | B96: Detachable, Adjustable Height Armrest, Base, Replacement Only, Each | C96: 0.084458 | D96: =INDEX('2019 rates'!$B$2:$EA$629,MATCH('Power WC'!A96,'2019 rates'!$A$2:$A$629,0),MATCH('Power WC'!$B$1,'2019 rates'!$B$1:$EA$1,0)) -> 46.07 | E96: 0 | F96: -1 | G96: -46.07 | K96: 0 | L96: 0
A97: K0018 NU* | B97: Detachable, Adjustable Height Armrest, Upper Portion, Replacement Only, Each | C97: 0.04719 | D97: =INDEX('2019 rates'!$B$2:$EA$629,MATCH('Power WC'!A97,'2019 rates'!$A$2:$A$629,0),MATCH('Power WC'!$B$1,'2019 rates'!$B$1:$EA$1,0)) -> 26.04 | E97: 0 | F97: -1 | G97: -26.04 | K97: 0 | L97: 0
A98: K0019 NU | B98: Arm Pad, Replacement Only, Each | C98: 0.028625 | D98: =INDEX('2019 rates'!$B$2:$EA$629,MATCH('Power WC'!A98,'2019 rates'!$A$2:$A$629,0),MATCH('Power WC'!$B$1,'2019 rates'!$B$1:$EA$1,0)) -> 12.32 | E98: 0 | F98: -1 | G98: -12.32 | K98: 0 | L98: 0
A99: K0020 NU* | B99: Fixed, Adjustable Height Armrest, Pair | C99: 0.076783 | D99: =INDEX('2019 rates'!$B$2:$EA$629,MATCH('Power WC'!A99,'2019 rates'!$A$2:$A$629,0),MATCH('Power WC'!$B$1,'2019 rates'!$B$1:$EA$1,0)) -> 45.14 | E99: 0 | F99: -1 | G99: -45.14 | K99: 0 | L99: 0
A100: K0037 NU* | B100: High Mount Flip-up Footrest, Each | C100: 0.082574 | D100: =INDEX('2019 rates'!$B$2:$EA$629,MATCH('Power WC'!A100,'2019 rates'!$A$2:$A$629,0),MATCH('Power WC'!$B$1,'2019 rates'!$B$1:$EA$1,0)) -> 40.62 | E100: 0 | F100: -1 | G100: -40.62 | K100: 0 | L100: 0
A101: K0038 NU* | B101: Leg Strap, Each | C101: 0.040103 | D101: =INDEX('2019 rates'!$B$2:$EA$629,MATCH('Power WC'!A101,'2019 rates'!$A$2:$A$629,0),MATCH('Power WC'!$B$1,'2019 rates'!$B$1:$EA$1,0)) -> 23.03 | E101: 0 | F101: -1 | G101: -23.03 | K101: 0 | L101: 0
A102: K0039 NU* | B102: Leg Strap, H Style, Each | C102: 0.089039 | D102: =INDEX('2019 rates'!$B$2:$EA$629,MATCH('Power WC'!A102,'2019 rates'!$A$2:$A$629,0),MATCH('Power WC'!$B$1,'2019 rates'!$B$1:$EA$1,0)) -> 49.44 | E102: 0 | F102: -1 | G102: -49.44 | K102: 0 | L102: 0
A103: K0041 NU* | B103: Large Size Footplate, Each | C103: 0.087466 | D103: =INDEX('2019 rates'!$B$2:$EA$629,MATCH('Power WC'!A103,'2019 rates'!$A$2:$A$629,0),MATCH('Power WC'!$B$1,'2019 rates'!$B$1:$EA$1,0)) -> 47.25 | E103: 0 | F103: -1 | G103: -47.25 | K103: 0 | L103: 0
A104: K0042 NU* | B104: Standard Size Footplate, Replacement Only, Each | C104: 0.057199 | D104: =INDEX('2019 rates'!$B$2:$EA$629,MATCH('Power WC'!A104,'2019 rates'!$A$2:$A$629,0),MATCH('Power WC'!$B$1,'2019 rates'!$B$1:$EA$1,0)) -> 30.34 | E104: 0 | F104: -1 | G104: -30.34 | K104: 0 | L104: 0
A105: K0043 NU* | B105: Footrest, Lower Extension Tube, Replacement Only, Each | C105: 0.032255 | D105: =INDEX('2019 rates'!$B$2:$EA$629,MATCH('Power WC'!A105,'2019 rates'!$A$2:$A$629,0),MATCH('Power WC'!$B$1,'2019 rates'!$B$1:$EA$1,0)) -> 18.73 | E105: 0 | F105: -1 | G105: -18.73 | K105: 0 | L105: 0
A106: K0044 NU* | B106: Footrest, Upper Hanger Bracket, Replacement Only, Each | C106: 0.027502 | D106: =INDEX('2019 rates'!$B$2:$EA$629,MATCH('Power WC'!A106,'2019 rates'!$A$2:$A$629,0),MATCH('Power WC'!$B$1,'2019 rates'!$B$1:$EA$1,0)) -> 16.3 | E106: 0 | F106: -1 | G106: -16.3 | K106: 0 | L106: 0
A107: K0045 NU* | B107: Footrest, Complete Assembly, Replacement Only, Each | C107: 0.098062 | D107: =INDEX('2019 rates'!$B$2:$EA$629,MATCH('Power WC'!A107,'2019 rates'!$A$2:$A$629,0),MATCH('Power WC'!$B$1,'2019 rates'!$B$1:$EA$1,0)) -> 53.61 | E107: 0 | F107: -1 | G107: -53.61 | K107: 0 | L107: 0
A108: K0046 NU* | B108: Elevating Legrest, Lower Extension Tube, Replacement Only, Each | C108: 0.032255 | D108: =INDEX('2019 rates'!$B$2:$EA$629,MATCH('Power WC'!A108,'2019 rates'!$A$2:$A$629,0),MATCH('Power WC'!$B$1,'2019 rates'!$B$1:$EA$1,0)) -> 18.86 | E108: 0 | F108: -1 | G108: -18.86 | K108: 0 | L108: 0
A109: K0047 NU* | B109: Elevating Legrest, Upper Hanger Bracket, Replacement Only, Each | C109: 0.126376 | D109: =INDEX('2019 rates'!$B$2:$EA$629,MATCH('Power WC'!A109,'2019 rates'!$A$2:$A$629,0),MATCH('Power WC'!$B$1,'2019 rates'!$B$1:$EA$1,0)) -> 66.63 | E109: 0 | F109: -1 | G109: -66.63 | K109: 0 | L109: 0
A110: K0050 NU* | B110: Ratchet Assembly, Replacement Only | C110: 0.053707 | D110: =INDEX('2019 rates'!$B$2:$EA$629,MATCH('Power WC'!A110,'2019 rates'!$A$2:$A$629,0),MATCH('Power WC'!$B$1,'2019 rates'!$B$1:$EA$1,0)) -> 30.92 | E110: 0 | F110: -1 | G110: -30.92 | K110: 0 | L110: 0
A111: K0051 NU* | B111: Cam Release Assembly, Footrest Or Legrest, Replacement Only, Each | C111: 0.08693 | D111: =INDEX('2019 rates'!$B$2:$EA$629,MATCH('Power WC'!A111,'2019 rates'!$A$2:$A$629,0),MATCH('Power WC'!$B$1,'2019 rates'!$B$1:$EA$1,0)) -> 48.91 | E111: 0 | F111: -1 | G111: -48.91 | K111: 0 | L111: 0
A112: K0052 NU | B112: Swingaway, Detachable Footrests, Replacement Only, Each | C112: 0.152772 | D112: =INDEX('2019 rates'!$B$2:$EA$629,MATCH('Power WC'!A112,'2019 rates'!$A$2:$A$629,0),MATCH('Power WC'!$B$1,'2019 rates'!$B$1:$EA$1,0)) -> 71.86 | E112: 0 | F112: -1 | G112: -71.86 | K112: 0 | L112: 0
A113: K0053 NU | B113: Elevating Footrests, Articulating (telescoping), Each | C113: 0.168588 | D113: =INDEX('2019 rates'!$B$2:$EA$629,MATCH('Power WC'!A113,'2019 rates'!$A$2:$A$629,0),MATCH('Power WC'!$B$1,'2019 rates'!$B$1:$EA$1,0)) -> 80.02 | E113: 0 | F113: -1 | G113: -80.02 | K113: 0 | L113: 0
A114: K0056 NU | B114: Seat Height Less Than 17" Or Equal To Or Greater Than 21" For A High Strength, Lightweight, Or Ultralightweight Wheelchair | C114: 0.182279 | D114: =INDEX('2019 rates'!$B$2:$EA$629,MATCH('Power WC'!A114,'2019 rates'!$A$2:$A$629,0),MATCH('Power WC'!$B$1,'2019 rates'!$B$1:$EA$1,0)) -> 89 | E114: 0 | F114: -1 | G114: -89 | K114: 0 | L114: 0
A115: K0098 NU | B115: Drive Belt For Power Wheelchair, Replacement Only | C115: 0.044321 | D115: =INDEX('2019 rates'!$B$2:$EA$629,MATCH('Power WC'!A115,'2019 rates'!$A$2:$A$629,0),MATCH('Power WC'!$B$1,'2019 rates'!$B$1:$EA$1,0)) -> 22.53 | E115: 0 | F115: -1 | G115: -22.53 | K115: 0 | L115: 0
A116: K0105 NU | B116: Iv Hanger, Each | C116: 0.190645 | D116: =INDEX('2019 rates'!$B$2:$EA$629,MATCH('Power WC'!A116,'2019 rates'!$A$2:$A$629,0),MATCH('Power WC'!$B$1,'2019 rates'!$B$1:$EA$1,0)) -> 94.66 | E116: 0 | F116: -1 | G116: -94.66 | K116: 0 | L116: 0
A117: K0733 NU | B117: Power Wheelchair Accessory, 12 To 24 Amp Hour Sealed Lead Acid Battery, Each (e.g., Gel Cell, Absorbed Glassmat) | C117: 0.050146 | D117: =INDEX('2019 rates'!$B$2:$EA$629,MATCH('Power WC'!A117,'2019 rates'!$A$2:$A$629,0),MATCH('Power WC'!$B$1,'2019 rates'!$B$1:$EA$1,0)) -> 25.63 | E117: 0 | F117: -1 | G117: -25.63 | K117: 0 | L117: 0
A118: K0801 NU | B118: Power Operated Vehicle, Group 1 Heavy Duty, Patient Weight Capacity 301 To 450 Pounds | C118: 3.45313 | D118: =INDEX('2019 rates'!$B$2:$EA$629,MATCH('Power WC'!A118,'2019 rates'!$A$2:$A$629,0),MATCH('Power WC'!$B$1,'2019 rates'!$B$1:$EA$1,0)) -> 1486.25 | E118: 0 | F118: -1 | G118: -1486.25 | K118: 0 | L118: 0
A119: K0802 NU | B119: Power Operated Vehicle, Group 1 Very Heavy Duty, Patient Weight Capacity 451 To 600 Pounds | C119: 3.907849 | D119: =INDEX('2019 rates'!$B$2:$EA$629,MATCH('Power WC'!A119,'2019 rates'!$A$2:$A$629,0),MATCH('Power WC'!$B$1,'2019 rates'!$B$1:$EA$1,0)) -> 1881.29 | E119: 0 | F119: -1 | G119: -1881.29 | K119: 0 | L119: 0
A120: K0813 RR | B120: Power Wheelchair, Group 1 Standard, Portable, Sling/solid Seat And Back, Patient Weight Capacity Up To And Including 300 Pounds | C120: 0.599523 | D120: =INDEX('2019 rates'!$B$2:$EA$629,MATCH('Power WC'!A120,'2019 rates'!$A$2:$A$629,0),MATCH('Power WC'!$B$1,'2019 rates'!$B$1:$EA$1,0)) -> 257.61 | E120: 0 | F120: -1 | G120: -257.61 | K120: 0 | L120: 0
A121: K0814 RR | B121: Power Wheelchair, Group 1 Standard, Portable, Captains Chair, Patient Weight Capacity Up To And Including 300 Pounds | C121: 0.767454 | D121: =INDEX('2019 rates'!$B$2:$EA$629,MATCH('Power WC'!A121,'2019 rates'!$A$2:$A$629,0),MATCH('Power WC'!$B$1,'2019 rates'!$B$1:$EA$1,0)) -> 265.22 | E121: 0 | F121: -1 | G121: -265.22 | K121: 0 | L121: 0
A122: K0815 RR | B122: Power Wheelchair, Group 1 Standard, Sling/solid Seat And Back, Patient Weight Capacity Up To And Including 300 Pounds | C122: 0.873831 | D122: =INDEX('2019 rates'!$B$2:$EA$629,MATCH('Power WC'!A122,'2019 rates'!$A$2:$A$629,0),MATCH('Power WC'!$B$1,'2019 rates'!$B$1:$EA$1,0)) -> 292.13 | E122: 0 | F122: -1 | G122: -292.13 | K122: 0 | L122: 0
A123: K0820 RR | B123: Power Wheelchair, Group 2 Standard, Portable, Sling/solid Seat/back, Patient Weight Capacity Up To And Including 300 Pounds | C123: 0.640369 | D123: =INDEX('2019 rates'!$B$2:$EA$629,MATCH('Power WC'!A123,'2019 rates'!$A$2:$A$629,0),MATCH('Power WC'!$B$1,'2019 rates'!$B$1:$EA$1,0)) -> 263.58 | E123: 0 | F123: -1 | G123: -263.58 | K123: 0 | L123: 0
A124: K0824 RR | B124: Power Wheelchair, Group 2 Heavy Duty, Sling/solid Seat/back, Patient Weight Capacity 301 To 450 Pounds | C124: 1.203488 | D124: =INDEX('2019 rates'!$B$2:$EA$629,MATCH('Power WC'!A124,'2019 rates'!$A$2:$A$629,0),MATCH('Power WC'!$B$1,'2019 rates'!$B$1:$EA$1,0)) -> 427.37 | E124: 0 | F124: -1 | G124: -427.37 | K124: 0 | L124: 0
A125: K0826 RR | B125: Power Wheelchair, Group 2 Very Heavy Duty, Sling/solid Seat/back, Patient Weight Capacity 451 To 600 Pounds | C125: 1.558106 | D125: =INDEX('2019 rates'!$B$2:$EA$629,MATCH('Power WC'!A125,'2019 rates'!$A$2:$A$629,0),MATCH('Power WC'!$B$1,'2019 rates'!$B$1:$EA$1,0)) -> 738 | E125: 0 | F125: -1 | G125: -738 | K125: 0 | L125: 0
A126: K0827 RR | B126: Power Wheelchair, Group 2 Very Heavy Duty, Captains Chair, Patient Weight Capacity 451 To 600 Pounds | C126: 1.324817 | D126: =INDEX('2019 rates'!$B$2:$EA$629,MATCH('Power WC'!A126,'2019 rates'!$A$2:$A$629,0),MATCH('Power WC'!$B$1,'2019 rates'!$B$1:$EA$1,0)) -> 627.29 | E126: 0 | F126: -1 | G126: -627.29 | K126: 0 | L126: 0
A127: K0828 RR | B127: Power Wheelchair, Group 2 Extra Heavy Duty, Sling/solid Seat/back, Patient Weight Capacity 601 Pounds Or More | C127: 1.716824 | D127: =INDEX('2019 rates'!$B$2:$EA$629,MATCH('Power WC'!A127,'2019 rates'!$A$2:$A$629,0),MATCH('Power WC'!$B$1,'2019 rates'!$B$1:$EA$1,0)) -> 806.42 | E127: 0 | F127: -1 | G127: -806.42 | K127: 0 | L127: 0
A128: K0829 RR | B128: Power Wheelchair, Group 2 Extra Heavy Duty, Captains Chair, Patient Weight 601 Pounds Or More | C128: 1.576567 | D128: =INDEX('2019 rates'!$B$2:$EA$629,MATCH('Power WC'!A128,'2019 rates'!$A$2:$A$629,0),MATCH('Power WC'!$B$1,'2019 rates'!$B$1:$EA$1,0)) -> 793.13 | E128: 0 | F128: -1 | G128: -793.13 | K128: 0 | L128: 0

Sheet 2019 rates
A1: HCPCS Mod | B1: Aiken & Edgefield Counties, SC | C1: Akron, OH | D1: Albany-Schenectady-Troy, NY | E1: Albuquerque, NM | F1: Allentown-Bethlehem-Easton, PA | G1: Arlington-Alexandria-Reston, VA | H1: Asheville, NC | I1: Atlanta-Sandy Springs-Roswell, GA | J1: Augusta-Richmond County, GA | K1: Aurora-Elgin-Joliet, IL | L1: Austin-Round Rock, TX | M1: Bakersfield, CA | N1: Baltimore-Columbia-Towson, MD | O1: Baton Rouge, LA | P1: Beaumont-Port Arthur, TX | Q1: Birmingham-Hoover, AL | R1: Boise City, ID | S1: Boston-Cambridge-Quincy, MA | T1: Bridgeport-Stamford-Norwalk, CT | U1: Bristol County, MA | V1: Bronx-Manhattan, NY | W1: Buffalo-Cheektowaga-Niagara Falls, NY | X1: Calvert, Charles & Prince George's Counties, MD | Y1: Camden, NJ | Z1: Cape Coral-Fort Myers, FL | AA1: Catoosa, Dade & Walker Counties, GA | AB1: Charleston-North Charleston, SC | AC1: Charlotte-Concord-Gastonia, NC | AD1: Chattanooga, TN | AE1: Chester, Lancaster & York Counties, SC | AF1: Chicago-Naperville-Arlington Heights, IL | AG1: Cincinnati, OH | AH1: Cleveland-Elyria, OH | AI1: Colorado Springs, CO | AJ1: Columbia, SC | AK1: Columbus, OH | AL1: Council Bluffs, IA | AM1: Covington-Florence-Newport, KY | AN1: Dallas-Fort Worth-Arlington, TX | AO1: Dayton, OH | AP1: Dearborn, Franklin, Ohio & Union Counties, IN | AQ1: Deltona-Daytona Beach-Ormond Beach, FL | AR1: Denver-Aurora-Lakewood, CO | AS1: Detroit-Warren-Dearborn, MI | AT1: East St. Louis, IL | AU1: El Paso, TX | AV1: Elizabeth-Lakewood-New Brunswick, NJ | AW1: Flint, MI | AX1: Fresno, CA | AY1: Gary, IN | AZ1: Grand Rapids-Wyoming, MI | BA1: Greensboro-High Point, NC | BB1: Greenville-Anderson-Mauldin, SC | BC1: Hartford-West Hartford-East Hartford, CT | BD1: Honolulu, HI | BE1: Houston-The Woodlands-Sugar Land, TX | BF1: Huntington, WV | BG1: Indianapolis-Carmel-Anderson, IN | BH1: Jackson, MS | BI1: Jacksonville, FL | BJ1: Jeffersonville-New Albany, IN | BK1: Jersey City-Newark, NJ | BL1: Kansas City-Overland Park-Ottawa, KS | BM1: Kansas City, MO | BN1: Kenosha County, WI | BO1: Knoxville, TN | BP1: Lake & McHenry Counties, IL | BQ1: Lakeland-Winter Haven, FL | BR1: Las Vegas-Henderson-Paradise, NV | BS1: Little Rock-North Little Rock-Conway, AR | BT1: Los Angeles County, CA | BU1: Louisville-Jefferson County, KY | BV1: McAllen-Edinburg-Mission, TX | BW1: Memphis, TN | BX1: Mercer County, PA | BY1: Miami-Fort Lauderdale-West Palm Beach, FL | BZ1: Milwaukee-Waukesha-West Allis, WI | CA1: Minneapolis-St. Paul-Bloomington, MN | CB1: Nashville-Davidson--Murfreesboro--Franklin, TN | CC1: Nassau, Kings, Queens & Richmond Counties, NY | CD1: New Haven-Milford, CT | CE1: New Orleans-Metairie, LA | CF1: North Port-Sarasota-Bradenton, FL | CG1: Ocala, FL | CH1: Oklahoma City, OK | CI1: Omaha, NE | CJ1: Orange County, CA | CK1: Orlando-Kissimmee-Sanford, FL | CL1: Oxnard-Thousand Oaks-Ventura, CA | CM1: Palm Bay-Melbourne-Titusville, FL | CN1: Philadelphia, PA | CO1: Phoenix-Mesa-Scottsdale, AZ | CP1: Pierce & St. Croix Counties, WI | CQ1: Pittsburgh, PA | CR1: Port Chester-White Plains-Yonkers, NY | CS1: Portland-Hillsboro-Beaverton, OR | CT1: Poughkeepsie-Newburgh-Middletown, NY | CU1: Providence, RI | CV1: Raleigh, NC | CW1: Richmond, VA | CX1: Riverside-San Bernardino-Ontario, CA | CY1: Rochester, NY | CZ1: Rockingham & Strafford Counties, NH | DA1: Sacramento--Roseville--Arden-Arcade, CA | DB1: Salt Lake City, UT | DC1: San Antonio-New Braunfels, TX | DD1: San Diego-Carlsbad, CA | DE1: San Francisco-Oakland-Hayward, CA | DF1: San Jose-Sunnyvale-Santa Clara, CA | DG1: Scranton--Wilkes-Barre--Hazleton, PA | DH1: Seattle-Tacoma-Bellevue, WA | DI1: Silver Spring-Rockville-Bethesda, MD | DJ1: South Haven-Olive Branch, MS | DK1: Springfield, MA | DL1: St. Louis, MO | DM1: Stockton-Lodi, CA | DN1: Suffolk County, NY | DO1: Syracuse, NY | DP1: Tampa-St. Petersburg-Clearwater, FL | DQ1: Toledo, OH | DR1: Tucson, AZ | DS1: Tulsa, OK | DT1: Vancouver, WA | DU1: Virginia Beach-Norfolk-Newport News, VA | DV1: Visalia-Porterville, CA | DW1: Washington, DC | DX1: Wichita, KS | DY1: Wilmington, DE | DZ1: Worcester, MA | EA1: Youngstown-Warren-Boardman, OH
A2: A4557 KG | B2: 9.74 | C2: 13.55 | D2: 9.64 | E2: 9.69 | F2: 9.69 | G2: 13.11 | H2: 9.59 | I2: 9.69 | J2: 9.64 | K2: 9.64 | L2: 9.69 | M2: 9.89 | N2: 11.36 | O2: 9.74 | P2: 9.69 | Q2: 9.89 | R2: 9.69 | S2: 9.94 | T2: 11.82 | U2: 9.69 | V2: 9.59 | W2: 9.64 | X2: 12.46 | Y2: 9.69 | Z2: 9.59 | AA2: 9.69 | AB2: 9.89 | AC2: 12.21 | AD2: 13.07 | AE2: 8.2 | AF2: 9.69 | AG2: 12.46 | AH2: 14.02 | AI2: 9.69 | AJ2: 9.74 | AK2: 9.59 | AL2: 9.64 | AM2: 10.25 | AN2: 8.2 | AO2: 13.96 | AP2: 8.2 | AQ2: 9.59 | AR2: 9.64 | AS2: 9.74 | AT2: 9.64 | AU2: 9.69 | AV2: 9.69 | AW2: 9.89 | AX2: 9.89 | AY2: 8.2 | AZ2: 9.89 | BA2: 9.74 | BB2: 9.74 | BC2: 11.82 | BD2: 9.89 | BE2: 9.64 | BF2: 9.69 | BG2: 9.89 | BH2: 9.59 | BI2: 9.59 | BJ2: 8.9 | BK2: 9.89 | BL2: 8.2 | BM2: 12.01 | BN2: 9.59 | BO2: 16.38 | BP2: 9.64 | BQ2: 9.59 | BR2: 9.74 | BS2: 9.74 | BT2: 9.74 | BU2: 9.59 | BV2: 9.64 | BW2: 20.1 | BX2: 9.64 | BY2: 9.74 | BZ2: 9.64 | CA2: 9.64 | CB2: 19.7 | CC2: 9.64 | CD2: 12.2 | CE2: 9.74 | CF2: 9.59 | CG2: 9.59 | CH2: 9.69 | CI2: 9.64 | CJ2: 9.89 | CK2: 9.92 | CL2: 9.89 | CM2: 9.73 | CN2: 9.69 | CO2: 10.62 | CP2: 9.64 | CQ2: 9.74 | CR2: 9.69 | CS2: 9.69 | CT2: 9.69 | CU2: 9.69 | CV2: 9.59 | CW2: 12.46 | CX2: 12.3 | CY2: 9.69 | CZ2: 9.89 | DA2: 9.89 | DB2: 9.74 | DC2: 9.69 | DD2: 9.88 | DE2: 9.74 | DF2: 9.89 | DG2: 9.69 | DH2: 9.69 | DI2: 12.46 | DJ2: 9.74 | DK2: 9.69 | DL2: 9.69 | DM2: 9.89 | DN2: 9.69 | DO2: 9.69 | DP2: 9.59 | DQ2: 12.65 | DR2: 9.74 | DS2: 9.69 | DT2: 9.69 | DU2: 13.16 | DV2: 9.89 | DW2: 9.69 | DX2: 9.74 | DY2: 9.69 | DZ2: 9.69 | EA2: 13.55
A3: A4595 KG | B3: 10.17 | C3: 11.5 | D3: 9.58 | E3: 10.59 | F3: 10.59 | G3: 10.61 | H3: 9.84 | I3: 10.49 | J3: 9.64 | K3: 9.84 | L3: 10.59 | M3: 8.68 | N3: 10.37 | O3: 9.58 | P3: 10.49 | Q3: 10.92 | R3: 10.59 | S3: 10.13 | T3: 10.76 | U3: 10.59 | V3: 8.68 | W3: 9.64 | X3: 11.05 | Y3: 10.59 | Z3: 10.33 | AA3: 10.59 | AB3: 10.59 | AC3: 9.84 | AD3: 14.01 | AE3: 9.64 | AF3: 10.49 | AG3: 9.84 | AH3: 11.28 | AI3: 10.59 | AJ3: 10.17 | AK3: 9.19 | AL3: 9.58 | AM3: 9.84 | AN3: 9.84 | AO3: 11.16 | AP3: 9.83 | AQ3: 10.25 | AR3: 10.17 | AS3: 9.84 | AT3: 9.89 | AU3: 10.59 | AV3: 10.59 | AW3: 10.25 | AX3: 8.68 | AY3: 9.19 | AZ3: 10.49 | BA3: 9.76 | BB3: 10.17 | BC3: 10.76 | BD3: 8.2 | BE3: 9.58 | BF3: 10.59 | BG3: 10.92 | BH3: 9 | BI3: 10.25 | BJ3: 8.94 | BK3: 10.4 | BL3: 9.6 | BM3: 9.84 | BN3: 9.19 | BO3: 13.56 | BP3: 9.89 | BQ3: 10.25 | BR3: 9.28 | BS3: 9.58 | BT3: 9.47 | BU3: 9.19 | BV3: 9.64 | BW3: 16.77 | BX3: 10.17 | BY3: 9.84 | BZ3: 9.84 | CA3: 9.84 | CB3: 17.13 | CC3: 9.64 | CD3: 10.61 | CE3: 9.58 | CF3: 8.68 | CG3: 10.25 | CH3: 10.49 | CI3: 9.58 | CJ3: 8.68 | CK3: 9.84 | CL3: 8.68 | CM3: 10.5 | CN3: 10.49 | CO3: 10.92 | CP3: 9.64 | CQ3: 9.84 | CR3: 10.59 | CS3: 10.59 | CT3: 10.59 | CU3: 10.59 | CV3: 9.84 | CW3: 10.61 | CX3: 7.08 | CY3: 10.59 | CZ3: 8.68 | DA3: 8.68 | DB3: 10.17 | DC3: 10.49 | DD3: 9.64 | DE3: 9.27 | DF3: 8.68 | DG3: 10.59 | DH3: 10.59 | DI3: 10.61 | DJ3: 9.58 | DK3: 10.59 | DL3: 10.59 | DM3: 8.68 | DN3: 10.49 | DO3: 10.59 | DP3: 10.25 | DQ3: 11.16 | DR3: 9.58 | DS3: 10.59 | DT3: 10.59 | DU3: 10.99 | DV3: 8.68 | DW3: 10.59 | DX3: 9.58 | DY3: 10.59 | DZ3: 10.59 | EA3: 11.5
A4: A4604 NU | B4: 39.2 | C4: 38.91 | D4: 41.1 | E4: 41 | F4: 40.16 | G4: 38.95 | H4: 41 | I4: 39.31 | J4: 37.2 | K4: 40.15 | L4: 38.76 | M4: 41 | N4: 42.01 | O4: 40.29 | P4: 39.98 | Q4: 41.16 | R4: 41 | S4: 42.03 | T4: 40.91 | U4: 42.8 | V4: 40.26 | W4: 40.85 | X4: 40.25 | Y4: 40.58 | Z4: 40.14 | AA4: 34.9 | AB4: 39.75 | AC4: 38.95 | AD4: 38.76 | AE4: 36.68 | AF4: 41 | AG4: 37.66 | AH4: 38.91 | AI4: 40.29 | AJ4: 39.95 | AK4: 41.04 | AL4: 39.83 | AM4: 37.58 | AN4: 38.22 | AO4: 41 | AP4: 37.58 | AQ4: 40.19 | AR4: 40.34 | AS4: 39.6 | AT4: 39.3 | AU4: 38.95 | AV4: 37.12 | AW4: 40.31 | AX4: 40.39 | AY4: 41.27 | AZ4: 40.98 | BA4: 38.27 | BB4: 40.55 | BC4: 41 | BD4: 40.96 | BE4: 40.61 | BF4: 41 | BG4: 39.98 | BH4: 39.04 | BI4: 40.19 | BJ4: 40.65 | BK4: 38.91 | BL4: 37.49 | BM4: 38.95 | BN4: 41 | BO4: 40.55 | BP4: 40.15 | BQ4: 40.68 | BR4: 42.58 | BS4: 40.55 | BT4: 41 | BU4: 39.24 | BV4: 38.22 | BW4: 39.04 | BX4: 40.49 | BY4: 41 | BZ4: 41.1 | CA4: 41 | CB4: 40.55 | CC4: 40.19 | CD4: 41 | CE4: 37.49 | CF4: 40.29 | CG4: 40.55 | CH4: 40.08 | CI4: 39.04 | CJ4: 41 | CK4: 39.98 | CL4: 39.78 | CM4: 40.19 | CN4: 39.98 | CO4: 41.12 | CP4: 41 | CQ4: 38.95 | CR4: 39.46 | CS4: 40.75 | CT4: 40.85 | CU4: 43.71 | CV4: 41.67 | CW4: 39.22 | CX4: 38.95 | CY4: 41 | CZ4: 42.75 | DA4: 40 | DB4: 40.33 | DC4: 37.49 | DD4: 40.39 | DE4: 41 | DF4: 39.36 | DG4: 40.73 | DH4: 41 | DI4: 40.25 | DJ4: 39.04 | DK4: 42.32 | DL4: 41 | DM4: 39.78 | DN4: 40.16 | DO4: 38.27 | DP4: 39.43 | DQ4: 36.67 | DR4: 41 | DS4: 40.24 | DT4: 40.88 | DU4: 38.95 | DV4: 41 | DW4: 39.12 | DX4: 38.95 | DY4: 39.44 | DZ4: 42.03 | EA4: 38.91
A5: A4640 NU | B5: 50.12 | C5: 51.25 | D5: 56.38 | E5: 61.22 | F5: 48.68 | G5: 60.29 | H5: 53.15 | I5: 54.44 | J5: 51.25 | K5: 57.63 | L5: 47.56 | M5: 46.63 | N5: 50.2 | O5: 41.43 | P5: 47.56 | Q5: 43.3 | R5: 46.23 | S5: 56.91 | T5: 64.83 | U5: 63.21 | V5: 49.99 | W5: 57.26 | X5: 51.43 | Y5: 54.43 | Z5: 39.8 | AA5: 57.63 | AB5: 48.98 | AC5: 52.28 | AD5: 61.68 | AE5: 59.45 | AF5: 57.63 | AG5: 47.72 | AH5: 47.66 | AI5: 50.42 | AJ5: 48.98 | AK5: 51.25 | AL5: 61.46 | AM5: 51.25 | AN5: 45.1 | AO5: 51.25 | AP5: 51.53 | AQ5: 42.56 | AR5: 50.95 | AS5: 57.93 | AT5: 61.5 | AU5: 48.98 | AV5: 49.94 | AW5: 60.61 | AX5: 46.63 | AY5: 59.56 | AZ5: 60.61 | BA5: 58.45 | BB5: 48.98 | BC5: 57.63 | BD5: 62.53 | BE5: 50.12 | BF5: 61.5 | BG5: 61.08 | BH5: 44.81 | BI5: 43.75 | BJ5: 57.63 | BK5: 46.13 | BL5: 48.69 | BM5: 49.2 | BN5: 60.76 | BO5: 61.68 | BP5: 57 | BQ5: 42.03 | BR5: 51.25 | BS5: 48.98 | BT5: 40.24 | BU5: 57.63 | BV5: 48.98 | BW5: 61.68 | BX5: 59.7 | BY5: 39.78 | BZ5: 57.63 | CA5: 50.12 | CB5: 62.21 | CC5: 39.37 | CD5: 61.23 | CE5: 42.74 | CF5: 43.58 | CG5: 44.33 | CH5: 44.29 | CI5: 58.96 | CJ5: 39.49 | CK5: 42.03 | CL5: 40.18 | CM5: 42.56 | CN5: 43.5 | CO5: 44.08 | CP5: 60.29 | CQ5: 51.25 | CR5: 43.5 | CS5: 48.98 | CT5: 51.25 | CU5: 61.5 | CV5: 51.95 | CW5: 60.29 | CX5: 48.05 | CY5: 57.79 | CZ5: 59.59 | DA5: 46.13 | DB5: 64.92 | DC5: 43.28 | DD5: 41 | DE5: 46.63 | DF5: 41 | DG5: 49.3 | DH5: 56.4 | DI5: 51.43 | DJ5: 47.56 | DK5: 57.8 | DL5: 50.23 | DM5: 46.13 | DN5: 39.36 | DO5: 59.78 | DP5: 42.03 | DQ5: 58.73 | DR5: 61.22 | DS5: 55.11 | DT5: 56.4 | DU5: 60.76 | DV5: 49.02 | DW5: 53.81 | DX5: 58.03 | DY5: 52.93 | DZ5: 61.45 | EA5: 49.33
A6: A4640 RR | B6: 5.01 | C6: 5.13 | D6: 5.64 | E6: 6.12 | F6: 4.87 | G6: 6.03 | H6: 5.32 | I6: 5.44 | J6: 5.13 | K6: 5.76 | L6: 4.76 | M6: 4.66 | N6: 5.02 | O6: 4.14 | P6: 4.76 | Q6: 4.33 | R6: 4.62 | S6: 5.69 | T6: 6.49 | U6: 6.32 | V6: 5 | W6: 5.73 | X6: 5.15 | Y6: 5.44 | Z6: 3.98 | AA6: 5.76 | AB6: 4.9 | AC6: 5.23 | AD6: 6.17 | AE6: 5.95 | AF6: 5.76 | AG6: 4.78 | AH6: 4.77 | AI6: 5.04 | AJ6: 4.9 | AK6: 5.13 | AL6: 6.15 | AM6: 5.13 | AN6: 4.51 | AO6: 5.13 | AP6: 5.16 | AQ6: 4.25 | AR6: 5.09 | AS6: 5.79 | AT6: 6.15 | AU6: 4.9 | AV6: 4.99 | AW6: 6.06 | AX6: 4.66 | AY6: 5.96 | AZ6: 6.06 | BA6: 5.84 | BB6: 4.9 | BC6: 5.76 | BD6: 6.25 | BE6: 5.01 | BF6: 6.15 | BG6: 6.11 | BH6: 4.48 | BI6: 4.38 | BJ6: 5.76 | BK6: 4.61 | BL6: 4.87 | BM6: 4.92 | BN6: 6.08 | BO6: 6.17 | BP6: 5.7 | BQ6: 4.2 | BR6: 5.13 | BS6: 4.9 | BT6: 4.03 | BU6: 5.76 | BV6: 4.9 | BW6: 6.17 | BX6: 5.97 | BY6: 3.98 | BZ6: 5.76 | CA6: 5.01 | CB6: 6.22 | CC6: 3.94 | CD6: 6.12 | CE6: 4.27 | CF6: 4.36 | CG6: 4.44 | CH6: 4.43 | CI6: 5.89 | CJ6: 3.95 | CK6: 4.2 | CL6: 4.02 | CM6: 4.25 | CN6: 4.35 | CO6: 4.41 | CP6: 6.03 | CQ6: 5.13 | CR6: 4.35 | CS6: 4.9 | CT6: 5.13 | CU6: 6.15 | CV6: 5.2 | CW6: 6.03 | CX6: 4.81 | CY6: 5.78 | CZ6: 5.96 | DA6: 4.61 | DB6: 6.49 | DC6: 4.33 | DD6: 4.1 | DE6: 4.66 | DF6: 4.1 | DG6: 4.93 | DH6: 5.64 | DI6: 5.15 | DJ6: 4.76 | DK6: 5.78 | DL6: 5.02 | DM6: 4.61 | DN6: 3.94 | DO6: 5.98 | DP6: 4.2 | DQ6: 5.87 | DR6: 6.12 | DS6: 5.51 | DT6: 5.64 | DU6: 6.08 | DV6: 4.9 | DW6: 5.38 | DX6: 5.8 | DY6: 5.29 | DZ6: 6.15 | EA6: 4.93
A7: A4640 UE | B7: 37.6 | C7: 38.44 | D7: 42.28 | E7: 45.92 | F7: 36.51 | G7: 45.22 | H7: 39.86 | I7: 40.83 | J7: 38.44 | K7: 43.22 | L7: 35.67 | M7: 34.97 | N7: 37.66 | O7: 31.08 | P7: 35.67 | Q7: 32.47 | R7: 34.68 | S7: 42.68 | T7: 48.63 | U7: 47.41 | V7: 37.49 | W7: 42.95 | X7: 38.58 | Y7: 40.83 | Z7: 29.85 | AA7: 43.22 | AB7: 36.74 | AC7: 39.21 | AD7: 46.27 | AE7: 44.59 | AF7: 43.22 | AG7: 35.79 | AH7: 35.75 | AI7: 37.81 | AJ7: 36.74 | AK7: 38.44 | AL7: 46.09 | AM7: 38.44 | AN7: 33.83 | AO7: 38.44 | AP7: 38.64 | AQ7: 31.92 | AR7: 38.21 | AS7: 43.45 | AT7: 46.13 | AU7: 36.74 | AV7: 37.45 | AW7: 45.46 | AX7: 34.97 | AY7: 44.67 | AZ7: 45.46 | BA7: 43.84 | BB7: 36.74 | BC7: 43.22 | BD7: 46.89 | BE7: 37.6 | BF7: 46.13 | BG7: 45.81 | BH7: 33.61 | BI7: 32.81 | BJ7: 43.22 | BK7: 34.59 | BL7: 36.52 | BM7: 36.9 | BN7: 45.57 | BO7: 46.27 | BP7: 42.75 | BQ7: 31.52 | BR7: 38.44 | BS7: 36.74 | BT7: 30.19 | BU7: 43.22 | BV7: 36.74 | BW7: 46.27 | BX7: 44.77 | BY7: 29.84 | BZ7: 43.22 | CA7: 37.6 | CB7: 46.66 | CC7: 29.53 | CD7: 45.93 | CE7: 32.06 | CF7: 32.69 | CG7: 33.25 | CH7: 33.22 | CI7: 44.22 | CJ7: 29.62 | CK7: 31.52 | CL7: 30.14 | CM7: 31.92 | CN7: 32.63 | CO7: 33.06 | CP7: 45.22 | CQ7: 38.44 | CR7: 32.63 | CS7: 36.74 | CT7: 38.44 | CU7: 46.13 | CV7: 38.96 | CW7: 45.22 | CX7: 36.04 | CY7: 43.35 | CZ7: 44.7 | DA7: 34.59 | DB7: 48.7 | DC7: 32.46 | DD7: 30.75 | DE7: 34.97 | DF7: 30.75 | DG7: 36.98 | DH7: 42.3 | DI7: 38.58 | DJ7: 35.67 | DK7: 43.35 | DL7: 37.67 | DM7: 34.59 | DN7: 29.52 | DO7: 44.83 | DP7: 31.52 | DQ7: 44.05 | DR7: 45.92 | DS7: 41.34 | DT7: 42.3 | DU7: 45.57 | DV7: 36.77 | DW7: 40.36 | DX7: 43.52 | DY7: 39.7 | DZ7: 46.08 | EA7: 37
A8: A6550 | B8: 25.69 | C8: 25.63 | D8: 25.56 | E8: 24.72 | F8: 25.59 | G8: 25.5 | H8: 25.73 | I8: 25.12 | J8: 25.59 | K8: 25.37 | L8: 24.72 | M8: 24.7 | N8: 25.5 | O8: 24.73 | P8: 25.37 | Q8: 25.26 | R8: 25.59 | S8: 24.6 | T8: 24.6 | U8: 25.59 | V8: 25.11 | W8: 25.83 | X8: 25.5 | Y8: 25.63 | Z8: 23.17 | AA8: 25.9 | AB8: 25.63 | AC8: 25.48 | AD8: 25.89 | AE8: 26.39 | AF8: 25.11 | AG8: 25.78 | AH8: 25.57 | AI8: 24.15 | AJ8: 25.63 | AK8: 25.52 | AL8: 24.72 | AM8: 25.85 | AN8: 25.37 | AO8: 25.63 | AP8: 25.78 | AQ8: 23.93 | AR8: 24.15 | AS8: 25.63 | AT8: 25.24 | AU8: 24.72 | AV8: 25.46 | AW8: 25.63 | AX8: 25.37 | AY8: 25.63 | AZ8: 25.23 | BA8: 25.51 | BB8: 25.63 | BC8: 24.7 | BD8: 24.14 | BE8: 24.79 | BF8: 26.02 | BG8: 25.63 | BH8: 25.5 | BI8: 24.6 | BJ8: 25.63 | BK8: 25.08 | BL8: 26.21 | BM8: 25.78 | BN8: 25.63 | BO8: 26.01 | BP8: 25.46 | BQ8: 23.76 | BR8: 26.02 | BS8: 25.37 | BT8: 25.5 | BU8: 25.63 | BV8: 25.05 | BW8: 25.77 | BX8: 25.59 | BY8: 21.87 | BZ8: 25.56 | CA8: 25.63 | CB8: 25.9 | CC8: 24.99 | CD8: 26.47 | CE8: 24.99 | CF8: 24.09 | CG8: 24.09 | CH8: 23.58 | CI8: 24.72 | CJ8: 25.63 | CK8: 22.3 | CL8: 25.17 | CM8: 23.17 | CN8: 25.46 | CO8: 26.02 | CP8: 25.63 | CQ8: 25.5 | CR8: 25.37 | CS8: 23.93 | CT8: 25.5 | CU8: 24.7 | CV8: 26.02 | CW8: 25.5 | CX8: 26.21 | CY8: 25.63 | CZ8: 26.02 | DA8: 24.72 | DB8: 25.63 | DC8: 25.63 | DD8: 24.27 | DE8: 25.63 | DF8: 25.5 | DG8: 24.83 | DH8: 24.07 | DI8: 25.5 | DJ8: 25.51 | DK8: 25.83 | DL8: 25.37 | DM8: 25.17 | DN8: 24.99 | DO8: 25.46 | DP8: 24.7 | DQ8: 25.63 | DR8: 26.02 | DS8: 25.16 | DT8: 23.93 | DU8: 26.02 | DV8: 25.17 | DW8: 25.56 | DX8: 25.63 | DY8: 25.59 | DZ8: 25.63 | EA8: 25.63
A9: A7000 NU | B9: 8.88 | C9: 8.82 | D9: 7.5 | E9: 8.14 | F9: 8.16 | G9: 8.2 | H9: 8.51 | I9: 8.46 | J9: 9.2 | K9: 8.3 | L9: 8.11 | M9: 8.15 | N9: 8.25 | O9: 8.55 | P9: 8.11 | Q9: 8.85 | R9: 9.1 | S9: 7.54 | T9: 7.61 | U9: 8.35 | V9: 7.83 | W9: 7.67 | X9: 8.25 | Y9: 8.1 | Z9: 7.6 | AA9: 9.02 | AB9: 8.88 | AC9: 8.7 | AD9: 8.83 | AE9: 8.88 | AF9: 8.3 | AG9: 8.54 | AH9: 8.61 | AI9: 8.61 | AJ9: 8.88 | AK9: 8.3 | AL9: 8.14 | AM9: 8.69 | AN9: 8.2 | AO9: 8.61 | AP9: 8.54 | AQ9: 7.69 | AR9: 8.41 | AS9: 8.66 | AT9: 7.91 | AU9: 8.04 | AV9: 7.67 | AW9: 8.66 | AX9: 8.15 | AY9: 8.36 | AZ9: 8.53 | BA9: 8.56 | BB9: 8.88 | BC9: 7.69 | BD9: 7.38 | BE9: 8.16 | BF9: 8.3 | BG9: 8.39 | BH9: 8.6 | BI9: 7.59 | BJ9: 8.39 | BK9: 7.67 | BL9: 8.86 | BM9: 8.84 | BN9: 8.55 | BO9: 8.88 | BP9: 8.3 | BQ9: 7.57 | BR9: 9.33 | BS9: 8.6 | BT9: 7.52 | BU9: 8.47 | BV9: 8.08 | BW9: 8.87 | BX9: 8.16 | BY9: 7.23 | BZ9: 8.2 | CA9: 8.3 | CB9: 8.99 | CC9: 7.46 | CD9: 8.6 | CE9: 8.72 | CF9: 7.65 | CG9: 7.75 | CH9: 7.7 | CI9: 8.14 | CJ9: 7.43 | CK9: 7.33 | CL9: 8.73 | CM9: 7.69 | CN9: 8.12 | CO9: 9.33 | CP9: 8.2 | CQ9: 8.12 | CR9: 7.46 | CS9: 7.91 | CT9: 7.5 | CU9: 7.69 | CV9: 8.88 | CW9: 8.2 | CX9: 8.86 | CY9: 7.69 | CZ9: 8.16 | DA9: 8.39 | DB9: 8.88 | DC9: 8.88 | DD9: 8.08 | DE9: 8.88 | DF9: 8.34 | DG9: 8.1 | DH9: 8.15 | DI9: 8.26 | DJ9: 8.87 | DK9: 8.53 | DL9: 8.39 | DM9: 8.6 | DN9: 7.5 | DO9: 7.55 | DP9: 7.69 | DQ9: 8.61 | DR9: 9.33 | DS9: 9.05 | DT9: 7.91 | DU9: 8.32 | DV9: 8.36 | DW9: 8.2 | DX9: 8.39 | DY9: 7.94 | DZ9: 8.51 | EA9: 8.82
A10: A7003 NU | B10: 1.64 | C10: 1.42 | D10: 1.52 | E10: 1.55 | F10: 1.55 | G10: 1.46 | H10: 1.44 | I10: 1.46 | J10: 1.28 | K10: 1.55 | L10: 1.79 | M10: 1.55 | N10: 1.42 | O10: 1.44 | P10: 1.55 | Q10: 1.68 | R10: 1.78 | S10: 1.55 | T10: 1.44 | U10: 1.55 | V10: 1.48 | W10: 1.49 | X10: 1.42 | Y10: 1.52 | Z10: 1.44 | AA10: 1.34 | AB10: 1.44 | AC10: 1.48 | AD10: 1.72 | AE10: 1.49 | AF10: 1.52 | AG10: 1.42 | AH10: 1.37 | AI10: 1.34 | AJ10: 1.57 | AK10: 1.52 | AL10: 1.49 | AM10: 1.42 | AN10: 1.54 | AO10: 1.5 | AP10: 1.41 | AQ10: 1.46 | AR10: 1.39 | AS10: 1.41 | AT10: 1.55 | AU10: 1.39 | AV10: 1.49 | AW10: 1.79 | AX10: 1.55 | AY10: 1.5 | AZ10: 1.85 | BA10: 1.5 | BB10: 1.5 | BC10: 1.5 | BD10: 1.44 | BE10: 1.72 | BF10: 1.49 | BG10: 1.49 | BH10: 1.5 | BI10: 1.55 | BJ10: 1.54 | BK10: 1.49 | BL10: 1.52 | BM10: 1.5 | BN10: 1.49 | BO10: 1.83 | BP10: 1.55 | BQ10: 1.46 | BR10: 1.54 | BS10: 1.5 | BT10: 1.69 | BU10: 1.55 | BV10: 1.39 | BW10: 1.75 | BX10: 1.39 | BY10: 1.49 | BZ10: 1.52 | CA10: 1.52 | CB10: 1.79 | CC10: 1.56 | CD10: 1.44 | CE10: 1.31 | CF10: 1.52 | CG10: 1.52 | CH10: 1.55 | CI10: 1.55 | CJ10: 1.55 | CK10: 1.49 | CL10: 1.39 | CM10: 1.52 | CN10: 1.55 | CO10: 1.5 | CP10: 1.49 | CQ10: 1.44 | CR10: 1.49 | CS10: 1.55 | CT10: 1.52 | CU10: 1.52 | CV10: 1.44 | CW10: 1.44 | CX10: 1.5 | CY10: 1.52 | CZ10: 1.56 | DA10: 1.62 | DB10: 1.44 | DC10: 1.67 | DD10: 1.55 | DE10: 1.62 | DF10: 1.39 | DG10: 1.55 | DH10: 1.52 | DI10: 1.33 | DJ10: 1.44 | DK10: 1.52 | DL10: 1.72 | DM10: 1.39 | DN10: 1.52 | DO10: 1.52 | DP10: 1.52 | DQ10: 1.42 | DR10: 1.44 | DS10: 1.52 | DT10: 1.49 | DU10: 1.53 | DV10: 1.62 | DW10: 1.49 | DX10: 1.5 | DY10: 1.52 | DZ10: 1.52 | EA10: 1.44
A11: A7004 NU | B11: 1.29 | C11: 1.25 | D11: 1.26 | E11: 1.13 | F11: 1.27 | G11: 1.28 | H11: 1.27 | I11: 1.26 | J11: 1.14 | K11: 1.27 | L11: 1.28 | M11: 1.28 | N11: 1.24 | O11: 1.28 | P11: 1.27 | Q11: 1.19 | R11: 1.24 | S11: 1.27 | T11: 1.16 | U11: 1.27 | V11: 1.27 | W11: 1.25 | X11: 1.25 | Y11: 1.27 | Z11: 1.14 | AA11: 1.21 | AB11: 1.27 | AC11: 1.28 | AD11: 1.54 | AE11: 1.28 | AF11: 1.27 | AG11: 1.31 | AH11: 1.21 | AI11: 1.13 | AJ11: 1.31 | AK11: 1.27 | AL11: 1.25 | AM11: 1.25 | AN11: 1.27 | AO11: 1.25 | AP11: 1.23 | AQ11: 1.19 | AR11: 1.19 | AS11: 1.29 | AT11: 1.27 | AU11: 1.27 | AV11: 1.16 | AW11: 1.31 | AX11: 1.28 | AY11: 1.31 | AZ11: 1.31 | BA11: 1.31 | BB11: 1.28 | BC11: 1.24 | BD11: 1.31 | BE11: 1.27 | BF11: 1.27 | BG11: 1.31 | BH11: 1.27 | BI11: 1.28 | BJ11: 1.24 | BK11: 1.16 | BL11: 1.27 | BM11: 1.23 | BN11: 1.14 | BO11: 1.54 | BP11: 1.27 | BQ11: 1.23 | BR11: 1.23 | BS11: 1.29 | BT11: 1.28 | BU11: 1.28 | BV11: 1.27 | BW11: 1.33 | BX11: 1.27 | BY11: 1.14 | BZ11: 1.21 | CA11: 1.26 | CB11: 1.27 | CC11: 1.27 | CD11: 1.22 | CE11: 1.27 | CF11: 1.23 | CG11: 1.27 | CH11: 1.27 | CI11: 1.27 | CJ11: 1.27 | CK11: 1.17 | CL11: 1.27 | CM11: 1.27 | CN11: 1.27 | CO11: 1.22 | CP11: 1.27 | CQ11: 1.14 | CR11: 1.28 | CS11: 1.27 | CT11: 1.27 | CU11: 1.26 | CV11: 1.31 | CW11: 1.28 | CX11: 1.25 | CY11: 1.26 | CZ11: 1.25 | DA11: 1.27 | DB11: 1.28 | DC11: 1.27 | DD11: 1.28 | DE11: 1.28 | DF11: 1.27 | DG11: 1.27 | DH11: 1.26 | DI11: 1.25 | DJ11: 1.28 | DK11: 1.26 | DL11: 1.27 | DM11: 1.27 | DN11: 1.27 | DO11: 1.26 | DP11: 1.23 | DQ11: 1.29 | DR11: 1.25 | DS11: 1.26 | DT11: 1.27 | DU11: 1.31 | DV11: 1.28 | DW11: 1.27 | DX11: 1.29 | DY11: 1.27 | DZ11: 1.26 | EA11: 1.22
A12: A7005 NU | B12: 12.79 | C12: 15.46 | D12: 8.94 | E12: 15.12 | F12: 8.94 | G12: 12.12 | H12: 12.12 | I12: 9.59 | J12: 8.95 | K12: 8.94 | L12: 8.94 | M12: 8.05 | N12: 13.51 | O12: 8.94 | P12: 8.94 | Q12: 16.4 | R12: 18 | S12: 8.95 | T12: 11.28 | U12: 8.95 | V12: 8.94 | W12: 8.94 | X12: 14.2 | Y12: 13.27 | Z12: 12.3 | AA12: 8.94 | AB12: 12.81 | AC12: 13.82 | AD12: 15.38 | AE12: 12.3 | AF12: 8.94 | AG12: 12.3 | AH12: 15.16 | AI12: 14.67 | AJ12: 12.37 | AK12: 17.43 | AL12: 8.94 | AM12: 15.3 | AN12: 16.4 | AO12: 16.85 | AP12: 16.68 | AQ12: 12.56 | AR12: 14.76 | AS12: 15.01 | AT12: 8.94 | AU12: 8.49 | AV12: 15.25 | AW12: 12.3 | AX12: 8.05 | AY12: 13.71 | AZ12: 13.22 | BA12: 11.01 | BB12: 12.56 | BC12: 16.4 | BD12: 12.3 | BE12: 11.01 | BF12: 8.94 | BG12: 15.38 | BH12: 10.97 | BI12: 8.95 | BJ12: 15.12 | BK12: 15.25 | BL12: 16.63 | BM12: 16.63 | BN12: 8.05 | BO12: 17.89 | BP12: 8.05 | BQ12: 12.22 | BR12: 17.94 | BS12: 12.79 | BT12: 8.94 | BU12: 8.07 | BV12: 8.49 | BW12: 15.67 | BX12: 8.49 | BY12: 15.3 | BZ12: 8.49 | CA12: 8.94 | CB12: 17.73 | CC12: 10.31 | CD12: 12.3 | CE12: 8.94 | CF12: 12.22 | CG12: 8.94 | CH12: 8.95 | CI12: 8.94 | CJ12: 8.05 | CK12: 15.33 | CL12: 7.82 | CM12: 8.94 | CN12: 10.25 | CO12: 15.54 | CP12: 8.94 | CQ12: 14.46 | CR12: 8.95 | CS12: 8.94 | CT12: 10.31 | CU12: 8.94 | CV12: 10.24 | CW12: 11.93 | CX12: 15.31 | CY12: 8.94 | CZ12: 18.18 | DA12: 8.49 | DB12: 12.3 | DC12: 8.49 | DD12: 8.05 | DE12: 8.49 | DF12: 7.82 | DG12: 8.94 | DH12: 8.94 | DI12: 11.34 | DJ12: 8.94 | DK12: 8.94 | DL12: 11.81 | DM12: 8.49 | DN12: 10.31 | DO12: 8.94 | DP12: 12.22 | DQ12: 15.03 | DR12: 15.12 | DS12: 8.94 | DT12: 8.94 | DU12: 10.25 | DV12: 8.49 | DW12: 8.94 | DX12: 11.19 | DY12: 8.94 | DZ12: 8.94 | EA12: 16.63
A13: A7006 NU | B13: 5.62 | C13: 9.2 | D13: 5.8 | E13: 7.94 | F13: 5.42 | G13: 8.3 | H13: 7.57 | I13: 6.72 | J13: 7.27 | K13: 5.42 | L13: 5.42 | M13: 6.18 | N13: 9.45 | O13: 6.18 | P13: 5.42 | Q13: 8.36 | R13: 7.94 | S13: 5.42 | T13: 9.43 | U13: 5.42 | V13: 6.72 | W13: 5.42 | X13: 10.25 | Y13: 8.75 | Z13: 6.97 | AA13: 8.12 | AB13: 8.97 | AC13: 9.34 | AD13: 10.25 | AE13: 9.68 | AF13: 6.18 | AG13: 8.28 | AH13: 9.23 | AI13: 7.88 | AJ13: 8.43 | AK13: 9.47 | AL13: 6.18 | AM13: 8.51 | AN13: 8.47 | AO13: 10.25 | AP13: 7.91 | AQ13: 7.61 | AR13: 7.63 | AS13: 8.49 | AT13: 5.42 | AU13: 5.8 | AV13: 8.26 | AW13: 7.88 | AX13: 6.18 | AY13: 7.91 | AZ13: 7.01 | BA13: 7.57 | BB13: 8.1 | BC13: 9.23 | BD13: 7.94 | BE13: 5.8 | BF13: 6.18 | BG13: 8.15 | BH13: 5.8 | BI13: 6.18 | BJ13: 8.77 | BK13: 8.2 | BL13: 8.36 | BM13: 8.28 | BN13: 7.27 | BO13: 10.25 | BP13: 6.18 | BQ13: 7.11 | BR13: 9.13 | BS13: 7.91 | BT13: 6.18 | BU13: 6.15 | BV13: 5.8 | BW13: 9.82 | BX13: 5.8 | BY13: 8.28 | BZ13: 6.72 | CA13: 5.8 | CB13: 9.99 | CC13: 5.8 | CD13: 9.64 | CE13: 6.74 | CF13: 6.58 | CG13: 5.8 | CH13: 5.42 | CI13: 5.42 | CJ13: 7.27 | CK13: 8.37 | CL13: 6.72 | CM13: 5.8 | CN13: 6.18 | CO13: 9.9 | CP13: 6.18 | CQ13: 8.29 | CR13: 7.27 | CS13: 5.42 | CT13: 6.72 | CU13: 5.8 | CV13: 7.88 | CW13: 7.88 | CX13: 8.82 | CY13: 5.8 | CZ13: 8.82 | DA13: 6.72 | DB13: 7.27 | DC13: 5.78 | DD13: 6.18 | DE13: 5.8 | DF13: 6.72 | DG13: 5.42 | DH13: 5.8 | DI13: 8.1 | DJ13: 6.18 | DK13: 5.8 | DL13: 5.42 | DM13: 5.8 | DN13: 6.72 | DO13: 5.8 | DP13: 6.58 | DQ13: 10.35 | DR13: 8.25 | DS13: 5.8 | DT13: 6.18 | DU13: 7.88 | DV13: 5.8 | DW13: 6.18 | DX13: 6.72 | DY13: 5.8 | DZ13: 5.8 | EA13: 10.35
A14: A7007 NU | B14: 2.85 | C14: 4.61 | D14: 2.48 | E14: 3.49 | F14: 2.48 | G14: 3.83 | H14: 3.79 | I14: 2.68 | J14: 3.1 | K14: 2.48 | L14: 2.48 | M14: 2.48 | N14: 4.35 | O14: 2.48 | P14: 2.48 | Q14: 3.71 | R14: 4 | S14: 2.48 | T14: 3.95 | U14: 2.48 | V14: 3.09 | W14: 2.48 | X14: 4.61 | Y14: 3.69 | Z14: 3.1 | AA14: 2.98 | AB14: 3.85 | AC14: 4.12 | AD14: 4.06 | AE14: 4.09 | AF14: 2.7 | AG14: 4.09 | AH14: 4.07 | AI14: 3.1 | AJ14: 4.47 | AK14: 4.1 | AL14: 2.48 | AM14: 3.7 | AN14: 4.03 | AO14: 4.1 | AP14: 3.69 | AQ14: 3.2 | AR14: 3.1 | AS14: 3.83 | AT14: 2.48 | AU14: 2.48 | AV14: 3.51 | AW14: 3.49 | AX14: 2.48 | AY14: 3.92 | AZ14: 3.4 | BA14: 3.59 | BB14: 3.73 | BC14: 4.1 | BD14: 3.23 | BE14: 2.5 | BF14: 2.48 | BG14: 4.09 | BH14: 2.48 | BI14: 2.51 | BJ14: 4.1 | BK14: 3.51 | BL14: 4.18 | BM14: 4.04 | BN14: 3.1 | BO14: 4.1 | BP14: 2.48 | BQ14: 3.2 | BR14: 4.04 | BS14: 3.79 | BT14: 2.51 | BU14: 2.51 | BV14: 2.48 | BW14: 4.05 | BX14: 2.48 | BY14: 3.44 | BZ14: 2.79 | CA14: 2.48 | CB14: 4.08 | CC14: 2.79 | CD14: 4.36 | CE14: 2.82 | CF14: 2.83 | CG14: 2.5 | CH14: 2.48 | CI14: 2.48 | CJ14: 3.1 | CK14: 3.74 | CL14: 2.79 | CM14: 2.5 | CN14: 3.02 | CO14: 4.33 | CP14: 2.48 | CQ14: 3.8 | CR14: 3.1 | CS14: 2.48 | CT14: 2.79 | CU14: 2.48 | CV14: 3.1 | CW14: 4.09 | CX14: 4.1 | CY14: 2.48 | CZ14: 4.05 | DA14: 2.79 | DB14: 3.1 | DC14: 2.48 | DD14: 2.48 | DE14: 2.5 | DF14: 2.79 | DG14: 2.48 | DH14: 2.48 | DI14: 3.73 | DJ14: 2.48 | DK14: 2.48 | DL14: 2.48 | DM14: 2.48 | DN14: 2.79 | DO14: 2.48 | DP14: 2.83 | DQ14: 4.24 | DR14: 3.99 | DS14: 2.48 | DT14: 2.48 | DU14: 4.1 | DV14: 2.5 | DW14: 2.48 | DX14: 2.81 | DY14: 2.75 | DZ14: 2.48 | EA14: 4.1
A15: A7010 NU | B15: 12.56 | C15: 16.46 | D15: 13.3 | E15: 16.4 | F15: 11.93 | G15: 17.38 | H15: 16.46 | I15: 14.51 | J15: 14.68 | K15: 11.93 | L15: 11.93 | M15: 14.68 | N15: 18.01 | O15: 14.68 | P15: 11.93 | Q15: 16.01 | R15: 16.46 | S15: 12.3 | T15: 16.58 | U15: 12.3 | V15: 15.57 | W15: 13.26 | X15: 18.3 | Y15: 16.71 | Z15: 16.4 | AA15: 15.57 | AB15: 16.46 | AC15: 18.82 | AD15: 18.58 | AE15: 19.46 | AF15: 16.46 | AG15: 16.71 | AH15: 16.43 | AI15: 15.61 | AJ15: 17.96 | AK15: 18.08 | AL15: 14.68 | AM15: 17.53 | AN15: 17.63 | AO15: 17.86 | AP15: 17.12 | AQ15: 16.01 | AR15: 15.21 | AS15: 17.22 | AT15: 11.93 | AU15: 13.3 | AV15: 17.1 | AW15: 16.4 | AX15: 14.68 | AY15: 16.46 | AZ15: 14.35 | BA15: 16.46 | BB15: 17.02 | BC15: 18.3 | BD15: 15.61 | BE15: 13.49 | BF15: 14.68 | BG15: 16.71 | BH15: 13.3 | BI15: 14.68 | BJ15: 18.3 | BK15: 16.97 | BL15: 17.59 | BM15: 17.68 | BN15: 16.46 | BO15: 19.68 | BP15: 14.68 | BQ15: 16.53 | BR15: 17.22 | BS15: 16.43 | BT15: 14.68 | BU15: 12.3 | BV15: 13.3 | BW15: 18.44 | BX15: 13.3 | BY15: 16.46 | BZ15: 15.57 | CA15: 13.3 | CB15: 18.51 | CC15: 13.49 | CD15: 17.78 | CE15: 14.68 | CF15: 16.43 | CG15: 13.49 | CH15: 12.3 | CI15: 12.3 | CJ15: 16.46 | CK15: 17.75 | CL15: 15.57 | CM15: 13.49 | CN15: 14.68 | CO15: 17.22 | CP15: 14.68 | CQ15: 17.53 | CR15: 16.46 | CS15: 11.93 | CT15: 15.57 | CU15: 13.3 | CV15: 16.46 | CW15: 16.4 | CX15: 18.98 | CY15: 13.3 | CZ15: 17.69 | DA15: 15.57 | DB15: 16.4 | DC15: 11.86 | DD15: 14.68 | DE15: 13.49 | DF15: 15.57 | DG15: 11.93 | DH15: 13.3 | DI15: 17.1 | DJ15: 14.68 | DK15: 13.3 | DL15: 12.12 | DM15: 13.3 | DN15: 15.57 | DO15: 13.3 | DP15: 16.43 | DQ15: 16.58 | DR15: 16.46 | DS15: 13.3 | DT15: 14.68 | DU15: 16.46 | DV15: 13.49 | DW15: 14.68 | DX15: 15.54 | DY15: 15.57 | DZ15: 13.3 | EA15: 17.17
A16: A7012 NU | B16: 2.58 | C16: 3.11 | D16: 2.48 | E16: 3.08 | F16: 2.15 | G16: 3.08 | H16: 3.08 | I16: 2.69 | J16: 2.82 | K16: 2.15 | L16: 2.15 | M16: 2.8 | N16: 3.12 | O16: 2.8 | P16: 2.15 | Q16: 2.95 | R16: 3.08 | S16: 2.2 | T16: 3.22 | U16: 2.2 | V16: 2.81 | W16: 2.15 | X16: 3.14 | Y16: 3.49 | Z16: 2.67 | AA16: 2.81 | AB16: 3.08 | AC16: 3.51 | AD16: 3.26 | AE16: 3.38 | AF16: 2.56 | AG16: 3.08 | AH16: 2.97 | AI16: 2.82 | AJ16: 3.78 | AK16: 3.11 | AL16: 2.8 | AM16: 3.17 | AN16: 3.3 | AO16: 3.26 | AP16: 2.98 | AQ16: 2.81 | AR16: 2.81 | AS16: 2.41 | AT16: 2.15 | AU16: 2.48 | AV16: 3.08 | AW16: 2.2 | AX16: 2.8 | AY16: 2.95 | AZ16: 2.17 | BA16: 3.06 | BB16: 3.01 | BC16: 3.26 | BD16: 2.2 | BE16: 2.17 | BF16: 2.8 | BG16: 3.02 | BH16: 2.48 | BI16: 2.8 | BJ16: 3.08 | BK16: 3.08 | BL16: 3.36 | BM16: 3.23 | BN16: 2.82 | BO16: 3.71 | BP16: 2.8 | BQ16: 2.81 | BR16: 3.42 | BS16: 3.2 | BT16: 2.8 | BU16: 2.2 | BV16: 2.48 | BW16: 3.27 | BX16: 2.48 | BY16: 2.99 | BZ16: 2.81 | CA16: 2.48 | CB16: 3.78 | CC16: 2.81 | CD16: 3.51 | CE16: 2.82 | CF16: 2.73 | CG16: 2.5 | CH16: 2.2 | CI16: 2.2 | CJ16: 2.82 | CK16: 3.12 | CL16: 2.81 | CM16: 2.5 | CN16: 2.56 | CO16: 3.46 | CP16: 2.8 | CQ16: 3.08 | CR16: 2.82 | CS16: 2.15 | CT16: 2.81 | CU16: 2.48 | CV16: 2.8 | CW16: 3.08 | CX16: 3.55 | CY16: 2.48 | CZ16: 3.38 | DA16: 2.81 | DB16: 2.82 | DC16: 2.15 | DD16: 2.8 | DE16: 2.5 | DF16: 2.81 | DG16: 2.15 | DH16: 2.48 | DI16: 2.99 | DJ16: 2.8 | DK16: 2.48 | DL16: 2.17 | DM16: 2.48 | DN16: 2.81 | DO16: 2.48 | DP16: 2.73 | DQ16: 3.11 | DR16: 3.08 | DS16: 2.48 | DT16: 2.8 | DU16: 3.08 | DV16: 2.5 | DW16: 2.8 | DX16: 2.81 | DY16: 2.48 | DZ16: 2.48 | EA16: 3.11
A17: A7013 NU | B17: 0.52 | C17: 0.55 | D17: 0.5 | E17: 0.52 | F17: 0.48 | G17: 0.7 | H17: 0.57 | I17: 0.5 | J17: 0.52 | K17: 0.48 | L17: 0.41 | M17: 0.52 | N17: 0.62 | O17: 0.52 | P17: 0.48 | Q17: 0.56 | R17: 0.62 | S17: 0.48 | T17: 0.59 | U17: 0.48 | V17: 0.66 | W17: 0.48 | X17: 0.6 | Y17: 0.62 | Z17: 0.48 | AA17: 0.54 | AB17: 0.6 | AC17: 0.7 | AD17: 0.72 | AE17: 0.74 | AF17: 0.48 | AG17: 0.57 | AH17: 0.63 | AI17: 0.51 | AJ17: 0.72 | AK17: 0.62 | AL17: 0.52 | AM17: 0.72 | AN17: 0.62 | AO17: 0.62 | AP17: 0.68 | AQ17: 0.51 | AR17: 0.51 | AS17: 0.59 | AT17: 0.48 | AU17: 0.5 | AV17: 0.62 | AW17: 0.55 | AX17: 0.52 | AY17: 0.71 | AZ17: 0.53 | BA17: 0.72 | BB17: 0.55 | BC17: 0.62 | BD17: 0.51 | BE17: 0.5 | BF17: 0.52 | BG17: 0.71 | BH17: 0.5 | BI17: 0.48 | BJ17: 0.71 | BK17: 0.62 | BL17: 0.74 | BM17: 0.72 | BN17: 0.56 | BO17: 0.67 | BP17: 0.52 | BQ17: 0.51 | BR17: 0.57 | BS17: 0.72 | BT17: 0.52 | BU17: 0.48 | BV17: 0.5 | BW17: 0.66 | BX17: 0.5 | BY17: 0.51 | BZ17: 0.54 | CA17: 0.5 | CB17: 0.66 | CC17: 0.54 | CD17: 0.62 | CE17: 0.52 | CF17: 0.49 | CG17: 0.49 | CH17: 0.48 | CI17: 0.48 | CJ17: 0.56 | CK17: 0.57 | CL17: 0.57 | CM17: 0.49 | CN17: 0.51 | CO17: 0.6 | CP17: 0.52 | CQ17: 0.6 | CR17: 0.56 | CS17: 0.48 | CT17: 0.54 | CU17: 0.5 | CV17: 0.71 | CW17: 0.64 | CX17: 0.73 | CY17: 0.5 | CZ17: 0.62 | DA17: 0.54 | DB17: 0.51 | DC17: 0.44 | DD17: 0.52 | DE17: 0.5 | DF17: 0.57 | DG17: 0.48 | DH17: 0.5 | DI17: 0.58 | DJ17: 0.52 | DK17: 0.5 | DL17: 0.45 | DM17: 0.5 | DN17: 0.54 | DO17: 0.5 | DP17: 0.49 | DQ17: 0.66 | DR17: 0.6 | DS17: 0.5 | DT17: 0.52 | DU17: 0.77 | DV17: 0.5 | DW17: 0.52 | DX17: 0.51 | DY17: 0.5 | DZ17: 0.5 | EA17: 0.62
A18: A7014 NU | B18: 2.55 | C18: 3.57 | D18: 2.87 | E18: 3.54 | F18: 2.55 | G18: 3.59 | H18: 3.49 | I18: 2.81 | J18: 3.08 | K18: 2.55 | L18: 2.61 | M18: 3.2 | N18: 3.9 | O18: 2.55 | P18: 2.55 | Q18: 3.71 | R18: 3.59 | S18: 2.61 | T18: 3.57 | U18: 2.61 | V18: 3.32 | W18: 2.55 | X18: 4.1 | Y18: 3.75 | Z18: 3.2 | AA18: 3.14 | AB18: 3.59 | AC18: 3.96 | AD18: 4.08 | AE18: 3.85 | AF18: 2.55 | AG18: 3.59 | AH18: 3.57 | AI18: 3.43 | AJ18: 3.08 | AK18: 3.92 | AL18: 3.2 | AM18: 3.59 | AN18: 3.67 | AO18: 4 | AP18: 3.57 | AQ18: 3.24 | AR18: 3.39 | AS18: 3.59 | AT18: 2.55 | AU18: 2.87 | AV18: 3.59 | AW18: 3.54 | AX18: 3.2 | AY18: 3.57 | AZ18: 3.3 | BA18: 3.02 | BB18: 3.57 | BC18: 3.84 | BD18: 3.59 | BE18: 2.91 | BF18: 3.2 | BG18: 3.69 | BH18: 2.55 | BI18: 3.08 | BJ18: 4.06 | BK18: 3.57 | BL18: 3.96 | BM18: 3.69 | BN18: 3.2 | BO18: 4.09 | BP18: 2.55 | BQ18: 3.22 | BR18: 3.76 | BS18: 3.04 | BT18: 2.77 | BU18: 3.08 | BV18: 2.87 | BW18: 3.98 | BX18: 2.87 | BY18: 3.45 | BZ18: 2.87 | CA18: 2.87 | CB18: 4.09 | CC18: 3.32 | CD18: 4.15 | CE18: 2.81 | CF18: 3.14 | CG18: 2.85 | CH18: 2.61 | CI18: 2.61 | CJ18: 3.2 | CK18: 3.63 | CL18: 3.32 | CM18: 2.85 | CN18: 3.08 | CO18: 3.75 | CP18: 3.2 | CQ18: 3.59 | CR18: 3.43 | CS18: 2.55 | CT18: 3.32 | CU18: 2.87 | CV18: 2.61 | CW18: 3.54 | CX18: 3.69 | CY18: 2.87 | CZ18: 3.98 | DA18: 2.98 | DB18: 3.43 | DC18: 2.81 | DD18: 3.2 | DE18: 2.91 | DF18: 3.32 | DG18: 2.55 | DH18: 2.81 | DI18: 3.63 | DJ18: 2.55 | DK18: 2.87 | DL18: 2.58 | DM18: 2.87 | DN18: 3.32 | DO18: 2.87 | DP18: 3.14 | DQ18: 4.1 | DR18: 3.59 | DS18: 2.87 | DT18: 3.2 | DU18: 3.54 | DV18: 2.91 | DW18: 3.2 | DX18: 3.32 | DY18: 2.87 | DZ18: 2.87 | EA18: 3.64
A19: A7015 NU | B19: 1.21 | C19: 1.35 | D19: 1.12 | E19: 1.38 | F19: 1.11 | G19: 1.38 | H19: 1.36 | I19: 1.12 | J19: 1.07 | K19: 1.11 | L19: 1.13 | M19: 1.11 | N19: 1.47 | O19: 1.11 | P19: 1.11 | Q19: 1.35 | R19: 1.38 | S19: 1.13 | T19: 1.33 | U19: 1.13 | V19: 1.12 | W19: 1.13 | X19: 1.44 | Y19: 1.46 | Z19: 1.23 | AA19: 1.09 | AB19: 1.38 | AC19: 1.58 | AD19: 1.58 | AE19: 1.55 | AF19: 1.07 | AG19: 1.33 | AH19: 1.35 | AI19: 1.28 | AJ19: 1.38 | AK19: 1.48 | AL19: 1.11 | AM19: 1.38 | AN19: 1.54 | AO19: 1.53 | AP19: 1.31 | AQ19: 1.31 | AR19: 1.27 | AS19: 1.33 | AT19: 1.11 | AU19: 1.09 | AV19: 1.33 | AW19: 1.33 | AX19: 1.11 | AY19: 1.44 | AZ19: 1.33 | BA19: 1.36 | BB19: 1.38 | BC19: 1.33 | BD19: 1.07 | BE19: 1.21 | BF19: 1.11 | BG19: 1.38 | BH19: 1.09 | BI19: 1.13 | BJ19: 1.38 | BK19: 1.33 | BL19: 1.58 | BM19: 1.54 | BN19: 1.11 | BO19: 1.76 | BP19: 1.11 | BQ19: 1.25 | BR19: 1.52 | BS19: 1.33 | BT19: 1.13 | BU19: 1.13 | BV19: 1.09 | BW19: 1.6 | BX19: 1.09 | BY19: 1.4 | BZ19: 1.12 | CA19: 1.12 | CB19: 1.64 | CC19: 1.21 | CD19: 1.33 | CE19: 1.11 | CF19: 1.25 | CG19: 1.18 | CH19: 1.13 | CI19: 1.11 | CJ19: 1.11 | CK19: 1.42 | CL19: 1.09 | CM19: 1.18 | CN19: 1.28 | CO19: 1.46 | CP19: 1.11 | CQ19: 1.33 | CR19: 1.13 | CS19: 1.11 | CT19: 1.21 | CU19: 1.12 | CV19: 1.34 | CW19: 1.38 | CX19: 1.66 | CY19: 1.12 | CZ19: 1.56 | DA19: 1.12 | DB19: 1.33 | DC19: 1.12 | DD19: 1.11 | DE19: 1.12 | DF19: 1.09 | DG19: 1.11 | DH19: 1.12 | DI19: 1.33 | DJ19: 1.11 | DK19: 1.12 | DL19: 1.12 | DM19: 1.09 | DN19: 1.21 | DO19: 1.12 | DP19: 1.25 | DQ19: 1.35 | DR19: 1.38 | DS19: 1.12 | DT19: 1.11 | DU19: 1.38 | DV19: 1.12 | DW19: 1.11 | DX19: 1.23 | DY19: 1.09 | DZ19: 1.12 | EA19: 1.48
A20: A7017 NU | B20: 75.02 | C20: 147.19 | D20: 96.94 | E20: 122.86 | F20: 76.24 | G20: 129.89 | H20: 130.62 | I20: 96.94 | J20: 122.86 | K20: 76.24 | L20: 76.24 | M20: 117.64 | N20: 146.06 | O20: 117.64 | P20: 76.24 | Q20: 124.46 | R20: 128.13 | S20: 76.24 | T20: 147.19 | U20: 76.24 | V20: 120.25 | W20: 104.91 | X20: 148.63 | Y20: 133.8 | Z20: 117.88 | AA20: 130.62 | AB20: 143.34 | AC20: 143.49 | AD20: 148.63 | AE20: 143.5 | AF20: 122.86 | AG20: 143.5 | AH20: 143.5 | AI20: 120.78 | AJ20: 145.43 | AK20: 143.5 | AL20: 117.64 | AM20: 137.24 | AN20: 134.21 | AO20: 148.63 | AP20: 128.64 | AQ20: 120.77 | AR20: 119.33 | AS20: 143.42 | AT20: 76.24 | AU20: 96.94 | AV20: 126.69 | AW20: 117.88 | AX20: 117.64 | AY20: 127.58 | AZ20: 97.06 | BA20: 130.62 | BB20: 140.86 | BC20: 143.5 | BD20: 117.88 | BE20: 96.94 | BF20: 117.64 | BG20: 143.5 | BH20: 96.94 | BI20: 117.64 | BJ20: 137.24 | BK20: 126.59 | BL20: 137.23 | BM20: 137.24 | BN20: 117.64 | BO20: 147.21 | BP20: 77.64 | BQ20: 119.31 | BR20: 142.07 | BS20: 128.13 | BT20: 117.64 | BU20: 117.64 | BV20: 96.94 | BW20: 140.3 | BX20: 96.94 | BY20: 119.17 | BZ20: 97.64 | CA20: 96.94 | CB20: 145.94 | CC20: 96.94 | CD20: 151.29 | CE20: 117.64 | CF20: 117.75 | CG20: 96.94 | CH20: 76.24 | CI20: 76.24 | CJ20: 122.86 | CK20: 125.05 | CL20: 120.25 | CM20: 96.94 | CN20: 76.88 | CO20: 142.7 | CP20: 117.64 | CQ20: 143.48 | CR20: 122.86 | CS20: 76.24 | CT20: 120.25 | CU20: 96.94 | CV20: 138.38 | CW20: 138.38 | CX20: 141.35 | CY20: 96.94 | CZ20: 135.54 | DA20: 120.25 | DB20: 117.88 | DC20: 96.94 | DD20: 117.64 | DE20: 96.94 | DF20: 120.25 | DG20: 76.24 | DH20: 96.94 | DI20: 129.89 | DJ20: 117.64 | DK20: 96.94 | DL20: 62.72 | DM20: 96.94 | DN20: 120.25 | DO20: 96.94 | DP20: 117.75 | DQ20: 147.19 | DR20: 143.34 | DS20: 96.94 | DT20: 117.64 | DU20: 138.38 | DV20: 96.94 | DW20: 117.64 | DX20: 117.75 | DY20: 97.25 | DZ20: 96.94 | EA20: 147.19
A21: A7017 RR | B21: 7.5 | C21: 14.72 | D21: 9.7 | E21: 12.29 | F21: 7.63 | G21: 12.99 | H21: 13.06 | I21: 9.7 | J21: 12.29 | K21: 7.63 | L21: 7.63 | M21: 11.77 | N21: 14.61 | O21: 11.77 | P21: 7.63 | Q21: 12.44 | R21: 12.81 | S21: 7.63 | T21: 14.72 | U21: 7.63 | V21: 12.02 | W21: 10.5 | X21: 14.86 | Y21: 13.38 | Z21: 11.79 | AA21: 13.06 | AB21: 14.33 | AC21: 14.35 | AD21: 14.86 | AE21: 14.35 | AF21: 12.29 | AG21: 14.35 | AH21: 14.35 | AI21: 12.07 | AJ21: 14.54 | AK21: 14.35 | AL21: 11.77 | AM21: 13.72 | AN21: 13.42 | AO21: 14.86 | AP21: 12.86 | AQ21: 12.07 | AR21: 11.93 | AS21: 14.34 | AT21: 7.63 | AU21: 9.7 | AV21: 12.67 | AW21: 11.79 | AX21: 11.77 | AY21: 12.76 | AZ21: 9.71 | BA21: 13.06 | BB21: 14.08 | BC21: 14.35 | BD21: 11.79 | BE21: 9.7 | BF21: 11.77 | BG21: 14.35 | BH21: 9.7 | BI21: 11.77 | BJ21: 13.72 | BK21: 12.66 | BL21: 13.72 | BM21: 13.72 | BN21: 11.77 | BO21: 14.72 | BP21: 7.77 | BQ21: 11.93 | BR21: 14.21 | BS21: 12.81 | BT21: 11.77 | BU21: 11.77 | BV21: 9.7 | BW21: 14.03 | BX21: 9.7 | BY21: 11.92 | BZ21: 9.77 | CA21: 9.7 | CB21: 14.6 | CC21: 9.7 | CD21: 15.13 | CE21: 11.77 | CF21: 11.78 | CG21: 9.7 | CH21: 7.63 | CI21: 7.63 | CJ21: 12.29 | CK21: 12.51 | CL21: 12.02 | CM21: 9.7 | CN21: 7.69 | CO21: 14.27 | CP21: 11.77 | CQ21: 14.35 | CR21: 12.29 | CS21: 7.63 | CT21: 12.02 | CU21: 9.7 | CV21: 13.84 | CW21: 13.84 | CX21: 14.13 | CY21: 9.7 | CZ21: 13.55 | DA21: 12.02 | DB21: 11.79 | DC21: 9.7 | DD21: 11.77 | DE21: 9.7 | DF21: 12.02 | DG21: 7.63 | DH21: 9.7 | DI21: 12.99 | DJ21: 11.77 | DK21: 9.7 | DL21: 6.27 | DM21: 9.7 | DN21: 12.02 | DO21: 9.7 | DP21: 11.78 | DQ21: 14.72 | DR21: 14.33 | DS21: 9.7 | DT21: 11.77 | DU21: 13.84 | DV21: 9.7 | DW21: 11.77 | DX21: 11.78 | DY21: 9.73 | DZ21: 9.7 | EA21: 14.72
A22: A7017 UE | B22: 56.26 | C22: 110.39 | D22: 72.71 | E22: 92.15 | F22: 57.18 | G22: 97.42 | H22: 97.96 | I22: 72.71 | J22: 92.15 | K22: 57.18 | L22: 57.18 | M22: 88.23 | N22: 109.55 | O22: 88.23 | P22: 57.18 | Q22: 93.35 | R22: 96.09 | S22: 57.18 | T22: 110.39 | U22: 57.18 | V22: 90.19 | W22: 78.68 | X22: 111.47 | Y22: 100.36 | Z22: 88.41 | AA22: 97.96 | AB22: 107.5 | AC22: 107.61 | AD22: 111.47 | AE22: 107.63 | AF22: 92.15 | AG22: 107.63 | AH22: 107.63 | AI22: 90.58 | AJ22: 109.07 | AK22: 107.63 | AL22: 88.23 | AM22: 102.93 | AN22: 100.67 | AO22: 111.47 | AP22: 96.48 | AQ22: 90.58 | AR22: 89.5 | AS22: 107.56 | AT22: 57.18 | AU22: 72.71 | AV22: 95.02 | AW22: 88.41 | AX22: 88.23 | AY22: 95.68 | AZ22: 72.8 | BA22: 97.96 | BB22: 105.65 | BC22: 107.63 | BD22: 88.41 | BE22: 72.71 | BF22: 88.23 | BG22: 107.63 | BH22: 72.71 | BI22: 88.23 | BJ22: 102.93 | BK22: 94.95 | BL22: 102.92 | BM22: 102.93 | BN22: 88.23 | BO22: 110.41 | BP22: 58.23 | BQ22: 89.48 | BR22: 106.55 | BS22: 96.09 | BT22: 88.23 | BU22: 88.23 | BV22: 72.71 | BW22: 105.23 | BX22: 72.71 | BY22: 89.38 | BZ22: 73.24 | CA22: 72.71 | CB22: 109.46 | CC22: 72.71 | CD22: 113.47 | CE22: 88.23 | CF22: 88.31 | CG22: 72.71 | CH22: 57.18 | CI22: 57.18 | CJ22: 92.15 | CK22: 93.79 | CL22: 90.19 | CM22: 72.71 | CN22: 57.66 | CO22: 107.03 | CP22: 88.23 | CQ22: 107.61 | CR22: 92.15 | CS22: 57.18 | CT22: 90.19 | CU22: 72.71 | CV22: 103.78 | CW22: 103.78 | CX22: 106.02 | CY22: 72.71 | CZ22: 101.65 | DA22: 90.19 | DB22: 88.41 | DC22: 72.71 | DD22: 88.23 | DE22: 72.71 | DF22: 90.19 | DG22: 57.18 | DH22: 72.71 | DI22: 97.42 | DJ22: 88.23 | DK22: 72.71 | DL22: 47.04 | DM22: 72.71 | DN22: 90.19 | DO22: 72.71 | DP22: 88.31 | DQ22: 110.39 | DR22: 107.5 | DS22: 72.71 | DT22: 88.23 | DU22: 103.78 | DV22: 72.71 | DW22: 88.23 | DX22: 88.31 | DY22: 72.94 | DZ22: 72.71 | EA22: 110.39
A23: A7018 | B23: 0.32 | C23: 0.41 | D23: 0.29 | E23: 0.34 | F23: 0.28 | G23: 0.36 | H23: 0.35 | I23: 0.33 | J23: 0.31 | K23: 0.28 | L23: 0.29 | M23: 0.3 | N23: 0.36 | O23: 0.3 | P23: 0.28 | Q23: 0.32 | R23: 0.34 | S23: 0.29 | T23: 0.41 | U23: 0.29 | V23: 0.35 | W23: 0.3 | X23: 0.36 | Y23: 0.41 | Z23: 0.3 | AA23: 0.33 | AB23: 0.35 | AC23: 0.35 | AD23: 0.36 | AE23: 0.35 | AF23: 0.36 | AG23: 0.36 | AH23: 0.36 | AI23: 0.31 | AJ23: 0.36 | AK23: 0.41 | AL23: 0.3 | AM23: 0.33 | AN23: 0.32 | AO23: 0.41 | AP23: 0.33 | AQ23: 0.31 | AR23: 0.31 | AS23: 0.35 | AT23: 0.28 | AU23: 0.29 | AV23: 0.38 | AW23: 0.36 | AX23: 0.3 | AY23: 0.35 | AZ23: 0.33 | BA23: 0.35 | BB23: 0.35 | BC23: 0.41 | BD23: 0.34 | BE23: 0.29 | BF23: 0.3 | BG23: 0.36 | BH23: 0.29 | BI23: 0.3 | BJ23: 0.36 | BK23: 0.38 | BL23: 0.36 | BM23: 0.36 | BN23: 0.36 | BO23: 0.36 | BP23: 0.3 | BQ23: 0.31 | BR23: 0.37 | BS23: 0.35 | BT23: 0.3 | BU23: 0.3 | BV23: 0.29 | BW23: 0.36 | BX23: 0.29 | BY23: 0.31 | BZ23: 0.32 | CA23: 0.29 | CB23: 0.35 | CC23: 0.32 | CD23: 0.42 | CE23: 0.3 | CF23: 0.31 | CG23: 0.29 | CH23: 0.29 | CI23: 0.29 | CJ23: 0.36 | CK23: 0.31 | CL23: 0.33 | CM23: 0.29 | CN23: 0.3 | CO23: 0.37 | CP23: 0.3 | CQ23: 0.35 | CR23: 0.36 | CS23: 0.28 | CT23: 0.33 | CU23: 0.29 | CV23: 0.35 | CW23: 0.36 | CX23: 0.37 | CY23: 0.29 | CZ23: 0.41 | DA23: 0.33 | DB23: 0.3 | DC23: 0.29 | DD23: 0.3 | DE23: 0.29 | DF23: 0.33 | DG23: 0.28 | DH23: 0.29 | DI23: 0.35 | DJ23: 0.3 | DK23: 0.29 | DL23: 0.29 | DM23: 0.29 | DN23: 0.33 | DO23: 0.29 | DP23: 0.31 | DQ23: 0.37 | DR23: 0.36 | DS23: 0.29 | DT23: 0.3 | DU23: 0.36 | DV23: 0.29 | DW23: 0.3 | DX23: 0.31 | DY23: 0.33 | DZ23: 0.29 | EA23: 0.41
A24: A7027 NU | B24: 123 | C24: 104.55 | D24: 113.55 | E24: 124.54 | F24: 113.37 | G24: 116.85 | H24: 135.22 | I24: 125.72 | J24: 120.05 | K24: 113.17 | L24: 117.88 | M24: 124.64 | N24: 128.35 | O24: 117.15 | P24: 117.88 | Q24: 135.96 | R24: 127.79 | S24: 117.88 | T24: 112.56 | U24: 117.88 | V24: 113.03 | W24: 114.93 | X24: 116.4 | Y24: 113.2 | Z24: 118.59 | AA24: 109.38 | AB24: 121.87 | AC24: 130.69 | AD24: 128.09 | AE24: 133.4 | AF24: 124.77 | AG24: 128.13 | AH24: 117.88 | AI24: 114.6 | AJ24: 121.87 | AK24: 116.91 | AL24: 119.44 | AM24: 113.57 | AN24: 124.44 | AO24: 114.93 | AP24: 116.44 | AQ24: 121.82 | AR24: 118.08 | AS24: 144.94 | AT24: 127.33 | AU24: 113.37 | AV24: 103.67 | AW24: 137.72 | AX24: 119.52 | AY24: 140.63 | AZ24: 142.22 | BA24: 126.98 | BB24: 125.87 | BC24: 112.28 | BD24: 121.01 | BE24: 120.44 | BF24: 113.34 | BG24: 119.52 | BH24: 117.36 | BI24: 123 | BJ24: 125.54 | BK24: 110.43 | BL24: 125.87 | BM24: 125.87 | BN24: 127.76 | BO24: 134.2 | BP24: 118.92 | BQ24: 121.72 | BR24: 119.52 | BS24: 128.09 | BT24: 121.17 | BU24: 111.73 | BV24: 112.42 | BW24: 133.08 | BX24: 112.42 | BY24: 126.51 | BZ24: 121.01 | CA24: 114.68 | CB24: 136.08 | CC24: 114.43 | CD24: 112.56 | CE24: 117.15 | CF24: 119.31 | CG24: 117.88 | CH24: 117.88 | CI24: 117.88 | CJ24: 121.17 | CK24: 123 | CL24: 113.37 | CM24: 119.29 | CN24: 114.93 | CO24: 117.88 | CP24: 117.88 | CQ24: 117.88 | CR24: 112.28 | CS24: 128.13 | CT24: 112.75 | CU24: 113.2 | CV24: 135.22 | CW24: 116.4 | CX24: 128.13 | CY24: 114.93 | CZ24: 116.4 | DA24: 116.24 | DB24: 128.37 | DC24: 113.37 | DD24: 119.52 | DE24: 127.33 | DF24: 115.62 | DG24: 114.14 | DH24: 126.83 | DI24: 116.4 | DJ24: 117.88 | DK24: 117.63 | DL24: 128.13 | DM24: 114.6 | DN24: 112.28 | DO24: 110.42 | DP24: 119.31 | DQ24: 110.04 | DR24: 114.93 | DS24: 118.29 | DT24: 126.84 | DU24: 117.88 | DV24: 121.17 | DW24: 115.89 | DX24: 128.13 | DY24: 109.14 | DZ24: 117.88 | EA24: 104.55
A25: A7028 NU | B25: 32.55 | C25: 31.3 | D25: 31.81 | E25: 37.9 | F25: 31.72 | G25: 31.98 | H25: 38.73 | I25: 32.61 | J25: 31.62 | K25: 33.6 | L25: 31.84 | M25: 34.62 | N25: 35.14 | O25: 33.37 | P25: 31.84 | Q25: 37.07 | R25: 33.37 | S25: 33.83 | T25: 32.8 | U25: 34.11 | V25: 32.8 | W25: 32.8 | X25: 33.6 | Y25: 31.5 | Z25: 33.35 | AA25: 31.52 | AB25: 32.55 | AC25: 36.76 | AD25: 36.16 | AE25: 36.46 | AF25: 35.88 | AG25: 34.85 | AH25: 32.8 | AI25: 31.84 | AJ25: 32.55 | AK25: 34.81 | AL25: 34.62 | AM25: 34.38 | AN25: 35.88 | AO25: 34.15 | AP25: 32.06 | AQ25: 34.85 | AR25: 31.98 | AS25: 38.93 | AT25: 33.83 | AU25: 31.72 | AV25: 30.73 | AW25: 37.41 | AX25: 32.48 | AY25: 38.2 | AZ25: 38.82 | BA25: 36.04 | BB25: 31.72 | BC25: 33.37 | BD25: 37.9 | BE25: 32.61 | BF25: 33.09 | BG25: 34.08 | BH25: 33.37 | BI25: 34.78 | BJ25: 33.09 | BK25: 30.75 | BL25: 35.88 | BM25: 36 | BN25: 36.76 | BO25: 37.09 | BP25: 34.75 | BQ25: 35.88 | BR25: 32.48 | BS25: 35.92 | BT25: 33.37 | BU25: 31.78 | BV25: 31.62 | BW25: 36.16 | BX25: 31.62 | BY25: 36.64 | BZ25: 35.9 | CA25: 31.78 | CB25: 38.03 | CC25: 31.92 | CD25: 32.39 | CE25: 31.84 | CF25: 33.37 | CG25: 35.06 | CH25: 31.39 | CI25: 33.62 | CJ25: 33.37 | CK25: 35.45 | CL25: 31.84 | CM25: 34.19 | CN25: 31.93 | CO25: 32.39 | CP25: 33.37 | CQ25: 32.8 | CR25: 32.8 | CS25: 33.37 | CT25: 31.98 | CU25: 33.09 | CV25: 38.73 | CW25: 31.48 | CX25: 37.82 | CY25: 33.37 | CZ25: 33.09 | DA25: 32 | DB25: 36.14 | DC25: 31.72 | DD25: 32.77 | DE25: 33.83 | DF25: 32 | DG25: 31.78 | DH25: 34.62 | DI25: 33.6 | DJ25: 33.37 | DK25: 33.09 | DL25: 35.88 | DM25: 31.84 | DN25: 32.8 | DO25: 31.43 | DP25: 34.56 | DQ25: 32.04 | DR25: 31.84 | DS25: 31.72 | DT25: 34.52 | DU25: 31.98 | DV25: 33.37 | DW25: 31.91 | DX25: 35.88 | DY25: 30.88 | DZ25: 33.83 | EA25: 30.75
A26: A7029 NU | B26: 15.87 | C26: 14.12 | D26: 15.38 | E26: 15.83 | F26: 14.82 | G26: 15.04 | H26: 16.54 | I26: 15.38 | J26: 14.97 | K26: 14.73 | L26: 15.38 | M26: 15.63 | N26: 15.5 | O26: 15.38 | P26: 15.38 | Q26: 15.38 | R26: 15.38 | S26: 16.4 | T26: 15.38 | U26: 16.89 | V26: 15.38 | W26: 16.35 | X26: 16.44 | Y26: 15.96 | Z26: 14.94 | AA26: 13.75 | AB26: 15.3 | AC26: 15.81 | AD26: 15.56 | AE26: 15.3 | AF26: 15.27 | AG26: 16.54 | AH26: 15.38 | AI26: 14.61 | AJ26: 15.38 | AK26: 15.45 | AL26: 15.38 | AM26: 16.44 | AN26: 15.77 | AO26: 15.38 | AP26: 16.44 | AQ26: 14.86 | AR26: 14.68 | AS26: 16.38 | AT26: 15.68 | AU26: 15.38 | AV26: 13.84 | AW26: 15.89 | AX26: 15.87 | AY26: 16.28 | AZ26: 16.09 | BA26: 15.6 | BB26: 15.23 | BC26: 15.38 | BD26: 14.99 | BE26: 15.38 | BF26: 15.38 | BG26: 16.2 | BH26: 15.18 | BI26: 15.04 | BJ26: 16.44 | BK26: 14.47 | BL26: 15.68 | BM26: 15.68 | BN26: 15.38 | BO26: 16.02 | BP26: 14.71 | BQ26: 14.84 | BR26: 15.83 | BS26: 15.38 | BT26: 14.92 | BU26: 14.97 | BV26: 15.27 | BW26: 16.35 | BX26: 15.38 | BY26: 15.38 | BZ26: 14.84 | CA26: 15.21 | CB26: 16.54 | CC26: 15.38 | CD26: 15.38 | CE26: 14.75 | CF26: 15.01 | CG26: 14.86 | CH26: 14.76 | CI26: 14.62 | CJ26: 15.38 | CK26: 15.38 | CL26: 15.38 | CM26: 14.71 | CN26: 15.2 | CO26: 15.92 | CP26: 15.38 | CQ26: 15.68 | CR26: 15.38 | CS26: 15.21 | CT26: 15.58 | CU26: 17.73 | CV26: 16.42 | CW26: 15.34 | CX26: 16.35 | CY26: 15.38 | CZ26: 16.47 | DA26: 14.87 | DB26: 15.29 | DC26: 15.38 | DD26: 15.48 | DE26: 16.29 | DF26: 15.07 | DG26: 15.27 | DH26: 15.58 | DI26: 16.44 | DJ26: 15.68 | DK26: 16.47 | DL26: 15.68 | DM26: 14.42 | DN26: 15.38 | DO26: 14.78 | DP26: 14.82 | DQ26: 13.98 | DR26: 16.18 | DS26: 15.21 | DT26: 15.29 | DU26: 15.38 | DV26: 16.31 | DW26: 14.92 | DX26: 15.68 | DY26: 15.45 | DZ26: 16.54 | EA26: 14.12
A27: A7030 NU | B27: 86.1 | C27: 86.1 | D27: 93.61 | E27: 95.84 | F27: 87.13 | G27: 92.25 | H27: 96.92 | I27: 86.1 | J27: 85.56 | K27: 86.61 | L27: 86.1 | M27: 86.1 | N27: 97.38 | O27: 86.1 | P27: 86.1 | Q27: 95.65 | R27: 90.2 | S27: 96.94 | T27: 92.25 | U27: 95.62 | V27: 91.46 | W27: 90.71 | X27: 89.73 | Y27: 88.66 | Z27: 89.07 | AA27: 76.82 | AB27: 86.1 | AC27: 92.46 | AD27: 85.01 | AE27: 86.61 | AF27: 87.13 | AG27: 92.49 | AH27: 89.73 | AI27: 92.25 | AJ27: 86.1 | AK27: 91.79 | AL27: 88.15 | AM27: 87.48 | AN27: 91.86 | AO27: 89.73 | AP27: 87.48 | AQ27: 89.97 | AR27: 89.05 | AS27: 87.64 | AT27: 92.25 | AU27: 86.1 | AV27: 84.57 | AW27: 87.91 | AX27: 85.56 | AY27: 92.01 | AZ27: 89.45 | BA27: 78.58 | BB27: 86.1 | BC27: 94.3 | BD27: 90.2 | BE27: 88.15 | BF27: 90.46 | BG27: 89.73 | BH27: 86.1 | BI27: 85.01 | BJ27: 90.22 | BK27: 85.56 | BL27: 92.25 | BM27: 92.25 | BN27: 88.43 | BO27: 93.17 | BP27: 87.13 | BQ27: 91.11 | BR27: 96.65 | BS27: 85.01 | BT27: 90.64 | BU27: 86.1 | BV27: 84.53 | BW27: 85.01 | BX27: 88.15 | BY27: 102.51 | BZ27: 88.43 | CA27: 85.56 | CB27: 95.84 | CC27: 89.93 | CD27: 85.56 | CE27: 85.01 | CF27: 91.84 | CG27: 89.73 | CH27: 86.1 | CI27: 86.1 | CJ27: 86.1 | CK27: 92.5 | CL27: 80.11 | CM27: 89.97 | CN27: 93.35 | CO27: 92.25 | CP27: 86.1 | CQ27: 92.49 | CR27: 87.44 | CS27: 90.2 | CT27: 91.83 | CU27: 98.44 | CV27: 95.84 | CW27: 85.56 | CX27: 86.1 | CY27: 90.71 | CZ27: 95.39 | DA27: 85.56 | DB27: 90.2 | DC27: 84.05 | DD27: 86.1 | DE27: 87.13 | DF27: 85.56 | DG27: 88.41 | DH27: 93.4 | DI27: 89.73 | DJ27: 86.1 | DK27: 95.62 | DL27: 93.26 | DM27: 85.01 | DN27: 91.77 | DO27: 84.84 | DP27: 86.61 | DQ27: 86.1 | DR27: 87.13 | DS27: 85.01 | DT27: 92.25 | DU27: 86.1 | DV27: 86.1 | DW27: 86.1 | DX27: 86.1 | DY27: 86.61 | DZ27: 96.94 | EA27: 86.1
A28: A7031 NU | B28: 32.52 | C28: 30.79 | D28: 34.46 | E28: 35.88 | F28: 32.8 | G28: 34.85 | H28: 37.63 | I28: 33.01 | J28: 31.25 | K28: 32.66 | L28: 32.29 | M28: 34.18 | N28: 36.63 | O28: 32.8 | P28: 32.8 | Q28: 37.02 | R28: 34.85 | S28: 35.88 | T28: 33.93 | U28: 35.42 | V28: 33.57 | W28: 33.93 | X28: 35.42 | Y28: 33.01 | Z28: 35.08 | AA28: 30.19 | AB28: 32.52 | AC28: 34.66 | AD28: 36.74 | AE28: 32.17 | AF28: 33.83 | AG28: 34.85 | AH28: 34.32 | AI28: 34.85 | AJ28: 32.52 | AK28: 35.01 | AL28: 34.03 | AM28: 34.26 | AN28: 35.38 | AO28: 33.21 | AP28: 34.69 | AQ28: 35.06 | AR28: 34.03 | AS28: 32.66 | AT28: 34.85 | AU28: 33.21 | AV28: 32.8 | AW28: 32.66 | AX28: 32.66 | AY28: 35.47 | AZ28: 34.05 | BA28: 34.58 | BB28: 32.25 | BC28: 35.1 | BD28: 34.54 | BE28: 34.05 | BF28: 33.57 | BG28: 35.06 | BH28: 32.1 | BI28: 33.21 | BJ28: 35.47 | BK28: 32.86 | BL28: 34.85 | BM28: 34.85 | BN28: 34.13 | BO28: 37.16 | BP28: 33.52 | BQ28: 36.46 | BR28: 34.87 | BS28: 32.8 | BT28: 34.85 | BU28: 32.45 | BV28: 32.2 | BW28: 36.9 | BX28: 32.45 | BY28: 39.69 | BZ28: 34.05 | CA28: 32.2 | CB28: 37.36 | CC28: 33.57 | CD28: 33.57 | CE28: 30.75 | CF28: 35.88 | CG28: 35.06 | CH28: 32.84 | CI28: 33.21 | CJ28: 34.34 | CK28: 35.88 | CL28: 32.1 | CM28: 35.06 | CN28: 34.9 | CO28: 33.57 | CP28: 33.21 | CQ28: 34.85 | CR28: 33.03 | CS28: 33.21 | CT28: 32.8 | CU28: 34.46 | CV28: 37.16 | CW28: 33.01 | CX28: 35.88 | CY28: 33.21 | CZ28: 35.13 | DA28: 33.01 | DB28: 34.03 | DC28: 32.29 | DD28: 34.03 | DE28: 34.9 | DF28: 32.45 | DG28: 32.66 | DH28: 34.03 | DI28: 35.42 | DJ28: 32.1 | DK28: 35.03 | DL28: 34.85 | DM28: 33.21 | DN28: 33.21 | DO28: 30.66 | DP28: 34.5 | DQ28: 29.26 | DR28: 33.21 | DS28: 32.8 | DT28: 33.01 | DU28: 33.93 | DV28: 33.21 | DW28: 33.57 | DX28: 33.21 | DY28: 33.01 | DZ28: 35.36 | EA28: 30.79
A29: A7032 NU | B29: 18.19 | C29: 17.43 | D29: 19.43 | E29: 19.55 | F29: 18.45 | G29: 18.45 | H29: 20.57 | I29: 18.45 | J29: 17.36 | K29: 17.94 | L29: 17.94 | M29: 18.71 | N29: 20.5 | O29: 19.61 | P29: 17.94 | Q29: 21.2 | R29: 19.66 | S29: 20.5 | T29: 19.39 | U29: 20.5 | V29: 18.7 | W29: 19.25 | X29: 19.53 | Y29: 18.92 | Z29: 20.64 | AA29: 16.86 | AB29: 18.42 | AC29: 19.86 | AD29: 19.94 | AE29: 19.16 | AF29: 18.45 | AG29: 18.45 | AH29: 19.09 | AI29: 19.55 | AJ29: 18.42 | AK29: 18.36 | AL29: 19 | AM29: 18.42 | AN29: 19.91 | AO29: 17.43 | AP29: 20.18 | AQ29: 20.27 | AR29: 19 | AS29: 17.85 | AT29: 20.39 | AU29: 18.45 | AV29: 17.43 | AW29: 18.33 | AX29: 18.42 | AY29: 19.31 | AZ29: 17.85 | BA29: 19.17 | BB29: 18.39 | BC29: 19.39 | BD29: 18.96 | BE29: 18.96 | BF29: 18.45 | BG29: 20.24 | BH29: 17.43 | BI29: 19.94 | BJ29: 18.98 | BK29: 18.45 | BL29: 19.94 | BM29: 19.94 | BN29: 18.33 | BO29: 21.49 | BP29: 18.42 | BQ29: 19.97 | BR29: 19.55 | BS29: 18.39 | BT29: 19.46 | BU29: 18.42 | BV29: 17.91 | BW29: 19.94 | BX29: 17.91 | BY29: 21.53 | BZ29: 18.33 | CA29: 17.65 | CB29: 20.59 | CC29: 19.03 | CD29: 18.45 | CE29: 17.43 | CF29: 19.99 | CG29: 19.99 | CH29: 18.66 | CI29: 17.43 | CJ29: 18.45 | CK29: 19.99 | CL29: 18.39 | CM29: 19.94 | CN29: 18.45 | CO29: 19.66 | CP29: 18.27 | CQ29: 19.48 | CR29: 18.42 | CS29: 18.45 | CT29: 18.45 | CU29: 19.69 | CV29: 20.79 | CW29: 17.91 | CX29: 19.72 | CY29: 18.39 | CZ29: 19.69 | DA29: 18.45 | DB29: 18.42 | DC29: 17.94 | DD29: 18.45 | DE29: 20.05 | DF29: 18.45 | DG29: 17.91 | DH29: 20.39 | DI29: 18.89 | DJ29: 17.43 | DK29: 20.24 | DL29: 20.37 | DM29: 18.45 | DN29: 18.54 | DO29: 17.36 | DP29: 20.13 | DQ29: 17.08 | DR29: 19.52 | DS29: 18.66 | DT29: 20.08 | DU29: 18.45 | DV29: 18.96 | DW29: 18.72 | DX29: 17.43 | DY29: 17.94 | DZ29: 20.5 | EA29: 17.43
A30: A7033 NU | B30: 15.38 | C30: 14.11 | D30: 15.77 | E30: 15.5 | F30: 15.51 | G30: 15.38 | H30: 15.83 | I30: 15.18 | J30: 14.64 | K30: 15.67 | L30: 15.31 | M30: 15.69 | N30: 16.02 | O30: 16.14 | P30: 15.31 | Q30: 15.93 | R30: 15.97 | S30: 16.14 | T30: 15.91 | U30: 16.4 | V30: 15.48 | W30: 15.88 | X30: 15.74 | Y30: 15.85 | Z30: 15.52 | AA30: 13.55 | AB30: 15.31 | AC30: 16.2 | AD30: 15.32 | AE30: 16.75 | AF30: 16.13 | AG30: 15.97 | AH30: 15.97 | AI30: 15.58 | AJ30: 15.31 | AK30: 15.16 | AL30: 15.5 | AM30: 15.64 | AN30: 16.4 | AO30: 14.85 | AP30: 16.18 | AQ30: 15.38 | AR30: 15.58 | AS30: 15.67 | AT30: 15.97 | AU30: 15.38 | AV30: 14.16 | AW30: 15.83 | AX30: 15.58 | AY30: 15.97 | AZ30: 15.85 | BA30: 15.01 | BB30: 14.92 | BC30: 15.53 | BD30: 16.07 | BE30: 15.3 | BF30: 15.5 | BG30: 15.79 | BH30: 15.31 | BI30: 15.59 | BJ30: 16.14 | BK30: 15.13 | BL30: 16.4 | BM30: 16.4 | BN30: 15.83 | BO30: 15.87 | BP30: 15.6 | BQ30: 15.43 | BR30: 15.54 | BS30: 15.31 | BT30: 15.38 | BU30: 15.12 | BV30: 15.34 | BW30: 15.32 | BX30: 14.64 | BY30: 16.45 | BZ30: 15.82 | CA30: 15.44 | CB30: 15.97 | CC30: 15.52 | CD30: 15.75 | CE30: 15.82 | CF30: 15.61 | CG30: 15.5 | CH30: 15.08 | CI30: 14.92 | CJ30: 15.7 | CK30: 16.03 | CL30: 15.7 | CM30: 15.31 | CN30: 15.53 | CO30: 15.9 | CP30: 15.05 | CQ30: 15.97 | CR30: 15.38 | CS30: 15.69 | CT30: 15.51 | CU30: 15.98 | CV30: 15.48 | CW30: 15.38 | CX30: 15.97 | CY30: 15.58 | CZ30: 15.98 | DA30: 15.35 | DB30: 15.83 | DC30: 15.31 | DD30: 15.76 | DE30: 16.4 | DF30: 15.46 | DG30: 15.12 | DH30: 15.46 | DI30: 15.74 | DJ30: 15.61 | DK30: 16.4 | DL30: 15.97 | DM30: 14.77 | DN30: 15.51 | DO30: 14.4 | DP30: 15.46 | DQ30: 14.88 | DR30: 15.97 | DS30: 15.25 | DT30: 15.31 | DU30: 15.38 | DV30: 15.68 | DW30: 15.38 | DX30: 14.92 | DY30: 15.44 | DZ30: 16.4 | EA30: 13.98
A31: A7034 NU | B31: 53.16 | C31: 52.54 | D31: 54.47 | E31: 59.4 | F31: 53.32 | G31: 56.38 | H31: 59.66 | I31: 57.91 | J31: 52.89 | K31: 52.2 | L31: 56.38 | M31: 53.89 | N31: 57.4 | O31: 57.4 | P31: 53.56 | Q31: 59.27 | R31: 57.4 | S31: 57.4 | T31: 55.35 | U31: 56.89 | V31: 54.59 | W31: 54.97 | X31: 55.68 | Y31: 53.57 | Z31: 58.24 | AA31: 48.59 | AB31: 53.16 | AC31: 57.4 | AD31: 57.01 | AE31: 51.14 | AF31: 57.4 | AG31: 58.05 | AH31: 57.4 | AI31: 57.4 | AJ31: 53.16 | AK31: 56.4 | AL31: 59.71 | AM31: 54.56 | AN31: 58.45 | AO31: 54.97 | AP31: 56.03 | AQ31: 56.66 | AR31: 57.3 | AS31: 56.43 | AT31: 59.16 | AU31: 57.4 | AV31: 51.52 | AW31: 54 | AX31: 52.07 | AY31: 62.01 | AZ31: 57.87 | BA31: 53.95 | BB31: 53.1 | BC31: 56.38 | BD31: 59.45 | BE31: 56.96 | BF31: 56.38 | BG31: 61.5 | BH31: 52.54 | BI31: 53.89 | BJ31: 56.23 | BK31: 52.93 | BL31: 57.67 | BM31: 57.67 | BN31: 56.43 | BO31: 57.01 | BP31: 54.97 | BQ31: 57.93 | BR31: 58.4 | BS31: 57.4 | BT31: 56.52 | BU31: 52.2 | BV31: 53.05 | BW31: 57.01 | BX31: 52.93 | BY31: 63.44 | BZ31: 56.43 | CA31: 53.05 | CB31: 57.37 | CC31: 55.17 | CD31: 55.17 | CE31: 52.54 | CF31: 57.27 | CG31: 56.38 | CH31: 57.4 | CI31: 57.4 | CJ31: 52.54 | CK31: 57.67 | CL31: 52.28 | CM31: 56.66 | CN31: 54.97 | CO31: 55.86 | CP31: 55.45 | CQ31: 56.38 | CR31: 54.59 | CS31: 59.45 | CT31: 53.32 | CU31: 54.14 | CV31: 60.11 | CW31: 56.38 | CX31: 56.27 | CY31: 54.74 | CZ31: 59.45 | DA31: 52.41 | DB31: 58.34 | DC31: 56.38 | DD31: 55.09 | DE31: 57.4 | DF31: 52.41 | DG31: 52.93 | DH31: 60.78 | DI31: 55.68 | DJ31: 52.54 | DK31: 55.86 | DL31: 59.45 | DM31: 51.25 | DN31: 54.97 | DO31: 52.2 | DP31: 55.91 | DQ31: 51.38 | DR31: 54.97 | DS31: 52.54 | DT31: 59.45 | DU31: 57.36 | DV31: 52.54 | DW31: 55.76 | DX31: 52.54 | DY31: 52.93 | DZ31: 56.38 | EA31: 52.54
A32: A7035 NU | B32: 17.92 | C32: 17.1 | D32: 19.48 | E32: 19.48 | F32: 18.15 | G32: 18.45 | H32: 19.24 | I32: 17.92 | J32: 16.92 | K32: 17.46 | L32: 17.43 | M32: 18.61 | N32: 19.48 | O32: 19 | P32: 17.43 | Q32: 18.63 | R32: 19.49 | S32: 19.99 | T32: 19.17 | U32: 20.16 | V32: 18.55 | W32: 19.39 | X32: 19.23 | Y32: 17.67 | Z32: 18.43 | AA32: 16.2 | AB32: 18.43 | AC32: 18.45 | AD32: 19.29 | AE32: 17.77 | AF32: 18.45 | AG32: 19.29 | AH32: 18.45 | AI32: 18.45 | AJ32: 18.43 | AK32: 18.39 | AL32: 18.57 | AM32: 17.96 | AN32: 17.68 | AO32: 18.19 | AP32: 17.7 | AQ32: 17.93 | AR32: 18.44 | AS32: 18.74 | AT32: 18.45 | AU32: 17.43 | AV32: 16.91 | AW32: 18.55 | AX32: 17.92 | AY32: 20.13 | AZ32: 19.15 | BA32: 18.62 | BB32: 18.4 | BC32: 19.5 | BD32: 16.92 | BE32: 17.84 | BF32: 19.14 | BG32: 19.48 | BH32: 18.4 | BI32: 17.67 | BJ32: 19.04 | BK32: 17.26 | BL32: 18.45 | BM32: 18.45 | BN32: 18.51 | BO32: 19.29 | BP32: 18.43 | BQ32: 18.3 | BR32: 19.43 | BS32: 18.45 | BT32: 19.79 | BU32: 18.6 | BV32: 17.26 | BW32: 19.29 | BX32: 18.12 | BY32: 18.81 | BZ32: 18.96 | CA32: 17.96 | CB32: 19.29 | CC32: 18.52 | CD32: 18.41 | CE32: 18.4 | CF32: 18.4 | CG32: 17.93 | CH32: 18.4 | CI32: 18.45 | CJ32: 17.94 | CK32: 17.22 | CL32: 17.1 | CM32: 17.67 | CN32: 18.45 | CO32: 19.25 | CP32: 18.4 | CQ32: 18.6 | CR32: 17.81 | CS32: 18.57 | CT32: 18.4 | CU32: 20.16 | CV32: 19.18 | CW32: 18.6 | CX32: 18.45 | CY32: 19 | CZ32: 18.92 | DA32: 18.45 | DB32: 18.45 | DC32: 17.43 | DD32: 18.96 | DE32: 19.87 | DF32: 17.26 | DG32: 17.98 | DH32: 19.22 | DI32: 19.23 | DJ32: 17.1 | DK32: 19.69 | DL32: 18.45 | DM32: 18.35 | DN32: 18.44 | DO32: 17.16 | DP32: 17.73 | DQ32: 16.92 | DR32: 18.81 | DS32: 18.27 | DT32: 18.63 | DU32: 18.81 | DV32: 17.55 | DW32: 18.53 | DX32: 18.4 | DY32: 17.26 | DZ32: 19.99 | EA32: 17.1
A33: A7036 NU | B33: 11 | C33: 10.25 | D33: 10.43 | E33: 10.71 | F33: 10.25 | G33: 10.25 | H33: 12.47 | I33: 10.41 | J33: 10.41 | K33: 10.29 | L33: 10.25 | M33: 11.28 | N33: 11.11 | O33: 10.76 | P33: 10.25 | Q33: 10.87 | R33: 10.71 | S33: 11.28 | T33: 10.71 | U33: 11.28 | V33: 10.25 | W33: 10.25 | X33: 10.76 | Y33: 10.25 | Z33: 9.95 | AA33: 9.5 | AB33: 10.76 | AC33: 12.25 | AD33: 10.48 | AE33: 13.1 | AF33: 10.44 | AG33: 10.82 | AH33: 10.71 | AI33: 10.36 | AJ33: 10.76 | AK33: 10.53 | AL33: 10.71 | AM33: 12.31 | AN33: 10.66 | AO33: 10.34 | AP33: 11.05 | AQ33: 9.74 | AR33: 10.33 | AS33: 10.97 | AT33: 10.72 | AU33: 10.25 | AV33: 9.87 | AW33: 11.87 | AX33: 11.05 | AY33: 11.76 | AZ33: 10.71 | BA33: 11.59 | BB33: 10.71 | BC33: 10.53 | BD33: 9.99 | BE33: 10.31 | BF33: 10.48 | BG33: 10.89 | BH33: 10.36 | BI33: 10.17 | BJ33: 12.34 | BK33: 10.25 | BL33: 10.36 | BM33: 10.36 | BN33: 11.44 | BO33: 10.93 | BP33: 10.33 | BQ33: 9.74 | BR33: 10.71 | BS33: 11.28 | BT33: 10.71 | BU33: 10.74 | BV33: 10.29 | BW33: 10.48 | BX33: 10.13 | BY33: 10.17 | BZ33: 11 | CA33: 10.49 | CB33: 10.71 | CC33: 10.29 | CD33: 10.48 | CE33: 10.39 | CF33: 9.74 | CG33: 10.17 | CH33: 10.43 | CI33: 10.25 | CJ33: 11.28 | CK33: 10.25 | CL33: 11.38 | CM33: 9.74 | CN33: 10.25 | CO33: 10.78 | CP33: 10.72 | CQ33: 10.54 | CR33: 10.43 | CS33: 10.71 | CT33: 10.62 | CU33: 11.46 | CV33: 11.21 | CW33: 10.41 | CX33: 11.38 | CY33: 10.25 | CZ33: 11.22 | DA33: 10.48 | DB33: 10.48 | DC33: 10.25 | DD33: 11.48 | DE33: 11.38 | DF33: 10.71 | DG33: 10.13 | DH33: 11.3 | DI33: 10.84 | DJ33: 10.48 | DK33: 11.28 | DL33: 10.25 | DM33: 10.25 | DN33: 10.25 | DO33: 10.43 | DP33: 9.95 | DQ33: 10.89 | DR33: 10.25 | DS33: 10.4 | DT33: 10.71 | DU33: 10.36 | DV33: 10.71 | DW33: 10.25 | DX33: 10.25 | DY33: 10.13 | DZ33: 11.2 | EA33: 10.25
A34: A7037 NU | B34: 10.72 | C34: 11.77 | D34: 11.19 | E34: 13.57 | F34: 11.61 | G34: 12.3 | H34: 11.47 | I34: 11.28 | J34: 10.25 | K34: 11.79 | L34: 11.55 | M34: 13.34 | N34: 13.37 | O34: 12.3 | P34: 11.65 | Q34: 13.49 | R34: 12.3 | S34: 12.38 | T34: 12.3 | U34: 12.65 | V34: 12.34 | W34: 10.9 | X34: 12.65 | Y34: 12.65 | Z34: 13.57 | AA34: 8.6 | AB34: 10.29 | AC34: 12.38 | AD34: 12.38 | AE34: 9.18 | AF34: 12.38 | AG34: 12.38 | AH34: 12.67 | AI34: 12.38 | AJ34: 10.29 | AK34: 12.44 | AL34: 10.9 | AM34: 10.88 | AN34: 12.93 | AO34: 12.38 | AP34: 12.3 | AQ34: 12.3 | AR34: 12.34 | AS34: 11.79 | AT34: 12.38 | AU34: 11.79 | AV34: 11.61 | AW34: 11.6 | AX34: 11.77 | AY34: 13.03 | AZ34: 11.86 | BA34: 11.61 | BB34: 9.48 | BC34: 12.38 | BD34: 11.32 | BE34: 11.79 | BF34: 10.88 | BG34: 12.83 | BH34: 10.32 | BI34: 10.9 | BJ34: 12.34 | BK34: 12.44 | BL34: 12.3 | BM34: 12.3 | BN34: 11 | BO34: 13.6 | BP34: 11.29 | BQ34: 12.46 | BR34: 13.07 | BS34: 10.32 | BT34: 13.33 | BU34: 10.99 | BV34: 11.05 | BW34: 13.41 | BX34: 10.46 | BY34: 15.38 | BZ34: 10.9 | CA34: 10.32 | CB34: 14.62 | CC34: 12.44 | CD34: 11.01 | CE34: 10.25 | CF34: 13.57 | CG34: 12.3 | CH34: 10.82 | CI34: 10.32 | CJ34: 12.3 | CK34: 12.3 | CL34: 10.79 | CM34: 12.54 | CN34: 12.38 | CO34: 12.3 | CP34: 10.9 | CQ34: 12.82 | CR34: 12.21 | CS34: 12.3 | CT34: 11.28 | CU34: 12.65 | CV34: 13.57 | CW34: 12.21 | CX34: 12.3 | CY34: 12.12 | CZ34: 12.44 | DA34: 12.34 | DB34: 12.85 | DC34: 11.65 | DD34: 12.34 | DE34: 14.35 | DF34: 12.34 | DG34: 11 | DH34: 12.85 | DI34: 12.44 | DJ34: 12.3 | DK34: 12.73 | DL34: 12.3 | DM34: 11.22 | DN34: 12.38 | DO34: 9.94 | DP34: 12.34 | DQ34: 10.66 | DR34: 12.12 | DS34: 10.32 | DT34: 12.34 | DU34: 12.3 | DV34: 13.33 | DW34: 12.3 | DX34: 11.07 | DY34: 12.3 | DZ34: 12.81 | EA34: 11.77
A35: A7038 NU | B35: 1.95 | C35: 2.05 | D35: 2.06 | E35: 2.15 | F35: 2.05 | G35: 2.05 | H35: 2.07 | I35: 2.05 | J35: 1.8 | K35: 2.05 | L35: 2.05 | M35: 2.05 | N35: 2.36 | O35: 2.05 | P35: 2.05 | Q35: 2.17 | R35: 2.31 | S35: 2.36 | T35: 2.05 | U35: 2.36 | V35: 2.09 | W35: 2.32 | X35: 2.36 | Y35: 2.15 | Z35: 2.2 | AA35: 1.62 | AB35: 1.95 | AC35: 2.05 | AD35: 2.17 | AE35: 1.93 | AF35: 2.05 | AG35: 2.05 | AH35: 2.05 | AI35: 2.05 | AJ35: 2.05 | AK35: 2.19 | AL35: 2.03 | AM35: 1.99 | AN35: 2.28 | AO35: 2.06 | AP35: 2.05 | AQ35: 2.05 | AR35: 2.09 | AS35: 1.99 | AT35: 2.19 | AU35: 2.05 | AV35: 1.96 | AW35: 1.99 | AX35: 2.05 | AY35: 2.37 | AZ35: 2.05 | BA35: 1.88 | BB35: 1.92 | BC35: 2.05 | BD35: 2.19 | BE35: 2.05 | BF35: 2.05 | BG35: 2.17 | BH35: 2.05 | BI35: 1.9 | BJ35: 2.17 | BK35: 2.05 | BL35: 2.05 | BM35: 2.05 | BN35: 2.07 | BO35: 2.29 | BP35: 2.07 | BQ35: 2.19 | BR35: 2.14 | BS35: 2.08 | BT35: 2.14 | BU35: 1.97 | BV35: 2.05 | BW35: 2.17 | BX35: 2.05 | BY35: 2.46 | BZ35: 1.97 | CA35: 2.05 | CB35: 2.34 | CC35: 2.09 | CD35: 2.05 | CE35: 2.05 | CF35: 2.17 | CG35: 2.05 | CH35: 2.14 | CI35: 1.92 | CJ35: 2.05 | CK35: 2.05 | CL35: 2.05 | CM35: 2.2 | CN35: 2.11 | CO35: 2.15 | CP35: 2.05 | CQ35: 2.05 | CR35: 2.08 | CS35: 2.06 | CT35: 2.07 | CU35: 2.6 | CV35: 2.2 | CW35: 2.05 | CX35: 2.05 | CY35: 2.05 | CZ35: 2.31 | DA35: 2.05 | DB35: 2.09 | DC35: 2.05 | DD35: 2.05 | DE35: 2.14 | DF35: 2.05 | DG35: 2.11 | DH35: 2.32 | DI35: 2.34 | DJ35: 2.05 | DK35: 2.34 | DL35: 2.13 | DM35: 1.83 | DN35: 2.1 | DO35: 2 | DP35: 2.05 | DQ35: 2.03 | DR35: 2.14 | DS35: 2.05 | DT35: 2.11 | DU35: 2.05 | DV35: 2.05 | DW35: 2.05 | DX35: 2.04 | DY35: 2.05 | DZ35: 2.36 | EA35: 2.03
A36: A7039 NU | B36: 5.72 | C36: 6.17 | D36: 6.17 | E36: 6.48 | F36: 5.87 | G36: 5.48 | H36: 6.34 | I36: 5.91 | J36: 5.02 | K36: 5.99 | L36: 6.14 | M36: 6.05 | N36: 6.82 | O36: 6.12 | P36: 6.1 | Q36: 6.47 | R36: 6.19 | S36: 6.15 | T36: 6.15 | U36: 6.17 | V36: 6.15 | W36: 6.15 | X36: 6.07 | Y36: 6.07 | Z36: 6.44 | AA36: 4.57 | AB36: 5.72 | AC36: 6.15 | AD36: 6.21 | AE36: 4.93 | AF36: 6.15 | AG36: 6.38 | AH36: 6.36 | AI36: 6.18 | AJ36: 6.09 | AK36: 6.38 | AL36: 5.87 | AM36: 6.2 | AN36: 6.27 | AO36: 6.19 | AP36: 6.28 | AQ36: 6.36 | AR36: 6.1 | AS36: 6.27 | AT36: 6.19 | AU36: 6.15 | AV36: 5.81 | AW36: 5.87 | AX36: 6.05 | AY36: 7.09 | AZ36: 6.41 | BA36: 6.05 | BB36: 5.29 | BC36: 6.15 | BD36: 6.14 | BE36: 6.15 | BF36: 5.87 | BG36: 6.82 | BH36: 5.28 | BI36: 6.36 | BJ36: 6.85 | BK36: 6.07 | BL36: 6.28 | BM36: 6.28 | BN36: 6.33 | BO36: 6.19 | BP36: 6.15 | BQ36: 6.44 | BR36: 6.07 | BS36: 6.14 | BT36: 6.19 | BU36: 5.88 | BV36: 6.01 | BW36: 6.46 | BX36: 5.93 | BY36: 7.18 | BZ36: 6.5 | CA36: 6.17 | CB36: 6.82 | CC36: 6.15 | CD36: 6.07 | CE36: 6.15 | CF36: 6.41 | CG36: 6.36 | CH36: 6.15 | CI36: 5.29 | CJ36: 6.15 | CK36: 6.39 | CL36: 5.87 | CM36: 6.36 | CN36: 6.15 | CO36: 6.15 | CP36: 6.36 | CQ36: 6.36 | CR36: 6.08 | CS36: 6.19 | CT36: 6.15 | CU36: 6.07 | CV36: 6.52 | CW36: 6.07 | CX36: 6.18 | CY36: 6.15 | CZ36: 6.17 | DA36: 5.91 | DB36: 6.27 | DC36: 6.1 | DD36: 6.05 | DE36: 6.36 | DF36: 6.05 | DG36: 5.93 | DH36: 6.41 | DI36: 6.07 | DJ36: 6.19 | DK36: 6.15 | DL36: 6.19 | DM36: 5.85 | DN36: 6.15 | DO36: 5.76 | DP36: 6.27 | DQ36: 5.31 | DR36: 6.15 | DS36: 5.95 | DT36: 6.27 | DU36: 5.81 | DV36: 6.15 | DW36: 5.84 | DX36: 5.29 | DY36: 5.72 | DZ36: 6.19 | EA36: 6.17
A37: A7044 NU | B37: 90.99 | C37: 82 | D37: 80.26 | E37: 83.03 | F37: 76.96 | G37: 78.93 | H37: 101.02 | I37: 79.89 | J37: 78.58 | K37: 80.89 | L37: 79.69 | M37: 88.68 | N37: 84.9 | O37: 81.95 | P37: 79.69 | Q37: 85.57 | R37: 85.32 | S37: 87.13 | T37: 78.93 | U37: 86.61 | V37: 77.47 | W37: 78.93 | X37: 83.63 | Y37: 76.92 | Z37: 78.58 | AA37: 68.83 | AB37: 83.31 | AC37: 100.19 | AD37: 100.19 | AE37: 100.62 | AF37: 79.69 | AG37: 89.37 | AH37: 79.69 | AI37: 78.36 | AJ37: 88.27 | AK37: 83.03 | AL37: 79.55 | AM37: 98.91 | AN37: 83.57 | AO37: 82.62 | AP37: 92.43 | AQ37: 78.8 | AR37: 79.03 | AS37: 100.61 | AT37: 81.76 | AU37: 78.87 | AV37: 74.64 | AW37: 92.97 | AX37: 91.11 | AY37: 94.12 | AZ37: 84.54 | BA37: 91.49 | BB37: 83.03 | BC37: 80.31 | BD37: 79.9 | BE37: 79.83 | BF37: 79.09 | BG37: 94.07 | BH37: 82 | BI37: 78.8 | BJ37: 97.52 | BK37: 76.88 | BL37: 80.49 | BM37: 80.49 | BN37: 88.74 | BO37: 100.19 | BP37: 79.52 | BQ37: 79.01 | BR37: 81.21 | BS37: 83.73 | BT37: 84.51 | BU37: 81.04 | BV37: 79.03 | BW37: 100.19 | BX37: 77.98 | BY37: 78.93 | BZ37: 91.33 | CA37: 82.89 | CB37: 83.03 | CC37: 77.47 | CD37: 79.93 | CE37: 77.87 | CF37: 78.52 | CG37: 78.36 | CH37: 80.53 | CI37: 79.55 | CJ37: 89.23 | CK37: 79.69 | CL37: 89.72 | CM37: 78.8 | CN37: 76.96 | CO37: 77.7 | CP37: 94.85 | CQ37: 80.73 | CR37: 78.41 | CS37: 89.72 | CT37: 77.9 | CU37: 88.74 | CV37: 88.15 | CW37: 79.95 | CX37: 100.19 | CY37: 80.98 | CZ37: 80.78 | DA37: 87.21 | DB37: 85.32 | DC37: 78.36 | DD37: 88.81 | DE37: 92.25 | DF37: 91.11 | DG37: 77.7 | DH37: 87.83 | DI37: 83.42 | DJ37: 94.85 | DK37: 81.16 | DL37: 82.99 | DM37: 89.72 | DN37: 77.9 | DO37: 81.95 | DP37: 78.58 | DQ37: 82.62 | DR37: 77.03 | DS37: 79.7 | DT37: 88.85 | DU37: 80.98 | DV37: 92.91 | DW37: 78.86 | DX37: 89.72 | DY37: 77.94 | DZ37: 82 | EA37: 82
A38: A7045 NU | B38: 12.3 | C38: 11 | D38: 12.11 | E38: 11.1 | F38: 12.9 | G38: 12.38 | H38: 12.94 | I38: 11.09 | J38: 10.89 | K38: 11.86 | L38: 11.1 | M38: 12.12 | N38: 12.94 | O38: 11.45 | P38: 10.94 | Q38: 11.45 | R38: 11.77 | S38: 13.57 | T38: 12.94 | U38: 14.17 | V38: 12.03 | W38: 12.94 | X38: 13.78 | Y38: 13.25 | Z38: 10.51 | AA38: 10.38 | AB38: 11.44 | AC38: 13.67 | AD38: 12.94 | AE38: 12.01 | AF38: 11.77 | AG38: 12.94 | AH38: 12.29 | AI38: 10.68 | AJ38: 11.46 | AK38: 11.62 | AL38: 11.69 | AM38: 13.1 | AN38: 12.01 | AO38: 11.28 | AP38: 13.1 | AQ38: 10.51 | AR38: 10.65 | AS38: 18.45 | AT38: 11.84 | AU38: 11.29 | AV38: 10.13 | AW38: 12.57 | AX38: 12.56 | AY38: 16.48 | AZ38: 12.57 | BA38: 12.01 | BB38: 10.74 | BC38: 13.57 | BD38: 11.93 | BE38: 11.23 | BF38: 12.11 | BG38: 15.15 | BH38: 10.74 | BI38: 10.68 | BJ38: 14.39 | BK38: 11.79 | BL38: 11.1 | BM38: 11.1 | BN38: 14.1 | BO38: 12.94 | BP38: 11.36 | BQ38: 10.6 | BR38: 12.62 | BS38: 12.94 | BT38: 12.3 | BU38: 11 | BV38: 11.19 | BW38: 12.94 | BX38: 13.25 | BY38: 12.27 | BZ38: 12.55 | CA38: 12.3 | CB38: 12.46 | CC38: 11.3 | CD38: 13.25 | CE38: 10.82 | CF38: 10.51 | CG38: 10.51 | CH38: 11 | CI38: 11.69 | CJ38: 12.3 | CK38: 11.1 | CL38: 12.94 | CM38: 10.25 | CN38: 12.25 | CO38: 12.4 | CP38: 12.94 | CQ38: 11.28 | CR38: 11.28 | CS38: 11.77 | CT38: 12.94 | CU38: 14.33 | CV38: 12.38 | CW38: 12.66 | CX38: 16.08 | CY38: 13.57 | CZ38: 13.78 | DA38: 11.69 | DB38: 12.07 | DC38: 11.1 | DD38: 13.64 | DE38: 12.94 | DF38: 12.56 | DG38: 12.01 | DH38: 11.84 | DI38: 13.78 | DJ38: 12.94 | DK38: 13.41 | DL38: 11.84 | DM38: 11.31 | DN38: 11.25 | DO38: 13.25 | DP38: 10.7 | DQ38: 11.32 | DR38: 12.94 | DS38: 11.1 | DT38: 12.35 | DU38: 12.94 | DV38: 11.69 | DW38: 11.81 | DX38: 11.69 | DY38: 13.25 | DZ38: 13.99 | EA38: 10.54
A39: A7045 RR | B39: 1.23 | C39: 1.1 | D39: 1.21 | E39: 1.11 | F39: 1.29 | G39: 1.24 | H39: 1.29 | I39: 1.11 | J39: 1.09 | K39: 1.19 | L39: 1.11 | M39: 1.21 | N39: 1.29 | O39: 1.15 | P39: 1.1 | Q39: 1.15 | R39: 1.18 | S39: 1.35 | T39: 1.29 | U39: 1.41 | V39: 1.2 | W39: 1.29 | X39: 1.37 | Y39: 1.32 | Z39: 1.06 | AA39: 1.04 | AB39: 1.15 | AC39: 1.36 | AD39: 1.29 | AE39: 1.2 | AF39: 1.18 | AG39: 1.29 | AH39: 1.23 | AI39: 1.07 | AJ39: 1.15 | AK39: 1.16 | AL39: 1.17 | AM39: 1.31 | AN39: 1.2 | AO39: 1.13 | AP39: 1.31 | AQ39: 1.06 | AR39: 1.07 | AS39: 1.85 | AT39: 1.19 | AU39: 1.13 | AV39: 1.01 | AW39: 1.26 | AX39: 1.26 | AY39: 1.65 | AZ39: 1.26 | BA39: 1.2 | BB39: 1.08 | BC39: 1.35 | BD39: 1.19 | BE39: 1.13 | BF39: 1.21 | BG39: 1.52 | BH39: 1.08 | BI39: 1.07 | BJ39: 1.44 | BK39: 1.18 | BL39: 1.11 | BM39: 1.11 | BN39: 1.41 | BO39: 1.29 | BP39: 1.14 | BQ39: 1.06 | BR39: 1.26 | BS39: 1.29 | BT39: 1.23 | BU39: 1.1 | BV39: 1.12 | BW39: 1.29 | BX39: 1.32 | BY39: 1.23 | BZ39: 1.25 | CA39: 1.23 | CB39: 1.25 | CC39: 1.13 | CD39: 1.32 | CE39: 1.09 | CF39: 1.06 | CG39: 1.06 | CH39: 1.1 | CI39: 1.17 | CJ39: 1.23 | CK39: 1.11 | CL39: 1.29 | CM39: 1.03 | CN39: 1.23 | CO39: 1.24 | CP39: 1.29 | CQ39: 1.13 | CR39: 1.13 | CS39: 1.18 | CT39: 1.29 | CU39: 1.44 | CV39: 1.24 | CW39: 1.27 | CX39: 1.61 | CY39: 1.35 | CZ39: 1.37 | DA39: 1.17 | DB39: 1.21 | DC39: 1.11 | DD39: 1.36 | DE39: 1.29 | DF39: 1.26 | DG39: 1.2 | DH39: 1.19 | DI39: 1.37 | DJ39: 1.29 | DK39: 1.34 | DL39: 1.19 | DM39: 1.13 | DN39: 1.13 | DO39: 1.32 | DP39: 1.07 | DQ39: 1.13 | DR39: 1.29 | DS39: 1.11 | DT39: 1.24 | DU39: 1.29 | DV39: 1.17 | DW39: 1.18 | DX39: 1.17 | DY39: 1.32 | DZ39: 1.4 | EA39: 1.06
A40: A7045 UE | B40: 9.23 | C40: 8.25 | D40: 9.08 | E40: 8.32 | F40: 9.68 | G40: 9.29 | H40: 9.71 | I40: 8.32 | J40: 8.17 | K40: 8.9 | L40: 8.32 | M40: 9.09 | N40: 9.71 | O40: 8.59 | P40: 8.2 | Q40: 8.59 | R40: 8.83 | S40: 10.18 | T40: 9.71 | U40: 10.63 | V40: 9.03 | W40: 9.71 | X40: 10.33 | Y40: 9.94 | Z40: 7.88 | AA40: 7.79 | AB40: 8.58 | AC40: 10.26 | AD40: 9.71 | AE40: 9.01 | AF40: 8.83 | AG40: 9.71 | AH40: 9.21 | AI40: 8.02 | AJ40: 8.6 | AK40: 8.72 | AL40: 8.76 | AM40: 9.83 | AN40: 9.01 | AO40: 8.46 | AP40: 9.83 | AQ40: 7.88 | AR40: 7.98 | AS40: 13.84 | AT40: 8.88 | AU40: 8.47 | AV40: 7.6 | AW40: 9.43 | AX40: 9.42 | AY40: 12.36 | AZ40: 9.43 | BA40: 9.01 | BB40: 8.06 | BC40: 10.18 | BD40: 8.95 | BE40: 8.43 | BF40: 9.08 | BG40: 11.37 | BH40: 8.06 | BI40: 8.02 | BJ40: 10.79 | BK40: 8.85 | BL40: 8.32 | BM40: 8.32 | BN40: 10.58 | BO40: 9.71 | BP40: 8.52 | BQ40: 7.95 | BR40: 9.46 | BS40: 9.71 | BT40: 9.23 | BU40: 8.25 | BV40: 8.39 | BW40: 9.71 | BX40: 9.94 | BY40: 9.2 | BZ40: 9.41 | CA40: 9.23 | CB40: 9.35 | CC40: 8.48 | CD40: 9.94 | CE40: 8.12 | CF40: 7.88 | CG40: 7.88 | CH40: 8.25 | CI40: 8.76 | CJ40: 9.23 | CK40: 8.32 | CL40: 9.71 | CM40: 7.69 | CN40: 9.18 | CO40: 9.31 | CP40: 9.71 | CQ40: 8.46 | CR40: 8.46 | CS40: 8.83 | CT40: 9.71 | CU40: 10.75 | CV40: 9.29 | CW40: 9.49 | CX40: 12.06 | CY40: 10.18 | CZ40: 10.33 | DA40: 8.76 | DB40: 9.06 | DC40: 8.32 | DD40: 10.23 | DE40: 9.71 | DF40: 9.42 | DG40: 9.01 | DH40: 8.88 | DI40: 10.33 | DJ40: 9.71 | DK40: 10.06 | DL40: 8.88 | DM40: 8.48 | DN40: 8.45 | DO40: 9.94 | DP40: 8.03 | DQ40: 8.49 | DR40: 9.71 | DS40: 8.32 | DT40: 9.27 | DU40: 9.71 | DV40: 8.76 | DW40: 8.86 | DX40: 8.76 | DY40: 9.94 | DZ40: 10.5 | EA40: 7.9
A41: A7046 NU | B41: 14.64 | C41: 12.92 | D41: 13.3 | E41: 13.96 | F41: 12.46 | G41: 13.31 | H41: 15.85 | I41: 13.58 | J41: 13.18 | K41: 13.33 | L41: 12.3 | M41: 13.31 | N41: 13.91 | O41: 13.84 | P41: 13.05 | Q41: 13.51 | R41: 14.02 | S41: 13.33 | T41: 12.3 | U41: 13.91 | V41: 12.55 | W41: 12.3 | X41: 13.08 | Y41: 12.56 | Z41: 12.38 | AA41: 14.34 | AB41: 14.32 | AC41: 15.3 | AD41: 13.05 | AE41: 15.95 | AF41: 13.33 | AG41: 13.15 | AH41: 13.33 | AI41: 13.28 | AJ41: 14.32 | AK41: 13.27 | AL41: 13.99 | AM41: 15.12 | AN41: 13.33 | AO41: 13.22 | AP41: 13.86 | AQ41: 12.35 | AR41: 13.1 | AS41: 14.77 | AT41: 13.33 | AU41: 12.68 | AV41: 12.3 | AW41: 15.15 | AX41: 13.29 | AY41: 13.89 | AZ41: 14.2 | BA41: 14.12 | BB41: 14.34 | BC41: 13.24 | BD41: 12.32 | BE41: 13.14 | BF41: 13.35 | BG41: 13.47 | BH41: 14.34 | BI41: 12.81 | BJ41: 15.08 | BK41: 12.3 | BL41: 13.25 | BM41: 13.25 | BN41: 14.3 | BO41: 13.86 | BP41: 13.33 | BQ41: 12.38 | BR41: 13.65 | BS41: 14.34 | BT41: 13.28 | BU41: 13.49 | BV41: 12.6 | BW41: 13.37 | BX41: 12.35 | BY41: 12.77 | BZ41: 14.64 | CA41: 13.92 | CB41: 13.54 | CC41: 12.62 | CD41: 12.3 | CE41: 12.99 | CF41: 12.41 | CG41: 12.31 | CH41: 13.28 | CI41: 13.33 | CJ41: 12.97 | CK41: 12.79 | CL41: 12.97 | CM41: 12.41 | CN41: 12.81 | CO41: 13.16 | CP41: 14.93 | CQ41: 13.42 | CR41: 12.65 | CS41: 13.33 | CT41: 12.35 | CU41: 13.98 | CV41: 14.4 | CW41: 12.69 | CX41: 13.33 | CY41: 12.3 | CZ41: 13.4 | DA41: 13.28 | DB41: 13.68 | DC41: 12.89 | DD41: 13.14 | DE41: 14.08 | DF41: 13.71 | DG41: 12.4 | DH41: 14.35 | DI41: 13.08 | DJ41: 14 | DK41: 13.69 | DL41: 13.25 | DM41: 12.97 | DN41: 12.3 | DO41: 12.75 | DP41: 12.38 | DQ41: 12.86 | DR41: 12.76 | DS41: 13.05 | DT41: 13.35 | DU41: 13.3 | DV41: 13.26 | DW41: 12.38 | DX41: 14.04 | DY41: 12.58 | DZ41: 13.84 | EA41: 12.71
A42: B4034 | B42: 2.78 | C42: 3.08 | D42: 3.08 | E42: 3.08 | F42: 3.08 | G42: 3.1 | H42: 3.08 | I42: 3.08 | J42: 3.03 | K42: 3.09 | L42: 3.08 | M42: 3.08 | N42: 3.08 | O42: 3.25 | P42: 3.08 | Q42: 3.32 | R42: 3.26 | S42: 3.15 | T42: 3.14 | U42: 3.2 | V42: 3.08 | W42: 3.1 | X42: 3.08 | Y42: 3.08 | Z42: 3.1 | AA42: 3.08 | AB42: 3.08 | AC42: 3.08 | AD42: 3.32 | AE42: 3.08 | AF42: 3.25 | AG42: 3.08 | AH42: 3.04 | AI42: 3.25 | AJ42: 3.08 | AK42: 3.08 | AL42: 3.1 | AM42: 3.08 | AN42: 3.08 | AO42: 3.08 | AP42: 2.95 | AQ42: 3.16 | AR42: 3.13 | AS42: 3.08 | AT42: 3.15 | AU42: 3.13 | AV42: 3.08 | AW42: 2.79 | AX42: 3.08 | AY42: 3.13 | AZ42: 3 | BA42: 3.08 | BB42: 3.08 | BC42: 3.11 | BD42: 3.42 | BE42: 3.08 | BF42: 3.08 | BG42: 3.08 | BH42: 3.26 | BI42: 3.26 | BJ42: 3.08 | BK42: 3.08 | BL42: 3.08 | BM42: 3.08 | BN42: 3.08 | BO42: 3.39 | BP42: 3.1 | BQ42: 3.28 | BR42: 3.12 | BS42: 3.11 | BT42: 3.08 | BU42: 3.08 | BV42: 3.25 | BW42: 3.32 | BX42: 3.08 | BY42: 3.19 | BZ42: 3.23 | CA42: 3.11 | CB42: 3.34 | CC42: 3.08 | CD42: 3.1 | CE42: 3.24 | CF42: 3.13 | CG42: 3.22 | CH42: 3.08 | CI42: 3.11 | CJ42: 3.01 | CK42: 3.25 | CL42: 2.95 | CM42: 3.19 | CN42: 3.08 | CO42: 3.12 | CP42: 3.28 | CQ42: 3.08 | CR42: 3.08 | CS42: 3.27 | CT42: 3.08 | CU42: 3.2 | CV42: 3.08 | CW42: 3.11 | CX42: 3.08 | CY42: 3.08 | CZ42: 3.21 | DA42: 2.99 | DB42: 3.24 | DC42: 3.08 | DD42: 3.08 | DE42: 3.08 | DF42: 2.87 | DG42: 3.08 | DH42: 3.1 | DI42: 3.03 | DJ42: 3.26 | DK42: 3.08 | DL42: 3.1 | DM42: 3.08 | DN42: 3.08 | DO42: 3.08 | DP42: 3.25 | DQ42: 2.97 | DR42: 3.11 | DS42: 3.06 | DT42: 3.18 | DU42: 3.11 | DV42: 3.03 | DW42: 3.08 | DX42: 3.1 | DY42: 3.1 | DZ42: 3.2 | EA42: 3.06
A43: B4035 | B43: 5.02 | C43: 5.22 | D43: 4.65 | E43: 5.47 | F43: 4.74 | G43: 5.25 | H43: 5.51 | I43: 5.49 | J43: 5.27 | K43: 5.72 | L43: 5.25 | M43: 5.13 | N43: 5.51 | O43: 5.38 | P43: 5.4 | Q43: 6.3 | R43: 5.89 | S43: 5.02 | T43: 4.85 | U43: 5.33 | V43: 5.02 | W43: 5.02 | X43: 5.25 | Y43: 5 | Z43: 5.49 | AA43: 5.38 | AB43: 5.05 | AC43: 5.51 | AD43: 6.47 | AE43: 5.4 | AF43: 5.93 | AG43: 5.21 | AH43: 5 | AI43: 5.54 | AJ43: 5.4 | AK43: 5.22 | AL43: 5.45 | AM43: 5.4 | AN43: 5.41 | AO43: 5.28 | AP43: 4.77 | AQ43: 5.69 | AR43: 5.49 | AS43: 5.64 | AT43: 5.86 | AU43: 4.98 | AV43: 5.02 | AW43: 5.28 | AX43: 5.4 | AY43: 5.7 | AZ43: 5.58 | BA43: 5.51 | BB43: 5.02 | BC43: 4.98 | BD43: 6.47 | BE43: 5.38 | BF43: 5.45 | BG43: 5.63 | BH43: 5.66 | BI43: 6.11 | BJ43: 5.56 | BK43: 5.02 | BL43: 5.46 | BM43: 5.24 | BN43: 5.39 | BO43: 7.05 | BP43: 5.7 | BQ43: 5.92 | BR43: 5.1 | BS43: 5.38 | BT43: 5.23 | BU43: 5.45 | BV43: 5.54 | BW43: 6.48 | BX43: 5.02 | BY43: 5.97 | BZ43: 5.47 | CA43: 5.51 | CB43: 6.74 | CC43: 5.13 | CD43: 4.85 | CE43: 5.25 | CF43: 6.27 | CG43: 5.99 | CH43: 5.45 | CI43: 5.13 | CJ43: 5.1 | CK43: 6.08 | CL43: 4.98 | CM43: 5.6 | CN43: 4.92 | CO43: 5.05 | CP43: 5.81 | CQ43: 5.11 | CR43: 4.94 | CS43: 5.68 | CT43: 4.86 | CU43: 5.02 | CV43: 5.63 | CW43: 5.51 | CX43: 4.98 | CY43: 4.79 | CZ43: 5.16 | DA43: 5.1 | DB43: 5.92 | DC43: 5.43 | DD43: 5.09 | DE43: 5.39 | DF43: 5.07 | DG43: 4.72 | DH43: 5.35 | DI43: 5 | DJ43: 5.38 | DK43: 4.98 | DL43: 5.82 | DM43: 5.13 | DN43: 4.98 | DO43: 4.6 | DP43: 6.06 | DQ43: 4.98 | DR43: 4.98 | DS43: 5.35 | DT43: 5.27 | DU43: 5.22 | DV43: 5.19 | DW43: 5.25 | DX43: 5.81 | DY43: 4.86 | DZ43: 5.13 | EA43: 5.25
A44: B4036 | B44: 4.09 | C44: 4.29 | D44: 4.1 | E44: 4.13 | F44: 4.08 | G44: 4.2 | H44: 4.11 | I44: 4.12 | J44: 4.08 | K44: 4.25 | L44: 4.11 | M44: 4.13 | N44: 4.48 | O44: 4.45 | P44: 4.11 | Q44: 4.64 | R44: 4.57 | S44: 4.44 | T44: 4.11 | U44: 4.47 | V44: 4.25 | W44: 4.45 | X44: 4.2 | Y44: 4.05 | Z44: 4.13 | AA44: 4.08 | AB44: 4.11 | AC44: 4.53 | AD44: 4.58 | AE44: 4.53 | AF44: 4.45 | AG44: 4.2 | AH44: 4.2 | AI44: 4.25 | AJ44: 4.12 | AK44: 4.06 | AL44: 4.2 | AM44: 4.25 | AN44: 4.26 | AO44: 4.19 | AP44: 4.12 | AQ44: 4.4 | AR44: 4.12 | AS44: 4.44 | AT44: 4.27 | AU44: 4.11 | AV44: 4.09 | AW44: 4.03 | AX44: 4.13 | AY44: 4.39 | AZ44: 4 | BA44: 4.11 | BB44: 4.12 | BC44: 4.08 | BD44: 4.77 | BE44: 4.26 | BF44: 4.37 | BG44: 4.25 | BH44: 4.47 | BI44: 4.59 | BJ44: 4.27 | BK44: 4.06 | BL44: 4.36 | BM44: 4.29 | BN44: 4.04 | BO44: 4.58 | BP44: 4.24 | BQ44: 4.59 | BR44: 4.14 | BS44: 4.44 | BT44: 4.2 | BU44: 4.2 | BV44: 4.38 | BW44: 4.58 | BX44: 4.11 | BY44: 4.5 | BZ44: 4.24 | CA44: 4.38 | CB44: 4.63 | CC44: 4.34 | CD44: 4.08 | CE44: 4.35 | CF44: 4.61 | CG44: 4.62 | CH44: 4.12 | CI44: 4.06 | CJ44: 4.12 | CK44: 4.61 | CL44: 4.04 | CM44: 4.45 | CN44: 4.24 | CO44: 4.14 | CP44: 4.41 | CQ44: 4.25 | CR44: 4.08 | CS44: 4.4 | CT44: 4.09 | CU44: 4.44 | CV44: 4.16 | CW44: 4.11 | CX44: 4.13 | CY44: 4.18 | CZ44: 4.47 | DA44: 4.13 | DB44: 4.31 | DC44: 4.16 | DD44: 4.14 | DE44: 4.15 | DF44: 4.13 | DG44: 4.19 | DH44: 4.34 | DI44: 4.08 | DJ44: 4.45 | DK44: 4.39 | DL44: 4.22 | DM44: 4.13 | DN44: 4.29 | DO44: 4.13 | DP44: 4.61 | DQ44: 4.02 | DR44: 4.15 | DS44: 4.14 | DT44: 4.44 | DU44: 4.2 | DV44: 4.13 | DW44: 4.11 | DX44: 4.19 | DY44: 4.31 | DZ44: 4.36 | EA44: 4.06
A45: B4081 | B45: 15.17 | C45: 14.24 | D45: 21.01 | E45: 15.12 | F45: 14.39 | G45: 15.22 | H45: 15.26 | I45: 14.86 | J45: 15.07 | K45: 17.41 | L45: 14.87 | M45: 15.89 | N45: 15.26 | O45: 15.8 | P45: 15.07 | Q45: 15.21 | R45: 16.65 | S45: 15.58 | T45: 16.04 | U45: 15.8 | V45: 14.86 | W45: 21.53 | X45: 14.8 | Y45: 15.38 | Z45: 13.89 | AA45: 15.12 | AB45: 15.07 | AC45: 15.3 | AD45: 17.41 | AE45: 15.3 | AF45: 16.01 | AG45: 14.84 | AH45: 15.19 | AI45: 15.21 | AJ45: 15.07 | AK45: 14.2 | AL45: 16.36 | AM45: 15.68 | AN45: 15.12 | AO45: 14.2 | AP45: 16.13 | AQ45: 15.07 | AR45: 15.2 | AS45: 15.38 | AT45: 14.94 | AU45: 15.07 | AV45: 15.38 | AW45: 16.39 | AX45: 16.4 | AY45: 15.46 | AZ45: 15.79 | BA45: 15.38 | BB45: 15.07 | BC45: 15.21 | BD45: 15.96 | BE45: 15.07 | BF45: 15.38 | BG45: 15.21 | BH45: 15.04 | BI45: 15.07 | BJ45: 15.22 | BK45: 15.38 | BL45: 14.86 | BM45: 14.86 | BN45: 18.45 | BO45: 17.41 | BP45: 16.32 | BQ45: 14.97 | BR45: 16.65 | BS45: 15.38 | BT45: 15.33 | BU45: 15.17 | BV45: 14.87 | BW45: 15.96 | BX45: 14.86 | BY45: 14.81 | BZ45: 15.21 | CA45: 15.22 | CB45: 17.41 | CC45: 14.86 | CD45: 16.32 | CE45: 15.43 | CF45: 14.97 | CG45: 15.09 | CH45: 14.81 | CI45: 15.22 | CJ45: 15.5 | CK45: 15.34 | CL45: 17.41 | CM45: 14.97 | CN45: 14.86 | CO45: 15.52 | CP45: 15.38 | CQ45: 15.35 | CR45: 15.12 | CS45: 15.62 | CT45: 18.45 | CU45: 17.41 | CV45: 15.31 | CW45: 15.26 | CX45: 17.41 | CY45: 21.75 | CZ45: 16.5 | DA45: 15.5 | DB45: 15.89 | DC45: 14.68 | DD45: 16.88 | DE45: 15.22 | DF45: 15.89 | DG45: 15.07 | DH45: 15.14 | DI45: 14.64 | DJ45: 14.86 | DK45: 17.41 | DL45: 15.03 | DM45: 15.89 | DN45: 15.12 | DO45: 21.53 | DP45: 14.97 | DQ45: 14.2 | DR45: 17.41 | DS45: 14.81 | DT45: 16.32 | DU45: 17.41 | DV45: 16.91 | DW45: 14.73 | DX45: 15 | DY45: 14.86 | DZ45: 15.38 | EA45: 14.22
A46: B4082 | B46: 11.03 | C46: 10.25 | D46: 13.8 | E46: 10.76 | F46: 10.27 | G46: 11.12 | H46: 11.17 | I46: 10.81 | J46: 10.8 | K46: 11.26 | L46: 10.62 | M46: 11.44 | N46: 11.12 | O46: 10.93 | P46: 10.58 | Q46: 11.02 | R46: 11.58 | S46: 11.26 | T46: 10.4 | U46: 11.26 | V46: 10.76 | W46: 16.31 | X46: 10.64 | Y46: 10.97 | Z46: 10.65 | AA46: 10.97 | AB46: 10.8 | AC46: 11.17 | AD46: 16.4 | AE46: 11.21 | AF46: 11.43 | AG46: 10.69 | AH46: 10.69 | AI46: 10.8 | AJ46: 11.01 | AK46: 10.25 | AL46: 11.21 | AM46: 11.02 | AN46: 10.64 | AO46: 10.25 | AP46: 10.66 | AQ46: 11.11 | AR46: 10.96 | AS46: 11.21 | AT46: 11.18 | AU46: 10.62 | AV46: 10.76 | AW46: 11.11 | AX46: 11.28 | AY46: 11.64 | AZ46: 11.11 | BA46: 11.17 | BB46: 10.7 | BC46: 10.3 | BD46: 12.04 | BE46: 10.77 | BF46: 11.14 | BG46: 11.21 | BH46: 10.3 | BI46: 11.07 | BJ46: 11.17 | BK46: 10.76 | BL46: 10.99 | BM46: 11.4 | BN46: 10.66 | BO46: 11.64 | BP46: 11.19 | BQ46: 11.07 | BR46: 11.4 | BS46: 11.25 | BT46: 11.28 | BU46: 11.26 | BV46: 10.76 | BW46: 12.04 | BX46: 10.62 | BY46: 10.74 | BZ46: 11.19 | CA46: 11.16 | CB46: 14.34 | CC46: 10.8 | CD46: 10.56 | CE46: 10.95 | CF46: 11.02 | CG46: 11.07 | CH46: 10.63 | CI46: 11.26 | CJ46: 11.19 | CK46: 11.15 | CL46: 11.69 | CM46: 11.11 | CN46: 10.94 | CO46: 11.07 | CP46: 11.21 | CQ46: 12.23 | CR46: 10.52 | CS46: 11.25 | CT46: 11.52 | CU46: 11.26 | CV46: 11.17 | CW46: 11.12 | CX46: 11.07 | CY46: 13.8 | CZ46: 12.03 | DA46: 11.29 | DB46: 11.36 | DC46: 10.58 | DD46: 12.12 | DE46: 11.19 | DF46: 11.38 | DG46: 10.8 | DH46: 11.11 | DI46: 10.62 | DJ46: 10.14 | DK46: 12.81 | DL46: 11.23 | DM46: 11.38 | DN46: 11.07 | DO46: 16.33 | DP46: 11.02 | DQ46: 10.25 | DR46: 11.44 | DS46: 10.39 | DT46: 10.97 | DU46: 11.43 | DV46: 11.87 | DW46: 10.64 | DX46: 11.2 | DY46: 11.09 | DZ46: 11.26 | EA46: 10.1
A47: B4083 | B47: 1.67 | C47: 1.62 | D47: 2.09 | E47: 1.64 | F47: 1.54 | G47: 1.69 | H47: 1.66 | I47: 1.59 | J47: 1.62 | K47: 1.66 | L47: 1.66 | M47: 1.68 | N47: 1.66 | O47: 1.69 | P47: 1.66 | Q47: 1.63 | R47: 1.93 | S47: 1.66 | T47: 1.62 | U47: 1.66 | V47: 1.61 | W47: 2.5 | X47: 1.63 | Y47: 1.58 | Z47: 1.66 | AA47: 1.64 | AB47: 1.63 | AC47: 1.74 | AD47: 2.56 | AE47: 1.76 | AF47: 1.68 | AG47: 1.62 | AH47: 1.62 | AI47: 1.66 | AJ47: 1.65 | AK47: 1.62 | AL47: 1.66 | AM47: 1.66 | AN47: 1.72 | AO47: 1.62 | AP47: 1.62 | AQ47: 1.68 | AR47: 1.69 | AS47: 1.66 | AT47: 1.55 | AU47: 1.66 | AV47: 1.58 | AW47: 1.54 | AX47: 1.64 | AY47: 1.66 | AZ47: 1.6 | BA47: 1.66 | BB47: 1.66 | BC47: 1.58 | BD47: 1.75 | BE47: 1.66 | BF47: 1.64 | BG47: 1.59 | BH47: 1.57 | BI47: 1.65 | BJ47: 1.6 | BK47: 1.58 | BL47: 1.62 | BM47: 1.62 | BN47: 1.56 | BO47: 1.66 | BP47: 1.63 | BQ47: 1.65 | BR47: 1.82 | BS47: 1.66 | BT47: 1.64 | BU47: 1.63 | BV47: 1.64 | BW47: 1.7 | BX47: 1.62 | BY47: 1.62 | BZ47: 1.65 | CA47: 1.66 | CB47: 2.07 | CC47: 1.61 | CD47: 1.61 | CE47: 1.69 | CF47: 1.63 | CG47: 1.64 | CH47: 1.62 | CI47: 1.64 | CJ47: 1.63 | CK47: 1.7 | CL47: 1.6 | CM47: 1.65 | CN47: 1.64 | CO47: 1.64 | CP47: 1.66 | CQ47: 1.66 | CR47: 1.59 | CS47: 1.7 | CT47: 1.6 | CU47: 1.66 | CV47: 1.66 | CW47: 1.66 | CX47: 1.68 | CY47: 2.28 | CZ47: 1.66 | DA47: 1.64 | DB47: 1.71 | DC47: 1.64 | DD47: 1.71 | DE47: 1.64 | DF47: 1.68 | DG47: 1.66 | DH47: 1.65 | DI47: 1.62 | DJ47: 1.58 | DK47: 1.66 | DL47: 1.64 | DM47: 1.6 | DN47: 1.61 | DO47: 2.5 | DP47: 1.63 | DQ47: 1.52 | DR47: 1.73 | DS47: 1.62 | DT47: 1.64 | DU47: 1.69 | DV47: 1.68 | DW47: 1.63 | DX47: 1.64 | DY47: 1.62 | DZ47: 1.69 | EA47: 1.58
A48: B4087 | B48: 24.81 | C48: 24.81 | D48: 25.56 | E48: 25.63 | F48: 25.22 | G48: 27.11 | H48: 25.88 | I48: 25.25 | J48: 25.01 | K48: 30.83 | L48: 25.65 | M48: 29.01 | N48: 25.63 | O48: 26.14 | P48: 25.41 | Q48: 28.12 | R48: 31.96 | S48: 26.65 | T48: 29.83 | U48: 26.65 | V48: 25.63 | W48: 26.65 | X48: 25.63 | Y48: 25.63 | Z48: 26.19 | AA48: 25.56 | AB48: 24.6 | AC48: 26.66 | AD48: 35.61 | AE48: 26.65 | AF48: 27.49 | AG48: 24.94 | AH48: 24.89 | AI48: 28.05 | AJ48: 25.11 | AK48: 25.28 | AL48: 26.08 | AM48: 26.66 | AN48: 27.11 | AO48: 29.56 | AP48: 25.64 | AQ48: 25.99 | AR48: 28.05 | AS48: 27.16 | AT48: 26.11 | AU48: 25.63 | AV48: 25.51 | AW48: 26.14 | AX48: 31.47 | AY48: 26.92 | AZ48: 26.66 | BA48: 25.63 | BB48: 24.83 | BC48: 26.65 | BD48: 26.41 | BE48: 25.63 | BF48: 25.95 | BG48: 26.12 | BH48: 25.75 | BI48: 25.56 | BJ48: 25.88 | BK48: 24.6 | BL48: 25.94 | BM48: 25.63 | BN48: 28.17 | BO48: 35.5 | BP48: 29 | BQ48: 25.75 | BR48: 31.78 | BS48: 25.41 | BT48: 27.56 | BU48: 26.49 | BV48: 25.63 | BW48: 27.41 | BX48: 25.63 | BY48: 25.26 | BZ48: 26.8 | CA48: 25.63 | CB48: 35.5 | CC48: 25.63 | CD48: 30.48 | CE48: 25.75 | CF48: 25.63 | CG48: 25.63 | CH48: 24.88 | CI48: 25.63 | CJ48: 27.34 | CK48: 26.08 | CL48: 37.44 | CM48: 25.99 | CN48: 25.63 | CO48: 31.78 | CP48: 26.14 | CQ48: 25.63 | CR48: 25.56 | CS48: 31.78 | CT48: 25.63 | CU48: 26.65 | CV48: 25.48 | CW48: 25.01 | CX48: 31.86 | CY48: 30.81 | CZ48: 36.65 | DA48: 31.78 | DB48: 27.52 | DC48: 25.37 | DD48: 32.75 | DE48: 27.56 | DF48: 28.05 | DG48: 25.63 | DH48: 26.14 | DI48: 25.3 | DJ48: 26.12 | DK48: 26.65 | DL48: 26.53 | DM48: 35.51 | DN48: 25.63 | DO48: 26.93 | DP48: 25.63 | DQ48: 32.22 | DR48: 37.44 | DS48: 25.48 | DT48: 25.56 | DU48: 27.42 | DV48: 31.47 | DW48: 25.51 | DX48: 25.46 | DY48: 25.56 | DZ48: 34.85 | EA48: 24.54
A49: B4088 | B49: 28.6 | C49: 30.75 | D49: 35.88 | E49: 32.39 | F49: 30.24 | G49: 31.78 | H49: 32.8 | I49: 28.12 | J49: 28.6 | K49: 34.85 | L49: 30.94 | M49: 34.45 | N49: 30.75 | O49: 28.58 | P49: 31.78 | Q49: 36.17 | R49: 35.65 | S49: 34.85 | T49: 35.36 | U49: 35.88 | V49: 27.01 | W49: 35.88 | X49: 30.75 | Y49: 28.19 | Z49: 30.2 | AA49: 26.83 | AB49: 27.01 | AC49: 31.86 | AD49: 37.36 | AE49: 28.86 | AF49: 30.75 | AG49: 28.88 | AH49: 29.05 | AI49: 35.42 | AJ49: 29.55 | AK49: 30.75 | AL49: 32.66 | AM49: 31.86 | AN49: 30.14 | AO49: 30.75 | AP49: 30.46 | AQ49: 29.89 | AR49: 32.39 | AS49: 31.07 | AT49: 29.97 | AU49: 31.78 | AV49: 27.2 | AW49: 30 | AX49: 32.8 | AY49: 33.83 | AZ49: 31.78 | BA49: 30.03 | BB49: 27.57 | BC49: 35.88 | BD49: 37.36 | BE49: 30.94 | BF49: 31.75 | BG49: 30.86 | BH49: 28.7 | BI49: 27.73 | BJ49: 30.86 | BK49: 27.2 | BL49: 30.24 | BM49: 28.37 | BN49: 32.84 | BO49: 37.36 | BP49: 32.84 | BQ49: 28.6 | BR49: 36.1 | BS49: 30.47 | BT49: 32.39 | BU49: 30.86 | BV49: 30.47 | BW49: 36.9 | BX49: 31.04 | BY49: 25.38 | BZ49: 30.4 | CA49: 29.73 | CB49: 37.36 | CC49: 27.68 | CD49: 35.88 | CE49: 28.44 | CF49: 26.96 | CG49: 27.14 | CH49: 29.17 | CI49: 32.29 | CJ49: 32.26 | CK49: 28.37 | CL49: 37.45 | CM49: 29.54 | CN49: 29.21 | CO49: 37.41 | CP49: 30.47 | CQ49: 29.06 | CR49: 28.62 | CS49: 34.13 | CT49: 34.85 | CU49: 34.85 | CV49: 32.14 | CW49: 31.78 | CX49: 37.36 | CY49: 37.13 | CZ49: 37.46 | DA49: 35.06 | DB49: 36.1 | DC49: 29.55 | DD49: 35.1 | DE49: 32.39 | DF49: 32.74 | DG49: 34.85 | DH49: 30.36 | DI49: 30.16 | DJ49: 28.7 | DK49: 34.85 | DL49: 29.73 | DM49: 37.36 | DN49: 28.19 | DO49: 36.9 | DP49: 26.96 | DQ49: 30.75 | DR49: 37.45 | DS49: 30.28 | DT49: 32.66 | DU49: 35.88 | DV49: 32.8 | DW49: 30.14 | DX49: 29.71 | DY49: 28.27 | DZ49: 34.85 | EA49: 30.42
A50: B4149 | B50: 1.03 | C50: 0.96 | D50: 1.03 | E50: 1.01 | F50: 1 | G50: 1.01 | H50: 1.04 | I50: 1.01 | J50: 1.01 | K50: 1.05 | L50: 1.03 | M50: 1.1 | N50: 1.03 | O50: 1.08 | P50: 1.01 | Q50: 1.04 | R50: 1.09 | S50: 1.04 | T50: 0.98 | U50: 1.04 | V50: 1.03 | W50: 1.04 | X50: 1 | Y50: 1.03 | Z50: 1.03 | AA50: 1.03 | AB50: 1.01 | AC50: 1.04 | AD50: 1.09 | AE50: 1.04 | AF50: 1.05 | AG50: 1 | AH50: 1.03 | AI50: 1.04 | AJ50: 1.03 | AK50: 0.96 | AL50: 1.03 | AM50: 1.04 | AN50: 1.04 | AO50: 0.96 | AP50: 1 | AQ50: 1.07 | AR50: 1.04 | AS50: 1.05 | AT50: 1.04 | AU50: 1.04 | AV50: 1.01 | AW50: 1.03 | AX50: 1.05 | AY50: 1.05 | AZ50: 1.04 | BA50: 1.03 | BB50: 1.03 | BC50: 0.99 | BD50: 1.09 | BE50: 1.04 | BF50: 1.03 | BG50: 1.03 | BH50: 1.05 | BI50: 1.05 | BJ50: 1.03 | BK50: 1 | BL50: 1.03 | BM50: 1.03 | BN50: 0.98 | BO50: 1.09 | BP50: 1.03 | BQ50: 1.04 | BR50: 1.09 | BS50: 1.05 | BT50: 1.07 | BU50: 1 | BV50: 1.03 | BW50: 1.08 | BX50: 0.96 | BY50: 1.03 | BZ50: 1.03 | CA50: 1.03 | CB50: 1.09 | CC50: 1.03 | CD50: 0.99 | CE50: 1.06 | CF50: 1.05 | CG50: 1.06 | CH50: 0.98 | CI50: 1.01 | CJ50: 1.07 | CK50: 1.05 | CL50: 0.99 | CM50: 1.05 | CN50: 1.03 | CO50: 1.05 | CP50: 1.03 | CQ50: 1.04 | CR50: 0.98 | CS50: 1.05 | CT50: 1 | CU50: 1.05 | CV50: 1.03 | CW50: 1.01 | CX50: 1.09 | CY50: 1.03 | CZ50: 1.09 | DA50: 1.09 | DB50: 1.03 | DC50: 1.01 | DD50: 1.11 | DE50: 1.05 | DF50: 1.1 | DG50: 1.01 | DH50: 1.03 | DI50: 0.98 | DJ50: 1.01 | DK50: 1.04 | DL50: 1.03 | DM50: 1.1 | DN50: 1.03 | DO50: 1.03 | DP50: 1.07 | DQ50: 0.93 | DR50: 1.1 | DS50: 0.96 | DT50: 1.03 | DU50: 1.08 | DV50: 1.07 | DW50: 1.01 | DX50: 1.04 | DY50: 1.03 | DZ50: 1.04 | EA50: 0.93
A51: B4150 | B51: 0.38 | C51: 0.37 | D51: 0.37 | E51: 0.38 | F51: 0.36 | G51: 0.38 | H51: 0.38 | I51: 0.38 | J51: 0.37 | K51: 0.38 | L51: 0.38 | M51: 0.38 | N51: 0.38 | O51: 0.41 | P51: 0.38 | Q51: 0.41 | R51: 0.41 | S51: 0.38 | T51: 0.37 | U51: 0.39 | V51: 0.37 | W51: 0.38 | X51: 0.37 | Y51: 0.37 | Z51: 0.37 | AA51: 0.39 | AB51: 0.38 | AC51: 0.39 | AD51: 0.4 | AE51: 0.39 | AF51: 0.41 | AG51: 0.37 | AH51: 0.37 | AI51: 0.38 | AJ51: 0.38 | AK51: 0.36 | AL51: 0.39 | AM51: 0.38 | AN51: 0.39 | AO51: 0.37 | AP51: 0.37 | AQ51: 0.39 | AR51: 0.38 | AS51: 0.4 | AT51: 0.39 | AU51: 0.38 | AV51: 0.37 | AW51: 0.37 | AX51: 0.38 | AY51: 0.41 | AZ51: 0.39 | BA51: 0.38 | BB51: 0.38 | BC51: 0.37 | BD51: 0.43 | BE51: 0.39 | BF51: 0.37 | BG51: 0.39 | BH51: 0.4 | BI51: 0.4 | BJ51: 0.37 | BK51: 0.37 | BL51: 0.38 | BM51: 0.38 | BN51: 0.38 | BO51: 0.4 | BP51: 0.39 | BQ51: 0.39 | BR51: 0.37 | BS51: 0.4 | BT51: 0.38 | BU51: 0.37 | BV51: 0.39 | BW51: 0.4 | BX51: 0.37 | BY51: 0.39 | BZ51: 0.39 | CA51: 0.38 | CB51: 0.4 | CC51: 0.38 | CD51: 0.37 | CE51: 0.4 | CF51: 0.4 | CG51: 0.39 | CH51: 0.38 | CI51: 0.37 | CJ51: 0.38 | CK51: 0.39 | CL51: 0.37 | CM51: 0.39 | CN51: 0.38 | CO51: 0.38 | CP51: 0.4 | CQ51: 0.38 | CR51: 0.37 | CS51: 0.39 | CT51: 0.37 | CU51: 0.38 | CV51: 0.38 | CW51: 0.38 | CX51: 0.37 | CY51: 0.37 | CZ51: 0.39 | DA51: 0.37 | DB51: 0.38 | DC51: 0.38 | DD51: 0.39 | DE51: 0.38 | DF51: 0.37 | DG51: 0.37 | DH51: 0.39 | DI51: 0.37 | DJ51: 0.4 | DK51: 0.38 | DL51: 0.39 | DM51: 0.37 | DN51: 0.38 | DO51: 0.37 | DP51: 0.4 | DQ51: 0.36 | DR51: 0.38 | DS51: 0.38 | DT51: 0.39 | DU51: 0.38 | DV51: 0.38 | DW51: 0.38 | DX51: 0.39 | DY51: 0.37 | DZ51: 0.38 | EA51: 0.37
A52: B4152 | B52: 0.31 | C52: 0.31 | D52: 0.31 | E52: 0.31 | F52: 0.31 | G52: 0.31 | H52: 0.31 | I52: 0.31 | J52: 0.31 | K52: 0.33 | L52: 0.31 | M52: 0.31 | N52: 0.32 | O52: 0.32 | P52: 0.31 | Q52: 0.33 | R52: 0.33 | S52: 0.32 | T52: 0.32 | U52: 0.33 | V52: 0.31 | W52: 0.33 | X52: 0.31 | Y52: 0.31 | Z52: 0.31 | AA52: 0.31 | AB52: 0.31 | AC52: 0.32 | AD52: 0.33 | AE52: 0.31 | AF52: 0.34 | AG52: 0.31 | AH52: 0.31 | AI52: 0.33 | AJ52: 0.31 | AK52: 0.31 | AL52: 0.31 | AM52: 0.31 | AN52: 0.32 | AO52: 0.31 | AP52: 0.31 | AQ52: 0.31 | AR52: 0.33 | AS52: 0.32 | AT52: 0.33 | AU52: 0.32 | AV52: 0.31 | AW52: 0.32 | AX52: 0.31 | AY52: 0.33 | AZ52: 0.32 | BA52: 0.31 | BB52: 0.31 | BC52: 0.32 | BD52: 0.36 | BE52: 0.31 | BF52: 0.33 | BG52: 0.32 | BH52: 0.33 | BI52: 0.33 | BJ52: 0.33 | BK52: 0.31 | BL52: 0.31 | BM52: 0.31 | BN52: 0.31 | BO52: 0.34 | BP52: 0.32 | BQ52: 0.31 | BR52: 0.33 | BS52: 0.33 | BT52: 0.31 | BU52: 0.32 | BV52: 0.32 | BW52: 0.33 | BX52: 0.31 | BY52: 0.31 | BZ52: 0.32 | CA52: 0.32 | CB52: 0.33 | CC52: 0.31 | CD52: 0.31 | CE52: 0.32 | CF52: 0.33 | CG52: 0.32 | CH52: 0.32 | CI52: 0.31 | CJ52: 0.31 | CK52: 0.33 | CL52: 0.31 | CM52: 0.31 | CN52: 0.31 | CO52: 0.32 | CP52: 0.33 | CQ52: 0.31 | CR52: 0.31 | CS52: 0.33 | CT52: 0.31 | CU52: 0.32 | CV52: 0.31 | CW52: 0.31 | CX52: 0.31 | CY52: 0.31 | CZ52: 0.33 | DA52: 0.31 | DB52: 0.33 | DC52: 0.31 | DD52: 0.32 | DE52: 0.31 | DF52: 0.31 | DG52: 0.31 | DH52: 0.31 | DI52: 0.31 | DJ52: 0.33 | DK52: 0.32 | DL52: 0.33 | DM52: 0.31 | DN52: 0.31 | DO52: 0.31 | DP52: 0.33 | DQ52: 0.31 | DR52: 0.33 | DS52: 0.31 | DT52: 0.31 | DU52: 0.32 | DV52: 0.31 | DW52: 0.31 | DX52: 0.33 | DY52: 0.31 | DZ52: 0.32 | EA52: 0.31
A53: B4153 | B53: 1.15 | C53: 1.08 | D53: 1.13 | E53: 1.19 | F53: 1.09 | G53: 1.14 | H53: 1.21 | I53: 1.26 | J53: 1.17 | K53: 1.24 | L53: 1.21 | M53: 1.27 | N53: 1.17 | O53: 1.27 | P53: 1.17 | Q53: 1.33 | R53: 1.29 | S53: 1.15 | T53: 1.13 | U53: 1.23 | V53: 1.13 | W53: 1.19 | X53: 1.14 | Y53: 1.11 | Z53: 1.16 | AA53: 1.22 | AB53: 1.15 | AC53: 1.26 | AD53: 1.36 | AE53: 1.26 | AF53: 1.32 | AG53: 1.2 | AH53: 1.17 | AI53: 1.27 | AJ53: 1.17 | AK53: 1.08 | AL53: 1.27 | AM53: 1.21 | AN53: 1.3 | AO53: 1.07 | AP53: 1.23 | AQ53: 1.26 | AR53: 1.26 | AS53: 1.31 | AT53: 1.29 | AU53: 1.19 | AV53: 1.09 | AW53: 1.24 | AX53: 1.28 | AY53: 1.35 | AZ53: 1.22 | BA53: 1.21 | BB53: 1.17 | BC53: 1.12 | BD53: 1.56 | BE53: 1.26 | BF53: 1.11 | BG53: 1.28 | BH53: 1.3 | BI53: 1.25 | BJ53: 1.27 | BK53: 1.08 | BL53: 1.27 | BM53: 1.27 | BN53: 1.15 | BO53: 1.46 | BP53: 1.21 | BQ53: 1.27 | BR53: 1.15 | BS53: 1.26 | BT53: 1.35 | BU53: 1.13 | BV53: 1.23 | BW53: 1.33 | BX53: 1.08 | BY53: 1.27 | BZ53: 1.25 | CA53: 1.26 | CB53: 1.37 | CC53: 1.13 | CD53: 1.09 | CE53: 1.27 | CF53: 1.26 | CG53: 1.27 | CH53: 1.17 | CI53: 1.19 | CJ53: 1.27 | CK53: 1.27 | CL53: 1.27 | CM53: 1.25 | CN53: 1.16 | CO53: 1.19 | CP53: 1.26 | CQ53: 1.21 | CR53: 1.13 | CS53: 1.27 | CT53: 1.13 | CU53: 1.19 | CV53: 1.25 | CW53: 1.15 | CX53: 1.36 | CY53: 1.14 | CZ53: 1.26 | DA53: 1.27 | DB53: 1.28 | DC53: 1.17 | DD53: 1.27 | DE53: 1.27 | DF53: 1.27 | DG53: 1.1 | DH53: 1.21 | DI53: 1.11 | DJ53: 1.33 | DK53: 1.15 | DL53: 1.27 | DM53: 1.27 | DN53: 1.15 | DO53: 1.15 | DP53: 1.26 | DQ53: 1.07 | DR53: 1.18 | DS53: 1.22 | DT53: 1.23 | DU53: 1.15 | DV53: 1.27 | DW53: 1.12 | DX53: 1.27 | DY53: 1.13 | DZ53: 1.15 | EA53: 1.07
A54: B4154 | B54: 0.65 | C54: 0.63 | D54: 0.62 | E54: 0.69 | F54: 0.62 | G54: 0.65 | H54: 0.65 | I54: 0.65 | J54: 0.66 | K54: 0.67 | L54: 0.7 | M54: 0.68 | N54: 0.69 | O54: 0.71 | P54: 0.67 | Q54: 0.72 | R54: 0.73 | S54: 0.68 | T54: 0.62 | U54: 0.68 | V54: 0.67 | W54: 0.67 | X54: 0.64 | Y54: 0.62 | Z54: 0.67 | AA54: 0.67 | AB54: 0.67 | AC54: 0.72 | AD54: 0.68 | AE54: 0.71 | AF54: 0.7 | AG54: 0.68 | AH54: 0.68 | AI54: 0.67 | AJ54: 0.67 | AK54: 0.63 | AL54: 0.68 | AM54: 0.68 | AN54: 0.72 | AO54: 0.63 | AP54: 0.65 | AQ54: 0.69 | AR54: 0.67 | AS54: 0.67 | AT54: 0.69 | AU54: 0.67 | AV54: 0.64 | AW54: 0.66 | AX54: 0.68 | AY54: 0.69 | AZ54: 0.67 | BA54: 0.7 | BB54: 0.68 | BC54: 0.63 | BD54: 0.75 | BE54: 0.7 | BF54: 0.64 | BG54: 0.65 | BH54: 0.72 | BI54: 0.7 | BJ54: 0.66 | BK54: 0.63 | BL54: 0.7 | BM54: 0.7 | BN54: 0.64 | BO54: 0.68 | BP54: 0.67 | BQ54: 0.71 | BR54: 0.64 | BS54: 0.72 | BT54: 0.68 | BU54: 0.64 | BV54: 0.7 | BW54: 0.68 | BX54: 0.63 | BY54: 0.7 | BZ54: 0.7 | CA54: 0.7 | CB54: 0.68 | CC54: 0.67 | CD54: 0.62 | CE54: 0.7 | CF54: 0.71 | CG54: 0.7 | CH54: 0.68 | CI54: 0.64 | CJ54: 0.66 | CK54: 0.72 | CL54: 0.64 | CM54: 0.68 | CN54: 0.64 | CO54: 0.64 | CP54: 0.71 | CQ54: 0.68 | CR54: 0.63 | CS54: 0.7 | CT54: 0.62 | CU54: 0.68 | CV54: 0.69 | CW54: 0.64 | CX54: 0.65 | CY54: 0.62 | CZ54: 0.66 | DA54: 0.64 | DB54: 0.7 | DC54: 0.7 | DD54: 0.68 | DE54: 0.65 | DF54: 0.65 | DG54: 0.62 | DH54: 0.7 | DI54: 0.62 | DJ54: 0.71 | DK54: 0.67 | DL54: 0.7 | DM54: 0.65 | DN54: 0.68 | DO54: 0.6 | DP54: 0.71 | DQ54: 0.6 | DR54: 0.64 | DS54: 0.65 | DT54: 0.69 | DU54: 0.65 | DV54: 0.67 | DW54: 0.65 | DX54: 0.68 | DY54: 0.62 | DZ54: 0.68 | EA54: 0.64
A55: B4155 | B55: 0.68 | C55: 0.7 | D55: 0.73 | E55: 0.76 | F55: 0.75 | G55: 0.7 | H55: 0.69 | I55: 0.68 | J55: 0.68 | K55: 0.72 | L55: 0.73 | M55: 0.72 | N55: 0.72 | O55: 0.71 | P55: 0.73 | Q55: 0.86 | R55: 0.9 | S55: 0.73 | T55: 0.78 | U55: 0.74 | V55: 0.72 | W55: 0.74 | X55: 0.7 | Y55: 0.72 | Z55: 0.7 | AA55: 0.68 | AB55: 0.68 | AC55: 0.72 | AD55: 0.97 | AE55: 0.72 | AF55: 0.72 | AG55: 0.7 | AH55: 0.71 | AI55: 0.76 | AJ55: 0.68 | AK55: 0.7 | AL55: 0.74 | AM55: 0.76 | AN55: 0.72 | AO55: 0.71 | AP55: 0.72 | AQ55: 0.7 | AR55: 0.74 | AS55: 0.72 | AT55: 0.71 | AU55: 0.73 | AV55: 0.69 | AW55: 0.68 | AX55: 0.75 | AY55: 0.72 | AZ55: 0.68 | BA55: 0.69 | BB55: 0.68 | BC55: 0.73 | BD55: 0.97 | BE55: 0.72 | BF55: 0.72 | BG55: 0.72 | BH55: 0.72 | BI55: 0.68 | BJ55: 0.72 | BK55: 0.7 | BL55: 0.72 | BM55: 0.71 | BN55: 0.68 | BO55: 0.97 | BP55: 0.72 | BQ55: 0.7 | BR55: 0.76 | BS55: 0.73 | BT55: 0.72 | BU55: 0.69 | BV55: 0.73 | BW55: 0.97 | BX55: 0.72 | BY55: 0.66 | BZ55: 0.71 | CA55: 0.73 | CB55: 0.97 | CC55: 0.73 | CD55: 0.78 | CE55: 0.7 | CF55: 0.69 | CG55: 0.7 | CH55: 0.69 | CI55: 0.77 | CJ55: 0.72 | CK55: 0.7 | CL55: 0.72 | CM55: 0.69 | CN55: 0.73 | CO55: 0.86 | CP55: 0.73 | CQ55: 0.7 | CR55: 0.72 | CS55: 0.76 | CT55: 0.74 | CU55: 0.74 | CV55: 0.69 | CW55: 0.73 | CX55: 0.9 | CY55: 0.74 | CZ55: 0.97 | DA55: 0.72 | DB55: 0.81 | DC55: 0.71 | DD55: 0.73 | DE55: 0.73 | DF55: 0.72 | DG55: 0.74 | DH55: 0.74 | DI55: 0.7 | DJ55: 0.71 | DK55: 0.73 | DL55: 0.72 | DM55: 0.72 | DN55: 0.73 | DO55: 0.73 | DP55: 0.69 | DQ55: 0.74 | DR55: 0.98 | DS55: 0.7 | DT55: 0.72 | DU55: 0.73 | DV55: 0.74 | DW55: 0.69 | DX55: 0.71 | DY55: 0.72 | DZ55: 0.74 | EA55: 0.69
A56: B9002 MS | B56: 30.12 | C56: 30.99 | D56: 29.73 | E56: 30.49 | F56: 29.73 | G56: 30.72 | H56: 33.31 | I56: 31.88 | J56: 30.12 | K56: 33.28 | L56: 32.06 | M56: 30.49 | N56: 30.49 | O56: 35.06 | P56: 32.04 | Q56: 34.08 | R56: 32.95 | S56: 31.78 | T56: 29.73 | U56: 30.49 | V56: 30.49 | W56: 30.75 | X56: 30.49 | Y56: 29.73 | Z56: 30.81 | AA56: 30.42 | AB56: 30.01 | AC56: 34.85 | AD56: 34.07 | AE56: 33.52 | AF56: 33.87 | AG56: 31.57 | AH56: 31.15 | AI56: 30.49 | AJ56: 30.34 | AK56: 30.75 | AL56: 30.66 | AM56: 32.06 | AN56: 32.06 | AO56: 30.75 | AP56: 30.66 | AQ56: 33.33 | AR56: 31.16 | AS56: 32.06 | AT56: 32.6 | AU56: 33.35 | AV56: 30.34 | AW56: 31.5 | AX56: 30.24 | AY56: 33.32 | AZ56: 31.47 | BA56: 33.31 | BB56: 30.39 | BC56: 29.73 | BD56: 36.39 | BE56: 32.42 | BF56: 30.42 | BG56: 32.17 | BH56: 34.32 | BI56: 34.1 | BJ56: 31.43 | BK56: 29.73 | BL56: 32.49 | BM56: 31.65 | BN56: 30.17 | BO56: 34.03 | BP56: 32.79 | BQ56: 33.36 | BR56: 30.26 | BS56: 33.4 | BT56: 31.67 | BU56: 30.42 | BV56: 33.53 | BW56: 34.59 | BX56: 30.75 | BY56: 34.27 | BZ56: 32.57 | CA56: 31.78 | CB56: 34.59 | CC56: 30.65 | CD56: 29.66 | CE56: 34.54 | CF56: 34.03 | CG56: 33.6 | CH56: 30.42 | CI56: 30.49 | CJ56: 31.04 | CK56: 34.78 | CL56: 30.49 | CM56: 32.68 | CN56: 30.75 | CO56: 29.81 | CP56: 30.99 | CQ56: 30.5 | CR56: 30.03 | CS56: 33.45 | CT56: 30.03 | CU56: 31.78 | CV56: 33.47 | CW56: 31.38 | CX56: 31.29 | CY56: 30.03 | CZ56: 31.5 | DA56: 30.75 | DB56: 30.74 | DC56: 32.31 | DD56: 30.81 | DE56: 32.06 | DF56: 31.01 | DG56: 29.73 | DH56: 32.21 | DI56: 30.24 | DJ56: 34.59 | DK56: 30.49 | DL56: 32.06 | DM56: 30.49 | DN56: 30.66 | DO56: 29.73 | DP56: 33.36 | DQ56: 30.49 | DR56: 30.32 | DS56: 30.31 | DT56: 32.05 | DU56: 32.03 | DV56: 30.22 | DW56: 30.34 | DX56: 32.03 | DY56: 30.49 | DZ56: 31.16 | EA56: 30.63
A57: B9002 NU | B57: 602.48 | C57: 619.61 | D57: 594.5 | E57: 609.88 | F57: 594.5 | G57: 614.37 | H57: 666.25 | I57: 637.55 | J57: 602.48 | K57: 665.66 | L57: 641.14 | M57: 609.88 | N57: 609.88 | O57: 701.1 | P57: 640.8 | Q57: 681.63 | R57: 659.13 | S57: 635.5 | T57: 594.5 | U57: 609.88 | V57: 609.88 | W57: 615 | X57: 609.88 | Y57: 594.5 | Z57: 616.17 | AA57: 608.34 | AB57: 600.22 | AC57: 697 | AD57: 681.4 | AE57: 670.43 | AF57: 677.32 | AG57: 631.4 | AH57: 623.04 | AI57: 609.88 | AJ57: 606.8 | AK57: 615 | AL57: 613.05 | AM57: 641.14 | AN57: 641.14 | AO57: 615 | AP57: 613.13 | AQ57: 666.74 | AR57: 623.23 | AS57: 641.14 | AT57: 651.84 | AU57: 667.02 | AV57: 606.8 | AW57: 630.04 | AX57: 604.75 | AY57: 666.43 | AZ57: 629.33 | BA57: 666.25 | BB57: 607.83 | BC57: 594.5 | BD57: 727.75 | BE57: 648.31 | BF57: 608.34 | BG57: 643.44 | BH57: 686.26 | BI57: 682.12 | BJ57: 628.56 | BK57: 594.5 | BL57: 649.82 | BM57: 632.94 | BN57: 603.21 | BO57: 680.65 | BP57: 655.84 | BQ57: 667.25 | BR57: 605.21 | BS57: 668.04 | BT57: 633.4 | BU57: 608.39 | BV57: 670.54 | BW57: 691.88 | BX57: 615 | BY57: 685.28 | BZ57: 651.39 | CA57: 635.5 | CB57: 691.88 | CC57: 612.95 | CD57: 593.29 | CE57: 690.87 | CF57: 680.65 | CG57: 671.99 | CH57: 608.34 | CI57: 609.88 | CJ57: 620.8 | CK57: 695.63 | CL57: 609.88 | CM57: 653.44 | CN57: 615 | CO57: 596.2 | CP57: 619.61 | CQ57: 610.02 | CR57: 600.65 | CS57: 668.92 | CT57: 600.65 | CU57: 635.5 | CV57: 669.24 | CW57: 627.59 | CX57: 625.95 | CY57: 600.65 | CZ57: 629.97 | DA57: 615 | DB57: 614.74 | DC57: 646.14 | DD57: 616.23 | DE57: 641.14 | DF57: 620.13 | DG57: 594.5 | DH57: 644.01 | DI57: 604.75 | DJ57: 691.88 | DK57: 609.88 | DL57: 641.15 | DM57: 609.88 | DN57: 613.22 | DO57: 594.5 | DP57: 667.22 | DQ57: 609.88 | DR57: 606.4 | DS57: 606.08 | DT57: 641.1 | DU57: 640.63 | DV57: 604.24 | DW57: 606.8 | DX57: 640.63 | DY57: 609.97 | DZ57: 623.23 | EA57: 612.44
A58: B9002 RR | B58: 60.25 | C58: 61.96 | D58: 59.45 | E58: 60.99 | F58: 59.45 | G58: 61.44 | H58: 66.63 | I58: 63.76 | J58: 60.25 | K58: 66.56 | L58: 64.11 | M58: 60.99 | N58: 60.99 | O58: 70.11 | P58: 64.08 | Q58: 68.16 | R58: 65.92 | S58: 63.55 | T58: 59.45 | U58: 60.99 | V58: 60.99 | W58: 61.5 | X58: 60.99 | Y58: 59.45 | Z58: 61.61 | AA58: 60.83 | AB58: 60.02 | AC58: 69.7 | AD58: 68.14 | AE58: 67.05 | AF58: 67.73 | AG58: 63.14 | AH58: 62.3 | AI58: 60.99 | AJ58: 60.68 | AK58: 61.5 | AL58: 61.31 | AM58: 64.11 | AN58: 64.11 | AO58: 61.5 | AP58: 61.32 | AQ58: 66.68 | AR58: 62.32 | AS58: 64.11 | AT58: 65.18 | AU58: 66.71 | AV58: 60.68 | AW58: 63.01 | AX58: 60.48 | AY58: 66.65 | AZ58: 62.94 | BA58: 66.63 | BB58: 60.78 | BC58: 59.45 | BD58: 72.78 | BE58: 64.83 | BF58: 60.83 | BG58: 64.35 | BH58: 68.62 | BI58: 68.21 | BJ58: 62.85 | BK58: 59.45 | BL58: 64.99 | BM58: 63.29 | BN58: 60.32 | BO58: 68.07 | BP58: 65.58 | BQ58: 66.73 | BR58: 60.53 | BS58: 66.81 | BT58: 63.35 | BU58: 60.84 | BV58: 67.06 | BW58: 69.19 | BX58: 61.5 | BY58: 68.53 | BZ58: 65.14 | CA58: 63.55 | CB58: 69.19 | CC58: 61.3 | CD58: 59.33 | CE58: 69.09 | CF58: 68.07 | CG58: 67.2 | CH58: 60.83 | CI58: 60.99 | CJ58: 62.08 | CK58: 69.57 | CL58: 60.99 | CM58: 65.34 | CN58: 61.5 | CO58: 59.62 | CP58: 61.96 | CQ58: 61 | CR58: 60.07 | CS58: 66.89 | CT58: 60.07 | CU58: 63.55 | CV58: 66.92 | CW58: 62.76 | CX58: 62.6 | CY58: 60.07 | CZ58: 63 | DA58: 61.5 | DB58: 61.48 | DC58: 64.62 | DD58: 61.62 | DE58: 64.11 | DF58: 62.01 | DG58: 59.45 | DH58: 64.4 | DI58: 60.48 | DJ58: 69.19 | DK58: 60.99 | DL58: 64.11 | DM58: 60.99 | DN58: 61.33 | DO58: 59.45 | DP58: 66.73 | DQ58: 60.99 | DR58: 60.64 | DS58: 60.61 | DT58: 64.11 | DU58: 64.06 | DV58: 60.42 | DW58: 60.68 | DX58: 64.06 | DY58: 61 | DZ58: 62.32 | EA58: 61.24
A59: B9002 UE | B59: 451.86 | C59: 464.71 | D59: 445.88 | E59: 457.41 | F59: 445.88 | G59: 460.78 | H59: 499.69 | I59: 478.16 | J59: 451.86 | K59: 499.25 | L59: 480.86 | M59: 457.41 | N59: 457.41 | O59: 525.83 | P59: 480.6 | Q59: 511.22 | R59: 494.35 | S59: 476.63 | T59: 445.88 | U59: 457.41 | V59: 457.41 | W59: 461.25 | X59: 457.41 | Y59: 445.88 | Z59: 462.13 | AA59: 456.26 | AB59: 450.17 | AC59: 522.75 | AD59: 511.05 | AE59: 502.82 | AF59: 507.99 | AG59: 473.55 | AH59: 467.28 | AI59: 457.41 | AJ59: 455.1 | AK59: 461.25 | AL59: 459.79 | AM59: 480.86 | AN59: 480.86 | AO59: 461.25 | AP59: 459.86 | AQ59: 500.06 | AR59: 467.42 | AS59: 480.86 | AT59: 488.88 | AU59: 500.26 | AV59: 455.1 | AW59: 472.53 | AX59: 453.56 | AY59: 499.83 | AZ59: 472 | BA59: 499.69 | BB59: 455.87 | BC59: 445.88 | BD59: 545.81 | BE59: 486.24 | BF59: 456.26 | BG59: 482.58 | BH59: 514.69 | BI59: 511.59 | BJ59: 471.42 | BK59: 445.88 | BL59: 487.37 | BM59: 474.71 | BN59: 452.41 | BO59: 510.49 | BP59: 491.88 | BQ59: 500.45 | BR59: 453.91 | BS59: 501.03 | BT59: 475.05 | BU59: 456.29 | BV59: 502.91 | BW59: 518.91 | BX59: 461.25 | BY59: 513.97 | BZ59: 488.55 | CA59: 476.63 | CB59: 518.91 | CC59: 459.71 | CD59: 444.97 | CE59: 518.16 | CF59: 510.49 | CG59: 503.99 | CH59: 456.26 | CI59: 457.41 | CJ59: 465.61 | CK59: 521.73 | CL59: 457.41 | CM59: 490.08 | CN59: 461.25 | CO59: 447.16 | CP59: 464.71 | CQ59: 457.52 | CR59: 450.49 | CS59: 501.69 | CT59: 450.49 | CU59: 476.63 | CV59: 501.93 | CW59: 470.69 | CX59: 469.46 | CY59: 450.49 | CZ59: 472.47 | DA59: 461.25 | DB59: 461.06 | DC59: 484.61 | DD59: 462.17 | DE59: 480.86 | DF59: 465.09 | DG59: 445.88 | DH59: 483.01 | DI59: 453.56 | DJ59: 518.91 | DK59: 457.41 | DL59: 480.86 | DM59: 457.41 | DN59: 459.92 | DO59: 445.88 | DP59: 500.42 | DQ59: 457.41 | DR59: 454.8 | DS59: 454.57 | DT59: 480.83 | DU59: 480.47 | DV59: 453.18 | DW59: 455.1 | DX59: 480.47 | DY59: 457.48 | DZ59: 467.42 | EA59: 459.33
A60: E0130 NU | B60: 50.76 | C60: 52.12 | D60: 44.7 | E60: 49.41 | F60: 43.62 | G60: 46.69 | H60: 50.23 | I60: 47.72 | J60: 48.97 | K60: 53.62 | L60: 46.38 | M60: 48.73 | N60: 47.56 | O60: 51.62 | P60: 42.96 | Q60: 50.94 | R60: 54.86 | S60: 46.05 | T60: 45.11 | U60: 47 | V60: 43.05 | W60: 45.82 | X60: 48.3 | Y60: 47.38 | Z60: 46.13 | AA60: 50.57 | AB60: 51.6 | AC60: 61.75 | AD60: 59.39 | AE60: 62.83 | AF60: 47.69 | AG60: 42.66 | AH60: 48.64 | AI60: 47.72 | AJ60: 51.37 | AK60: 46.29 | AL60: 59.94 | AM60: 52.69 | AN60: 47.15 | AO60: 47.31 | AP60: 52.69 | AQ60: 45.45 | AR60: 47.72 | AS60: 58.43 | AT60: 47.44 | AU60: 45.7 | AV60: 44 | AW60: 58.48 | AX60: 48.01 | AY60: 51.84 | AZ60: 52.58 | BA60: 50.23 | BB60: 50.23 | BC60: 45.82 | BD60: 49.2 | BE60: 43.89 | BF60: 47.72 | BG60: 51.87 | BH60: 49.93 | BI60: 44.13 | BJ60: 49.22 | BK60: 42.87 | BL60: 50.66 | BM60: 60.99 | BN60: 52.03 | BO60: 60.7 | BP60: 51.36 | BQ60: 44.13 | BR60: 46.66 | BS60: 48.03 | BT60: 45.26 | BU60: 46.48 | BV60: 44.8 | BW60: 62.41 | BX60: 47.72 | BY60: 44.76 | BZ60: 51.07 | CA60: 50.43 | CB60: 56.72 | CC60: 43.82 | CD60: 46.37 | CE60: 52.4 | CF60: 45.61 | CG60: 46.13 | CH60: 42.4 | CI60: 50.73 | CJ60: 45.98 | CK60: 46.25 | CL60: 46.18 | CM60: 44.13 | CN60: 44.37 | CO60: 46 | CP60: 50.76 | CQ60: 56.31 | CR60: 44.08 | CS60: 49.17 | CT60: 45.24 | CU60: 46.62 | CV60: 50.23 | CW60: 47.56 | CX60: 55.94 | CY60: 50.74 | CZ60: 46.29 | DA60: 45.47 | DB60: 52.3 | DC60: 46.87 | DD60: 46.15 | DE60: 44.76 | DF60: 47.15 | DG60: 43.62 | DH60: 51.62 | DI60: 48.3 | DJ60: 57.4 | DK60: 46.22 | DL60: 47.13 | DM60: 47.72 | DN60: 43.19 | DO60: 44.67 | DP60: 44.13 | DQ60: 46.23 | DR60: 46.38 | DS60: 44.5 | DT60: 52.91 | DU60: 47.72 | DV60: 59.12 | DW60: 48.3 | DX60: 47.64 | DY60: 44.67 | DZ60: 46.14 | EA60: 45.82
A61: E0130 RR | B61: 5.07 | C61: 5.22 | D61: 4.47 | E61: 4.94 | F61: 4.37 | G61: 4.67 | H61: 5.02 | I61: 4.78 | J61: 4.9 | K61: 5.36 | L61: 4.64 | M61: 4.87 | N61: 4.76 | O61: 5.17 | P61: 4.29 | Q61: 5.09 | R61: 5.48 | S61: 4.6 | T61: 4.51 | U61: 4.7 | V61: 4.31 | W61: 4.58 | X61: 4.83 | Y61: 4.74 | Z61: 4.61 | AA61: 5.05 | AB61: 5.16 | AC61: 6.17 | AD61: 5.93 | AE61: 6.28 | AF61: 4.77 | AG61: 4.26 | AH61: 4.87 | AI61: 4.78 | AJ61: 5.14 | AK61: 4.63 | AL61: 6 | AM61: 5.27 | AN61: 4.72 | AO61: 4.74 | AP61: 5.27 | AQ61: 4.54 | AR61: 4.78 | AS61: 5.84 | AT61: 4.75 | AU61: 4.57 | AV61: 4.4 | AW61: 5.85 | AX61: 4.8 | AY61: 5.19 | AZ61: 5.26 | BA61: 5.02 | BB61: 5.02 | BC61: 4.58 | BD61: 4.92 | BE61: 4.39 | BF61: 4.78 | BG61: 5.19 | BH61: 4.99 | BI61: 4.42 | BJ61: 4.92 | BK61: 4.28 | BL61: 5.06 | BM61: 6.1 | BN61: 5.21 | BO61: 6.07 | BP61: 5.14 | BQ61: 4.42 | BR61: 4.66 | BS61: 4.81 | BT61: 4.53 | BU61: 4.65 | BV61: 4.48 | BW61: 6.24 | BX61: 4.78 | BY61: 4.48 | BZ61: 5.1 | CA61: 5.04 | CB61: 5.67 | CC61: 4.39 | CD61: 4.63 | CE61: 5.24 | CF61: 4.56 | CG61: 4.61 | CH61: 4.24 | CI61: 5.07 | CJ61: 4.6 | CK61: 4.62 | CL61: 4.62 | CM61: 4.42 | CN61: 4.44 | CO61: 4.6 | CP61: 5.07 | CQ61: 5.63 | CR61: 4.41 | CS61: 4.92 | CT61: 4.52 | CU61: 4.66 | CV61: 5.02 | CW61: 4.76 | CX61: 5.6 | CY61: 5.07 | CZ61: 4.63 | DA61: 4.55 | DB61: 5.23 | DC61: 4.68 | DD61: 4.61 | DE61: 4.48 | DF61: 4.72 | DG61: 4.37 | DH61: 5.17 | DI61: 4.83 | DJ61: 5.74 | DK61: 4.62 | DL61: 4.72 | DM61: 4.78 | DN61: 4.32 | DO61: 4.47 | DP61: 4.42 | DQ61: 4.62 | DR61: 4.64 | DS61: 4.45 | DT61: 5.29 | DU61: 4.78 | DV61: 5.91 | DW61: 4.83 | DX61: 4.77 | DY61: 4.47 | DZ61: 4.61 | EA61: 4.58
A62: E0130 UE | B62: 38.07 | C62: 39.09 | D62: 33.53 | E62: 37.05 | F62: 32.72 | G62: 35.01 | H62: 37.67 | I62: 35.79 | J62: 36.74 | K62: 40.21 | L62: 34.79 | M62: 36.55 | N62: 35.67 | O62: 38.71 | P62: 32.22 | Q62: 38.21 | R62: 41.14 | S62: 34.54 | T62: 33.84 | U62: 35.25 | V62: 32.29 | W62: 34.37 | X62: 36.22 | Y62: 35.54 | Z62: 34.59 | AA62: 37.94 | AB62: 38.7 | AC62: 46.31 | AD62: 44.55 | AE62: 47.13 | AF62: 35.77 | AG62: 32 | AH62: 36.48 | AI62: 35.79 | AJ62: 38.53 | AK62: 34.72 | AL62: 44.96 | AM62: 39.51 | AN62: 35.36 | AO62: 35.49 | AP62: 39.51 | AQ62: 34.09 | AR62: 35.79 | AS62: 43.82 | AT62: 35.58 | AU62: 34.28 | AV62: 33.01 | AW62: 43.86 | AX62: 36.01 | AY62: 38.89 | AZ62: 39.44 | BA62: 37.67 | BB62: 37.67 | BC62: 34.37 | BD62: 36.9 | BE62: 32.92 | BF62: 35.79 | BG62: 38.9 | BH62: 37.44 | BI62: 33.1 | BJ62: 36.92 | BK62: 32.15 | BL62: 38 | BM62: 45.75 | BN62: 39.02 | BO62: 45.53 | BP62: 38.52 | BQ62: 33.1 | BR62: 34.99 | BS62: 36.03 | BT62: 33.95 | BU62: 34.86 | BV62: 33.6 | BW62: 46.81 | BX62: 35.79 | BY62: 33.57 | BZ62: 38.3 | CA62: 37.82 | CB62: 42.55 | CC62: 32.86 | CD62: 34.78 | CE62: 39.3 | CF62: 34.21 | CG62: 34.59 | CH62: 31.81 | CI62: 38.05 | CJ62: 34.49 | CK62: 34.69 | CL62: 34.63 | CM62: 33.1 | CN62: 33.28 | CO62: 34.5 | CP62: 38.07 | CQ62: 42.24 | CR62: 33.06 | CS62: 36.88 | CT62: 33.94 | CU62: 34.96 | CV62: 37.67 | CW62: 35.67 | CX62: 41.96 | CY62: 38.06 | CZ62: 34.72 | DA62: 34.1 | DB62: 39.23 | DC62: 35.16 | DD62: 34.61 | DE62: 33.57 | DF62: 35.36 | DG62: 32.72 | DH62: 38.71 | DI62: 36.22 | DJ62: 43.05 | DK62: 34.67 | DL62: 35.35 | DM62: 35.79 | DN62: 32.4 | DO62: 33.51 | DP62: 33.1 | DQ62: 34.68 | DR62: 34.79 | DS62: 33.37 | DT62: 39.69 | DU62: 35.79 | DV62: 44.34 | DW62: 36.22 | DX62: 35.73 | DY62: 33.51 | DZ62: 34.6 | EA62: 34.37
A63: E0135 NU | B63: 45.15 | C63: 46 | D63: 41.23 | E63: 46.13 | F63: 43.1 | G63: 42.05 | H63: 41.7 | I63: 43.1 | J63: 42.39 | K63: 43.58 | L63: 43.1 | M63: 44.61 | N63: 43.81 | O63: 47.3 | P63: 40.43 | Q63: 47.33 | R63: 39.07 | S63: 44.3 | T63: 41.59 | U63: 44.3 | V63: 41 | W63: 43.1 | X63: 44.98 | Y63: 44.12 | Z63: 46.13 | AA63: 44.75 | AB63: 44.13 | AC63: 49.36 | AD63: 49.7 | AE63: 48.94 | AF63: 48.01 | AG63: 45.56 | AH63: 47.4 | AI63: 42.73 | AJ63: 44.13 | AK63: 46.76 | AL63: 39.98 | AM63: 44.08 | AN63: 43.1 | AO63: 50.23 | AP63: 44.77 | AQ63: 47.66 | AR63: 43.1 | AS63: 43.64 | AT63: 44.16 | AU63: 43.87 | AV63: 42.33 | AW63: 39.07 | AX63: 44.85 | AY63: 43.75 | AZ63: 43.38 | BA63: 46.13 | BB63: 41.7 | BC63: 42.55 | BD63: 46.74 | BE63: 41.7 | BF63: 39.59 | BG63: 43.1 | BH63: 46.42 | BI63: 42.37 | BJ63: 42.05 | BK63: 41.09 | BL63: 47.77 | BM63: 48.09 | BN63: 43.01 | BO63: 47.22 | BP63: 43.5 | BQ63: 42.37 | BR63: 45.33 | BS63: 42.49 | BT63: 46.45 | BU63: 42.89 | BV63: 41.7 | BW63: 50.2 | BX63: 44.98 | BY63: 47.58 | BZ63: 48.56 | CA63: 45.9 | CB63: 47.85 | CC63: 42.14 | CD63: 41.59 | CE63: 47.88 | CF63: 43.45 | CG63: 45.94 | CH63: 40.16 | CI63: 40.9 | CJ63: 42.71 | CK63: 48.02 | CL63: 45.58 | CM63: 44.56 | CN63: 42.71 | CO63: 45.24 | CP63: 45.22 | CQ63: 47.89 | CR63: 38.93 | CS63: 47.82 | CT63: 42.05 | CU63: 43.62 | CV63: 43.1 | CW63: 43.1 | CX63: 46.39 | CY63: 45.84 | CZ63: 46.13 | DA63: 44.61 | DB63: 46.13 | DC63: 44.16 | DD63: 48.18 | DE63: 44.62 | DF63: 46.13 | DG63: 43.62 | DH63: 50.04 | DI63: 43.62 | DJ63: 43.1 | DK63: 43.36 | DL63: 46.13 | DM63: 43.1 | DN63: 42.64 | DO63: 43.1 | DP63: 44.61 | DQ63: 46 | DR63: 43.36 | DS63: 41.41 | DT63: 48.84 | DU63: 43.62 | DV63: 44.61 | DW63: 43.62 | DX63: 41.76 | DY63: 43.38 | DZ63: 43.69 | EA63: 45.88
A64: E0135 RR | B64: 4.52 | C64: 4.6 | D64: 4.12 | E64: 4.61 | F64: 4.32 | G64: 4.2 | H64: 4.17 | I64: 4.32 | J64: 4.24 | K64: 4.36 | L64: 4.32 | M64: 4.46 | N64: 4.38 | O64: 4.74 | P64: 4.04 | Q64: 4.74 | R64: 3.91 | S64: 4.43 | T64: 4.16 | U64: 4.43 | V64: 4.1 | W64: 4.32 | X64: 4.5 | Y64: 4.41 | Z64: 4.61 | AA64: 4.48 | AB64: 4.42 | AC64: 4.94 | AD64: 4.97 | AE64: 4.9 | AF64: 4.8 | AG64: 4.56 | AH64: 4.74 | AI64: 4.27 | AJ64: 4.42 | AK64: 4.67 | AL64: 4 | AM64: 4.41 | AN64: 4.32 | AO64: 5.02 | AP64: 4.48 | AQ64: 4.77 | AR64: 4.32 | AS64: 4.37 | AT64: 4.42 | AU64: 4.39 | AV64: 4.23 | AW64: 3.91 | AX64: 4.49 | AY64: 4.38 | AZ64: 4.34 | BA64: 4.61 | BB64: 4.17 | BC64: 4.25 | BD64: 4.67 | BE64: 4.17 | BF64: 3.96 | BG64: 4.32 | BH64: 4.64 | BI64: 4.23 | BJ64: 4.2 | BK64: 4.11 | BL64: 4.78 | BM64: 4.81 | BN64: 4.31 | BO64: 4.73 | BP64: 4.35 | BQ64: 4.23 | BR64: 4.53 | BS64: 4.25 | BT64: 4.64 | BU64: 4.28 | BV64: 4.17 | BW64: 5.02 | BX64: 4.5 | BY64: 4.76 | BZ64: 4.86 | CA64: 4.59 | CB64: 4.79 | CC64: 4.21 | CD64: 4.16 | CE64: 4.79 | CF64: 4.35 | CG64: 4.59 | CH64: 4.02 | CI64: 4.09 | CJ64: 4.27 | CK64: 4.81 | CL64: 4.56 | CM64: 4.46 | CN64: 4.27 | CO64: 4.52 | CP64: 4.52 | CQ64: 4.79 | CR64: 3.9 | CS64: 4.79 | CT64: 4.2 | CU64: 4.37 | CV64: 4.32 | CW64: 4.32 | CX64: 4.64 | CY64: 4.58 | CZ64: 4.61 | DA64: 4.46 | DB64: 4.61 | DC64: 4.42 | DD64: 4.82 | DE64: 4.46 | DF64: 4.61 | DG64: 4.37 | DH64: 5 | DI64: 4.37 | DJ64: 4.32 | DK64: 4.34 | DL64: 4.61 | DM64: 4.32 | DN64: 4.26 | DO64: 4.32 | DP64: 4.46 | DQ64: 4.6 | DR64: 4.34 | DS64: 4.14 | DT64: 4.89 | DU64: 4.37 | DV64: 4.46 | DW64: 4.37 | DX64: 4.17 | DY64: 4.34 | DZ64: 4.37 | EA64: 4.59
A65: E0135 UE | B65: 33.87 | C65: 34.5 | D65: 30.92 | E65: 34.59 | F65: 32.33 | G65: 31.54 | H65: 31.27 | I65: 32.33 | J65: 31.8 | K65: 32.69 | L65: 32.33 | M65: 33.46 | N65: 32.86 | O65: 35.48 | P65: 30.32 | Q65: 35.51 | R65: 29.3 | S65: 33.23 | T65: 31.2 | U65: 33.23 | V65: 30.75 | W65: 32.33 | X65: 33.73 | Y65: 33.09 | Z65: 34.59 | AA65: 33.57 | AB65: 33.1 | AC65: 37.02 | AD65: 37.28 | AE65: 36.71 | AF65: 36.01 | AG65: 34.17 | AH65: 35.55 | AI65: 32.05 | AJ65: 33.1 | AK65: 35.08 | AL65: 29.98 | AM65: 33.06 | AN65: 32.33 | AO65: 37.67 | AP65: 33.58 | AQ65: 35.75 | AR65: 32.33 | AS65: 32.74 | AT65: 33.12 | AU65: 32.9 | AV65: 31.75 | AW65: 29.3 | AX65: 33.64 | AY65: 32.81 | AZ65: 32.53 | BA65: 34.59 | BB65: 31.27 | BC65: 31.91 | BD65: 35.06 | BE65: 31.27 | BF65: 29.69 | BG65: 32.33 | BH65: 34.82 | BI65: 31.79 | BJ65: 31.54 | BK65: 30.82 | BL65: 35.82 | BM65: 36.07 | BN65: 32.26 | BO65: 35.41 | BP65: 32.63 | BQ65: 31.79 | BR65: 34 | BS65: 31.87 | BT65: 34.84 | BU65: 32.16 | BV65: 31.27 | BW65: 37.66 | BX65: 33.73 | BY65: 35.69 | BZ65: 36.43 | CA65: 34.43 | CB65: 35.89 | CC65: 31.6 | CD65: 31.2 | CE65: 35.91 | CF65: 32.58 | CG65: 34.46 | CH65: 30.12 | CI65: 30.68 | CJ65: 32.03 | CK65: 36.02 | CL65: 34.18 | CM65: 33.42 | CN65: 32.03 | CO65: 33.94 | CP65: 33.92 | CQ65: 35.92 | CR65: 29.2 | CS65: 35.86 | CT65: 31.54 | CU65: 32.72 | CV65: 32.33 | CW65: 32.33 | CX65: 34.8 | CY65: 34.38 | CZ65: 34.59 | DA65: 33.46 | DB65: 34.59 | DC65: 33.12 | DD65: 36.13 | DE65: 33.47 | DF65: 34.59 | DG65: 32.72 | DH65: 37.54 | DI65: 32.72 | DJ65: 32.33 | DK65: 32.52 | DL65: 34.59 | DM65: 32.33 | DN65: 31.98 | DO65: 32.33 | DP65: 33.46 | DQ65: 34.5 | DR65: 32.52 | DS65: 31.06 | DT65: 36.63 | DU65: 32.72 | DV65: 33.46 | DW65: 32.72 | DX65: 31.32 | DY65: 32.53 | DZ65: 32.77 | EA65: 34.41
A66: E0140 RR | B66: 28.3 | C66: 29.98 | D66: 26.16 | E66: 26.47 | F66: 25.13 | G66: 26.69 | H66: 28.3 | I66: 26.45 | J66: 28.13 | K66: 29.7 | L66: 25.78 | M66: 28.21 | N66: 26.5 | O66: 30.74 | P66: 25.96 | Q66: 27.98 | R66: 28.96 | S66: 27.1 | T66: 25.78 | U66: 27.57 | V66: 22.6 | W66: 26.18 | X66: 26.95 | Y66: 25.91 | Z66: 24.33 | AA66: 29.01 | AB66: 29.92 | AC66: 34.05 | AD66: 34.93 | AE66: 34.76 | AF66: 26.51 | AG66: 28.58 | AH66: 31.84 | AI66: 25.58 | AJ66: 29.73 | AK66: 31.06 | AL66: 31.65 | AM66: 34.5 | AN66: 28.04 | AO66: 31.75 | AP66: 34.5 | AQ66: 27 | AR66: 25.58 | AS66: 29.62 | AT66: 25.88 | AU66: 25.96 | AV66: 24.25 | AW66: 35.36 | AX66: 28.04 | AY66: 31.88 | AZ66: 28.8 | BA66: 28.29 | BB66: 28.73 | BC66: 26.84 | BD66: 26.14 | BE66: 25.13 | BF66: 26.52 | BG66: 34.85 | BH66: 30.06 | BI66: 26.5 | BJ66: 31.75 | BK66: 23.36 | BL66: 30.17 | BM66: 34.68 | BN66: 32.54 | BO66: 34.69 | BP66: 29.86 | BQ66: 24.86 | BR66: 25.07 | BS66: 26.99 | BT66: 24.6 | BU66: 27.79 | BV66: 25.13 | BW66: 35.01 | BX66: 26.18 | BY66: 24.95 | BZ66: 30.37 | CA66: 29.98 | CB66: 34.69 | CC66: 23.27 | CD66: 27.62 | CE66: 29.74 | CF66: 24.5 | CG66: 25.13 | CH66: 24.55 | CI66: 26.14 | CJ66: 25.32 | CK66: 26.8 | CL66: 25.07 | CM66: 24.63 | CN66: 25.09 | CO66: 25.35 | CP66: 29.73 | CQ66: 29.98 | CR66: 23.27 | CS66: 26.6 | CT66: 25.04 | CU66: 28.73 | CV66: 27.85 | CW66: 26.84 | CX66: 32.72 | CY66: 29.22 | CZ66: 28.3 | DA66: 24.84 | DB66: 27.11 | DC66: 25.73 | DD66: 26.14 | DE66: 24.6 | DF66: 25.68 | DG66: 25.68 | DH66: 29.06 | DI66: 26.95 | DJ66: 34.85 | DK66: 26.51 | DL66: 26.14 | DM66: 26.14 | DN66: 22.96 | DO66: 26.18 | DP66: 24.59 | DQ66: 28.88 | DR66: 25.78 | DS66: 24.69 | DT66: 29.01 | DU66: 26.84 | DV66: 30.59 | DW66: 26.84 | DX66: 25.55 | DY66: 25.39 | DZ66: 27.02 | EA66: 26.18
A67: E0141 NU | B67: 76.73 | C67: 86.94 | D67: 66.83 | E67: 77.8 | F67: 67.16 | G67: 68.55 | H67: 90.45 | I67: 76.13 | J67: 76.88 | K67: 79.47 | L67: 76.88 | M67: 91.37 | N67: 70.91 | O67: 88.12 | P67: 65.89 | Q67: 91.08 | R67: 76.56 | S67: 76.36 | T67: 69.41 | U67: 77.78 | V67: 62.89 | W67: 66.5 | X67: 75.75 | Y67: 66.56 | Z67: 67.65 | AA67: 76.8 | AB67: 80.16 | AC67: 96.1 | AD67: 93.96 | AE67: 98.83 | AF67: 71.75 | AG67: 77.82 | AH67: 80.46 | AI67: 71.44 | AJ67: 79.62 | AK67: 86.94 | AL67: 87.9 | AM67: 83.03 | AN67: 78.06 | AO67: 86.75 | AP67: 83.03 | AQ67: 74.83 | AR67: 74.85 | AS67: 96.09 | AT67: 75.44 | AU67: 77.47 | AV67: 65.22 | AW67: 99.81 | AX67: 78.67 | AY67: 87.13 | AZ67: 79.31 | BA67: 78.02 | BB67: 76.88 | BC67: 71.03 | BD67: 78.54 | BE67: 66.74 | BF67: 73.66 | BG67: 92.25 | BH67: 96.06 | BI67: 70.36 | BJ67: 89.39 | BK67: 64.92 | BL67: 82.51 | BM67: 85.08 | BN67: 73.22 | BO67: 93.96 | BP67: 71.36 | BQ67: 68.71 | BR67: 74.09 | BS67: 87.13 | BT67: 73.12 | BU67: 74.33 | BV67: 72.87 | BW67: 95.08 | BX67: 66.5 | BY67: 73.75 | BZ67: 82.31 | CA67: 88.37 | CB67: 93.96 | CC67: 62.89 | CD67: 69.13 | CE67: 86.61 | CF67: 67.56 | CG67: 74.56 | CH67: 70.46 | CI67: 72.42 | CJ67: 70.73 | CK67: 72.9 | CL67: 73.49 | CM67: 69.19 | CN67: 66.56 | CO67: 68.78 | CP67: 96.09 | CQ67: 78.93 | CR67: 64.84 | CS67: 76.73 | CT67: 63.97 | CU67: 69.13 | CV67: 80.72 | CW67: 75.83 | CX67: 89.18 | CY67: 70.69 | CZ67: 77.9 | DA67: 73.39 | DB67: 102.49 | DC67: 77.47 | DD67: 74.71 | DE67: 71.67 | DF67: 73.29 | DG67: 67.16 | DH67: 95.18 | DI67: 75.75 | DJ67: 109.18 | DK67: 70.44 | DL67: 74.26 | DM67: 75.82 | DN67: 64.47 | DO67: 66.63 | DP67: 67.14 | DQ67: 84.89 | DR67: 74.44 | DS67: 72.92 | DT67: 83.66 | DU67: 76.73 | DV67: 91.37 | DW67: 72.12 | DX67: 71.06 | DY67: 64.84 | DZ67: 73.87 | EA67: 66.5
A68: E0141 RR | B68: 7.68 | C68: 8.69 | D68: 6.68 | E68: 7.78 | F68: 6.71 | G68: 6.86 | H68: 9.04 | I68: 7.62 | J68: 7.69 | K68: 7.94 | L68: 7.69 | M68: 9.13 | N68: 7.09 | O68: 8.82 | P68: 6.59 | Q68: 9.11 | R68: 7.66 | S68: 7.64 | T68: 6.94 | U68: 7.78 | V68: 6.29 | W68: 6.65 | X68: 7.57 | Y68: 6.65 | Z68: 6.77 | AA68: 7.68 | AB68: 8.02 | AC68: 9.61 | AD68: 9.4 | AE68: 9.88 | AF68: 7.18 | AG68: 7.78 | AH68: 8.05 | AI68: 7.14 | AJ68: 7.96 | AK68: 8.69 | AL68: 8.79 | AM68: 8.3 | AN68: 7.81 | AO68: 8.67 | AP68: 8.3 | AQ68: 7.48 | AR68: 7.48 | AS68: 9.61 | AT68: 7.54 | AU68: 7.75 | AV68: 6.52 | AW68: 9.98 | AX68: 7.87 | AY68: 8.71 | AZ68: 7.93 | BA68: 7.8 | BB68: 7.69 | BC68: 7.1 | BD68: 7.85 | BE68: 6.67 | BF68: 7.37 | BG68: 9.23 | BH68: 9.6 | BI68: 7.03 | BJ68: 8.94 | BK68: 6.49 | BL68: 8.25 | BM68: 8.51 | BN68: 7.32 | BO68: 9.4 | BP68: 7.13 | BQ68: 6.87 | BR68: 7.41 | BS68: 8.71 | BT68: 7.31 | BU68: 7.43 | BV68: 7.29 | BW68: 9.51 | BX68: 6.65 | BY68: 7.38 | BZ68: 8.23 | CA68: 8.84 | CB68: 9.4 | CC68: 6.29 | CD68: 6.91 | CE68: 8.66 | CF68: 6.75 | CG68: 7.45 | CH68: 7.04 | CI68: 7.25 | CJ68: 7.07 | CK68: 7.29 | CL68: 7.35 | CM68: 6.92 | CN68: 6.65 | CO68: 6.88 | CP68: 9.61 | CQ68: 7.89 | CR68: 6.49 | CS68: 7.68 | CT68: 6.4 | CU68: 6.91 | CV68: 8.08 | CW68: 7.59 | CX68: 8.92 | CY68: 7.07 | CZ68: 7.79 | DA68: 7.34 | DB68: 10.25 | DC68: 7.75 | DD68: 7.47 | DE68: 7.16 | DF68: 7.33 | DG68: 6.71 | DH68: 9.52 | DI68: 7.57 | DJ68: 10.92 | DK68: 7.04 | DL68: 7.43 | DM68: 7.59 | DN68: 6.45 | DO68: 6.66 | DP68: 6.71 | DQ68: 8.49 | DR68: 7.44 | DS68: 7.29 | DT68: 8.36 | DU68: 7.68 | DV68: 9.13 | DW68: 7.22 | DX68: 7.1 | DY68: 6.49 | DZ68: 7.39 | EA68: 6.65
A69: E0141 UE | B69: 57.55 | C69: 65.21 | D69: 50.12 | E69: 58.35 | F69: 50.37 | G69: 51.41 | H69: 67.83 | I69: 57.09 | J69: 57.66 | K69: 59.6 | L69: 57.66 | M69: 68.53 | N69: 53.19 | O69: 66.09 | P69: 49.42 | Q69: 68.32 | R69: 57.42 | S69: 57.28 | T69: 52.06 | U69: 58.33 | V69: 47.17 | W69: 49.88 | X69: 56.82 | Y69: 49.93 | Z69: 50.74 | AA69: 57.61 | AB69: 60.12 | AC69: 72.08 | AD69: 70.47 | AE69: 74.13 | AF69: 53.81 | AG69: 58.36 | AH69: 60.35 | AI69: 53.59 | AJ69: 59.72 | AK69: 65.21 | AL69: 65.93 | AM69: 62.27 | AN69: 58.55 | AO69: 65.06 | AP69: 62.27 | AQ69: 56.12 | AR69: 56.14 | AS69: 72.07 | AT69: 56.58 | AU69: 58.11 | AV69: 48.91 | AW69: 74.87 | AX69: 59 | AY69: 65.34 | AZ69: 59.49 | BA69: 58.52 | BB69: 57.66 | BC69: 53.28 | BD69: 58.91 | BE69: 50.05 | BF69: 55.25 | BG69: 69.19 | BH69: 72.05 | BI69: 52.77 | BJ69: 67.05 | BK69: 48.7 | BL69: 61.89 | BM69: 63.81 | BN69: 54.91 | BO69: 70.47 | BP69: 53.53 | BQ69: 51.53 | BR69: 55.57 | BS69: 65.34 | BT69: 54.85 | BU69: 55.75 | BV69: 54.65 | BW69: 71.31 | BX69: 49.88 | BY69: 55.31 | BZ69: 61.74 | CA69: 66.28 | CB69: 70.47 | CC69: 47.17 | CD69: 51.84 | CE69: 64.96 | CF69: 50.67 | CG69: 55.92 | CH69: 52.85 | CI69: 54.31 | CJ69: 53.04 | CK69: 54.67 | CL69: 55.12 | CM69: 51.9 | CN69: 49.93 | CO69: 51.59 | CP69: 72.07 | CQ69: 59.19 | CR69: 48.64 | CS69: 57.55 | CT69: 47.98 | CU69: 51.84 | CV69: 60.54 | CW69: 56.88 | CX69: 66.88 | CY69: 53.02 | CZ69: 58.43 | DA69: 55.04 | DB69: 76.86 | DC69: 58.11 | DD69: 56.04 | DE69: 53.75 | DF69: 54.97 | DG69: 50.37 | DH69: 71.39 | DI69: 56.82 | DJ69: 81.89 | DK69: 52.83 | DL69: 55.7 | DM69: 56.87 | DN69: 48.36 | DO69: 49.97 | DP69: 50.36 | DQ69: 63.67 | DR69: 55.83 | DS69: 54.69 | DT69: 62.75 | DU69: 57.55 | DV69: 68.53 | DW69: 54.09 | DX69: 53.3 | DY69: 48.64 | DZ69: 55.4 | EA69: 49.88
A70: E0143 NU | B70: 42.34 | C70: 49.84 | D70: 45.55 | E70: 43.87 | F70: 46.13 | G70: 41.85 | H70: 42.34 | I70: 49.2 | J70: 44.45 | K70: 50.74 | L70: 49.2 | M70: 42.82 | N70: 45.55 | O70: 45.61 | P70: 47.57 | Q70: 59.27 | R70: 42.6 | S70: 44.3 | T70: 43.95 | U70: 42.99 | V70: 43.62 | W70: 44.98 | X70: 46.13 | Y70: 44.96 | Z70: 50.24 | AA70: 42.95 | AB70: 45.74 | AC70: 50.64 | AD70: 51.54 | AE70: 47.6 | AF70: 60.42 | AG70: 42.58 | AH70: 49.2 | AI70: 47.1 | AJ70: 46.13 | AK70: 49.1 | AL70: 42.6 | AM70: 46.13 | AN70: 48.18 | AO70: 50.33 | AP70: 44.08 | AQ70: 52.05 | AR70: 47.1 | AS70: 49.87 | AT70: 50.23 | AU70: 51.46 | AV70: 45.55 | AW70: 46.02 | AX70: 42.82 | AY70: 42.81 | AZ70: 49.26 | BA70: 46.13 | BB70: 42.85 | BC70: 43.62 | BD70: 47.15 | BE70: 48.39 | BF70: 44.98 | BG70: 46.13 | BH70: 53.3 | BI70: 49.87 | BJ70: 44.83 | BK70: 43.34 | BL70: 52.03 | BM70: 49.53 | BN70: 44.46 | BO70: 54.1 | BP70: 50.14 | BQ70: 50.2 | BR70: 47.64 | BS70: 43.73 | BT70: 52.14 | BU70: 46.13 | BV70: 49.2 | BW70: 59.56 | BX70: 44.98 | BY70: 55.38 | BZ70: 50.55 | CA70: 51.68 | CB70: 57.67 | CC70: 44.94 | CD70: 43.95 | CE70: 52.02 | CF70: 51.25 | CG70: 51.81 | CH70: 48.61 | CI70: 42.34 | CJ70: 46.07 | CK70: 53.33 | CL70: 48.89 | CM70: 49.87 | CN70: 46.13 | CO70: 46.62 | CP70: 42.85 | CQ70: 48.69 | CR70: 42.34 | CS70: 49.87 | CT70: 42.99 | CU70: 44.28 | CV70: 42.47 | CW70: 43.05 | CX70: 50.8 | CY70: 52.6 | CZ70: 49.57 | DA70: 46.13 | DB70: 47.1 | DC70: 47.99 | DD70: 48.89 | DE70: 49.2 | DF70: 46.13 | DG70: 51.81 | DH70: 47.99 | DI70: 44.98 | DJ70: 45.1 | DK70: 43.16 | DL70: 50.75 | DM70: 46.13 | DN70: 45.55 | DO70: 42.34 | DP70: 51.54 | DQ70: 48.53 | DR70: 44.3 | DS70: 46.07 | DT70: 46.35 | DU70: 43.62 | DV70: 42.58 | DW70: 42.34 | DX70: 43.59 | DY70: 46.13 | DZ70: 42.99 | EA70: 48.43
A71: E0143 RR | B71: 4.23 | C71: 4.98 | D71: 4.55 | E71: 4.39 | F71: 4.61 | G71: 4.18 | H71: 4.23 | I71: 4.92 | J71: 4.45 | K71: 5.07 | L71: 4.92 | M71: 4.28 | N71: 4.55 | O71: 4.56 | P71: 4.76 | Q71: 5.92 | R71: 4.26 | S71: 4.43 | T71: 4.4 | U71: 4.29 | V71: 4.37 | W71: 4.5 | X71: 4.61 | Y71: 4.5 | Z71: 5.02 | AA71: 4.29 | AB71: 4.57 | AC71: 5.06 | AD71: 5.16 | AE71: 4.76 | AF71: 6.05 | AG71: 4.25 | AH71: 4.92 | AI71: 4.72 | AJ71: 4.61 | AK71: 4.91 | AL71: 4.26 | AM71: 4.61 | AN71: 4.82 | AO71: 5.03 | AP71: 4.41 | AQ71: 5.21 | AR71: 4.72 | AS71: 4.99 | AT71: 5.02 | AU71: 5.15 | AV71: 4.55 | AW71: 4.6 | AX71: 4.28 | AY71: 4.28 | AZ71: 4.93 | BA71: 4.61 | BB71: 4.28 | BC71: 4.37 | BD71: 4.72 | BE71: 4.84 | BF71: 4.5 | BG71: 4.61 | BH71: 5.33 | BI71: 4.99 | BJ71: 4.48 | BK71: 4.34 | BL71: 5.21 | BM71: 4.95 | BN71: 4.45 | BO71: 5.41 | BP71: 5.01 | BQ71: 5.02 | BR71: 4.77 | BS71: 4.38 | BT71: 5.22 | BU71: 4.61 | BV71: 4.92 | BW71: 5.96 | BX71: 4.5 | BY71: 5.54 | BZ71: 5.05 | CA71: 5.17 | CB71: 5.77 | CC71: 4.49 | CD71: 4.4 | CE71: 5.21 | CF71: 5.13 | CG71: 5.19 | CH71: 4.86 | CI71: 4.23 | CJ71: 4.61 | CK71: 5.33 | CL71: 4.89 | CM71: 4.99 | CN71: 4.61 | CO71: 4.66 | CP71: 4.28 | CQ71: 4.87 | CR71: 4.23 | CS71: 4.99 | CT71: 4.29 | CU71: 4.43 | CV71: 4.24 | CW71: 4.31 | CX71: 5.08 | CY71: 5.26 | CZ71: 4.96 | DA71: 4.61 | DB71: 4.72 | DC71: 4.8 | DD71: 4.89 | DE71: 4.92 | DF71: 4.61 | DG71: 5.19 | DH71: 4.8 | DI71: 4.5 | DJ71: 4.51 | DK71: 4.32 | DL71: 5.07 | DM71: 4.61 | DN71: 4.55 | DO71: 4.23 | DP71: 5.16 | DQ71: 4.86 | DR71: 4.43 | DS71: 4.61 | DT71: 4.63 | DU71: 4.37 | DV71: 4.25 | DW71: 4.23 | DX71: 4.36 | DY71: 4.61 | DZ71: 4.29 | EA71: 4.85
A72: E0143 UE | B72: 31.75 | C72: 37.38 | D72: 34.16 | E72: 32.9 | F72: 34.59 | G72: 31.39 | H72: 31.75 | I72: 36.9 | J72: 33.34 | K72: 38.06 | L72: 36.9 | M72: 32.12 | N72: 34.16 | O72: 34.21 | P72: 35.68 | Q72: 44.45 | R72: 31.95 | S72: 33.23 | T72: 32.96 | U72: 32.25 | V72: 32.72 | W72: 33.73 | X72: 34.59 | Y72: 33.72 | Z72: 37.68 | AA72: 32.22 | AB72: 34.31 | AC72: 37.98 | AD72: 38.65 | AE72: 35.7 | AF72: 45.32 | AG72: 31.94 | AH72: 36.9 | AI72: 35.32 | AJ72: 34.59 | AK72: 36.83 | AL72: 31.95 | AM72: 34.59 | AN72: 36.13 | AO72: 37.75 | AP72: 33.06 | AQ72: 39.04 | AR72: 35.32 | AS72: 37.4 | AT72: 37.67 | AU72: 38.59 | AV72: 34.16 | AW72: 34.52 | AX72: 32.12 | AY72: 32.11 | AZ72: 36.95 | BA72: 34.59 | BB72: 32.13 | BC72: 32.72 | BD72: 35.36 | BE72: 36.3 | BF72: 33.73 | BG72: 34.59 | BH72: 39.98 | BI72: 37.4 | BJ72: 33.63 | BK72: 32.5 | BL72: 39.02 | BM72: 37.15 | BN72: 33.35 | BO72: 40.58 | BP72: 37.61 | BQ72: 37.66 | BR72: 35.73 | BS72: 32.8 | BT72: 39.1 | BU72: 34.59 | BV72: 36.9 | BW72: 44.67 | BX72: 33.73 | BY72: 41.53 | BZ72: 37.91 | CA72: 38.77 | CB72: 43.26 | CC72: 33.7 | CD72: 32.96 | CE72: 39.01 | CF72: 38.44 | CG72: 38.86 | CH72: 36.46 | CI72: 31.75 | CJ72: 34.55 | CK72: 40 | CL72: 36.67 | CM72: 37.4 | CN72: 34.59 | CO72: 34.96 | CP72: 32.13 | CQ72: 36.52 | CR72: 31.75 | CS72: 37.4 | CT72: 32.25 | CU72: 33.21 | CV72: 31.85 | CW72: 32.29 | CX72: 38.1 | CY72: 39.45 | CZ72: 37.18 | DA72: 34.59 | DB72: 35.32 | DC72: 36 | DD72: 36.67 | DE72: 36.9 | DF72: 34.59 | DG72: 38.86 | DH72: 36 | DI72: 33.73 | DJ72: 33.83 | DK72: 32.37 | DL72: 38.06 | DM72: 34.59 | DN72: 34.16 | DO72: 31.75 | DP72: 38.65 | DQ72: 36.4 | DR72: 33.23 | DS72: 34.55 | DT72: 34.77 | DU72: 32.72 | DV72: 31.94 | DW72: 31.75 | DX72: 32.7 | DY72: 34.59 | DZ72: 32.25 | EA72: 36.33
A73: E0148 NU | B73: 80.99 | C73: 84.76 | D73: 78.15 | E73: 83.03 | F73: 76.95 | G73: 79.46 | H73: 80.99 | I73: 80.99 | J73: 80.29 | K73: 82 | L73: 79.21 | M73: 80.29 | N73: 80.05 | O73: 89.09 | P73: 70.93 | Q73: 86.51 | R73: 79.72 | S73: 79.46 | T73: 79.13 | U73: 80.48 | V73: 71.75 | W73: 79.34 | X73: 80.99 | Y73: 79.22 | Z73: 76.88 | AA73: 82 | AB73: 85.03 | AC73: 94.22 | AD73: 110.99 | AE73: 97.89 | AF73: 84.05 | AG73: 81.18 | AH73: 85.39 | AI73: 81.81 | AJ73: 82 | AK73: 84.24 | AL73: 86.02 | AM73: 82.77 | AN73: 81.05 | AO73: 93.45 | AP73: 81.53 | AQ73: 81.36 | AR73: 81.81 | AS73: 83.03 | AT73: 83.89 | AU73: 79.39 | AV73: 75.95 | AW73: 88.99 | AX73: 80.42 | AY73: 80.99 | AZ73: 83.25 | BA73: 80.99 | BB73: 80.07 | BC73: 79.59 | BD73: 77.9 | BE73: 76.56 | BF73: 79.34 | BG73: 80.99 | BH73: 90.19 | BI73: 76.94 | BJ73: 84.05 | BK73: 74.11 | BL73: 85.9 | BM73: 86.61 | BN73: 83.54 | BO73: 101.3 | BP73: 82 | BQ73: 76.79 | BR73: 81.18 | BS73: 78.09 | BT73: 79.05 | BU73: 79.52 | BV73: 76.6 | BW73: 101.35 | BX73: 79.34 | BY73: 80.46 | BZ73: 86.37 | CA73: 86.76 | CB73: 92 | CC73: 71.75 | CD73: 81.24 | CE73: 86.61 | CF73: 77 | CG73: 79.85 | CH73: 75.09 | CI73: 82.38 | CJ73: 71.75 | CK73: 82.39 | CL73: 79.59 | CM73: 76.79 | CN73: 78.62 | CO73: 79.58 | CP73: 98.4 | CQ73: 83.6 | CR73: 71.75 | CS73: 80.82 | CT73: 76.4 | CU73: 81.36 | CV73: 80.98 | CW73: 79.59 | CX73: 84.21 | CY73: 82.18 | CZ73: 81.36 | DA73: 80.28 | DB73: 85.88 | DC73: 78.09 | DD73: 80.98 | DE73: 79.59 | DF73: 80.2 | DG73: 79.34 | DH73: 85.94 | DI73: 81.36 | DJ73: 92.25 | DK73: 80.48 | DL73: 84.74 | DM73: 79.59 | DN73: 72.81 | DO73: 79.59 | DP73: 78.86 | DQ73: 80.48 | DR73: 78.76 | DS73: 76.08 | DT73: 93.91 | DU73: 79.95 | DV73: 81.77 | DW73: 80.99 | DX73: 83.58 | DY73: 79.34 | DZ73: 79.46 | EA73: 79.34
A74: E0148 RR | B74: 8.1 | C74: 8.48 | D74: 7.81 | E74: 8.3 | F74: 7.7 | G74: 7.94 | H74: 8.1 | I74: 8.1 | J74: 8.03 | K74: 8.2 | L74: 7.92 | M74: 8.03 | N74: 8.01 | O74: 8.91 | P74: 7.09 | Q74: 8.65 | R74: 7.97 | S74: 7.94 | T74: 7.91 | U74: 8.05 | V74: 7.18 | W74: 7.93 | X74: 8.1 | Y74: 7.92 | Z74: 7.69 | AA74: 8.2 | AB74: 8.51 | AC74: 9.42 | AD74: 11.1 | AE74: 9.79 | AF74: 8.41 | AG74: 8.12 | AH74: 8.54 | AI74: 8.18 | AJ74: 8.2 | AK74: 8.43 | AL74: 8.6 | AM74: 8.28 | AN74: 8.11 | AO74: 9.35 | AP74: 8.15 | AQ74: 8.14 | AR74: 8.18 | AS74: 8.3 | AT74: 8.38 | AU74: 7.94 | AV74: 7.6 | AW74: 8.9 | AX74: 8.05 | AY74: 8.1 | AZ74: 8.32 | BA74: 8.1 | BB74: 8.01 | BC74: 7.96 | BD74: 7.79 | BE74: 7.66 | BF74: 7.93 | BG74: 8.1 | BH74: 9.02 | BI74: 7.7 | BJ74: 8.41 | BK74: 7.41 | BL74: 8.59 | BM74: 8.66 | BN74: 8.35 | BO74: 10.13 | BP74: 8.2 | BQ74: 7.68 | BR74: 8.12 | BS74: 7.81 | BT74: 7.9 | BU74: 7.95 | BV74: 7.66 | BW74: 10.14 | BX74: 7.93 | BY74: 8.05 | BZ74: 8.64 | CA74: 8.67 | CB74: 9.2 | CC74: 7.18 | CD74: 8.13 | CE74: 8.66 | CF74: 7.7 | CG74: 7.98 | CH74: 7.51 | CI74: 8.24 | CJ74: 7.18 | CK74: 8.24 | CL74: 7.96 | CM74: 7.68 | CN74: 7.86 | CO74: 7.95 | CP74: 9.84 | CQ74: 8.36 | CR74: 7.18 | CS74: 8.09 | CT74: 7.64 | CU74: 8.14 | CV74: 8.1 | CW74: 7.96 | CX74: 8.43 | CY74: 8.22 | CZ74: 8.14 | DA74: 8.03 | DB74: 8.59 | DC74: 7.81 | DD74: 8.1 | DE74: 7.96 | DF74: 8.02 | DG74: 7.93 | DH74: 8.59 | DI74: 8.14 | DJ74: 9.23 | DK74: 8.05 | DL74: 8.48 | DM74: 7.96 | DN74: 7.28 | DO74: 7.96 | DP74: 7.88 | DQ74: 8.05 | DR74: 7.87 | DS74: 7.61 | DT74: 9.39 | DU74: 8 | DV74: 8.18 | DW74: 8.1 | DX74: 8.35 | DY74: 7.93 | DZ74: 7.94 | EA74: 7.93
A75: E0148 UE | B75: 60.74 | C75: 63.57 | D75: 58.61 | E75: 62.27 | F75: 57.71 | G75: 59.59 | H75: 60.74 | I75: 60.74 | J75: 60.22 | K75: 61.5 | L75: 59.41 | M75: 60.22 | N75: 60.04 | O75: 66.82 | P75: 53.2 | Q75: 64.88 | R75: 59.8 | S75: 59.59 | T75: 59.35 | U75: 60.36 | V75: 53.81 | W75: 59.5 | X75: 60.74 | Y75: 59.42 | Z75: 57.66 | AA75: 61.5 | AB75: 63.78 | AC75: 70.66 | AD75: 83.24 | AE75: 73.42 | AF75: 63.04 | AG75: 60.89 | AH75: 64.04 | AI75: 61.36 | AJ75: 61.5 | AK75: 63.18 | AL75: 64.51 | AM75: 62.07 | AN75: 60.78 | AO75: 70.09 | AP75: 61.15 | AQ75: 61.03 | AR75: 61.36 | AS75: 62.27 | AT75: 62.91 | AU75: 59.54 | AV75: 56.97 | AW75: 66.75 | AX75: 60.32 | AY75: 60.74 | AZ75: 62.44 | BA75: 60.74 | BB75: 60.05 | BC75: 59.7 | BD75: 58.43 | BE75: 57.42 | BF75: 59.5 | BG75: 60.74 | BH75: 67.64 | BI75: 57.71 | BJ75: 63.04 | BK75: 55.59 | BL75: 64.42 | BM75: 64.96 | BN75: 62.66 | BO75: 75.97 | BP75: 61.5 | BQ75: 57.59 | BR75: 60.89 | BS75: 58.57 | BT75: 59.29 | BU75: 59.64 | BV75: 57.45 | BW75: 76.01 | BX75: 59.5 | BY75: 60.35 | BZ75: 64.78 | CA75: 65.07 | CB75: 69 | CC75: 53.81 | CD75: 60.94 | CE75: 64.96 | CF75: 57.75 | CG75: 59.89 | CH75: 56.32 | CI75: 61.79 | CJ75: 53.81 | CK75: 61.8 | CL75: 59.7 | CM75: 57.59 | CN75: 58.97 | CO75: 59.69 | CP75: 73.8 | CQ75: 62.7 | CR75: 53.81 | CS75: 60.62 | CT75: 57.31 | CU75: 61.03 | CV75: 60.73 | CW75: 59.7 | CX75: 63.16 | CY75: 61.64 | CZ75: 61.03 | DA75: 60.21 | DB75: 64.41 | DC75: 58.57 | DD75: 60.73 | DE75: 59.7 | DF75: 60.15 | DG75: 59.5 | DH75: 64.45 | DI75: 61.03 | DJ75: 69.19 | DK75: 60.36 | DL75: 63.55 | DM75: 59.7 | DN75: 54.6 | DO75: 59.7 | DP75: 59.15 | DQ75: 60.36 | DR75: 59.07 | DS75: 57.06 | DT75: 70.44 | DU75: 59.96 | DV75: 61.34 | DW75: 60.74 | DX75: 62.69 | DY75: 59.5 | DZ75: 59.59 | EA75: 59.5
A76: E0149 RR | B76: 12.32 | C76: 12.57 | D76: 9.23 | E76: 11.62 | F76: 10.76 | G76: 9.5 | H76: 11.62 | I76: 12.32 | J76: 12.31 | K76: 12.05 | L76: 10.81 | M76: 11.94 | N76: 12.05 | O76: 13.63 | P76: 9.99 | Q76: 12.98 | R76: 9.41 | S76: 11.09 | T76: 9.23 | U76: 9.14 | V76: 9.85 | W76: 9.23 | X76: 12.32 | Y76: 10.15 | Z76: 12.81 | AA76: 11.29 | AB76: 12.36 | AC76: 14.33 | AD76: 14.39 | AE76: 14.33 | AF76: 13.13 | AG76: 11.43 | AH76: 13.17 | AI76: 11.22 | AJ76: 12.66 | AK76: 12.57 | AL76: 10.71 | AM76: 12.32 | AN76: 11.57 | AO76: 12.81 | AP76: 12.32 | AQ76: 12.81 | AR76: 12.32 | AS76: 11.83 | AT76: 12.19 | AU76: 11.97 | AV76: 9.99 | AW76: 10.1 | AX76: 12.24 | AY76: 12.97 | AZ76: 11.79 | BA76: 12.81 | BB76: 12.32 | BC76: 9.23 | BD76: 9.84 | BE76: 10.81 | BF76: 9.33 | BG76: 11.28 | BH76: 13.02 | BI76: 12.57 | BJ76: 13.21 | BK76: 9.74 | BL76: 14.11 | BM76: 13.89 | BN76: 11.17 | BO76: 17.43 | BP76: 11.58 | BQ76: 12.16 | BR76: 12.71 | BS76: 11.19 | BT76: 12.51 | BU76: 10.32 | BV76: 11.17 | BW76: 15.32 | BX76: 9.23 | BY76: 12.96 | BZ76: 12.87 | CA76: 12.73 | CB76: 15.32 | CC76: 9.84 | CD76: 9.65 | CE76: 13.27 | CF76: 12.32 | CG76: 12.81 | CH76: 10.12 | CI76: 11.56 | CJ76: 10.96 | CK76: 12.76 | CL76: 11.99 | CM76: 12.69 | CN76: 11.97 | CO76: 12.6 | CP76: 9.84 | CQ76: 12.64 | CR76: 9.84 | CS76: 12.32 | CT76: 9.99 | CU76: 10.59 | CV76: 12.32 | CW76: 9.23 | CX76: 12.81 | CY76: 10.94 | CZ76: 10.91 | DA76: 12.31 | DB76: 12.61 | DC76: 11 | DD76: 12.6 | DE76: 12.32 | DF76: 12.45 | DG76: 11.77 | DH76: 12.82 | DI76: 13.14 | DJ76: 13.62 | DK76: 9.14 | DL76: 12.61 | DM76: 11.92 | DN76: 9.85 | DO76: 9 | DP76: 12.3 | DQ76: 11.09 | DR76: 10.42 | DS76: 11 | DT76: 11.09 | DU76: 9.23 | DV76: 12.32 | DW76: 12.3 | DX76: 11.11 | DY76: 10.76 | DZ76: 9.64 | EA76: 12.03
A77: E0154 NU | B77: 46.33 | C77: 52.79 | D77: 44.67 | E77: 48.68 | F77: 43.2 | G77: 45.62 | H77: 46.42 | I77: 46.13 | J77: 45.14 | K77: 48.61 | L77: 46.13 | M77: 46.69 | N77: 44.92 | O77: 54.66 | P77: 40.8 | Q77: 50.94 | R77: 47.7 | S77: 49.87 | T77: 47.93 | U77: 55.76 | V77: 41 | W77: 51.39 | X77: 49.75 | Y77: 49.75 | Z77: 39.98 | AA77: 46.6 | AB77: 46.23 | AC77: 59.78 | AD77: 56.95 | AE77: 60.33 | AF77: 44.36 | AG77: 42.05 | AH77: 48.73 | AI77: 42.83 | AJ77: 46.13 | AK77: 52.79 | AL77: 50.82 | AM77: 46.33 | AN77: 47.34 | AO77: 51.25 | AP77: 46.33 | AQ77: 43.63 | AR77: 46.79 | AS77: 48.73 | AT77: 47.26 | AU77: 46.51 | AV77: 43.56 | AW77: 58.58 | AX77: 44.67 | AY77: 48.73 | AZ77: 46.03 | BA77: 43.65 | BB77: 46.33 | BC77: 50.23 | BD77: 58.43 | BE77: 41 | BF77: 46.33 | BG77: 50.67 | BH77: 57.33 | BI77: 40.71 | BJ77: 48.45 | BK77: 42.19 | BL77: 54.8 | BM77: 57.87 | BN77: 48.18 | BO77: 59.55 | BP77: 46.11 | BQ77: 39.44 | BR77: 49.83 | BS77: 44.49 | BT77: 43.13 | BU77: 49.69 | BV77: 44.15 | BW77: 57.62 | BX77: 66.93 | BY77: 40.32 | BZ77: 54.68 | CA77: 52.21 | CB77: 53.25 | CC77: 48.69 | CD77: 49.34 | CE77: 51.91 | CF77: 38.21 | CG77: 41.14 | CH77: 41.04 | CI77: 44.8 | CJ77: 40.69 | CK77: 44.94 | CL77: 43.05 | CM77: 39.18 | CN77: 46.02 | CO77: 46.49 | CP77: 57.33 | CQ77: 53.89 | CR77: 45.1 | CS77: 54.35 | CT77: 50.74 | CU77: 46.86 | CV77: 44.26 | CW77: 44.63 | CX77: 50.74 | CY77: 54.91 | CZ77: 53.17 | DA77: 43.5 | DB77: 53.52 | DC77: 46.3 | DD77: 46.33 | DE77: 43.05 | DF77: 44.12 | DG77: 45.1 | DH77: 55.84 | DI77: 51.14 | DJ77: 57.4 | DK77: 49.72 | DL77: 46.13 | DM77: 42.62 | DN77: 47.41 | DO77: 61.97 | DP77: 38.83 | DQ77: 50.23 | DR77: 54.28 | DS77: 42.14 | DT77: 56.32 | DU77: 49.96 | DV77: 48.09 | DW77: 51.14 | DX77: 50.96 | DY77: 54.43 | DZ77: 49.87 | EA77: 48.73
A78: E0154 RR | B78: 4.63 | C78: 5.28 | D78: 4.47 | E78: 4.87 | F78: 4.33 | G78: 4.56 | H78: 4.64 | I78: 4.61 | J78: 4.51 | K78: 4.86 | L78: 4.61 | M78: 4.67 | N78: 4.49 | O78: 5.46 | P78: 4.08 | Q78: 5.09 | R78: 4.77 | S78: 4.99 | T78: 4.8 | U78: 5.58 | V78: 4.1 | W78: 5.14 | X78: 4.97 | Y78: 4.97 | Z78: 4 | AA78: 4.66 | AB78: 4.62 | AC78: 5.98 | AD78: 5.7 | AE78: 6.04 | AF78: 4.44 | AG78: 4.2 | AH78: 4.87 | AI78: 4.28 | AJ78: 4.61 | AK78: 5.28 | AL78: 5.08 | AM78: 4.63 | AN78: 4.74 | AO78: 5.13 | AP78: 4.63 | AQ78: 4.37 | AR78: 4.68 | AS78: 4.87 | AT78: 4.73 | AU78: 4.65 | AV78: 4.36 | AW78: 5.86 | AX78: 4.47 | AY78: 4.87 | AZ78: 4.6 | BA78: 4.37 | BB78: 4.63 | BC78: 5.02 | BD78: 5.84 | BE78: 4.1 | BF78: 4.63 | BG78: 5.06 | BH78: 5.73 | BI78: 4.07 | BJ78: 4.85 | BK78: 4.22 | BL78: 5.48 | BM78: 5.79 | BN78: 4.82 | BO78: 5.96 | BP78: 4.61 | BQ78: 3.95 | BR78: 4.98 | BS78: 4.45 | BT78: 4.32 | BU78: 4.97 | BV78: 4.42 | BW78: 5.76 | BX78: 6.69 | BY78: 4.03 | BZ78: 5.47 | CA78: 5.22 | CB78: 5.33 | CC78: 4.87 | CD78: 4.93 | CE78: 5.19 | CF78: 3.82 | CG78: 4.11 | CH78: 4.1 | CI78: 4.48 | CJ78: 4.07 | CK78: 4.49 | CL78: 4.31 | CM78: 3.92 | CN78: 4.6 | CO78: 4.65 | CP78: 5.73 | CQ78: 5.39 | CR78: 4.51 | CS78: 5.43 | CT78: 5.07 | CU78: 4.68 | CV78: 4.43 | CW78: 4.46 | CX78: 5.07 | CY78: 5.49 | CZ78: 5.32 | DA78: 4.35 | DB78: 5.35 | DC78: 4.63 | DD78: 4.63 | DE78: 4.31 | DF78: 4.41 | DG78: 4.51 | DH78: 5.59 | DI78: 5.11 | DJ78: 5.74 | DK78: 4.97 | DL78: 4.61 | DM78: 4.26 | DN78: 4.75 | DO78: 6.2 | DP78: 3.88 | DQ78: 5.02 | DR78: 5.43 | DS78: 4.21 | DT78: 5.64 | DU78: 4.99 | DV78: 4.81 | DW78: 5.11 | DX78: 5.09 | DY78: 5.44 | DZ78: 4.99 | EA78: 4.87
A79: E0154 UE | B79: 34.75 | C79: 39.6 | D79: 33.51 | E79: 36.51 | F79: 32.4 | G79: 34.21 | H79: 34.82 | I79: 34.59 | J79: 33.86 | K79: 36.46 | L79: 34.59 | M79: 35.01 | N79: 33.69 | O79: 41 | P79: 30.6 | Q79: 38.21 | R79: 35.78 | S79: 37.4 | T79: 35.95 | U79: 41.82 | V79: 30.75 | W79: 38.55 | X79: 37.32 | Y79: 37.32 | Z79: 29.98 | AA79: 34.95 | AB79: 34.68 | AC79: 44.83 | AD79: 42.71 | AE79: 45.25 | AF79: 33.27 | AG79: 31.54 | AH79: 36.55 | AI79: 32.12 | AJ79: 34.59 | AK79: 39.6 | AL79: 38.12 | AM79: 34.75 | AN79: 35.51 | AO79: 38.44 | AP79: 34.75 | AQ79: 32.73 | AR79: 35.1 | AS79: 36.55 | AT79: 35.44 | AU79: 34.89 | AV79: 32.68 | AW79: 43.93 | AX79: 33.51 | AY79: 36.55 | AZ79: 34.52 | BA79: 32.74 | BB79: 34.75 | BC79: 37.67 | BD79: 43.82 | BE79: 30.75 | BF79: 34.75 | BG79: 38 | BH79: 43 | BI79: 30.53 | BJ79: 36.34 | BK79: 31.64 | BL79: 41.1 | BM79: 43.41 | BN79: 36.13 | BO79: 44.67 | BP79: 34.58 | BQ79: 29.58 | BR79: 37.37 | BS79: 33.36 | BT79: 32.35 | BU79: 37.27 | BV79: 33.11 | BW79: 43.21 | BX79: 50.2 | BY79: 30.25 | BZ79: 41.01 | CA79: 39.17 | CB79: 39.93 | CC79: 36.52 | CD79: 37.01 | CE79: 38.93 | CF79: 28.66 | CG79: 30.86 | CH79: 30.78 | CI79: 33.6 | CJ79: 30.52 | CK79: 33.7 | CL79: 32.29 | CM79: 29.39 | CN79: 34.52 | CO79: 34.87 | CP79: 43 | CQ79: 40.43 | CR79: 33.83 | CS79: 40.76 | CT79: 38.06 | CU79: 35.15 | CV79: 33.2 | CW79: 33.48 | CX79: 38.06 | CY79: 41.18 | CZ79: 39.87 | DA79: 32.63 | DB79: 40.14 | DC79: 34.73 | DD79: 34.75 | DE79: 32.29 | DF79: 33.09 | DG79: 33.83 | DH79: 41.88 | DI79: 38.36 | DJ79: 43.05 | DK79: 37.29 | DL79: 34.59 | DM79: 31.97 | DN79: 35.56 | DO79: 46.48 | DP79: 29.12 | DQ79: 37.67 | DR79: 40.71 | DS79: 31.6 | DT79: 42.24 | DU79: 37.47 | DV79: 36.07 | DW79: 38.36 | DX79: 38.22 | DY79: 40.83 | DZ79: 37.4 | EA79: 36.55
A80: E0155 NU | B80: 19.48 | C80: 23.96 | D80: 22.55 | E80: 20.81 | F80: 18.33 | G80: 25.51 | H80: 18.72 | I80: 19.09 | J80: 18.86 | K80: 18.54 | L80: 19.48 | M80: 19.79 | N80: 18.49 | O80: 21.53 | P80: 18.12 | Q80: 21.18 | R80: 22.55 | S80: 20.23 | T80: 19.35 | U80: 25.51 | V80: 19.48 | W80: 25.63 | X80: 21.53 | Y80: 22.72 | Z80: 17.68 | AA80: 19.76 | AB80: 20.23 | AC80: 20.25 | AD80: 25.03 | AE80: 21.69 | AF80: 19.04 | AG80: 20.17 | AH80: 18.81 | AI80: 18.88 | AJ80: 19.48 | AK80: 23.96 | AL80: 20.69 | AM80: 18.81 | AN80: 18.81 | AO80: 23.85 | AP80: 18.81 | AQ80: 19.71 | AR80: 18.88 | AS80: 19.19 | AT80: 18.98 | AU80: 19.72 | AV80: 19.48 | AW80: 25.95 | AX80: 20.05 | AY80: 20.93 | AZ80: 19.82 | BA80: 18.45 | BB80: 19.09 | BC80: 19.94 | BD80: 25.63 | BE80: 17.63 | BF80: 19.19 | BG80: 20.22 | BH80: 21.01 | BI80: 17.92 | BJ80: 20.09 | BK80: 18.96 | BL80: 19.32 | BM80: 20.5 | BN80: 21.6 | BO80: 24.62 | BP80: 18.45 | BQ80: 17.65 | BR80: 19.71 | BS80: 17.51 | BT80: 19.71 | BU80: 19.54 | BV80: 19.48 | BW80: 24.6 | BX80: 26.28 | BY80: 18.39 | BZ80: 24.92 | CA80: 24.09 | CB80: 23.56 | CC80: 19.48 | CD80: 19.84 | CE80: 20.85 | CF80: 17.76 | CG80: 19.48 | CH80: 17.97 | CI80: 20.05 | CJ80: 18.45 | CK80: 18.67 | CL80: 19.99 | CM80: 17.86 | CN80: 18.55 | CO80: 19.23 | CP80: 25.63 | CQ80: 20.69 | CR80: 18.45 | CS80: 21.62 | CT80: 24.34 | CU80: 20.05 | CV80: 18.41 | CW80: 25.63 | CX80: 20.5 | CY80: 25.63 | CZ80: 25.63 | DA80: 19.73 | DB80: 26.28 | DC80: 19.58 | DD80: 20.11 | DE80: 19.48 | DF80: 19.48 | DG80: 19.2 | DH80: 23.62 | DI80: 22.57 | DJ80: 21.03 | DK80: 20.48 | DL80: 19.53 | DM80: 19.48 | DN80: 18.76 | DO80: 26.28 | DP80: 17.86 | DQ80: 23.72 | DR80: 25.63 | DS80: 18.51 | DT80: 23.33 | DU80: 26.28 | DV80: 23.2 | DW80: 25.63 | DX80: 17.12 | DY80: 19.19 | DZ80: 20.23 | EA80: 21.01
A81: E0155 RR | B81: 1.95 | C81: 2.4 | D81: 2.26 | E81: 2.08 | F81: 1.83 | G81: 2.55 | H81: 1.88 | I81: 1.91 | J81: 1.89 | K81: 1.86 | L81: 1.95 | M81: 1.98 | N81: 1.85 | O81: 2.15 | P81: 1.81 | Q81: 2.12 | R81: 2.26 | S81: 2.02 | T81: 1.94 | U81: 2.55 | V81: 1.95 | W81: 2.56 | X81: 2.15 | Y81: 2.28 | Z81: 1.77 | AA81: 1.98 | AB81: 2.02 | AC81: 2.03 | AD81: 2.5 | AE81: 2.17 | AF81: 1.91 | AG81: 2.02 | AH81: 1.89 | AI81: 1.89 | AJ81: 1.95 | AK81: 2.4 | AL81: 2.07 | AM81: 1.89 | AN81: 1.89 | AO81: 2.39 | AP81: 1.89 | AQ81: 1.97 | AR81: 1.89 | AS81: 1.92 | AT81: 1.9 | AU81: 1.97 | AV81: 1.95 | AW81: 2.59 | AX81: 2.01 | AY81: 2.09 | AZ81: 1.98 | BA81: 1.85 | BB81: 1.91 | BC81: 2 | BD81: 2.56 | BE81: 1.76 | BF81: 1.92 | BG81: 2.02 | BH81: 2.1 | BI81: 1.79 | BJ81: 2.01 | BK81: 1.9 | BL81: 1.94 | BM81: 2.05 | BN81: 2.16 | BO81: 2.46 | BP81: 1.85 | BQ81: 1.76 | BR81: 1.97 | BS81: 1.75 | BT81: 1.97 | BU81: 1.96 | BV81: 1.95 | BW81: 2.46 | BX81: 2.62 | BY81: 1.83 | BZ81: 2.49 | CA81: 2.41 | CB81: 2.36 | CC81: 1.95 | CD81: 1.99 | CE81: 2.08 | CF81: 1.77 | CG81: 1.95 | CH81: 1.79 | CI81: 2.01 | CJ81: 1.85 | CK81: 1.87 | CL81: 2 | CM81: 1.78 | CN81: 1.86 | CO81: 1.93 | CP81: 2.56 | CQ81: 2.07 | CR81: 1.85 | CS81: 2.16 | CT81: 2.44 | CU81: 2.01 | CV81: 1.85 | CW81: 2.56 | CX81: 2.05 | CY81: 2.56 | CZ81: 2.56 | DA81: 1.98 | DB81: 2.62 | DC81: 1.96 | DD81: 2.01 | DE81: 1.95 | DF81: 1.95 | DG81: 1.92 | DH81: 2.36 | DI81: 2.26 | DJ81: 2.1 | DK81: 2.05 | DL81: 1.96 | DM81: 1.95 | DN81: 1.88 | DO81: 2.62 | DP81: 1.78 | DQ81: 2.37 | DR81: 2.56 | DS81: 1.86 | DT81: 2.34 | DU81: 2.62 | DV81: 2.32 | DW81: 2.56 | DX81: 1.71 | DY81: 1.92 | DZ81: 2.02 | EA81: 2.1
A82: E0155 UE | B82: 14.61 | C82: 17.98 | D82: 16.91 | E82: 15.61 | F82: 13.75 | G82: 19.14 | H82: 14.04 | I82: 14.32 | J82: 14.15 | K82: 13.91 | L82: 14.61 | M82: 14.84 | N82: 13.87 | O82: 16.14 | P82: 13.59 | Q82: 15.89 | R82: 16.91 | S82: 15.18 | T82: 14.51 | U82: 19.14 | V82: 14.61 | W82: 19.22 | X82: 16.14 | Y82: 17.05 | Z82: 13.26 | AA82: 14.82 | AB82: 15.18 | AC82: 15.19 | AD82: 18.78 | AE82: 16.27 | AF82: 14.29 | AG82: 15.13 | AH82: 14.1 | AI82: 14.17 | AJ82: 14.61 | AK82: 17.98 | AL82: 15.52 | AM82: 14.1 | AN82: 14.1 | AO82: 17.89 | AP82: 14.1 | AQ82: 14.78 | AR82: 14.17 | AS82: 14.39 | AT82: 14.24 | AU82: 14.79 | AV82: 14.61 | AW82: 19.46 | AX82: 15.04 | AY82: 15.7 | AZ82: 14.87 | BA82: 13.84 | BB82: 14.32 | BC82: 14.95 | BD82: 19.22 | BE82: 13.22 | BF82: 14.39 | BG82: 15.17 | BH82: 15.76 | BI82: 13.44 | BJ82: 15.07 | BK82: 14.23 | BL82: 14.49 | BM82: 15.38 | BN82: 16.2 | BO82: 18.47 | BP82: 13.84 | BQ82: 13.24 | BR82: 14.78 | BS82: 13.13 | BT82: 14.78 | BU82: 14.66 | BV82: 14.61 | BW82: 18.45 | BX82: 19.71 | BY82: 13.8 | BZ82: 18.69 | CA82: 18.07 | CB82: 17.67 | CC82: 14.61 | CD82: 14.88 | CE82: 15.64 | CF82: 13.33 | CG82: 14.61 | CH82: 13.48 | CI82: 15.04 | CJ82: 13.84 | CK82: 14 | CL82: 15 | CM82: 13.4 | CN82: 13.92 | CO82: 14.42 | CP82: 19.22 | CQ82: 15.52 | CR82: 13.84 | CS82: 16.22 | CT82: 18.26 | CU82: 15.04 | CV82: 13.81 | CW82: 19.22 | CX82: 15.38 | CY82: 19.22 | CZ82: 19.22 | DA82: 14.8 | DB82: 19.71 | DC82: 14.69 | DD82: 15.09 | DE82: 14.61 | DF82: 14.61 | DG82: 14.4 | DH82: 17.71 | DI82: 16.93 | DJ82: 15.77 | DK82: 15.36 | DL82: 14.65 | DM82: 14.61 | DN82: 14.07 | DO82: 19.71 | DP82: 13.4 | DQ82: 17.79 | DR82: 19.22 | DS82: 13.89 | DT82: 17.5 | DU82: 19.71 | DV82: 17.39 | DW82: 19.22 | DX82: 12.84 | DY82: 14.39 | DZ82: 15.18 | EA82: 15.76
A83: E0156 NU | B83: 16.95 | C83: 16.42 | D83: 15.25 | E83: 14.86 | F83: 15 | G83: 15.17 | H83: 16.72 | I83: 16.42 | J83: 16.69 | K83: 14.42 | L83: 15.12 | M83: 15.15 | N83: 15.04 | O83: 18 | P83: 13.8 | Q83: 18.55 | R83: 15.32 | S83: 15.74 | T83: 15.38 | U83: 16.33 | V83: 12.97 | W83: 15 | X83: 15.38 | Y83: 15.38 | Z83: 13.89 | AA83: 18.04 | AB83: 16.68 | AC83: 16 | AD83: 18.43 | AE83: 15.38 | AF83: 14.35 | AG83: 13.88 | AH83: 15.58 | AI83: 15.27 | AJ83: 16.54 | AK83: 15.89 | AL83: 15.36 | AM83: 15.89 | AN83: 14.39 | AO83: 16.14 | AP83: 16.4 | AQ83: 14.86 | AR83: 15.38 | AS83: 16.95 | AT83: 15.64 | AU83: 15.51 | AV83: 14.45 | AW83: 15.29 | AX83: 16.56 | AY83: 16.95 | AZ83: 15.81 | BA83: 15.7 | BB83: 16.4 | BC83: 15.38 | BD83: 15.89 | BE83: 13.33 | BF83: 15.07 | BG83: 16.95 | BH83: 17.41 | BI83: 14.34 | BJ83: 16.68 | BK83: 14.56 | BL83: 16.65 | BM83: 15.64 | BN83: 13.24 | BO83: 18.21 | BP83: 14.62 | BQ83: 14.34 | BR83: 15.38 | BS83: 16.51 | BT83: 16.22 | BU83: 15.66 | BV83: 14.59 | BW83: 17.88 | BX83: 15.38 | BY83: 13.88 | BZ83: 17.32 | CA83: 16.18 | CB83: 16.78 | CC83: 13.22 | CD83: 15.25 | CE83: 17.05 | CF83: 13.89 | CG83: 14.33 | CH83: 15.07 | CI83: 15.38 | CJ83: 14.53 | CK83: 14.36 | CL83: 15.26 | CM83: 13.84 | CN83: 15.35 | CO83: 15.44 | CP83: 16.95 | CQ83: 15.6 | CR83: 13.22 | CS83: 17.31 | CT83: 14.8 | CU83: 15.38 | CV83: 16.14 | CW83: 15.38 | CX83: 17.19 | CY83: 15.38 | CZ83: 16.12 | DA83: 15.25 | DB83: 15.9 | DC83: 15.09 | DD83: 16.85 | DE83: 15.35 | DF83: 15.12 | DG83: 15.05 | DH83: 17.94 | DI83: 15.38 | DJ83: 18.7 | DK83: 15.38 | DL83: 15.38 | DM83: 15.38 | DN83: 14.1 | DO83: 14.86 | DP83: 14.99 | DQ83: 15.89 | DR83: 15.32 | DS83: 16.04 | DT83: 17.82 | DU83: 15.7 | DV83: 15.99 | DW83: 15.38 | DX83: 15.76 | DY83: 15.38 | DZ83: 15.35 | EA83: 15.38
A84: E0156 RR | B84: 1.69 | C84: 1.64 | D84: 1.53 | E84: 1.49 | F84: 1.5 | G84: 1.52 | H84: 1.67 | I84: 1.64 | J84: 1.67 | K84: 1.45 | L84: 1.52 | M84: 1.52 | N84: 1.51 | O84: 1.8 | P84: 1.38 | Q84: 1.86 | R84: 1.54 | S84: 1.58 | T84: 1.54 | U84: 1.63 | V84: 1.3 | W84: 1.5 | X84: 1.54 | Y84: 1.54 | Z84: 1.39 | AA84: 1.8 | AB84: 1.67 | AC84: 1.6 | AD84: 1.85 | AE84: 1.54 | AF84: 1.44 | AG84: 1.38 | AH84: 1.56 | AI84: 1.53 | AJ84: 1.65 | AK84: 1.59 | AL84: 1.54 | AM84: 1.59 | AN84: 1.44 | AO84: 1.62 | AP84: 1.64 | AQ84: 1.49 | AR84: 1.54 | AS84: 1.69 | AT84: 1.57 | AU84: 1.55 | AV84: 1.45 | AW84: 1.53 | AX84: 1.66 | AY84: 1.69 | AZ84: 1.58 | BA84: 1.57 | BB84: 1.64 | BC84: 1.54 | BD84: 1.59 | BE84: 1.33 | BF84: 1.51 | BG84: 1.69 | BH84: 1.74 | BI84: 1.44 | BJ84: 1.67 | BK84: 1.46 | BL84: 1.66 | BM84: 1.57 | BN84: 1.32 | BO84: 1.82 | BP84: 1.47 | BQ84: 1.44 | BR84: 1.54 | BS84: 1.65 | BT84: 1.62 | BU84: 1.57 | BV84: 1.46 | BW84: 1.78 | BX84: 1.54 | BY84: 1.38 | BZ84: 1.73 | CA84: 1.62 | CB84: 1.68 | CC84: 1.32 | CD84: 1.53 | CE84: 1.7 | CF84: 1.39 | CG84: 1.44 | CH84: 1.51 | CI84: 1.54 | CJ84: 1.46 | CK84: 1.44 | CL84: 1.53 | CM84: 1.38 | CN84: 1.54 | CO84: 1.55 | CP84: 1.69 | CQ84: 1.56 | CR84: 1.32 | CS84: 1.73 | CT84: 1.48 | CU84: 1.54 | CV84: 1.62 | CW84: 1.54 | CX84: 1.72 | CY84: 1.54 | CZ84: 1.61 | DA84: 1.53 | DB84: 1.59 | DC84: 1.51 | DD84: 1.68 | DE84: 1.54 | DF84: 1.52 | DG84: 1.51 | DH84: 1.79 | DI84: 1.54 | DJ84: 1.87 | DK84: 1.54 | DL84: 1.54 | DM84: 1.54 | DN84: 1.41 | DO84: 1.49 | DP84: 1.5 | DQ84: 1.59 | DR84: 1.54 | DS84: 1.61 | DT84: 1.78 | DU84: 1.57 | DV84: 1.6 | DW84: 1.54 | DX84: 1.58 | DY84: 1.54 | DZ84: 1.54 | EA84: 1.54
A85: E0156 UE | B85: 12.72 | C85: 12.32 | D85: 11.44 | E85: 11.15 | F85: 11.24 | G85: 11.38 | H85: 12.54 | I85: 12.32 | J85: 12.52 | K85: 10.81 | L85: 11.34 | M85: 11.37 | N85: 11.28 | O85: 13.5 | P85: 10.35 | Q85: 13.92 | R85: 11.49 | S85: 11.81 | T85: 11.53 | U85: 12.25 | V85: 9.73 | W85: 11.24 | X85: 11.53 | Y85: 11.53 | Z85: 10.41 | AA85: 13.53 | AB85: 12.51 | AC85: 12 | AD85: 13.83 | AE85: 11.53 | AF85: 10.76 | AG85: 10.41 | AH85: 11.69 | AI85: 11.46 | AJ85: 12.41 | AK85: 11.92 | AL85: 11.52 | AM85: 11.92 | AN85: 10.79 | AO85: 12.11 | AP85: 12.3 | AQ85: 11.15 | AR85: 11.53 | AS85: 12.72 | AT85: 11.74 | AU85: 11.63 | AV85: 10.84 | AW85: 11.47 | AX85: 12.42 | AY85: 12.72 | AZ85: 11.86 | BA85: 11.78 | BB85: 12.3 | BC85: 11.53 | BD85: 11.92 | BE85: 9.99 | BF85: 11.31 | BG85: 12.72 | BH85: 13.06 | BI85: 10.75 | BJ85: 12.51 | BK85: 10.92 | BL85: 12.48 | BM85: 11.74 | BN85: 9.93 | BO85: 13.66 | BP85: 10.97 | BQ85: 10.75 | BR85: 11.53 | BS85: 12.38 | BT85: 12.17 | BU85: 11.75 | BV85: 10.94 | BW85: 13.41 | BX85: 11.53 | BY85: 10.41 | BZ85: 13 | CA85: 12.14 | CB85: 12.59 | CC85: 9.92 | CD85: 11.44 | CE85: 12.78 | CF85: 10.41 | CG85: 10.75 | CH85: 11.31 | CI85: 11.53 | CJ85: 10.91 | CK85: 10.77 | CL85: 11.45 | CM85: 10.38 | CN85: 11.52 | CO85: 11.58 | CP85: 12.72 | CQ85: 11.71 | CR85: 9.92 | CS85: 12.99 | CT85: 11.1 | CU85: 11.53 | CV85: 12.11 | CW85: 11.53 | CX85: 12.89 | CY85: 11.53 | CZ85: 12.1 | DA85: 11.44 | DB85: 11.92 | DC85: 11.32 | DD85: 12.64 | DE85: 11.52 | DF85: 11.34 | DG85: 11.29 | DH85: 13.46 | DI85: 11.53 | DJ85: 14.02 | DK85: 11.53 | DL85: 11.53 | DM85: 11.53 | DN85: 10.58 | DO85: 11.15 | DP85: 11.24 | DQ85: 11.92 | DR85: 11.49 | DS85: 12.03 | DT85: 13.37 | DU85: 11.78 | DV85: 11.99 | DW85: 11.53 | DX85: 11.83 | DY85: 11.53 | DZ85: 11.52 | EA85: 11.53
A86: E0157 NU | B86: 59.9 | C86: 65.34 | D86: 48.71 | E86: 56.8 | F86: 47.82 | G86: 50.02 | H86: 61.81 | I86: 54.07 | J86: 59.71 | K86: 60.64 | L86: 49.34 | M86: 48.74 | N86: 49.24 | O86: 62.27 | P86: 48.63 | Q86: 54.57 | R86: 59.63 | S86: 55.04 | T86: 52.01 | U86: 54.02 | V86: 46.13 | W86: 49.65 | X86: 50.78 | Y86: 48.13 | Z86: 47.81 | AA86: 55.7 | AB86: 65.96 | AC86: 74.13 | AD86: 70.01 | AE86: 74.13 | AF86: 53.38 | AG86: 53.1 | AH86: 59.45 | AI86: 56.29 | AJ86: 62.08 | AK86: 60.48 | AL86: 61.14 | AM86: 59.45 | AN86: 51.25 | AO86: 57.4 | AP86: 59.45 | AQ86: 48.81 | AR86: 55.97 | AS86: 65.6 | AT86: 56.29 | AU86: 51.56 | AV86: 46.85 | AW86: 66.93 | AX86: 51.64 | AY86: 61.5 | AZ86: 56.46 | BA86: 59.71 | BB86: 59.45 | BC86: 52.41 | BD86: 49.49 | BE86: 49.2 | BF86: 49.22 | BG86: 67.65 | BH86: 56.49 | BI86: 49.94 | BJ86: 62.37 | BK86: 46.13 | BL86: 60.48 | BM86: 64.58 | BN86: 64.93 | BO86: 72.41 | BP86: 59.27 | BQ86: 48.81 | BR86: 51.8 | BS86: 54.76 | BT86: 45.33 | BU86: 52.25 | BV86: 49.34 | BW86: 70.09 | BX86: 49.22 | BY86: 47.08 | BZ86: 63.14 | CA86: 64.14 | CB86: 70.01 | CC86: 46.56 | CD86: 54.6 | CE86: 59.71 | CF86: 47.52 | CG86: 49.34 | CH86: 49.27 | CI86: 53.79 | CJ86: 45.76 | CK86: 49.08 | CL86: 48.28 | CM86: 48.81 | CN86: 48.13 | CO86: 49.94 | CP86: 64.27 | CQ86: 60.48 | CR86: 46.56 | CS86: 59.9 | CT86: 49.21 | CU86: 58.43 | CV86: 59.71 | CW86: 50.8 | CX86: 58.43 | CY86: 54.59 | CZ86: 59.51 | DA86: 48.74 | DB86: 68.95 | DC86: 49.27 | DD86: 46.13 | DE86: 46.13 | DF86: 48.28 | DG86: 48.05 | DH86: 58.82 | DI86: 50.78 | DJ86: 66.63 | DK86: 53.69 | DL86: 51.58 | DM86: 50.99 | DN86: 46.98 | DO86: 49.22 | DP86: 48.81 | DQ86: 59.45 | DR86: 50.16 | DS86: 50.61 | DT86: 62.6 | DU86: 53.19 | DV86: 60.12 | DW86: 50.78 | DX86: 48.83 | DY86: 47.99 | DZ86: 52.4 | EA86: 49.22
A87: E0157 RR | B87: 5.99 | C87: 6.54 | D87: 4.87 | E87: 5.68 | F87: 4.79 | G87: 5 | H87: 6.18 | I87: 5.41 | J87: 5.98 | K87: 6.07 | L87: 4.93 | M87: 4.88 | N87: 4.92 | O87: 6.23 | P87: 4.86 | Q87: 5.45 | R87: 5.97 | S87: 5.5 | T87: 5.2 | U87: 5.4 | V87: 4.61 | W87: 4.96 | X87: 5.07 | Y87: 4.82 | Z87: 4.78 | AA87: 5.57 | AB87: 6.6 | AC87: 7.41 | AD87: 7 | AE87: 7.41 | AF87: 5.34 | AG87: 5.31 | AH87: 5.95 | AI87: 5.63 | AJ87: 6.21 | AK87: 6.05 | AL87: 6.12 | AM87: 5.95 | AN87: 5.13 | AO87: 5.74 | AP87: 5.95 | AQ87: 4.88 | AR87: 5.6 | AS87: 6.56 | AT87: 5.63 | AU87: 5.16 | AV87: 4.68 | AW87: 6.69 | AX87: 5.17 | AY87: 6.15 | AZ87: 5.65 | BA87: 5.98 | BB87: 5.95 | BC87: 5.24 | BD87: 4.95 | BE87: 4.92 | BF87: 4.92 | BG87: 6.77 | BH87: 5.65 | BI87: 4.99 | BJ87: 6.24 | BK87: 4.61 | BL87: 6.05 | BM87: 6.46 | BN87: 6.5 | BO87: 7.24 | BP87: 5.92 | BQ87: 4.88 | BR87: 5.18 | BS87: 5.47 | BT87: 4.53 | BU87: 5.23 | BV87: 4.93 | BW87: 7.01 | BX87: 4.92 | BY87: 4.7 | BZ87: 6.31 | CA87: 6.42 | CB87: 7 | CC87: 4.65 | CD87: 5.46 | CE87: 5.98 | CF87: 4.76 | CG87: 4.93 | CH87: 4.93 | CI87: 5.38 | CJ87: 4.57 | CK87: 4.91 | CL87: 4.83 | CM87: 4.88 | CN87: 4.82 | CO87: 4.99 | CP87: 6.43 | CQ87: 6.05 | CR87: 4.65 | CS87: 5.99 | CT87: 4.92 | CU87: 5.84 | CV87: 5.98 | CW87: 5.08 | CX87: 5.84 | CY87: 5.46 | CZ87: 5.96 | DA87: 4.88 | DB87: 6.9 | DC87: 4.93 | DD87: 4.61 | DE87: 4.61 | DF87: 4.83 | DG87: 4.81 | DH87: 5.88 | DI87: 5.07 | DJ87: 6.66 | DK87: 5.37 | DL87: 5.16 | DM87: 5.1 | DN87: 4.69 | DO87: 4.92 | DP87: 4.88 | DQ87: 5.95 | DR87: 5.01 | DS87: 5.06 | DT87: 6.26 | DU87: 5.32 | DV87: 6.02 | DW87: 5.07 | DX87: 4.88 | DY87: 4.8 | DZ87: 5.24 | EA87: 4.92
A88: E0157 UE | B88: 44.93 | C88: 49.01 | D88: 36.53 | E88: 42.6 | F88: 35.86 | G88: 37.52 | H88: 46.36 | I88: 40.55 | J88: 44.78 | K88: 45.48 | L88: 37.01 | M88: 36.55 | N88: 36.93 | O88: 46.7 | P88: 36.47 | Q88: 40.93 | R88: 44.73 | S88: 41.29 | T88: 39.01 | U88: 40.52 | V88: 34.59 | W88: 37.24 | X88: 38.09 | Y88: 36.1 | Z88: 35.85 | AA88: 41.78 | AB88: 49.47 | AC88: 55.6 | AD88: 52.51 | AE88: 55.6 | AF88: 40.04 | AG88: 39.82 | AH88: 44.59 | AI88: 42.22 | AJ88: 46.57 | AK88: 45.36 | AL88: 45.86 | AM88: 44.59 | AN88: 38.44 | AO88: 43.05 | AP88: 44.59 | AQ88: 36.61 | AR88: 41.97 | AS88: 49.2 | AT88: 42.22 | AU88: 38.67 | AV88: 35.14 | AW88: 50.2 | AX88: 38.73 | AY88: 46.13 | AZ88: 42.34 | BA88: 44.78 | BB88: 44.59 | BC88: 39.31 | BD88: 37.12 | BE88: 36.9 | BF88: 36.92 | BG88: 50.74 | BH88: 42.36 | BI88: 37.45 | BJ88: 46.78 | BK88: 34.59 | BL88: 45.36 | BM88: 48.43 | BN88: 48.7 | BO88: 54.3 | BP88: 44.45 | BQ88: 36.61 | BR88: 38.86 | BS88: 41.07 | BT88: 34 | BU88: 39.2 | BV88: 37.01 | BW88: 52.57 | BX88: 36.92 | BY88: 35.31 | BZ88: 47.36 | CA88: 48.11 | CB88: 52.51 | CC88: 34.92 | CD88: 40.95 | CE88: 44.78 | CF88: 35.64 | CG88: 37.01 | CH88: 36.95 | CI88: 40.34 | CJ88: 34.32 | CK88: 36.81 | CL88: 36.21 | CM88: 36.61 | CN88: 36.1 | CO88: 37.45 | CP88: 48.21 | CQ88: 45.36 | CR88: 34.92 | CS88: 44.93 | CT88: 36.91 | CU88: 43.82 | CV88: 44.78 | CW88: 38.1 | CX88: 43.82 | CY88: 40.95 | CZ88: 44.64 | DA88: 36.55 | DB88: 51.71 | DC88: 36.95 | DD88: 34.59 | DE88: 34.59 | DF88: 36.21 | DG88: 36.04 | DH88: 44.12 | DI88: 38.09 | DJ88: 49.97 | DK88: 40.27 | DL88: 38.68 | DM88: 38.24 | DN88: 35.23 | DO88: 36.92 | DP88: 36.61 | DQ88: 44.59 | DR88: 37.63 | DS88: 37.97 | DT88: 46.95 | DU88: 39.89 | DV88: 45.09 | DW88: 38.09 | DX88: 36.62 | DY88: 36 | DZ88: 39.3 | EA88: 36.92
A89: E0158 NU | B89: 21.46 | C89: 26.29 | D89: 18.96 | E89: 21.46 | F89: 18.45 | G89: 23.02 | H89: 20.87 | I89: 21.23 | J89: 21.26 | K89: 23.53 | L89: 20.67 | M89: 20.99 | N89: 19.89 | O89: 21.55 | P89: 18.3 | Q89: 23.06 | R89: 23.14 | S89: 21.36 | T89: 21.17 | U89: 26.98 | V89: 18.45 | W89: 21.26 | X89: 21.46 | Y89: 21.03 | Z89: 18.77 | AA89: 21.24 | AB89: 21.85 | AC89: 25.34 | AD89: 26.22 | AE89: 26.73 | AF89: 21.47 | AG89: 18.08 | AH89: 22.56 | AI89: 19.48 | AJ89: 21.36 | AK89: 25.3 | AL89: 21.16 | AM89: 19.78 | AN89: 20.4 | AO89: 24.65 | AP89: 19.78 | AQ89: 18.51 | AR89: 19.48 | AS89: 24.6 | AT89: 21.38 | AU89: 20.71 | AV89: 19.21 | AW89: 26.73 | AX89: 20.5 | AY89: 21.42 | AZ89: 19.49 | BA89: 21.17 | BB89: 20.87 | BC89: 21.46 | BD89: 19.48 | BE89: 18.14 | BF89: 21.46 | BG89: 20.87 | BH89: 22.8 | BI89: 18.51 | BJ89: 21.16 | BK89: 18.7 | BL89: 21.68 | BM89: 21.32 | BN89: 25.25 | BO89: 25.36 | BP89: 21.58 | BQ89: 18.2 | BR89: 20.07 | BS89: 18.94 | BT89: 19.87 | BU89: 21.2 | BV89: 19.48 | BW89: 25.79 | BX89: 29.97 | BY89: 18.44 | BZ89: 22.32 | CA89: 21.4 | CB89: 25.63 | CC89: 18.45 | CD89: 22.01 | CE89: 21.01 | CF89: 18.23 | CG89: 18.77 | CH89: 18.59 | CI89: 19.62 | CJ89: 17.43 | CK89: 18.5 | CL89: 20.45 | CM89: 18.25 | CN89: 19.45 | CO89: 19.91 | CP89: 23.84 | CQ89: 22.02 | CR89: 18.45 | CS89: 21.26 | CT89: 20.37 | CU89: 21.23 | CV89: 21.01 | CW89: 24.6 | CX89: 22.02 | CY89: 23.95 | CZ89: 21.46 | DA89: 20.24 | DB89: 26.31 | DC89: 19.89 | DD89: 20.4 | DE89: 19.78 | DF89: 19.99 | DG89: 19.55 | DH89: 22.43 | DI89: 23.33 | DJ89: 25.63 | DK89: 22.04 | DL89: 20.07 | DM89: 20.5 | DN89: 18.7 | DO89: 26.8 | DP89: 18.25 | DQ89: 24.11 | DR89: 24.09 | DS89: 19.33 | DT89: 23.38 | DU89: 24.6 | DV89: 25.15 | DW89: 21.53 | DX89: 20.65 | DY89: 21.46 | DZ89: 21.96 | EA89: 25.93
A90: E0158 RR | B90: 2.14 | C90: 2.63 | D90: 1.9 | E90: 2.14 | F90: 1.85 | G90: 2.31 | H90: 2.09 | I90: 2.12 | J90: 2.12 | K90: 2.36 | L90: 2.07 | M90: 2.1 | N90: 1.99 | O90: 2.15 | P90: 1.83 | Q90: 2.31 | R90: 2.32 | S90: 2.13 | T90: 2.12 | U90: 2.7 | V90: 1.85 | W90: 2.12 | X90: 2.14 | Y90: 2.1 | Z90: 1.88 | AA90: 2.12 | AB90: 2.18 | AC90: 2.53 | AD90: 2.62 | AE90: 2.68 | AF90: 2.15 | AG90: 1.8 | AH90: 2.26 | AI90: 1.95 | AJ90: 2.13 | AK90: 2.53 | AL90: 2.11 | AM90: 1.98 | AN90: 2.04 | AO90: 2.47 | AP90: 1.98 | AQ90: 1.86 | AR90: 1.95 | AS90: 2.46 | AT90: 2.14 | AU90: 2.07 | AV90: 1.92 | AW90: 2.68 | AX90: 2.05 | AY90: 2.14 | AZ90: 1.95 | BA90: 2.12 | BB90: 2.09 | BC90: 2.14 | BD90: 1.95 | BE90: 1.81 | BF90: 2.14 | BG90: 2.09 | BH90: 2.28 | BI90: 1.86 | BJ90: 2.11 | BK90: 1.87 | BL90: 2.17 | BM90: 2.13 | BN90: 2.52 | BO90: 2.53 | BP90: 2.16 | BQ90: 1.82 | BR90: 2.01 | BS90: 1.9 | BT90: 1.99 | BU90: 2.12 | BV90: 1.95 | BW90: 2.58 | BX90: 2.99 | BY90: 1.85 | BZ90: 2.23 | CA90: 2.14 | CB90: 2.56 | CC90: 1.85 | CD90: 2.2 | CE90: 2.1 | CF90: 1.82 | CG90: 1.88 | CH90: 1.86 | CI90: 1.96 | CJ90: 1.74 | CK90: 1.86 | CL90: 2.05 | CM90: 1.82 | CN90: 1.95 | CO90: 1.99 | CP90: 2.39 | CQ90: 2.2 | CR90: 1.85 | CS90: 2.12 | CT90: 2.04 | CU90: 2.12 | CV90: 2.1 | CW90: 2.46 | CX90: 2.2 | CY90: 2.4 | CZ90: 2.14 | DA90: 2.03 | DB90: 2.63 | DC90: 1.99 | DD90: 2.04 | DE90: 1.98 | DF90: 2 | DG90: 1.96 | DH90: 2.24 | DI90: 2.34 | DJ90: 2.56 | DK90: 2.2 | DL90: 2.01 | DM90: 2.05 | DN90: 1.87 | DO90: 2.69 | DP90: 1.82 | DQ90: 2.41 | DR90: 2.41 | DS90: 1.94 | DT90: 2.34 | DU90: 2.46 | DV90: 2.51 | DW90: 2.15 | DX90: 2.07 | DY90: 2.14 | DZ90: 2.19 | EA90: 2.59
A91: E0158 UE | B91: 16.1 | C91: 19.72 | D91: 14.23 | E91: 16.1 | F91: 13.84 | G91: 17.27 | H91: 15.65 | I91: 15.92 | J91: 15.95 | K91: 17.65 | L91: 15.51 | M91: 15.74 | N91: 14.91 | O91: 16.16 | P91: 13.72 | Q91: 17.3 | R91: 17.36 | S91: 16.02 | T91: 15.88 | U91: 20.23 | V91: 13.84 | W91: 15.95 | X91: 16.1 | Y91: 15.77 | Z91: 14.07 | AA91: 15.93 | AB91: 16.39 | AC91: 19 | AD91: 19.67 | AE91: 20.05 | AF91: 16.1 | AG91: 13.56 | AH91: 16.92 | AI91: 14.61 | AJ91: 16.02 | AK91: 18.97 | AL91: 15.87 | AM91: 14.84 | AN91: 15.3 | AO91: 18.49 | AP91: 14.84 | AQ91: 13.89 | AR91: 14.61 | AS91: 18.45 | AT91: 16.04 | AU91: 15.53 | AV91: 14.41 | AW91: 20.05 | AX91: 15.38 | AY91: 16.07 | AZ91: 14.62 | BA91: 15.88 | BB91: 15.65 | BC91: 16.1 | BD91: 14.61 | BE91: 13.61 | BF91: 16.1 | BG91: 15.65 | BH91: 17.1 | BI91: 13.89 | BJ91: 15.87 | BK91: 14.02 | BL91: 16.26 | BM91: 15.99 | BN91: 18.93 | BO91: 19.02 | BP91: 16.18 | BQ91: 13.65 | BR91: 15.06 | BS91: 14.21 | BT91: 14.9 | BU91: 15.9 | BV91: 14.61 | BW91: 19.34 | BX91: 22.48 | BY91: 13.83 | BZ91: 16.75 | CA91: 16.05 | CB91: 19.22 | CC91: 13.84 | CD91: 16.5 | CE91: 15.76 | CF91: 13.67 | CG91: 14.07 | CH91: 13.95 | CI91: 14.72 | CJ91: 13.07 | CK91: 13.88 | CL91: 15.33 | CM91: 13.68 | CN91: 14.6 | CO91: 14.93 | CP91: 17.89 | CQ91: 16.51 | CR91: 13.84 | CS91: 15.95 | CT91: 15.27 | CU91: 15.92 | CV91: 15.76 | CW91: 18.45 | CX91: 16.51 | CY91: 17.97 | CZ91: 16.1 | DA91: 15.18 | DB91: 19.73 | DC91: 14.91 | DD91: 15.3 | DE91: 14.84 | DF91: 15 | DG91: 14.66 | DH91: 16.82 | DI91: 17.5 | DJ91: 19.22 | DK91: 16.53 | DL91: 15.06 | DM91: 15.38 | DN91: 14.02 | DO91: 20.1 | DP91: 13.68 | DQ91: 18.08 | DR91: 18.07 | DS91: 14.5 | DT91: 17.54 | DU91: 18.45 | DV91: 18.87 | DW91: 16.14 | DX91: 15.49 | DY91: 16.1 | DZ91: 16.47 | EA91: 19.45
A92: E0159 NU | B92: 14.38 | C92: 17.04 | D92: 14.25 | E92: 14.66 | F92: 13.28 | G92: 15.81 | H92: 14.32 | I92: 14.38 | J92: 15.44 | K92: 14.82 | L92: 14.15 | M92: 13.5 | N92: 13.3 | O92: 14.25 | P92: 12.46 | Q92: 17.43 | R92: 15.21 | S92: 13.96 | T92: 14.66 | U92: 15.56 | V92: 12.3 | W92: 16.59 | X92: 14.89 | Y92: 14.04 | Z92: 12.31 | AA92: 14.27 | AB92: 15.21 | AC92: 16.21 | AD92: 17.43 | AE92: 17.04 | AF92: 14.29 | AG92: 12.51 | AH92: 16.4 | AI92: 13.5 | AJ92: 15.07 | AK92: 16.63 | AL92: 16.32 | AM92: 14.15 | AN92: 13.45 | AO92: 16.65 | AP92: 14.15 | AQ92: 13.57 | AR92: 13.68 | AS92: 17.43 | AT92: 14.02 | AU92: 14.25 | AV92: 12.3 | AW92: 17.47 | AX92: 13.22 | AY92: 15.38 | AZ92: 14.54 | BA92: 15.38 | BB92: 14.35 | BC92: 14.1 | BD92: 13.07 | BE92: 12.69 | BF92: 17.43 | BG92: 17.43 | BH92: 14.89 | BI92: 13.78 | BJ92: 14.94 | BK92: 12.3 | BL92: 13.89 | BM92: 15.57 | BN92: 17.43 | BO92: 17.43 | BP92: 14.29 | BQ92: 12.96 | BR92: 13.53 | BS92: 14.37 | BT92: 12.3 | BU92: 15.53 | BV92: 13.65 | BW92: 17.43 | BX92: 17.46 | BY92: 12.44 | BZ92: 15.2 | CA92: 14.88 | CB92: 17.43 | CC92: 12.3 | CD92: 14.3 | CE92: 14.41 | CF92: 12.24 | CG92: 13.14 | CH92: 13.33 | CI92: 13.99 | CJ92: 12.3 | CK92: 12.94 | CL92: 13.01 | CM92: 12.96 | CN92: 14.04 | CO92: 13.74 | CP92: 15.22 | CQ92: 15.57 | CR92: 12.3 | CS92: 14.15 | CT92: 14.88 | CU92: 13.99 | CV92: 14.66 | CW92: 17.43 | CX92: 15.06 | CY92: 17.22 | CZ92: 15.22 | DA92: 12.3 | DB92: 15.38 | DC92: 14.33 | DD92: 13.01 | DE92: 12.3 | DF92: 12.3 | DG92: 14.1 | DH92: 14.27 | DI92: 15.22 | DJ92: 16.4 | DK92: 13.8 | DL92: 13.91 | DM92: 12.92 | DN92: 12.54 | DO92: 17.46 | DP92: 12.96 | DQ92: 16.5 | DR92: 17.43 | DS92: 13.57 | DT92: 14.78 | DU92: 17.43 | DV92: 15.16 | DW92: 15.24 | DX92: 13.4 | DY92: 14.1 | DZ92: 14.23 | EA92: 16.65
A93: E0159 RR | B93: 1.44 | C93: 1.7 | D93: 1.42 | E93: 1.47 | F93: 1.33 | G93: 1.58 | H93: 1.44 | I93: 1.44 | J93: 1.55 | K93: 1.49 | L93: 1.41 | M93: 1.35 | N93: 1.33 | O93: 1.42 | P93: 1.25 | Q93: 1.74 | R93: 1.52 | S93: 1.39 | T93: 1.47 | U93: 1.56 | V93: 1.23 | W93: 1.66 | X93: 1.49 | Y93: 1.4 | Z93: 1.23 | AA93: 1.42 | AB93: 1.52 | AC93: 1.62 | AD93: 1.74 | AE93: 1.7 | AF93: 1.42 | AG93: 1.25 | AH93: 1.64 | AI93: 1.35 | AJ93: 1.51 | AK93: 1.66 | AL93: 1.63 | AM93: 1.41 | AN93: 1.34 | AO93: 1.66 | AP93: 1.41 | AQ93: 1.35 | AR93: 1.37 | AS93: 1.74 | AT93: 1.4 | AU93: 1.42 | AV93: 1.23 | AW93: 1.74 | AX93: 1.32 | AY93: 1.54 | AZ93: 1.46 | BA93: 1.54 | BB93: 1.44 | BC93: 1.41 | BD93: 1.31 | BE93: 1.27 | BF93: 1.74 | BG93: 1.74 | BH93: 1.49 | BI93: 1.37 | BJ93: 1.5 | BK93: 1.23 | BL93: 1.39 | BM93: 1.56 | BN93: 1.74 | BO93: 1.74 | BP93: 1.42 | BQ93: 1.29 | BR93: 1.35 | BS93: 1.44 | BT93: 1.23 | BU93: 1.56 | BV93: 1.36 | BW93: 1.74 | BX93: 1.74 | BY93: 1.24 | BZ93: 1.52 | CA93: 1.49 | CB93: 1.74 | CC93: 1.23 | CD93: 1.44 | CE93: 1.45 | CF93: 1.22 | CG93: 1.31 | CH93: 1.33 | CI93: 1.4 | CJ93: 1.23 | CK93: 1.29 | CL93: 1.3 | CM93: 1.29 | CN93: 1.4 | CO93: 1.37 | CP93: 1.53 | CQ93: 1.56 | CR93: 1.23 | CS93: 1.41 | CT93: 1.49 | CU93: 1.4 | CV93: 1.47 | CW93: 1.74 | CX93: 1.51 | CY93: 1.72 | CZ93: 1.53 | DA93: 1.23 | DB93: 1.54 | DC93: 1.44 | DD93: 1.3 | DE93: 1.23 | DF93: 1.23 | DG93: 1.41 | DH93: 1.42 | DI93: 1.53 | DJ93: 1.64 | DK93: 1.38 | DL93: 1.39 | DM93: 1.29 | DN93: 1.25 | DO93: 1.74 | DP93: 1.29 | DQ93: 1.65 | DR93: 1.74 | DS93: 1.35 | DT93: 1.48 | DU93: 1.74 | DV93: 1.52 | DW93: 1.53 | DX93: 1.34 | DY93: 1.41 | DZ93: 1.42 | EA93: 1.66
A94: E0159 UE | B94: 10.78 | C94: 12.78 | D94: 10.69 | E94: 11 | F94: 9.96 | G94: 11.86 | H94: 10.74 | I94: 10.78 | J94: 11.58 | K94: 11.12 | L94: 10.61 | M94: 10.13 | N94: 9.98 | O94: 10.69 | P94: 9.35 | Q94: 13.07 | R94: 11.41 | S94: 10.48 | T94: 11 | U94: 11.67 | V94: 9.23 | W94: 12.44 | X94: 11.17 | Y94: 10.54 | Z94: 9.24 | AA94: 10.7 | AB94: 11.41 | AC94: 12.16 | AD94: 13.07 | AE94: 12.78 | AF94: 10.72 | AG94: 9.38 | AH94: 12.3 | AI94: 10.13 | AJ94: 11.31 | AK94: 12.47 | AL94: 12.24 | AM94: 10.61 | AN94: 10.09 | AO94: 12.48 | AP94: 10.61 | AQ94: 10.18 | AR94: 10.26 | AS94: 13.07 | AT94: 10.52 | AU94: 10.69 | AV94: 9.23 | AW94: 13.1 | AX94: 9.92 | AY94: 11.53 | AZ94: 10.91 | BA94: 11.53 | BB94: 10.76 | BC94: 10.58 | BD94: 9.8 | BE94: 9.52 | BF94: 13.07 | BG94: 13.07 | BH94: 11.17 | BI94: 10.33 | BJ94: 11.21 | BK94: 9.23 | BL94: 10.41 | BM94: 11.67 | BN94: 13.07 | BO94: 13.07 | BP94: 10.72 | BQ94: 9.72 | BR94: 10.15 | BS94: 10.78 | BT94: 9.23 | BU94: 11.64 | BV94: 10.24 | BW94: 13.07 | BX94: 13.09 | BY94: 9.34 | BZ94: 11.4 | CA94: 11.16 | CB94: 13.07 | CC94: 9.23 | CD94: 10.72 | CE94: 10.81 | CF94: 9.18 | CG94: 9.86 | CH94: 9.99 | CI94: 10.5 | CJ94: 9.23 | CK94: 9.71 | CL94: 9.76 | CM94: 9.72 | CN94: 10.54 | CO94: 10.3 | CP94: 11.42 | CQ94: 11.67 | CR94: 9.23 | CS94: 10.61 | CT94: 11.16 | CU94: 10.5 | CV94: 11 | CW94: 13.07 | CX94: 11.3 | CY94: 12.92 | CZ94: 11.42 | DA94: 9.23 | DB94: 11.53 | DC94: 10.75 | DD94: 9.76 | DE94: 9.23 | DF94: 9.23 | DG94: 10.58 | DH94: 10.7 | DI94: 11.42 | DJ94: 12.3 | DK94: 10.35 | DL94: 10.43 | DM94: 9.69 | DN94: 9.4 | DO94: 13.09 | DP94: 9.72 | DQ94: 12.38 | DR94: 13.07 | DS94: 10.18 | DT94: 11.09 | DU94: 13.07 | DV94: 11.37 | DW94: 11.43 | DX94: 10.05 | DY94: 10.58 | DZ94: 10.67 | EA94: 12.48
A95: E0160 NU | B95: 28 | C95: 31.78 | D95: 33.76 | E95: 29.73 | F95: 29.03 | G95: 28.7 | H95: 28 | I95: 28 | J95: 27.31 | K95: 31.28 | L95: 26.47 | M95: 28.7 | N95: 28.3 | O95: 25.63 | P95: 26.47 | Q95: 25.4 | R95: 27.86 | S95: 30.75 | T95: 30.37 | U95: 32.38 | V95: 29.73 | W95: 33.92 | X95: 30.08 | Y95: 29.73 | Z95: 21.42 | AA95: 27.31 | AB95: 27.31 | AC95: 30.37 | AD95: 30.37 | AE95: 29.73 | AF95: 28.68 | AG95: 25.6 | AH95: 27.16 | AI95: 26.65 | AJ95: 27.31 | AK95: 30.24 | AL95: 29.54 | AM95: 25.63 | AN95: 25.6 | AO95: 31.78 | AP95: 28.62 | AQ95: 23.08 | AR95: 27.37 | AS95: 29.21 | AT95: 30.08 | AU95: 27.31 | AV95: 27.78 | AW95: 29.73 | AX95: 27.27 | AY95: 31.87 | AZ95: 29.73 | BA95: 28.77 | BB95: 27.31 | BC95: 27.31 | BD95: 82 | BE95: 26.17 | BF95: 30.37 | BG95: 31.78 | BH95: 27.85 | BI95: 24.1 | BJ95: 31.96 | BK95: 28.7 | BL95: 27.41 | BM95: 29.73 | BN95: 31.62 | BO95: 30.37 | BP95: 30.69 | BQ95: 23.58 | BR95: 31.96 | BS95: 27.31 | BT95: 26.45 | BU95: 27.31 | BV95: 25.63 | BW95: 30.37 | BX95: 31.94 | BY95: 20.61 | BZ95: 31.96 | CA95: 30.93 | CB95: 30.37 | CC95: 28.24 | CD95: 28.84 | CE95: 25.63 | CF95: 20.73 | CG95: 26.48 | CH95: 24.65 | CI95: 28.7 | CJ95: 25.63 | CK95: 22.66 | CL95: 22.94 | CM95: 21.07 | CN95: 25.63 | CO95: 29.73 | CP95: 31.96 | CQ95: 28 | CR95: 29.71 | CS95: 30.08 | CT95: 30.08 | CU95: 30.75 | CV95: 27.31 | CW95: 28.7 | CX95: 30.26 | CY95: 33.92 | CZ95: 31.02 | DA95: 30.08 | DB95: 31.96 | DC95: 25.13 | DD95: 25.63 | DE95: 27.27 | DF95: 25.63 | DG95: 27.31 | DH95: 31.02 | DI95: 30.08 | DJ95: 31.02 | DK95: 29.9 | DL95: 29.91 | DM95: 30.08 | DN95: 29.43 | DO95: 31.94 | DP95: 21.53 | DQ95: 31.96 | DR95: 31.96 | DS95: 26.65 | DT95: 31.02 | DU95: 28.7 | DV95: 29.4 | DW95: 31.35 | DX95: 30.77 | DY95: 31.02 | DZ95: 32.89 | EA95: 28.7
A96: E0160 RR | B96: 2.8 | C96: 3.18 | D96: 3.37 | E96: 2.97 | F96: 2.9 | G96: 2.87 | H96: 2.8 | I96: 2.8 | J96: 2.73 | K96: 3.13 | L96: 2.64 | M96: 2.87 | N96: 2.83 | O96: 2.56 | P96: 2.64 | Q96: 2.54 | R96: 2.79 | S96: 3.08 | T96: 3.03 | U96: 3.24 | V96: 2.97 | W96: 3.39 | X96: 3.01 | Y96: 2.97 | Z96: 2.14 | AA96: 2.73 | AB96: 2.73 | AC96: 3.03 | AD96: 3.03 | AE96: 2.97 | AF96: 2.87 | AG96: 2.56 | AH96: 2.72 | AI96: 2.67 | AJ96: 2.73 | AK96: 3.02 | AL96: 2.95 | AM96: 2.56 | AN96: 2.56 | AO96: 3.18 | AP96: 2.86 | AQ96: 2.31 | AR96: 2.74 | AS96: 2.92 | AT96: 3.01 | AU96: 2.73 | AV96: 2.78 | AW96: 2.97 | AX96: 2.73 | AY96: 3.19 | AZ96: 2.97 | BA96: 2.88 | BB96: 2.73 | BC96: 2.73 | BD96: 8.2 | BE96: 2.61 | BF96: 3.03 | BG96: 3.18 | BH96: 2.79 | BI96: 2.41 | BJ96: 3.2 | BK96: 2.87 | BL96: 2.74 | BM96: 2.97 | BN96: 3.17 | BO96: 3.03 | BP96: 3.06 | BQ96: 2.36 | BR96: 3.2 | BS96: 2.73 | BT96: 2.64 | BU96: 2.73 | BV96: 2.56 | BW96: 3.03 | BX96: 3.2 | BY96: 2.06 | BZ96: 3.2 | CA96: 3.1 | CB96: 3.03 | CC96: 2.83 | CD96: 2.88 | CE96: 2.56 | CF96: 2.07 | CG96: 2.64 | CH96: 2.47 | CI96: 2.87 | CJ96: 2.56 | CK96: 2.27 | CL96: 2.3 | CM96: 2.11 | CN96: 2.56 | CO96: 2.97 | CP96: 3.2 | CQ96: 2.8 | CR96: 2.97 | CS96: 3.01 | CT96: 3.01 | CU96: 3.08 | CV96: 2.73 | CW96: 2.87 | CX96: 3.02 | CY96: 3.39 | CZ96: 3.11 | DA96: 3.01 | DB96: 3.2 | DC96: 2.51 | DD96: 2.56 | DE96: 2.73 | DF96: 2.56 | DG96: 2.73 | DH96: 3.11 | DI96: 3.01 | DJ96: 3.11 | DK96: 2.99 | DL96: 2.99 | DM96: 3.01 | DN96: 2.94 | DO96: 3.2 | DP96: 2.15 | DQ96: 3.2 | DR96: 3.2 | DS96: 2.67 | DT96: 3.11 | DU96: 2.87 | DV96: 2.94 | DW96: 3.14 | DX96: 3.08 | DY96: 3.11 | DZ96: 3.29 | EA96: 2.87
A97: E0160 UE | B97: 21 | C97: 23.83 | D97: 25.33 | E97: 22.29 | F97: 21.77 | G97: 21.53 | H97: 21 | I97: 21 | J97: 20.48 | K97: 23.46 | L97: 19.85 | M97: 21.53 | N97: 21.23 | O97: 19.22 | P97: 19.85 | Q97: 19.05 | R97: 20.9 | S97: 23.06 | T97: 22.78 | U97: 24.28 | V97: 22.29 | W97: 25.44 | X97: 22.56 | Y97: 22.29 | Z97: 16.07 | AA97: 20.48 | AB97: 20.48 | AC97: 22.78 | AD97: 22.78 | AE97: 22.29 | AF97: 21.51 | AG97: 19.21 | AH97: 20.38 | AI97: 19.99 | AJ97: 20.48 | AK97: 22.68 | AL97: 22.16 | AM97: 19.22 | AN97: 19.21 | AO97: 23.83 | AP97: 21.46 | AQ97: 17.31 | AR97: 20.53 | AS97: 21.91 | AT97: 22.56 | AU97: 20.48 | AV97: 20.84 | AW97: 22.29 | AX97: 20.45 | AY97: 23.9 | AZ97: 22.29 | BA97: 21.58 | BB97: 20.48 | BC97: 20.48 | BD97: 61.5 | BE97: 19.63 | BF97: 22.78 | BG97: 23.83 | BH97: 20.89 | BI97: 18.07 | BJ97: 23.97 | BK97: 21.53 | BL97: 20.56 | BM97: 22.29 | BN97: 23.72 | BO97: 22.78 | BP97: 23.02 | BQ97: 17.68 | BR97: 23.97 | BS97: 20.48 | BT97: 19.83 | BU97: 20.48 | BV97: 19.22 | BW97: 22.78 | BX97: 23.95 | BY97: 15.46 | BZ97: 23.97 | CA97: 23.21 | CB97: 22.78 | CC97: 21.18 | CD97: 21.64 | CE97: 19.22 | CF97: 15.55 | CG97: 19.85 | CH97: 18.49 | CI97: 21.53 | CJ97: 19.22 | CK97: 16.99 | CL97: 17.21 | CM97: 15.81 | CN97: 19.22 | CO97: 22.29 | CP97: 23.97 | CQ97: 21 | CR97: 22.28 | CS97: 22.56 | CT97: 22.56 | CU97: 23.06 | CV97: 20.48 | CW97: 21.53 | CX97: 22.69 | CY97: 25.44 | CZ97: 23.27 | DA97: 22.56 | DB97: 23.97 | DC97: 18.85 | DD97: 19.22 | DE97: 20.45 | DF97: 19.22 | DG97: 20.48 | DH97: 23.27 | DI97: 22.56 | DJ97: 23.27 | DK97: 22.43 | DL97: 22.44 | DM97: 22.56 | DN97: 22.07 | DO97: 23.95 | DP97: 16.14 | DQ97: 23.97 | DR97: 23.97 | DS97: 19.99 | DT97: 23.27 | DU97: 21.53 | DV97: 22.05 | DW97: 23.51 | DX97: 23.08 | DY97: 23.27 | DZ97: 24.67 | EA97: 21.53
A98: E0161 NU | B98: 25.05 | C98: 26.17 | D98: 29.73 | E98: 23.58 | F98: 26.14 | G98: 26.65 | H98: 25.87 | I98: 25.87 | J98: 24.09 | K98: 26.16 | L98: 22.07 | M98: 21.66 | N98: 25.01 | O98: 23.99 | P98: 22.55 | Q98: 24.34 | R98: 24.68 | S98: 24.09 | T98: 24.6 | U98: 25.35 | V98: 23.87 | W98: 29.26 | X98: 25.28 | Y98: 26.65 | Z98: 22.11 | AA98: 25.63 | AB98: 24.49 | AC98: 28.7 | AD98: 28.34 | AE98: 28.34 | AF98: 25.11 | AG98: 23.72 | AH98: 23.21 | AI98: 22.61 | AJ98: 24.49 | AK98: 25.91 | AL98: 24.97 | AM98: 22.55 | AN98: 23.06 | AO98: 28.19 | AP98: 23.06 | AQ98: 23.25 | AR98: 22.76 | AS98: 24.09 | AT98: 25.28 | AU98: 22.61 | AV98: 23.72 | AW98: 25.63 | AX98: 21.6 | AY98: 25.73 | AZ98: 24.6 | BA98: 26.86 | BB98: 24.49 | BC98: 24.09 | BD98: 21.59 | BE98: 22.26 | BF98: 28.34 | BG98: 25.42 | BH98: 24.68 | BI98: 22.91 | BJ98: 25.57 | BK98: 25.63 | BL98: 24.68 | BM98: 25.83 | BN98: 26.55 | BO98: 28.34 | BP98: 26.16 | BQ98: 22.61 | BR98: 21.66 | BS98: 23.87 | BT98: 21.45 | BU98: 24.6 | BV98: 22.48 | BW98: 28.34 | BX98: 29.09 | BY98: 20.32 | BZ98: 26.46 | CA98: 25.45 | CB98: 28.34 | CC98: 23.58 | CD98: 24.34 | CE98: 23.21 | CF98: 22.37 | CG98: 24.52 | CH98: 21.66 | CI98: 25.52 | CJ98: 21.6 | CK98: 21.69 | CL98: 21.58 | CM98: 22.37 | CN98: 25.28 | CO98: 24.09 | CP98: 26.17 | CQ98: 28.34 | CR98: 23.58 | CS98: 25.28 | CT98: 24.09 | CU98: 25.28 | CV98: 25.28 | CW98: 26.65 | CX98: 23.11 | CY98: 29.26 | CZ98: 23.59 | DA98: 21.66 | DB98: 21.66 | DC98: 22.07 | DD98: 21.6 | DE98: 21.6 | DF98: 21.6 | DG98: 25.28 | DH98: 25.52 | DI98: 27.68 | DJ98: 27.5 | DK98: 23.5 | DL98: 23.73 | DM98: 21.66 | DN98: 23.58 | DO98: 28.34 | DP98: 23.87 | DQ98: 29.26 | DR98: 25.35 | DS98: 22.48 | DT98: 26.79 | DU98: 26.55 | DV98: 22.1 | DW98: 27.49 | DX98: 25.11 | DY98: 26.81 | DZ98: 24.07 | EA98: 28.19
A99: E0161 RR | B99: 2.5 | C99: 2.61 | D99: 2.97 | E99: 2.36 | F99: 2.61 | G99: 2.67 | H99: 2.58 | I99: 2.58 | J99: 2.41 | K99: 2.61 | L99: 2.2 | M99: 2.16 | N99: 2.5 | O99: 2.4 | P99: 2.26 | Q99: 2.44 | R99: 2.47 | S99: 2.41 | T99: 2.46 | U99: 2.53 | V99: 2.39 | W99: 2.93 | X99: 2.53 | Y99: 2.67 | Z99: 2.21 | AA99: 2.56 | AB99: 2.45 | AC99: 2.87 | AD99: 2.84 | AE99: 2.84 | AF99: 2.51 | AG99: 2.37 | AH99: 2.32 | AI99: 2.27 | AJ99: 2.45 | AK99: 2.59 | AL99: 2.5 | AM99: 2.26 | AN99: 2.31 | AO99: 2.82 | AP99: 2.31 | AQ99: 2.33 | AR99: 2.28 | AS99: 2.41 | AT99: 2.53 | AU99: 2.27 | AV99: 2.37 | AW99: 2.56 | AX99: 2.16 | AY99: 2.57 | AZ99: 2.46 | BA99: 2.69 | BB99: 2.45 | BC99: 2.41 | BD99: 2.16 | BE99: 2.22 | BF99: 2.84 | BG99: 2.54 | BH99: 2.47 | BI99: 2.3 | BJ99: 2.56 | BK99: 2.56 | BL99: 2.47 | BM99: 2.58 | BN99: 2.65 | BO99: 2.84 | BP99: 2.61 | BQ99: 2.27 | BR99: 2.16 | BS99: 2.39 | BT99: 2.14 | BU99: 2.46 | BV99: 2.24 | BW99: 2.84 | BX99: 2.91 | BY99: 2.03 | BZ99: 2.64 | CA99: 2.54 | CB99: 2.84 | CC99: 2.36 | CD99: 2.44 | CE99: 2.32 | CF99: 2.23 | CG99: 2.45 | CH99: 2.16 | CI99: 2.55 | CJ99: 2.16 | CK99: 2.17 | CL99: 2.16 | CM99: 2.23 | CN99: 2.53 | CO99: 2.41 | CP99: 2.61 | CQ99: 2.84 | CR99: 2.36 | CS99: 2.53 | CT99: 2.41 | CU99: 2.53 | CV99: 2.53 | CW99: 2.67 | CX99: 2.32 | CY99: 2.93 | CZ99: 2.36 | DA99: 2.16 | DB99: 2.16 | DC99: 2.2 | DD99: 2.16 | DE99: 2.16 | DF99: 2.16 | DG99: 2.53 | DH99: 2.55 | DI99: 2.77 | DJ99: 2.75 | DK99: 2.35 | DL99: 2.38 | DM99: 2.16 | DN99: 2.36 | DO99: 2.84 | DP99: 2.39 | DQ99: 2.93 | DR99: 2.53 | DS99: 2.24 | DT99: 2.68 | DU99: 2.65 | DV99: 2.21 | DW99: 2.75 | DX99: 2.51 | DY99: 2.69 | DZ99: 2.41 | EA99: 2.82
A100: E0161 UE | B100: 18.79 | C100: 19.63 | D100: 22.29 | E100: 17.68 | F100: 19.61 | G100: 19.99 | H100: 19.4 | I100: 19.4 | J100: 18.07 | K100: 19.62 | L100: 16.55 | M100: 16.25 | N100: 18.76 | O100: 17.99 | P100: 16.91 | Q100: 18.26 | R100: 18.51 | S100: 18.07 | T100: 18.45 | U100: 19.01 | V100: 17.91 | W100: 21.95 | X100: 18.96 | Y100: 19.99 | Z100: 16.58 | AA100: 19.22 | AB100: 18.37 | AC100: 21.53 | AD100: 21.26 | AE100: 21.26 | AF100: 18.84 | AG100: 17.79 | AH100: 17.4 | AI100: 16.96 | AJ100: 18.37 | AK100: 19.43 | AL100: 18.73 | AM100: 16.91 | AN100: 17.3 | AO100: 21.15 | AP100: 17.3 | AQ100: 17.44 | AR100: 17.07 | AS100: 18.07 | AT100: 18.96 | AU100: 16.96 | AV100: 17.79 | AW100: 19.22 | AX100: 16.2 | AY100: 19.3 | AZ100: 18.45 | BA100: 20.14 | BB100: 18.37 | BC100: 18.07 | BD100: 16.2 | BE100: 16.7 | BF100: 21.26 | BG100: 19.07 | BH100: 18.51 | BI100: 17.18 | BJ100: 19.18 | BK100: 19.22 | BL100: 18.51 | BM100: 19.37 | BN100: 19.92 | BO100: 21.26 | BP100: 19.62 | BQ100: 16.96 | BR100: 16.25 | BS100: 17.91 | BT100: 16.09 | BU100: 18.45 | BV100: 16.86 | BW100: 21.26 | BX100: 21.82 | BY100: 15.24 | BZ100: 19.84 | CA100: 19.09 | CB100: 21.26 | CC100: 17.68 | CD100: 18.26 | CE100: 17.4 | CF100: 16.78 | CG100: 18.39 | CH100: 16.25 | CI100: 19.15 | CJ100: 16.2 | CK100: 16.27 | CL100: 16.18 | CM100: 16.78 | CN100: 18.96 | CO100: 18.07 | CP100: 19.63 | CQ100: 21.26 | CR100: 17.68 | CS100: 18.96 | CT100: 18.07 | CU100: 18.96 | CV100: 18.96 | CW100: 19.99 | CX100: 17.33 | CY100: 21.95 | CZ100: 17.69 | DA100: 16.25 | DB100: 16.25 | DC100: 16.55 | DD100: 16.2 | DE100: 16.2 | DF100: 16.2 | DG100: 18.96 | DH100: 19.15 | DI100: 20.76 | DJ100: 20.62 | DK100: 17.63 | DL100: 17.79 | DM100: 16.25 | DN100: 17.68 | DO100: 21.26 | DP100: 17.91 | DQ100: 21.95 | DR100: 19.01 | DS100: 16.86 | DT100: 20.1 | DU100: 19.92 | DV100: 16.57 | DW100: 20.62 | DX100: 18.84 | DY100: 20.11 | DZ100: 18.05 | EA100: 21.15
A101: E0163 NU | B101: 49.62 | C101: 52.51 | D101: 49.2 | E101: 54.89 | F101: 47.56 | G101: 49.2 | H101: 49.62 | I101: 53.59 | J101: 54.89 | K101: 53.3 | L101: 51.25 | M101: 48.93 | N101: 48.2 | O101: 53.9 | P101: 51.25 | Q101: 60.11 | R101: 50.83 | S101: 49.2 | T101: 48.83 | U101: 47.25 | V101: 49.2 | W101: 49.02 | X101: 47.97 | Y101: 48.83 | Z101: 60.99 | AA101: 52.28 | AB101: 50.41 | AC101: 54.24 | AD101: 61.5 | AE101: 48.83 | AF101: 54.99 | AG101: 54.05 | AH101: 51.67 | AI101: 51.25 | AJ101: 50.41 | AK101: 54.26 | AL101: 49.62 | AM101: 52.09 | AN101: 52.48 | AO101: 52.51 | AP101: 51.02 | AQ101: 58.75 | AR101: 50.83 | AS101: 53.03 | AT101: 66.63 | AU101: 55.35 | AV101: 49.02 | AW101: 53.3 | AX101: 54.28 | AY101: 53.21 | AZ101: 53.3 | BA101: 53.57 | BB101: 54.89 | BC101: 49.09 | BD101: 54.89 | BE101: 53.17 | BF101: 49.2 | BG101: 50.83 | BH101: 58.28 | BI101: 55.45 | BJ101: 50.41 | BK101: 48.83 | BL101: 60.22 | BM101: 54.94 | BN101: 51.85 | BO101: 61.54 | BP101: 50.32 | BQ101: 59.1 | BR101: 48.83 | BS101: 44.13 | BT101: 57.41 | BU101: 52.51 | BV101: 56.46 | BW101: 61.02 | BX101: 49.8 | BY101: 53.21 | BZ101: 53.47 | CA101: 50.83 | CB101: 61.85 | CC101: 50.41 | CD101: 48.95 | CE101: 49.62 | CF101: 55.45 | CG101: 59.45 | CH101: 51.25 | CI101: 49.62 | CJ101: 48.18 | CK101: 61.23 | CL101: 45.9 | CM101: 58.5 | CN101: 49.2 | CO101: 50.41 | CP101: 54.89 | CQ101: 49.32 | CR101: 49.2 | CS101: 51.2 | CT101: 48.83 | CU101: 47.97 | CV101: 48.83 | CW101: 49.2 | CX101: 54.22 | CY101: 49.8 | CZ101: 49.02 | DA101: 48.18 | DB101: 63.27 | DC101: 54.49 | DD101: 48.83 | DE101: 55.16 | DF101: 49.34 | DG101: 51.25 | DH101: 52.64 | DI101: 47.36 | DJ101: 58.28 | DK101: 44.61 | DL101: 59.31 | DM101: 48.18 | DN101: 50.3 | DO101: 53.81 | DP101: 61.51 | DQ101: 51.88 | DR101: 46.54 | DS101: 51.44 | DT101: 48.26 | DU101: 48.5 | DV101: 49.67 | DW101: 49.2 | DX101: 56.85 | DY101: 49.8 | DZ101: 48.4 | EA101: 52.51
A102: E0163 RR | B102: 4.96 | C102: 5.25 | D102: 4.92 | E102: 5.49 | F102: 4.76 | G102: 4.92 | H102: 4.96 | I102: 5.36 | J102: 5.49 | K102: 5.33 | L102: 5.13 | M102: 4.89 | N102: 4.82 | O102: 5.39 | P102: 5.13 | Q102: 6.01 | R102: 5.08 | S102: 4.92 | T102: 4.88 | U102: 4.73 | V102: 4.92 | W102: 4.9 | X102: 4.8 | Y102: 4.88 | Z102: 6.1 | AA102: 5.23 | AB102: 5.04 | AC102: 5.42 | AD102: 6.15 | AE102: 4.88 | AF102: 5.5 | AG102: 5.4 | AH102: 5.17 | AI102: 5.13 | AJ102: 5.04 | AK102: 5.42 | AL102: 4.96 | AM102: 5.21 | AN102: 5.25 | AO102: 5.25 | AP102: 5.1 | AQ102: 5.87 | AR102: 5.08 | AS102: 5.3 | AT102: 6.66 | AU102: 5.54 | AV102: 4.9 | AW102: 5.33 | AX102: 5.43 | AY102: 5.32 | AZ102: 5.33 | BA102: 5.36 | BB102: 5.49 | BC102: 4.91 | BD102: 5.49 | BE102: 5.32 | BF102: 4.92 | BG102: 5.08 | BH102: 5.83 | BI102: 5.55 | BJ102: 5.04 | BK102: 4.88 | BL102: 6.03 | BM102: 5.49 | BN102: 5.19 | BO102: 6.15 | BP102: 5.03 | BQ102: 5.91 | BR102: 4.88 | BS102: 4.42 | BT102: 5.74 | BU102: 5.25 | BV102: 5.65 | BW102: 6.1 | BX102: 4.98 | BY102: 5.32 | BZ102: 5.35 | CA102: 5.08 | CB102: 6.18 | CC102: 5.04 | CD102: 4.9 | CE102: 4.96 | CF102: 5.55 | CG102: 5.95 | CH102: 5.13 | CI102: 4.96 | CJ102: 4.82 | CK102: 6.12 | CL102: 4.59 | CM102: 5.85 | CN102: 4.92 | CO102: 5.04 | CP102: 5.49 | CQ102: 4.93 | CR102: 4.92 | CS102: 5.13 | CT102: 4.88 | CU102: 4.8 | CV102: 4.88 | CW102: 4.92 | CX102: 5.42 | CY102: 4.98 | CZ102: 4.9 | DA102: 4.82 | DB102: 6.32 | DC102: 5.45 | DD102: 4.88 | DE102: 5.51 | DF102: 4.93 | DG102: 5.13 | DH102: 5.27 | DI102: 4.74 | DJ102: 5.83 | DK102: 4.46 | DL102: 5.93 | DM102: 4.82 | DN102: 5.03 | DO102: 5.38 | DP102: 6.15 | DQ102: 5.19 | DR102: 4.65 | DS102: 5.15 | DT102: 4.83 | DU102: 4.85 | DV102: 4.97 | DW102: 4.92 | DX102: 5.69 | DY102: 4.98 | DZ102: 4.84 | EA102: 5.25
A103: E0163 UE | B103: 37.22 | C103: 39.38 | D103: 36.9 | E103: 41.16 | F103: 35.67 | G103: 36.9 | H103: 37.22 | I103: 40.19 | J103: 41.16 | K103: 39.98 | L103: 38.44 | M103: 36.71 | N103: 36.15 | O103: 40.43 | P103: 38.44 | Q103: 45.08 | R103: 38.12 | S103: 36.9 | T103: 36.62 | U103: 35.44 | V103: 36.9 | W103: 36.77 | X103: 35.98 | Y103: 36.62 | Z103: 45.75 | AA103: 39.21 | AB103: 37.81 | AC103: 40.68 | AD103: 46.13 | AE103: 36.62 | AF103: 41.25 | AG103: 40.54 | AH103: 38.76 | AI103: 38.44 | AJ103: 37.81 | AK103: 40.7 | AL103: 37.22 | AM103: 39.07 | AN103: 39.36 | AO103: 39.38 | AP103: 38.27 | AQ103: 44.06 | AR103: 38.12 | AS103: 39.78 | AT103: 49.97 | AU103: 41.51 | AV103: 36.77 | AW103: 39.98 | AX103: 40.71 | AY103: 39.9 | AZ103: 39.98 | BA103: 40.18 | BB103: 41.16 | BC103: 36.82 | BD103: 41.16 | BE103: 39.87 | BF103: 36.9 | BG103: 38.12 | BH103: 43.72 | BI103: 41.59 | BJ103: 37.81 | BK103: 36.62 | BL103: 45.16 | BM103: 41.21 | BN103: 38.89 | BO103: 46.16 | BP103: 37.74 | BQ103: 44.33 | BR103: 36.62 | BS103: 33.1 | BT103: 43.06 | BU103: 39.38 | BV103: 42.34 | BW103: 45.77 | BX103: 37.35 | BY103: 39.9 | BZ103: 40.11 | CA103: 38.12 | CB103: 46.39 | CC103: 37.81 | CD103: 36.72 | CE103: 37.22 | CF103: 41.59 | CG103: 44.59 | CH103: 38.44 | CI103: 37.22 | CJ103: 36.13 | CK103: 45.93 | CL103: 34.43 | CM103: 43.87 | CN103: 36.9 | CO103: 37.81 | CP103: 41.16 | CQ103: 36.99 | CR103: 36.9 | CS103: 38.4 | CT103: 36.62 | CU103: 35.98 | CV103: 36.62 | CW103: 36.9 | CX103: 40.67 | CY103: 37.35 | CZ103: 36.77 | DA103: 36.13 | DB103: 47.46 | DC103: 40.87 | DD103: 36.62 | DE103: 41.37 | DF103: 37.01 | DG103: 38.44 | DH103: 39.48 | DI103: 35.52 | DJ103: 43.72 | DK103: 33.46 | DL103: 44.49 | DM103: 36.13 | DN103: 37.72 | DO103: 40.36 | DP103: 46.14 | DQ103: 38.91 | DR103: 34.9 | DS103: 38.58 | DT103: 36.19 | DU103: 36.38 | DV103: 37.26 | DW103: 36.9 | DX103: 42.64 | DY103: 37.35 | DZ103: 36.31 | EA103: 39.38
A104: E0165 RR | B104: 12.22 | C104: 11.5 | D104: 11.33 | E104: 12.58 | F104: 10.9 | G104: 10.76 | H104: 11.26 | I104: 12.24 | J104: 12.3 | K104: 12.68 | L104: 12.28 | M104: 13.48 | N104: 10.9 | O104: 12.08 | P104: 12.22 | Q104: 12.29 | R104: 11.6 | S104: 11.28 | T104: 11.02 | U104: 10.76 | V104: 11.02 | W104: 10.9 | X104: 10.76 | Y104: 11.02 | Z104: 12.4 | AA104: 12.4 | AB104: 12.27 | AC104: 14.17 | AD104: 14.86 | AE104: 12.61 | AF104: 12.61 | AG104: 12.51 | AH104: 12.76 | AI104: 11.57 | AJ104: 12.27 | AK104: 11.28 | AL104: 11.93 | AM104: 12.71 | AN104: 11.65 | AO104: 11.79 | AP104: 12.81 | AQ104: 13.65 | AR104: 11.3 | AS104: 13.33 | AT104: 15.38 | AU104: 12.3 | AV104: 11.45 | AW104: 11.97 | AX104: 13.48 | AY104: 14.27 | AZ104: 11.97 | BA104: 11.92 | BB104: 12.27 | BC104: 11.84 | BD104: 16.62 | BE104: 12.22 | BF104: 11.02 | BG104: 13.23 | BH104: 12.36 | BI104: 12.36 | BJ104: 13.33 | BK104: 11.02 | BL104: 14.2 | BM104: 12.88 | BN104: 11.33 | BO104: 15.89 | BP104: 11.15 | BQ104: 13.31 | BR104: 11.02 | BS104: 11.02 | BT104: 11.47 | BU104: 11.79 | BV104: 12.3 | BW104: 15.38 | BX104: 10.76 | BY104: 12.59 | BZ104: 13.22 | CA104: 11.9 | CB104: 14.87 | CC104: 11.28 | CD104: 11.43 | CE104: 11.98 | CF104: 12.36 | CG104: 13.79 | CH104: 11.02 | CI104: 11.63 | CJ104: 11.02 | CK104: 13.74 | CL104: 10.43 | CM104: 12.58 | CN104: 11.28 | CO104: 11.07 | CP104: 12.3 | CQ104: 11.69 | CR104: 11.28 | CS104: 11.62 | CT104: 11.28 | CU104: 12.3 | CV104: 11.28 | CW104: 10.76 | CX104: 14.48 | CY104: 11.6 | CZ104: 11.33 | DA104: 10.76 | DB104: 16.66 | DC104: 11.45 | DD104: 11.02 | DE104: 12.77 | DF104: 11.02 | DG104: 10.76 | DH104: 12.82 | DI104: 10.76 | DJ104: 12.61 | DK104: 11.66 | DL104: 12.3 | DM104: 10.76 | DN104: 11.31 | DO104: 12.18 | DP104: 13.33 | DQ104: 10.87 | DR104: 10.18 | DS104: 12.27 | DT104: 10.56 | DU104: 10.37 | DV104: 12.43 | DW104: 10.9 | DX104: 13.79 | DY104: 10.63 | DZ104: 12.18 | EA104: 11.79
A105: E0167 NU | B105: 10.32 | C105: 12.3 | D105: 13.33 | E105: 10.25 | F105: 10.68 | G105: 11.28 | H105: 10.46 | I105: 9.88 | J105: 9.48 | K105: 12.3 | L105: 10.48 | M105: 10.93 | N105: 9.4 | O105: 9.28 | P105: 10.25 | Q105: 9.39 | R105: 10.59 | S105: 12.3 | T105: 13.15 | U105: 13.4 | V105: 10.25 | W105: 13.24 | X105: 9.38 | Y105: 11.12 | Z105: 7.89 | AA105: 9.29 | AB105: 10.25 | AC105: 12.3 | AD105: 12.51 | AE105: 12.3 | AF105: 10.93 | AG105: 10.84 | AH105: 10.25 | AI105: 9.29 | AJ105: 10.25 | AK105: 12.3 | AL105: 11.28 | AM105: 10.25 | AN105: 10.06 | AO105: 12.3 | AP105: 10.87 | AQ105: 8.69 | AR105: 9.4 | AS105: 11.79 | AT105: 10.25 | AU105: 10.72 | AV105: 10.77 | AW105: 11.28 | AX105: 10.25 | AY105: 12.4 | AZ105: 11.28 | BA105: 10.53 | BB105: 10.25 | BC105: 12.97 | BD105: 11.28 | BE105: 10.08 | BF105: 12.51 | BG105: 11.89 | BH105: 10.22 | BI105: 9.06 | BJ105: 11.24 | BK105: 10.93 | BL105: 10.25 | BM105: 10.25 | BN105: 11.79 | BO105: 12.4 | BP105: 12.73 | BQ105: 8.15 | BR105: 10.93 | BS105: 10.93 | BT105: 9.98 | BU105: 11.24 | BV105: 10.72 | BW105: 12.51 | BX105: 11.31 | BY105: 7.89 | BZ105: 11.28 | CA105: 10.46 | CB105: 12.66 | CC105: 9.74 | CD105: 13.06 | CE105: 8.74 | CF105: 7.89 | CG105: 9.31 | CH105: 9.45 | CI105: 10.51 | CJ105: 10.25 | CK105: 8.54 | CL105: 8.9 | CM105: 8.02 | CN105: 10.25 | CO105: 12.3 | CP105: 10.24 | CQ105: 10.35 | CR105: 10.78 | CS105: 10.24 | CT105: 10.93 | CU105: 12.3 | CV105: 9.51 | CW105: 9.76 | CX105: 11.3 | CY105: 13.24 | CZ105: 10.63 | DA105: 10.93 | DB105: 10.93 | DC105: 9.88 | DD105: 10.25 | DE105: 10.25 | DF105: 10.25 | DG105: 9.51 | DH105: 10.25 | DI105: 9.38 | DJ105: 12.03 | DK105: 12.03 | DL105: 10.25 | DM105: 10.93 | DN105: 10.25 | DO105: 12.97 | DP105: 8.2 | DQ105: 13.4 | DR105: 13.15 | DS105: 9.51 | DT105: 10.54 | DU105: 10.07 | DV105: 11.05 | DW105: 10.44 | DX105: 11.1 | DY105: 11.26 | DZ105: 12.36 | EA105: 11.28
A106: E0167 RR | B106: 1.04 | C106: 1.23 | D106: 1.33 | E106: 1.03 | F106: 1.07 | G106: 1.13 | H106: 1.05 | I106: 0.98 | J106: 0.95 | K106: 1.23 | L106: 1.05 | M106: 1.1 | N106: 0.94 | O106: 0.93 | P106: 1.03 | Q106: 0.94 | R106: 1.06 | S106: 1.23 | T106: 1.31 | U106: 1.34 | V106: 1.03 | W106: 1.32 | X106: 0.94 | Y106: 1.12 | Z106: 0.79 | AA106: 0.93 | AB106: 1.03 | AC106: 1.23 | AD106: 1.25 | AE106: 1.23 | AF106: 1.1 | AG106: 1.09 | AH106: 1.03 | AI106: 0.93 | AJ106: 1.03 | AK106: 1.23 | AL106: 1.13 | AM106: 1.03 | AN106: 1 | AO106: 1.23 | AP106: 1.09 | AQ106: 0.87 | AR106: 0.94 | AS106: 1.18 | AT106: 1.03 | AU106: 1.08 | AV106: 1.08 | AW106: 1.13 | AX106: 1.03 | AY106: 1.24 | AZ106: 1.13 | BA106: 1.06 | BB106: 1.03 | BC106: 1.3 | BD106: 1.13 | BE106: 1 | BF106: 1.25 | BG106: 1.19 | BH106: 1.03 | BI106: 0.9 | BJ106: 1.13 | BK106: 1.1 | BL106: 1.03 | BM106: 1.03 | BN106: 1.18 | BO106: 1.24 | BP106: 1.27 | BQ106: 0.82 | BR106: 1.1 | BS106: 1.1 | BT106: 0.99 | BU106: 1.13 | BV106: 1.08 | BW106: 1.25 | BX106: 1.13 | BY106: 0.79 | BZ106: 1.13 | CA106: 1.05 | CB106: 1.27 | CC106: 0.97 | CD106: 1.3 | CE106: 0.87 | CF106: 0.79 | CG106: 0.93 | CH106: 0.94 | CI106: 1.06 | CJ106: 1.03 | CK106: 0.85 | CL106: 0.89 | CM106: 0.8 | CN106: 1.03 | CO106: 1.23 | CP106: 1.03 | CQ106: 1.04 | CR106: 1.08 | CS106: 1.03 | CT106: 1.1 | CU106: 1.23 | CV106: 0.95 | CW106: 0.97 | CX106: 1.13 | CY106: 1.32 | CZ106: 1.07 | DA106: 1.1 | DB106: 1.1 | DC106: 0.98 | DD106: 1.03 | DE106: 1.03 | DF106: 1.03 | DG106: 0.95 | DH106: 1.03 | DI106: 0.94 | DJ106: 1.2 | DK106: 1.2 | DL106: 1.03 | DM106: 1.1 | DN106: 1.03 | DO106: 1.3 | DP106: 0.82 | DQ106: 1.34 | DR106: 1.31 | DS106: 0.95 | DT106: 1.06 | DU106: 1 | DV106: 1.11 | DW106: 1.05 | DX106: 1.11 | DY106: 1.13 | DZ106: 1.24 | EA106: 1.13
A107: E0167 UE | B107: 7.74 | C107: 9.23 | D107: 9.99 | E107: 7.69 | F107: 8.02 | G107: 8.46 | H107: 7.84 | I107: 7.41 | J107: 7.11 | K107: 9.23 | L107: 7.86 | M107: 8.2 | N107: 7.05 | O107: 6.96 | P107: 7.69 | Q107: 7.04 | R107: 7.94 | S107: 9.23 | T107: 9.86 | U107: 10.05 | V107: 7.69 | W107: 9.93 | X107: 7.03 | Y107: 8.34 | Z107: 5.92 | AA107: 6.97 | AB107: 7.69 | AC107: 9.23 | AD107: 9.38 | AE107: 9.23 | AF107: 8.2 | AG107: 8.14 | AH107: 7.69 | AI107: 6.97 | AJ107: 7.69 | AK107: 9.23 | AL107: 8.46 | AM107: 7.69 | AN107: 7.54 | AO107: 9.23 | AP107: 8.15 | AQ107: 6.52 | AR107: 7.05 | AS107: 8.85 | AT107: 7.69 | AU107: 8.05 | AV107: 8.08 | AW107: 8.46 | AX107: 7.69 | AY107: 9.31 | AZ107: 8.46 | BA107: 7.89 | BB107: 7.69 | BC107: 9.73 | BD107: 8.46 | BE107: 7.55 | BF107: 9.38 | BG107: 8.92 | BH107: 7.67 | BI107: 6.8 | BJ107: 8.44 | BK107: 8.2 | BL107: 7.69 | BM107: 7.69 | BN107: 8.85 | BO107: 9.31 | BP107: 9.55 | BQ107: 6.11 | BR107: 8.2 | BS107: 8.2 | BT107: 7.49 | BU107: 8.44 | BV107: 8.05 | BW107: 9.38 | BX107: 8.48 | BY107: 5.92 | BZ107: 8.46 | CA107: 7.84 | CB107: 9.49 | CC107: 7.31 | CD107: 9.8 | CE107: 6.56 | CF107: 5.92 | CG107: 6.98 | CH107: 7.09 | CI107: 7.88 | CJ107: 7.69 | CK107: 6.41 | CL107: 6.67 | CM107: 6.02 | CN107: 7.69 | CO107: 9.23 | CP107: 7.68 | CQ107: 7.77 | CR107: 8.09 | CS107: 7.68 | CT107: 8.2 | CU107: 9.23 | CV107: 7.13 | CW107: 7.32 | CX107: 8.48 | CY107: 9.93 | CZ107: 7.97 | DA107: 8.2 | DB107: 8.2 | DC107: 7.41 | DD107: 7.69 | DE107: 7.69 | DF107: 7.69 | DG107: 7.13 | DH107: 7.69 | DI107: 7.03 | DJ107: 9.03 | DK107: 9.03 | DL107: 7.69 | DM107: 8.2 | DN107: 7.69 | DO107: 9.73 | DP107: 6.15 | DQ107: 10.05 | DR107: 9.86 | DS107: 7.13 | DT107: 7.9 | DU107: 7.55 | DV107: 8.29 | DW107: 7.83 | DX107: 8.32 | DY107: 8.45 | DZ107: 9.28 | EA107: 8.46
A108: E0168 NU | B108: 130.18 | C108: 112.75 | D108: 105.58 | E108: 128.78 | F108: 108.08 | G108: 109.55 | H108: 116.34 | I108: 111.98 | J108: 117.88 | K108: 112.75 | L108: 106.03 | M108: 120.19 | N108: 113.9 | O108: 117.11 | P108: 112.75 | Q108: 127.35 | R108: 121.4 | S108: 128.13 | T108: 109.55 | U108: 106.03 | V108: 105.58 | W108: 106.03 | X108: 112.75 | Y108: 109.55 | Z108: 109.55 | AA108: 112.75 | AB108: 128.13 | AC108: 137.25 | AD108: 152.73 | AE108: 128.13 | AF108: 109.55 | AG108: 123 | AH108: 123 | AI108: 120.19 | AJ108: 128.13 | AK108: 115.31 | AL108: 114.87 | AM108: 117.88 | AN108: 111.07 | AO108: 117.88 | AP108: 119.93 | AQ108: 111.93 | AR108: 115.53 | AS108: 116.47 | AT108: 117.88 | AU108: 112.75 | AV108: 108.08 | AW108: 110.94 | AX108: 112.75 | AY108: 145.96 | AZ108: 110.94 | BA108: 121.5 | BB108: 128.13 | BC108: 113.26 | BD108: 123 | BE108: 112.85 | BF108: 109.55 | BG108: 127.62 | BH108: 120.71 | BI108: 112.01 | BJ108: 137.37 | BK108: 109.55 | BL108: 114.16 | BM108: 108.42 | BN108: 104.76 | BO108: 154.54 | BP108: 114 | BQ108: 111.61 | BR108: 99.94 | BS108: 109.55 | BT108: 105.93 | BU108: 111.61 | BV108: 112.75 | BW108: 146.58 | BX108: 106.29 | BY108: 109.53 | BZ108: 120.19 | CA108: 111.15 | CB108: 153.63 | CC108: 105.58 | CD108: 111.41 | CE108: 113.2 | CF108: 110.11 | CG108: 113.32 | CH108: 111.49 | CI108: 111.15 | CJ108: 108.2 | CK108: 111.61 | CL108: 96.71 | CM108: 110.93 | CN108: 112.75 | CO108: 109.55 | CP108: 120.19 | CQ108: 123.25 | CR108: 106.6 | CS108: 109.55 | CT108: 109.55 | CU108: 119.34 | CV108: 119.93 | CW108: 109.55 | CX108: 131.37 | CY108: 107.56 | CZ108: 109.1 | DA108: 109.55 | DB108: 137.37 | DC108: 111.32 | DD108: 109.55 | DE108: 112.75 | DF108: 109.55 | DG108: 112.75 | DH108: 131.02 | DI108: 115.83 | DJ108: 124.03 | DK108: 123.46 | DL108: 111.68 | DM108: 109.55 | DN108: 106.09 | DO108: 126.23 | DP108: 113.32 | DQ108: 110.19 | DR108: 96.94 | DS108: 111.49 | DT108: 99.86 | DU108: 106.03 | DV108: 125.06 | DW108: 106.03 | DX108: 113.71 | DY108: 109.68 | DZ108: 134.2 | EA108: 117.88
A109: E0168 RR | B109: 13.02 | C109: 11.28 | D109: 10.56 | E109: 12.87 | F109: 10.8 | G109: 10.96 | H109: 11.63 | I109: 11.2 | J109: 11.79 | K109: 11.28 | L109: 10.6 | M109: 12.02 | N109: 11.39 | O109: 11.72 | P109: 11.28 | Q109: 12.73 | R109: 12.14 | S109: 12.81 | T109: 10.96 | U109: 10.6 | V109: 10.56 | W109: 10.6 | X109: 11.28 | Y109: 10.96 | Z109: 10.96 | AA109: 11.28 | AB109: 12.81 | AC109: 13.72 | AD109: 15.27 | AE109: 12.81 | AF109: 10.96 | AG109: 12.3 | AH109: 12.3 | AI109: 12.02 | AJ109: 12.81 | AK109: 11.53 | AL109: 11.49 | AM109: 11.79 | AN109: 11.11 | AO109: 11.79 | AP109: 11.99 | AQ109: 11.19 | AR109: 11.55 | AS109: 11.64 | AT109: 11.79 | AU109: 11.28 | AV109: 10.8 | AW109: 11.09 | AX109: 11.28 | AY109: 14.6 | AZ109: 11.09 | BA109: 12.15 | BB109: 12.81 | BC109: 11.33 | BD109: 12.3 | BE109: 11.29 | BF109: 10.96 | BG109: 12.76 | BH109: 12.07 | BI109: 11.2 | BJ109: 13.74 | BK109: 10.96 | BL109: 11.42 | BM109: 10.84 | BN109: 10.48 | BO109: 15.46 | BP109: 11.4 | BQ109: 11.16 | BR109: 9.99 | BS109: 10.96 | BT109: 10.6 | BU109: 11.16 | BV109: 11.28 | BW109: 14.66 | BX109: 10.63 | BY109: 10.96 | BZ109: 12.02 | CA109: 11.11 | CB109: 15.36 | CC109: 10.56 | CD109: 11.14 | CE109: 11.32 | CF109: 11.01 | CG109: 11.34 | CH109: 11.15 | CI109: 11.11 | CJ109: 10.82 | CK109: 11.16 | CL109: 9.68 | CM109: 11.09 | CN109: 11.28 | CO109: 10.96 | CP109: 12.02 | CQ109: 12.32 | CR109: 10.66 | CS109: 10.96 | CT109: 10.96 | CU109: 11.93 | CV109: 11.99 | CW109: 10.96 | CX109: 13.14 | CY109: 10.75 | CZ109: 10.91 | DA109: 10.96 | DB109: 13.74 | DC109: 11.13 | DD109: 10.96 | DE109: 11.28 | DF109: 10.96 | DG109: 11.28 | DH109: 13.1 | DI109: 11.58 | DJ109: 12.4 | DK109: 12.35 | DL109: 11.17 | DM109: 10.96 | DN109: 10.61 | DO109: 12.63 | DP109: 11.34 | DQ109: 11.02 | DR109: 9.7 | DS109: 11.15 | DT109: 9.98 | DU109: 10.6 | DV109: 12.51 | DW109: 10.6 | DX109: 11.37 | DY109: 10.97 | DZ109: 13.42 | EA109: 11.79
A110: E0168 UE | B110: 97.63 | C110: 84.56 | D110: 79.18 | E110: 96.59 | F110: 81.06 | G110: 82.16 | H110: 87.26 | I110: 83.99 | J110: 88.41 | K110: 84.56 | L110: 79.52 | M110: 90.15 | N110: 85.42 | O110: 87.83 | P110: 84.56 | Q110: 95.51 | R110: 91.05 | S110: 96.09 | T110: 82.16 | U110: 79.52 | V110: 79.18 | W110: 79.52 | X110: 84.56 | Y110: 82.16 | Z110: 82.16 | AA110: 84.56 | AB110: 96.09 | AC110: 102.94 | AD110: 114.54 | AE110: 96.09 | AF110: 82.16 | AG110: 92.25 | AH110: 92.25 | AI110: 90.15 | AJ110: 96.09 | AK110: 86.49 | AL110: 86.15 | AM110: 88.41 | AN110: 83.3 | AO110: 88.41 | AP110: 89.94 | AQ110: 83.95 | AR110: 86.64 | AS110: 87.35 | AT110: 88.41 | AU110: 84.56 | AV110: 81.06 | AW110: 83.2 | AX110: 84.56 | AY110: 109.47 | AZ110: 83.2 | BA110: 91.13 | BB110: 96.09 | BC110: 84.95 | BD110: 92.25 | BE110: 84.64 | BF110: 82.16 | BG110: 95.71 | BH110: 90.54 | BI110: 84.01 | BJ110: 103.03 | BK110: 82.16 | BL110: 85.63 | BM110: 81.32 | BN110: 78.57 | BO110: 115.91 | BP110: 85.51 | BQ110: 83.71 | BR110: 74.96 | BS110: 82.16 | BT110: 79.45 | BU110: 83.71 | BV110: 84.56 | BW110: 109.93 | BX110: 79.72 | BY110: 82.15 | BZ110: 90.15 | CA110: 83.36 | CB110: 115.22 | CC110: 79.18 | CD110: 83.56 | CE110: 84.9 | CF110: 82.58 | CG110: 84.99 | CH110: 83.62 | CI110: 83.36 | CJ110: 81.15 | CK110: 83.71 | CL110: 72.53 | CM110: 83.2 | CN110: 84.56 | CO110: 82.16 | CP110: 90.15 | CQ110: 92.43 | CR110: 79.95 | CS110: 82.16 | CT110: 82.16 | CU110: 89.5 | CV110: 89.94 | CW110: 82.16 | CX110: 98.53 | CY110: 80.68 | CZ110: 81.83 | DA110: 82.16 | DB110: 103.03 | DC110: 83.49 | DD110: 82.16 | DE110: 84.56 | DF110: 82.16 | DG110: 84.56 | DH110: 98.27 | DI110: 86.87 | DJ110: 93.02 | DK110: 92.6 | DL110: 83.76 | DM110: 82.16 | DN110: 79.57 | DO110: 94.67 | DP110: 84.99 | DQ110: 82.65 | DR110: 72.71 | DS110: 83.62 | DT110: 74.9 | DU110: 79.52 | DV110: 93.8 | DW110: 79.52 | DX110: 85.29 | DY110: 82.26 | DZ110: 100.66 | EA110: 88.41
A111: E0170 RR | B111: 167.64 | C111: 174.25 | D111: 174.25 | E111: 173.72 | F111: 155.45 | G111: 164.62 | H111: 172.28 | I111: 173.16 | J111: 171.27 | K111: 148.63 | L111: 157.47 | M111: 155.43 | N111: 157.29 | O111: 155.14 | P111: 167.93 | Q111: 172.76 | R111: 158.78 | S111: 165.34 | T111: 173.72 | U111: 166.56 | V111: 146.27 | W111: 180 | X111: 161.85 | Y111: 146.29 | Z111: 143.5 | AA111: 171.27 | AB111: 164 | AC111: 173.72 | AD111: 179.2 | AE111: 173.72 | AF111: 146.29 | AG111: 173.98 | AH111: 176.73 | AI111: 150.37 | AJ111: 164 | AK111: 174.25 | AL111: 177.17 | AM111: 173.72 | AN111: 151.84 | AO111: 174.25 | AP111: 173.98 | AQ111: 144.89 | AR111: 152.47 | AS111: 168.66 | AT111: 146.29 | AU111: 164.57 | AV111: 146.28 | AW111: 172.7 | AX111: 146.29 | AY111: 169.17 | AZ111: 172.7 | BA111: 172 | BB111: 164 | BC111: 169.54 | BD111: 182.86 | BE111: 163.84 | BF111: 173.72 | BG111: 173.98 | BH111: 160.82 | BI111: 144.89 | BJ111: 173.72 | BK111: 146.29 | BL111: 158.85 | BM111: 173.74 | BN111: 149.76 | BO111: 179.38 | BP111: 149.76 | BQ111: 146.29 | BR111: 179.84 | BS111: 146.29 | BT111: 146.28 | BU111: 173.72 | BV111: 150.37 | BW111: 179.38 | BX111: 177.17 | BY111: 132.51 | BZ111: 164.62 | CA111: 167.59 | CB111: 176.81 | CC111: 144.46 | CD111: 171.63 | CE111: 146.29 | CF111: 148.33 | CG111: 150.37 | CH111: 150.37 | CI111: 175.99 | CJ111: 155.43 | CK111: 143.5 | CL111: 146.29 | CM111: 140.63 | CN111: 160.35 | CO111: 173.72 | CP111: 171.27 | CQ111: 173.72 | CR111: 146.27 | CS111: 171.27 | CT111: 146.29 | CU111: 164.62 | CV111: 153.75 | CW111: 164.62 | CX111: 176.73 | CY111: 180 | CZ111: 168.31 | DA111: 146.29 | DB111: 173.72 | DC111: 154.37 | DD111: 155.43 | DE111: 155.43 | DF111: 146.29 | DG111: 150.37 | DH111: 172.5 | DI111: 161.85 | DJ111: 172.76 | DK111: 146.29 | DL111: 155.43 | DM111: 146.29 | DN111: 145.37 | DO111: 179.38 | DP111: 150.37 | DQ111: 178.56 | DR111: 146.29 | DS111: 164.57 | DT111: 146.29 | DU111: 158.64 | DV111: 163.82 | DW111: 173.98 | DX111: 152.58 | DY111: 160 | DZ111: 165.8 | EA111: 174.25
A112: E0171 RR | B112: 31.12 | C112: 32.8 | D112: 32.9 | E112: 31.53 | F112: 32.33 | G112: 30.75 | H112: 31.08 | I112: 31.4 | J112: 30.98 | K112: 29.62 | L112: 30.19 | M112: 30.24 | N112: 30.96 | O112: 29.33 | P112: 30.75 | Q112: 30.86 | R112: 31.12 | S112: 30.75 | T112: 31.53 | U112: 32.85 | V112: 26.24 | W112: 32.22 | X112: 31.26 | Y112: 31.75 | Z112: 26.32 | AA112: 30.98 | AB112: 30.98 | AC112: 31.53 | AD112: 31.53 | AE112: 31.26 | AF112: 27.29 | AG112: 31.01 | AH112: 31.26 | AI112: 29.43 | AJ112: 30.75 | AK112: 32.16 | AL112: 31.4 | AM112: 31.53 | AN112: 28.63 | AO112: 32.8 | AP112: 31.4 | AQ112: 26.59 | AR112: 30.08 | AS112: 32.9 | AT112: 29.53 | AU112: 30.75 | AV112: 27.97 | AW112: 32.9 | AX112: 30.24 | AY112: 32.16 | AZ112: 32.9 | BA112: 31.26 | BB112: 30.75 | BC112: 31.26 | BD112: 32.8 | BE112: 30.19 | BF112: 31.26 | BG112: 32.16 | BH112: 31.25 | BI112: 26.59 | BJ112: 31.26 | BK112: 29.62 | BL112: 31.83 | BM112: 31.88 | BN112: 29.93 | BO112: 31.53 | BP112: 28.91 | BQ112: 26.84 | BR112: 32.24 | BS112: 26.32 | BT112: 26 | BU112: 31.26 | BV112: 29.61 | BW112: 32.8 | BX112: 32.22 | BY112: 22.98 | BZ112: 30.98 | CA112: 30.86 | CB112: 31.91 | CC112: 26.24 | CD112: 31.4 | CE112: 27 | CF112: 26.59 | CG112: 28.4 | CH112: 27.38 | CI112: 31.14 | CJ112: 27.97 | CK112: 28.4 | CL112: 26 | CM112: 24.68 | CN112: 31.53 | CO112: 31.53 | CP112: 31.53 | CQ112: 31.26 | CR112: 26.24 | CS112: 31.26 | CT112: 30.75 | CU112: 31.26 | CV112: 30.89 | CW112: 30.75 | CX112: 31.89 | CY112: 32.22 | CZ112: 31.25 | DA112: 26.32 | DB112: 31.53 | DC112: 28.23 | DD112: 27.97 | DE112: 29.16 | DF112: 27.97 | DG112: 31.26 | DH112: 31.4 | DI112: 31.26 | DJ112: 32.16 | DK112: 29.56 | DL112: 30.86 | DM112: 26.32 | DN112: 26.28 | DO112: 31.53 | DP112: 28.39 | DQ112: 32.9 | DR112: 32.9 | DS112: 29.61 | DT112: 29.61 | DU112: 30.01 | DV112: 30.75 | DW112: 31.4 | DX112: 31.4 | DY112: 31.64 | DZ112: 31.4 | EA112: 31.26
A113: E0181 RR | B113: 14.91 | C113: 15.38 | D113: 14.97 | E113: 18.25 | F113: 13.99 | G113: 12.81 | H113: 14.97 | I113: 14.97 | J113: 14.98 | K113: 15.42 | L113: 15.17 | M113: 15.71 | N113: 13.02 | O113: 15.81 | P113: 15.84 | Q113: 17.89 | R113: 15.89 | S113: 14.98 | T113: 14.97 | U113: 13.02 | V113: 14.76 | W113: 13.02 | X113: 13.22 | Y113: 14.35 | Z113: 14.98 | AA113: 14.98 | AB113: 14.97 | AC113: 17.26 | AD113: 17.78 | AE113: 14.97 | AF113: 15.42 | AG113: 17 | AH113: 16.75 | AI113: 17.85 | AJ113: 14.97 | AK113: 15.17 | AL113: 14.35 | AM113: 15.98 | AN113: 14.89 | AO113: 14.97 | AP113: 15.89 | AQ113: 17.22 | AR113: 16.41 | AS113: 14.97 | AT113: 16.14 | AU113: 17.78 | AV113: 13.99 | AW113: 14.97 | AX113: 16.4 | AY113: 14.91 | AZ113: 14.97 | BA113: 16.89 | BB113: 14.97 | BC113: 14.97 | BD113: 22.55 | BE113: 16.95 | BF113: 12.81 | BG113: 15.17 | BH113: 17.21 | BI113: 17.09 | BJ113: 15.38 | BK113: 13.61 | BL113: 16.53 | BM113: 16.14 | BN113: 14.91 | BO113: 18.25 | BP113: 14.97 | BQ113: 16.59 | BR113: 13.33 | BS113: 12.81 | BT113: 15.81 | BU113: 14.98 | BV113: 17.78 | BW113: 18.45 | BX113: 13.89 | BY113: 15.85 | BZ113: 14.98 | CA113: 15.84 | CB113: 19.52 | CC113: 14.97 | CD113: 13.89 | CE113: 14.97 | CF113: 14.89 | CG113: 17.99 | CH113: 14.98 | CI113: 14.42 | CJ113: 14.98 | CK113: 17.26 | CL113: 14.97 | CM113: 15.64 | CN113: 14.86 | CO113: 14.98 | CP113: 16.59 | CQ113: 16.92 | CR113: 14.76 | CS113: 15.71 | CT113: 13.63 | CU113: 14.97 | CV113: 14.97 | CW113: 12.81 | CX113: 16.39 | CY113: 14.09 | CZ113: 14.02 | DA113: 14.98 | DB113: 16.31 | DC113: 15.43 | DD113: 15.56 | DE113: 15.9 | DF113: 15.56 | DG113: 14.97 | DH113: 17.08 | DI113: 13.22 | DJ113: 17.21 | DK113: 14.09 | DL113: 16.23 | DM113: 14.98 | DN113: 14.86 | DO113: 14.98 | DP113: 17.85 | DQ113: 14.97 | DR113: 12.12 | DS113: 16.42 | DT113: 14.89 | DU113: 12.81 | DV113: 15.81 | DW113: 14.84 | DX113: 15.61 | DY113: 14.97 | DZ113: 14.91 | EA113: 15.38
A114: E0182 RR | B114: 21.4 | C114: 21.29 | D114: 24.6 | E114: 25.3 | F114: 20.83 | G114: 20.24 | H114: 19.28 | I114: 19.3 | J114: 18.36 | K114: 21.44 | L114: 20.38 | M114: 20.85 | N114: 18.67 | O114: 17.99 | P114: 19.3 | Q114: 17.66 | R114: 21.09 | S114: 20.4 | T114: 20.24 | U114: 23.92 | V114: 16.5 | W114: 23.92 | X114: 18.85 | Y114: 17.84 | Z114: 16.45 | AA114: 20.24 | AB114: 20.24 | AC114: 24.5 | AD114: 24.05 | AE114: 24.6 | AF114: 19 | AG114: 19.48 | AH114: 20.4 | AI114: 17.45 | AJ114: 20.24 | AK114: 21.36 | AL114: 23.93 | AM114: 20.5 | AN114: 15.81 | AO114: 21.44 | AP114: 20.76 | AQ114: 16.91 | AR114: 17.41 | AS114: 23.33 | AT114: 23.82 | AU114: 20.24 | AV114: 16.36 | AW114: 25.22 | AX114: 21.42 | AY114: 23.93 | AZ114: 25.22 | BA114: 22.55 | BB114: 20.24 | BC114: 18.3 | BD114: 29.73 | BE114: 19.9 | BF114: 24.05 | BG114: 23.93 | BH114: 18.1 | BI114: 16.91 | BJ114: 24.05 | BK114: 17.84 | BL114: 20.37 | BM114: 20.5 | BN114: 25.92 | BO114: 24.05 | BP114: 21.6 | BQ114: 16.45 | BR114: 23.82 | BS114: 20.24 | BT114: 17.95 | BU114: 21.44 | BV114: 19.29 | BW114: 24.05 | BX114: 26.79 | BY114: 15.42 | BZ114: 23.82 | CA114: 24.56 | CB114: 23.65 | CC114: 15.38 | CD114: 19.27 | CE114: 16.21 | CF114: 15.57 | CG114: 17.38 | CH114: 17.38 | CI114: 20.42 | CJ114: 17.64 | CK114: 16.45 | CL114: 17.27 | CM114: 16.11 | CN114: 17.84 | CO114: 23.82 | CP114: 25.31 | CQ114: 24.96 | CR114: 16.5 | CS114: 23.82 | CT114: 20.4 | CU114: 20.24 | CV114: 18.32 | CW114: 20.24 | CX114: 22.2 | CY114: 23.92 | CZ114: 21.72 | DA114: 20.85 | DB114: 25.31 | DC114: 17.87 | DD114: 17.64 | DE114: 19.38 | DF114: 17.03 | DG114: 23.06 | DH114: 24.56 | DI114: 19.99 | DJ114: 19.25 | DK114: 19.1 | DL114: 20.96 | DM114: 20.85 | DN114: 14.69 | DO114: 24.23 | DP114: 16.45 | DQ114: 25.46 | DR114: 25.31 | DS114: 22.78 | DT114: 24.56 | DU114: 20.88 | DV114: 21.61 | DW114: 23.93 | DX114: 21.77 | DY114: 24.56 | DZ114: 20.53 | EA114: 20.5
A115: E0184 NU | B115: 165.03 | C115: 153.75 | D115: 166.13 | E115: 157.95 | F115: 147.86 | G115: 149.52 | H115: 160.98 | I115: 162.17 | J115: 160.33 | K115: 142.48 | L115: 150.62 | M115: 160.04 | N115: 151.82 | O115: 159.15 | P115: 152.2 | Q115: 157.05 | R115: 181.88 | S115: 164 | T115: 153.75 | U115: 160.98 | V115: 145.41 | W115: 170.01 | X115: 153.75 | Y115: 145.41 | Z115: 148.63 | AA115: 153.75 | AB115: 164 | AC115: 166.05 | AD115: 203.98 | AE115: 164.49 | AF115: 141.56 | AG115: 153.75 | AH115: 153.75 | AI115: 157.83 | AJ115: 164 | AK115: 155.85 | AL115: 156.51 | AM115: 153.75 | AN115: 144.14 | AO115: 153.75 | AP115: 157.9 | AQ115: 153.49 | AR115: 157.89 | AS115: 154.28 | AT115: 157.95 | AU115: 153.78 | AV115: 143.5 | AW115: 145.58 | AX115: 157.95 | AY115: 167.59 | AZ115: 145.58 | BA115: 166.05 | BB115: 164 | BC115: 155.06 | BD115: 128.15 | BE115: 155.86 | BF115: 153.75 | BG115: 178.29 | BH115: 163.24 | BI115: 153.03 | BJ115: 174.25 | BK115: 143.5 | BL115: 170.15 | BM115: 169.13 | BN115: 150.96 | BO115: 212.39 | BP115: 146.55 | BQ115: 152.32 | BR115: 153.75 | BS115: 157.95 | BT115: 150.62 | BU115: 153.78 | BV115: 150.62 | BW115: 199.88 | BX115: 154.41 | BY115: 144.14 | BZ115: 172.07 | CA115: 147.3 | CB115: 201.66 | CC115: 145.41 | CD115: 155.85 | CE115: 157.39 | CF115: 149.67 | CG115: 153.78 | CH115: 151.7 | CI115: 168.61 | CJ115: 151.63 | CK115: 147.02 | CL115: 146.09 | CM115: 147.71 | CN115: 149.91 | CO115: 153.75 | CP115: 159.18 | CQ115: 160.52 | CR115: 149.91 | CS115: 162.38 | CT115: 149.91 | CU115: 157.94 | CV115: 157.94 | CW115: 149.52 | CX115: 161.88 | CY115: 170.56 | CZ115: 158.1 | DA115: 150.62 | DB115: 178.87 | DC115: 153.77 | DD115: 157.95 | DE115: 157.95 | DF115: 157.95 | DG115: 153.78 | DH115: 181.88 | DI115: 153.75 | DJ115: 171.67 | DK115: 169.49 | DL115: 166.73 | DM115: 150.62 | DN115: 148.95 | DO115: 166.13 | DP115: 153.75 | DQ115: 152.19 | DR115: 150.62 | DS115: 150.62 | DT115: 150.96 | DU115: 151.82 | DV115: 160.97 | DW115: 153.75 | DX115: 172.18 | DY115: 151.82 | DZ115: 168.14 | EA115: 153.75
A116: E0184 RR | B116: 16.5 | C116: 15.38 | D116: 16.62 | E116: 15.8 | F116: 14.79 | G116: 14.95 | H116: 16.1 | I116: 16.22 | J116: 16.03 | K116: 14.25 | L116: 15.07 | M116: 16 | N116: 15.18 | O116: 15.92 | P116: 15.22 | Q116: 15.7 | R116: 18.18 | S116: 16.4 | T116: 15.38 | U116: 16.1 | V116: 14.54 | W116: 17 | X116: 15.38 | Y116: 14.54 | Z116: 14.86 | AA116: 15.38 | AB116: 16.4 | AC116: 16.61 | AD116: 20.4 | AE116: 16.45 | AF116: 14.16 | AG116: 15.38 | AH116: 15.38 | AI116: 15.79 | AJ116: 16.4 | AK116: 15.59 | AL116: 15.65 | AM116: 15.38 | AN116: 14.41 | AO116: 15.38 | AP116: 15.8 | AQ116: 15.35 | AR116: 15.79 | AS116: 15.43 | AT116: 15.8 | AU116: 15.38 | AV116: 14.35 | AW116: 14.56 | AX116: 15.8 | AY116: 16.76 | AZ116: 14.56 | BA116: 16.61 | BB116: 16.4 | BC116: 15.51 | BD116: 12.81 | BE116: 15.59 | BF116: 15.38 | BG116: 17.82 | BH116: 16.33 | BI116: 15.3 | BJ116: 17.43 | BK116: 14.35 | BL116: 17.02 | BM116: 16.91 | BN116: 15.1 | BO116: 21.24 | BP116: 14.66 | BQ116: 15.23 | BR116: 15.38 | BS116: 15.8 | BT116: 15.07 | BU116: 15.38 | BV116: 15.07 | BW116: 19.99 | BX116: 15.44 | BY116: 14.41 | BZ116: 17.21 | CA116: 14.73 | CB116: 20.16 | CC116: 14.54 | CD116: 15.59 | CE116: 15.74 | CF116: 14.97 | CG116: 15.38 | CH116: 15.17 | CI116: 16.86 | CJ116: 15.16 | CK116: 14.7 | CL116: 14.61 | CM116: 14.77 | CN116: 15 | CO116: 15.38 | CP116: 15.92 | CQ116: 16.05 | CR116: 15 | CS116: 16.24 | CT116: 15 | CU116: 15.8 | CV116: 15.8 | CW116: 14.95 | CX116: 16.18 | CY116: 17.06 | CZ116: 15.81 | DA116: 15.07 | DB116: 17.89 | DC116: 15.38 | DD116: 15.8 | DE116: 15.8 | DF116: 15.8 | DG116: 15.38 | DH116: 18.18 | DI116: 15.38 | DJ116: 17.17 | DK116: 16.95 | DL116: 16.68 | DM116: 15.07 | DN116: 14.89 | DO116: 16.62 | DP116: 15.38 | DQ116: 15.22 | DR116: 15.07 | DS116: 15.07 | DT116: 15.1 | DU116: 15.18 | DV116: 16.09 | DW116: 15.38 | DX116: 17.22 | DY116: 15.18 | DZ116: 16.81 | EA116: 15.38
A117: E0184 UE | B117: 123.77 | C117: 115.31 | D117: 124.6 | E117: 118.47 | F117: 110.89 | G117: 112.14 | H117: 120.73 | I117: 121.63 | J117: 120.25 | K117: 106.86 | L117: 112.97 | M117: 120.04 | N117: 113.87 | O117: 119.36 | P117: 114.15 | Q117: 117.79 | R117: 136.41 | S117: 123 | T117: 115.31 | U117: 120.73 | V117: 109.06 | W117: 127.51 | X117: 115.31 | Y117: 109.06 | Z117: 111.47 | AA117: 115.31 | AB117: 123 | AC117: 124.54 | AD117: 152.98 | AE117: 123.37 | AF117: 106.17 | AG117: 115.31 | AH117: 115.31 | AI117: 118.38 | AJ117: 123 | AK117: 116.89 | AL117: 117.38 | AM117: 115.31 | AN117: 108.11 | AO117: 115.31 | AP117: 118.43 | AQ117: 115.12 | AR117: 118.42 | AS117: 115.71 | AT117: 118.47 | AU117: 115.33 | AV117: 107.63 | AW117: 109.18 | AX117: 118.47 | AY117: 125.7 | AZ117: 109.18 | BA117: 124.54 | BB117: 123 | BC117: 116.3 | BD117: 96.11 | BE117: 116.9 | BF117: 115.31 | BG117: 133.72 | BH117: 122.44 | BI117: 114.78 | BJ117: 130.69 | BK117: 107.63 | BL117: 127.61 | BM117: 126.84 | BN117: 113.22 | BO117: 159.3 | BP117: 109.92 | BQ117: 114.24 | BR117: 115.31 | BS117: 118.47 | BT117: 112.97 | BU117: 115.33 | BV117: 112.97 | BW117: 149.91 | BX117: 115.8 | BY117: 108.11 | BZ117: 129.05 | CA117: 110.47 | CB117: 151.25 | CC117: 109.06 | CD117: 116.89 | CE117: 118.04 | CF117: 112.26 | CG117: 115.33 | CH117: 113.78 | CI117: 126.46 | CJ117: 113.72 | CK117: 110.26 | CL117: 109.57 | CM117: 110.78 | CN117: 112.43 | CO117: 115.31 | CP117: 119.39 | CQ117: 120.39 | CR117: 112.43 | CS117: 121.79 | CT117: 112.43 | CU117: 118.46 | CV117: 118.46 | CW117: 112.14 | CX117: 121.41 | CY117: 127.92 | CZ117: 118.57 | DA117: 112.97 | DB117: 134.15 | DC117: 115.33 | DD117: 118.47 | DE117: 118.47 | DF117: 118.47 | DG117: 115.33 | DH117: 136.41 | DI117: 115.31 | DJ117: 128.75 | DK117: 127.12 | DL117: 125.05 | DM117: 112.97 | DN117: 111.71 | DO117: 124.6 | DP117: 115.31 | DQ117: 114.14 | DR117: 112.97 | DS117: 112.97 | DT117: 113.22 | DU117: 113.87 | DV117: 120.72 | DW117: 115.31 | DX117: 129.14 | DY117: 113.87 | DZ117: 126.11 | EA117: 115.31
A118: E0185 NU | B118: 161.13 | C118: 169.13 | D118: 160.01 | E118: 184.44 | F118: 162.01 | G118: 160.01 | H118: 172.61 | I118: 176.31 | J118: 179.38 | K118: 160.84 | L118: 161.89 | M118: 160.01 | N118: 166.91 | O118: 161.13 | P118: 170.03 | Q118: 162.21 | R118: 157.16 | S118: 177.33 | T118: 158.88 | U118: 157.91 | V118: 164 | W118: 157.16 | X118: 173.8 | Y118: 164 | Z118: 177.46 | AA118: 179.38 | AB118: 162.26 | AC118: 187.55 | AD118: 190.89 | AE118: 155.8 | AF118: 162.98 | AG118: 167.73 | AH118: 176.96 | AI118: 160.01 | AJ118: 164 | AK118: 169.52 | AL118: 157.16 | AM118: 175.15 | AN118: 157.54 | AO118: 169.13 | AP118: 163.81 | AQ118: 179.44 | AR118: 157.16 | AS118: 157.72 | AT118: 170.15 | AU118: 176.62 | AV118: 158.65 | AW118: 155.42 | AX118: 179.38 | AY118: 170.82 | AZ118: 155.42 | BA118: 179.38 | BB118: 164 | BC118: 160.01 | BD118: 160.01 | BE118: 183.6 | BF118: 160.01 | BG118: 157.16 | BH118: 167.33 | BI118: 178.41 | BJ118: 154.31 | BK118: 157.29 | BL118: 195.81 | BM118: 181.94 | BN118: 157.16 | BO118: 190.89 | BP118: 153.52 | BQ118: 184.44 | BR118: 162.26 | BS118: 139.64 | BT118: 161.79 | BU118: 174.25 | BV118: 184.44 | BW118: 184.44 | BX118: 161.52 | BY118: 169.8 | BZ118: 190.89 | CA118: 175.45 | CB118: 195.51 | CC118: 169.38 | CD118: 159.45 | CE118: 157.16 | CF118: 170.68 | CG118: 184.44 | CH118: 160.01 | CI118: 157.16 | CJ118: 153.75 | CK118: 189.63 | CL118: 148.13 | CM118: 179.57 | CN118: 163.03 | CO118: 184.44 | CP118: 190.89 | CQ118: 163.51 | CR118: 164 | CS118: 160.01 | CT118: 168.91 | CU118: 174.25 | CV118: 178.35 | CW118: 164 | CX118: 181.08 | CY118: 157.16 | CZ118: 161.91 | DA118: 153.75 | DB118: 162.26 | DC118: 179.46 | DD118: 154.31 | DE118: 168.91 | DF118: 154.31 | DG118: 169.13 | DH118: 175.45 | DI118: 173.23 | DJ118: 167.29 | DK118: 146.97 | DL118: 191.91 | DM118: 153.75 | DN118: 169.15 | DO118: 190.89 | DP118: 184.44 | DQ118: 169.19 | DR118: 154.31 | DS118: 175.47 | DT118: 147.37 | DU118: 157.16 | DV118: 169.7 | DW118: 180.67 | DX118: 174.21 | DY118: 170.57 | DZ118: 176.81 | EA118: 176.3
A119: E0185 RR | B119: 16.11 | C119: 16.91 | D119: 16 | E119: 18.44 | F119: 16.21 | G119: 16 | H119: 17.26 | I119: 17.63 | J119: 17.94 | K119: 16.08 | L119: 16.18 | M119: 16 | N119: 16.69 | O119: 16.11 | P119: 17 | Q119: 16.23 | R119: 15.71 | S119: 17.73 | T119: 15.89 | U119: 15.8 | V119: 16.4 | W119: 15.71 | X119: 17.38 | Y119: 16.4 | Z119: 17.74 | AA119: 17.94 | AB119: 16.23 | AC119: 18.76 | AD119: 19.09 | AE119: 15.58 | AF119: 16.3 | AG119: 16.77 | AH119: 17.69 | AI119: 16 | AJ119: 16.4 | AK119: 16.95 | AL119: 15.71 | AM119: 17.52 | AN119: 15.75 | AO119: 16.91 | AP119: 16.38 | AQ119: 17.95 | AR119: 15.71 | AS119: 15.77 | AT119: 17.02 | AU119: 17.66 | AV119: 15.87 | AW119: 15.54 | AX119: 17.94 | AY119: 17.09 | AZ119: 15.54 | BA119: 17.94 | BB119: 16.4 | BC119: 16 | BD119: 16 | BE119: 18.36 | BF119: 16 | BG119: 15.71 | BH119: 16.74 | BI119: 17.85 | BJ119: 15.44 | BK119: 15.73 | BL119: 19.58 | BM119: 18.19 | BN119: 15.71 | BO119: 19.09 | BP119: 15.35 | BQ119: 18.44 | BR119: 16.23 | BS119: 13.96 | BT119: 16.17 | BU119: 17.43 | BV119: 18.44 | BW119: 18.44 | BX119: 16.15 | BY119: 16.98 | BZ119: 19.09 | CA119: 17.55 | CB119: 19.55 | CC119: 16.94 | CD119: 15.95 | CE119: 15.71 | CF119: 17.07 | CG119: 18.44 | CH119: 16 | CI119: 15.71 | CJ119: 15.38 | CK119: 18.96 | CL119: 14.81 | CM119: 17.96 | CN119: 16.31 | CO119: 18.44 | CP119: 19.09 | CQ119: 16.35 | CR119: 16.4 | CS119: 16 | CT119: 16.89 | CU119: 17.43 | CV119: 17.84 | CW119: 16.4 | CX119: 18.11 | CY119: 15.71 | CZ119: 16.2 | DA119: 15.38 | DB119: 16.23 | DC119: 17.95 | DD119: 15.44 | DE119: 16.89 | DF119: 15.44 | DG119: 16.91 | DH119: 17.55 | DI119: 17.32 | DJ119: 16.73 | DK119: 14.7 | DL119: 19.19 | DM119: 15.38 | DN119: 16.91 | DO119: 19.09 | DP119: 18.44 | DQ119: 16.92 | DR119: 15.44 | DS119: 17.55 | DT119: 14.74 | DU119: 15.71 | DV119: 16.97 | DW119: 18.07 | DX119: 17.43 | DY119: 17.06 | DZ119: 17.68 | EA119: 17.63
A120: E0185 UE | B120: 120.85 | C120: 126.84 | D120: 120.01 | E120: 138.33 | F120: 121.51 | G120: 120.01 | H120: 129.46 | I120: 132.24 | J120: 134.53 | K120: 120.63 | L120: 121.42 | M120: 120.01 | N120: 125.18 | O120: 120.85 | P120: 127.52 | Q120: 121.66 | R120: 117.88 | S120: 132.99 | T120: 119.16 | U120: 118.44 | V120: 123 | W120: 117.88 | X120: 130.35 | Y120: 123 | Z120: 133.1 | AA120: 134.53 | AB120: 121.7 | AC120: 140.67 | AD120: 143.16 | AE120: 116.85 | AF120: 122.23 | AG120: 125.8 | AH120: 132.72 | AI120: 120.01 | AJ120: 123 | AK120: 127.14 | AL120: 117.88 | AM120: 131.36 | AN120: 118.16 | AO120: 126.84 | AP120: 122.86 | AQ120: 134.58 | AR120: 117.88 | AS120: 118.29 | AT120: 127.61 | AU120: 132.46 | AV120: 118.99 | AW120: 116.56 | AX120: 134.53 | AY120: 128.11 | AZ120: 116.56 | BA120: 134.53 | BB120: 123 | BC120: 120.01 | BD120: 120.01 | BE120: 137.7 | BF120: 120.01 | BG120: 117.88 | BH120: 125.5 | BI120: 133.81 | BJ120: 115.73 | BK120: 117.97 | BL120: 146.85 | BM120: 136.46 | BN120: 117.88 | BO120: 143.16 | BP120: 115.15 | BQ120: 138.33 | BR120: 121.7 | BS120: 104.72 | BT120: 121.34 | BU120: 130.69 | BV120: 138.33 | BW120: 138.33 | BX120: 121.14 | BY120: 127.36 | BZ120: 143.16 | CA120: 131.59 | CB120: 146.64 | CC120: 127.04 | CD120: 119.59 | CE120: 117.88 | CF120: 128.01 | CG120: 138.33 | CH120: 120.01 | CI120: 117.88 | CJ120: 115.31 | CK120: 142.22 | CL120: 111.1 | CM120: 134.67 | CN120: 122.27 | CO120: 138.33 | CP120: 143.16 | CQ120: 122.63 | CR120: 123 | CS120: 120.01 | CT120: 126.68 | CU120: 130.69 | CV120: 133.76 | CW120: 123 | CX120: 135.81 | CY120: 117.88 | CZ120: 121.43 | DA120: 115.31 | DB120: 121.7 | DC120: 134.59 | DD120: 115.73 | DE120: 126.68 | DF120: 115.73 | DG120: 126.84 | DH120: 131.59 | DI120: 129.92 | DJ120: 125.47 | DK120: 110.23 | DL120: 143.93 | DM120: 115.31 | DN120: 126.86 | DO120: 143.16 | DP120: 138.33 | DQ120: 126.9 | DR120: 115.73 | DS120: 131.6 | DT120: 110.54 | DU120: 117.88 | DV120: 127.27 | DW120: 135.51 | DX120: 130.66 | DY120: 127.93 | DZ120: 132.61 | EA120: 132.23
A121: E0186 RR | B121: 17.65 | C121: 23.06 | D121: 21.71 | E121: 19.04 | F121: 18.36 | G121: 18.47 | H121: 17.61 | I121: 18.55 | J121: 17.65 | K121: 17.63 | L121: 17.73 | M121: 19.99 | N121: 18.56 | O121: 16.81 | P121: 17.73 | Q121: 17.3 | R121: 17.66 | S121: 18.47 | T121: 21.94 | U121: 19.03 | V121: 16.81 | W121: 21.66 | X121: 18.64 | Y121: 18.25 | Z121: 17.94 | AA121: 16.85 | AB121: 16.99 | AC121: 18.64 | AD121: 18.64 | AE121: 19.24 | AF121: 15.7 | AG121: 18.46 | AH121: 20.32 | AI121: 18.32 | AJ121: 16.99 | AK121: 21.66 | AL121: 18.55 | AM121: 18.64 | AN121: 18.18 | AO121: 22.83 | AP121: 19.12 | AQ121: 18.5 | AR121: 17.73 | AS121: 19.63 | AT121: 17.67 | AU121: 18.47 | AV121: 17.37 | AW121: 19.05 | AX121: 19.63 | AY121: 19.02 | AZ121: 19.04 | BA121: 18.45 | BB121: 16.99 | BC121: 21.94 | BD121: 39.98 | BE121: 17.91 | BF121: 20.5 | BG121: 19.43 | BH121: 16.88 | BI121: 19.4 | BJ121: 18.64 | BK121: 17.94 | BL121: 19.32 | BM121: 19.48 | BN121: 15.6 | BO121: 19.3 | BP121: 15.6 | BQ121: 18.47 | BR121: 20.68 | BS121: 15.7 | BT121: 18.47 | BU121: 18.7 | BV121: 18.47 | BW121: 18.64 | BX121: 21.8 | BY121: 15.63 | BZ121: 18.47 | CA121: 16.86 | CB121: 19.02 | CC121: 16.81 | CD121: 21.94 | CE121: 16.24 | CF121: 17.73 | CG121: 20.33 | CH121: 16.99 | CI121: 18.45 | CJ121: 19.63 | CK121: 18.53 | CL121: 18.2 | CM121: 17.73 | CN121: 18.3 | CO121: 21.94 | CP121: 19.63 | CQ121: 19.35 | CR121: 17.41 | CS121: 18.47 | CT121: 18.25 | CU121: 17.89 | CV121: 16.99 | CW121: 18.47 | CX121: 20.19 | CY121: 21.66 | CZ121: 18.17 | DA121: 18.47 | DB121: 18.64 | DC121: 17.43 | DD121: 19.63 | DE121: 18.72 | DF121: 18.47 | DG121: 18.47 | DH121: 20.2 | DI121: 18.64 | DJ121: 17.35 | DK121: 16.24 | DL121: 18.07 | DM121: 18.47 | DN121: 17.11 | DO121: 21.94 | DP121: 18.53 | DQ121: 23.07 | DR121: 18.47 | DS121: 18.08 | DT121: 17.09 | DU121: 19.05 | DV121: 19.81 | DW121: 19.07 | DX121: 17.55 | DY121: 20.2 | DZ121: 17.71 | EA121: 20.5
A122: E0187 RR | B122: 19.83 | C122: 26.34 | D122: 25.63 | E122: 21.33 | F122: 23.97 | G122: 22.45 | H122: 19.83 | I122: 20.5 | J122: 19.17 | K122: 20.55 | L122: 21.78 | M122: 22.45 | N122: 20.81 | O122: 18.14 | P122: 21.78 | Q122: 19.52 | R122: 19.96 | S122: 21.33 | T122: 25.08 | U122: 22.45 | V122: 20.86 | W122: 25.63 | X122: 21.13 | Y122: 20.54 | Z122: 16.43 | AA122: 19.17 | AB122: 19.17 | AC122: 21.33 | AD122: 21.33 | AE122: 21.33 | AF122: 20.3 | AG122: 21.32 | AH122: 22.38 | AI122: 20.5 | AJ122: 19.17 | AK122: 24.45 | AL122: 21.88 | AM122: 21.33 | AN122: 21.25 | AO122: 26.34 | AP122: 21.66 | AQ122: 17.34 | AR122: 19.64 | AS122: 24.6 | AT122: 19.48 | AU122: 21.13 | AV122: 20.52 | AW122: 24.09 | AX122: 22.45 | AY122: 21.83 | AZ122: 24.1 | BA122: 20.5 | BB122: 19.17 | BC122: 22.45 | BD122: 47.14 | BE122: 20.97 | BF122: 22.45 | BG122: 21.83 | BH122: 18.71 | BI122: 18.38 | BJ122: 21.33 | BK122: 20.54 | BL122: 20.66 | BM122: 22.04 | BN122: 21.73 | BO122: 21.33 | BP122: 20.55 | BQ122: 18.25 | BR122: 22.45 | BS122: 19.17 | BT122: 21.13 | BU122: 22.45 | BV122: 21.13 | BW122: 22.35 | BX122: 23.77 | BY122: 15.63 | BZ122: 22.45 | CA122: 19.24 | CB122: 22.19 | CC122: 17.12 | CD122: 23.77 | CE122: 18.76 | CF122: 17.34 | CG122: 18.55 | CH122: 20.2 | CI122: 22.24 | CJ122: 21.68 | CK122: 17.9 | CL122: 21.71 | CM122: 16.16 | CN122: 21.13 | CO122: 24.22 | CP122: 22.45 | CQ122: 21.76 | CR122: 21.13 | CS122: 21.13 | CT122: 21.13 | CU122: 20.43 | CV122: 19.17 | CW122: 21.13 | CX122: 22.53 | CY122: 25.63 | CZ122: 20.78 | DA122: 22.45 | DB122: 21.33 | DC122: 20.76 | DD122: 22.29 | DE122: 21.13 | DF122: 21.13 | DG122: 21.13 | DH122: 21.78 | DI122: 21.13 | DJ122: 20.76 | DK122: 20.81 | DL122: 19.83 | DM122: 22.45 | DN122: 19.35 | DO122: 25.08 | DP122: 18.25 | DQ122: 26.4 | DR122: 22.45 | DS122: 21.15 | DT122: 21.78 | DU122: 22.45 | DV122: 22.45 | DW122: 21.23 | DX122: 22.24 | DY122: 23.77 | DZ122: 20.46 | EA122: 22.55
A123: E0188 NU | B123: 23.82 | C123: 26.87 | D123: 24.6 | E123: 22.84 | F123: 26.76 | G123: 24.06 | H123: 25.46 | I123: 26.21 | J123: 24.06 | K123: 24.08 | L123: 20.48 | M123: 25.56 | N123: 25.91 | O123: 22.16 | P123: 21.2 | Q123: 22.2 | R123: 23.46 | S123: 22.84 | T123: 24.28 | U123: 25.07 | V123: 20.19 | W123: 25.55 | X123: 26.87 | Y123: 26.65 | Z123: 18.55 | AA123: 25.55 | AB123: 23.58 | AC123: 26.87 | AD123: 28.57 | AE123: 25.63 | AF123: 23.93 | AG123: 27.72 | AH123: 27.68 | AI123: 21.89 | AJ123: 23.58 | AK123: 27.78 | AL123: 25.52 | AM123: 28.57 | AN123: 23.75 | AO123: 28.7 | AP123: 28.74 | AQ123: 20.88 | AR123: 22.37 | AS123: 24.6 | AT123: 26.87 | AU123: 21.89 | AV123: 21.53 | AW123: 24.6 | AX123: 24.09 | AY123: 27.72 | AZ123: 24.6 | BA123: 26.87 | BB123: 23.58 | BC123: 24.28 | BD123: 34.85 | BE123: 22.37 | BF123: 28.57 | BG123: 28.05 | BH123: 25.46 | BI123: 22.22 | BJ123: 27.54 | BK123: 23.76 | BL123: 27.78 | BM123: 28.7 | BN123: 20.5 | BO123: 28.57 | BP123: 22.28 | BQ123: 20.45 | BR123: 26.87 | BS123: 24.06 | BT123: 22.12 | BU123: 28.57 | BV123: 20.45 | BW123: 29.05 | BX123: 28.57 | BY123: 17.94 | BZ123: 24.06 | CA123: 23.39 | CB123: 28.8 | CC123: 19.94 | CD123: 24.28 | CE123: 21.14 | CF123: 19.5 | CG123: 21.89 | CH123: 21.89 | CI123: 23.21 | CJ123: 24.06 | CK123: 21.31 | CL123: 21.64 | CM123: 18.12 | CN123: 24.06 | CO123: 25.63 | CP123: 25.76 | CQ123: 26.97 | CR123: 20.45 | CS123: 26.87 | CT123: 20.5 | CU123: 22.84 | CV123: 23.58 | CW123: 24.06 | CX123: 27.27 | CY123: 24.19 | CZ123: 22.69 | DA123: 25.56 | DB123: 27.53 | DC123: 21.2 | DD123: 25.56 | DE123: 24.09 | DF123: 24.09 | DG123: 26.87 | DH123: 26.24 | DI123: 28.57 | DJ123: 25.46 | DK123: 22.53 | DL123: 25.46 | DM123: 25.56 | DN123: 20.07 | DO123: 23.65 | DP123: 20.49 | DQ123: 26.71 | DR123: 30.06 | DS123: 21.89 | DT123: 26.9 | DU123: 24.81 | DV123: 26.22 | DW123: 26.21 | DX123: 27.72 | DY123: 27.72 | DZ123: 23.55 | EA123: 27.76
A124: E0188 RR | B124: 2.38 | C124: 2.69 | D124: 2.46 | E124: 2.29 | F124: 2.68 | G124: 2.41 | H124: 2.54 | I124: 2.62 | J124: 2.41 | K124: 2.41 | L124: 2.05 | M124: 2.55 | N124: 2.59 | O124: 2.21 | P124: 2.12 | Q124: 2.22 | R124: 2.35 | S124: 2.29 | T124: 2.43 | U124: 2.51 | V124: 2.02 | W124: 2.55 | X124: 2.69 | Y124: 2.67 | Z124: 1.86 | AA124: 2.55 | AB124: 2.36 | AC124: 2.69 | AD124: 2.86 | AE124: 2.56 | AF124: 2.4 | AG124: 2.77 | AH124: 2.77 | AI124: 2.19 | AJ124: 2.36 | AK124: 2.78 | AL124: 2.55 | AM124: 2.86 | AN124: 2.38 | AO124: 2.87 | AP124: 2.87 | AQ124: 2.09 | AR124: 2.23 | AS124: 2.46 | AT124: 2.69 | AU124: 2.19 | AV124: 2.15 | AW124: 2.46 | AX124: 2.41 | AY124: 2.77 | AZ124: 2.46 | BA124: 2.69 | BB124: 2.36 | BC124: 2.43 | BD124: 3.49 | BE124: 2.23 | BF124: 2.86 | BG124: 2.81 | BH124: 2.54 | BI124: 2.22 | BJ124: 2.76 | BK124: 2.38 | BL124: 2.78 | BM124: 2.87 | BN124: 2.05 | BO124: 2.86 | BP124: 2.22 | BQ124: 2.05 | BR124: 2.69 | BS124: 2.41 | BT124: 2.21 | BU124: 2.86 | BV124: 2.05 | BW124: 2.9 | BX124: 2.86 | BY124: 1.79 | BZ124: 2.41 | CA124: 2.34 | CB124: 2.88 | CC124: 2 | CD124: 2.43 | CE124: 2.11 | CF124: 1.95 | CG124: 2.19 | CH124: 2.19 | CI124: 2.32 | CJ124: 2.41 | CK124: 2.13 | CL124: 2.16 | CM124: 1.81 | CN124: 2.41 | CO124: 2.56 | CP124: 2.57 | CQ124: 2.7 | CR124: 2.05 | CS124: 2.69 | CT124: 2.05 | CU124: 2.29 | CV124: 2.36 | CW124: 2.41 | CX124: 2.73 | CY124: 2.42 | CZ124: 2.27 | DA124: 2.55 | DB124: 2.76 | DC124: 2.12 | DD124: 2.55 | DE124: 2.41 | DF124: 2.41 | DG124: 2.69 | DH124: 2.62 | DI124: 2.86 | DJ124: 2.54 | DK124: 2.26 | DL124: 2.54 | DM124: 2.55 | DN124: 2.01 | DO124: 2.37 | DP124: 2.05 | DQ124: 2.68 | DR124: 3 | DS124: 2.19 | DT124: 2.69 | DU124: 2.48 | DV124: 2.62 | DW124: 2.62 | DX124: 2.77 | DY124: 2.77 | DZ124: 2.36 | EA124: 2.78
A125: E0188 UE | B125: 17.87 | C125: 20.15 | D125: 18.45 | E125: 17.13 | F125: 20.07 | G125: 18.04 | H125: 19.1 | I125: 19.66 | J125: 18.04 | K125: 18.06 | L125: 15.36 | M125: 19.18 | N125: 19.43 | O125: 16.63 | P125: 15.9 | Q125: 16.66 | R125: 17.6 | S125: 17.13 | T125: 18.21 | U125: 18.81 | V125: 15.15 | W125: 19.17 | X125: 20.15 | Y125: 19.99 | Z125: 13.92 | AA125: 19.17 | AB125: 17.68 | AC125: 20.15 | AD125: 21.42 | AE125: 19.22 | AF125: 17.95 | AG125: 20.79 | AH125: 20.76 | AI125: 16.42 | AJ125: 17.68 | AK125: 20.84 | AL125: 19.15 | AM125: 21.42 | AN125: 17.81 | AO125: 21.53 | AP125: 21.56 | AQ125: 15.66 | AR125: 16.78 | AS125: 18.45 | AT125: 20.15 | AU125: 16.42 | AV125: 16.14 | AW125: 18.45 | AX125: 18.07 | AY125: 20.79 | AZ125: 18.45 | BA125: 20.15 | BB125: 17.68 | BC125: 18.21 | BD125: 26.14 | BE125: 16.78 | BF125: 21.42 | BG125: 21.04 | BH125: 19.1 | BI125: 16.67 | BJ125: 20.65 | BK125: 17.82 | BL125: 20.84 | BM125: 21.53 | BN125: 15.38 | BO125: 21.42 | BP125: 16.72 | BQ125: 15.33 | BR125: 20.15 | BS125: 18.04 | BT125: 16.59 | BU125: 21.42 | BV125: 15.33 | BW125: 21.79 | BX125: 21.42 | BY125: 13.46 | BZ125: 18.04 | CA125: 17.55 | CB125: 21.61 | CC125: 14.95 | CD125: 18.21 | CE125: 15.86 | CF125: 14.63 | CG125: 16.42 | CH125: 16.42 | CI125: 17.4 | CJ125: 18.04 | CK125: 15.98 | CL125: 16.23 | CM125: 13.59 | CN125: 18.04 | CO125: 19.22 | CP125: 19.32 | CQ125: 20.22 | CR125: 15.33 | CS125: 20.15 | CT125: 15.38 | CU125: 17.13 | CV125: 17.68 | CW125: 18.04 | CX125: 20.45 | CY125: 18.14 | CZ125: 17.03 | DA125: 19.18 | DB125: 20.65 | DC125: 15.9 | DD125: 19.18 | DE125: 18.07 | DF125: 18.07 | DG125: 20.15 | DH125: 19.68 | DI125: 21.42 | DJ125: 19.1 | DK125: 16.9 | DL125: 19.1 | DM125: 19.18 | DN125: 15.06 | DO125: 17.73 | DP125: 15.36 | DQ125: 20.04 | DR125: 22.55 | DS125: 16.42 | DT125: 20.17 | DU125: 18.6 | DV125: 19.67 | DW125: 19.66 | DX125: 20.79 | DY125: 20.79 | DZ125: 17.67 | EA125: 20.82
A126: E0189 NU | B126: 53.71 | C126: 50.08 | D126: 50.23 | E126: 57.35 | F126: 40.12 | G126: 51.25 | H126: 53.71 | I126: 54.74 | J126: 51.25 | K126: 47.29 | L126: 47.29 | M126: 50.23 | N126: 51.73 | O126: 46.69 | P126: 48.22 | Q126: 47.85 | R126: 52.65 | S126: 51.25 | T126: 47.74 | U126: 55.19 | V126: 40.05 | W126: 50.16 | X126: 56.17 | Y126: 40.2 | Z126: 40.05 | AA126: 51.25 | AB126: 51.25 | AC126: 57.93 | AD126: 56.17 | AE126: 56.38 | AF126: 42.03 | AG126: 46.93 | AH126: 46.93 | AI126: 47.74 | AJ126: 51.25 | AK126: 49.64 | AL126: 50.16 | AM126: 50.26 | AN126: 56.87 | AO126: 50.08 | AP126: 49.22 | AQ126: 45.43 | AR126: 48.44 | AS126: 48.1 | AT126: 53.22 | AU126: 49.14 | AV126: 40.12 | AW126: 48.18 | AX126: 47.29 | AY126: 53.21 | AZ126: 46.13 | BA126: 56.17 | BB126: 51.25 | BC126: 47.04 | BD126: 101.48 | BE126: 50.19 | BF126: 56.38 | BG126: 57.3 | BH126: 49.2 | BI126: 45.34 | BJ126: 56.17 | BK126: 40.2 | BL126: 49.16 | BM126: 56.38 | BN126: 43.9 | BO126: 57.4 | BP126: 41.27 | BQ126: 43.38 | BR126: 58.92 | BS126: 43.05 | BT126: 44.72 | BU126: 49.2 | BV126: 47.29 | BW126: 58.43 | BX126: 50.16 | BY126: 40.21 | BZ126: 50.25 | CA126: 50.19 | CB126: 58.1 | CC126: 39.98 | CD126: 47.4 | CE126: 44.59 | CF126: 41.72 | CG126: 49.2 | CH126: 47.29 | CI126: 46.38 | CJ126: 47.15 | CK126: 49.2 | CL126: 41.96 | CM126: 40.48 | CN126: 43.38 | CO126: 56.17 | CP126: 51.25 | CQ126: 48.69 | CR126: 40.05 | CS126: 49.14 | CT126: 46.13 | CU126: 51.25 | CV126: 51.25 | CW126: 51.25 | CX126: 53.38 | CY126: 50.16 | CZ126: 56.35 | DA126: 47.29 | DB126: 49.25 | DC126: 47.29 | DD126: 47.29 | DE126: 47.29 | DF126: 47.29 | DG126: 47.74 | DH126: 49.61 | DI126: 56.38 | DJ126: 49.2 | DK126: 47.01 | DL126: 51.93 | DM126: 47.29 | DN126: 39.87 | DO126: 49.14 | DP126: 43.38 | DQ126: 48.15 | DR126: 59.11 | DS126: 47.29 | DT126: 45.21 | DU126: 50.76 | DV126: 50.25 | DW126: 48.1 | DX126: 48.47 | DY126: 44.3 | DZ126: 53.3 | EA126: 49.2
A127: E0189 RR | B127: 5.37 | C127: 5.01 | D127: 5.02 | E127: 5.74 | F127: 4.01 | G127: 5.13 | H127: 5.37 | I127: 5.47 | J127: 5.13 | K127: 4.73 | L127: 4.73 | M127: 5.02 | N127: 5.18 | O127: 4.67 | P127: 4.82 | Q127: 4.79 | R127: 5.27 | S127: 5.13 | T127: 4.78 | U127: 5.51 | V127: 4.01 | W127: 5.01 | X127: 5.62 | Y127: 4.02 | Z127: 4.01 | AA127: 5.13 | AB127: 5.13 | AC127: 5.79 | AD127: 5.62 | AE127: 5.64 | AF127: 4.2 | AG127: 4.69 | AH127: 4.69 | AI127: 4.78 | AJ127: 5.13 | AK127: 4.96 | AL127: 5.01 | AM127: 5.02 | AN127: 5.69 | AO127: 5.01 | AP127: 4.92 | AQ127: 4.54 | AR127: 4.85 | AS127: 4.81 | AT127: 5.32 | AU127: 4.91 | AV127: 4.01 | AW127: 4.82 | AX127: 4.73 | AY127: 5.32 | AZ127: 4.61 | BA127: 5.62 | BB127: 5.13 | BC127: 4.7 | BD127: 10.15 | BE127: 5.02 | BF127: 5.64 | BG127: 5.73 | BH127: 4.92 | BI127: 4.53 | BJ127: 5.62 | BK127: 4.02 | BL127: 4.92 | BM127: 5.64 | BN127: 4.39 | BO127: 5.74 | BP127: 4.13 | BQ127: 4.34 | BR127: 5.89 | BS127: 4.31 | BT127: 4.47 | BU127: 4.92 | BV127: 4.73 | BW127: 5.84 | BX127: 5.01 | BY127: 4.02 | BZ127: 5.02 | CA127: 5.02 | CB127: 5.81 | CC127: 4 | CD127: 4.74 | CE127: 4.46 | CF127: 4.17 | CG127: 4.92 | CH127: 4.73 | CI127: 4.64 | CJ127: 4.72 | CK127: 4.92 | CL127: 4.19 | CM127: 4.05 | CN127: 4.34 | CO127: 5.62 | CP127: 5.13 | CQ127: 4.87 | CR127: 4.01 | CS127: 4.91 | CT127: 4.61 | CU127: 5.13 | CV127: 5.13 | CW127: 5.13 | CX127: 5.34 | CY127: 5.01 | CZ127: 5.64 | DA127: 4.73 | DB127: 4.93 | DC127: 4.73 | DD127: 4.73 | DE127: 4.73 | DF127: 4.73 | DG127: 4.78 | DH127: 4.96 | DI127: 5.64 | DJ127: 4.92 | DK127: 4.7 | DL127: 5.2 | DM127: 4.73 | DN127: 3.99 | DO127: 4.91 | DP127: 4.34 | DQ127: 4.82 | DR127: 5.91 | DS127: 4.73 | DT127: 4.52 | DU127: 5.07 | DV127: 5.02 | DW127: 4.81 | DX127: 4.85 | DY127: 4.43 | DZ127: 5.33 | EA127: 4.92
A128: E0189 UE | B128: 40.28 | C128: 37.57 | D128: 37.67 | E128: 43.01 | F128: 30.09 | G128: 38.44 | H128: 40.28 | I128: 41.05 | J128: 38.44 | K128: 35.48 | L128: 35.48 | M128: 37.67 | N128: 38.8 | O128: 35.01 | P128: 36.16 | Q128: 35.89 | R128: 39.49 | S128: 38.44 | T128: 35.81 | U128: 41.39 | V128: 30.03 | W128: 37.63 | X128: 42.13 | Y128: 30.16 | Z128: 30.03 | AA128: 38.44 | AB128: 38.44 | AC128: 43.45 | AD128: 42.13 | AE128: 42.28 | AF128: 31.52 | AG128: 35.2 | AH128: 35.2 | AI128: 35.81 | AJ128: 38.44 | AK128: 37.23 | AL128: 37.63 | AM128: 37.69 | AN128: 42.65 | AO128: 37.57 | AP128: 36.92 | AQ128: 34.07 | AR128: 36.34 | AS128: 36.08 | AT128: 39.91 | AU128: 36.86 | AV128: 30.09 | AW128: 36.13 | AX128: 35.48 | AY128: 39.9 | AZ128: 34.59 | BA128: 42.13 | BB128: 38.44 | BC128: 35.28 | BD128: 76.11 | BE128: 37.65 | BF128: 42.28 | BG128: 42.98 | BH128: 36.9 | BI128: 34 | BJ128: 42.13 | BK128: 30.16 | BL128: 36.87 | BM128: 42.28 | BN128: 32.92 | BO128: 43.05 | BP128: 30.96 | BQ128: 32.53 | BR128: 44.19 | BS128: 32.29 | BT128: 33.54 | BU128: 36.9 | BV128: 35.48 | BW128: 43.82 | BX128: 37.63 | BY128: 30.16 | BZ128: 37.69 | CA128: 37.65 | CB128: 43.57 | CC128: 29.98 | CD128: 35.55 | CE128: 33.45 | CF128: 31.29 | CG128: 36.9 | CH128: 35.48 | CI128: 34.79 | CJ128: 35.36 | CK128: 36.9 | CL128: 31.48 | CM128: 30.36 | CN128: 32.53 | CO128: 42.13 | CP128: 38.44 | CQ128: 36.52 | CR128: 30.03 | CS128: 36.86 | CT128: 34.59 | CU128: 38.44 | CV128: 38.44 | CW128: 38.44 | CX128: 40.04 | CY128: 37.63 | CZ128: 42.27 | DA128: 35.48 | DB128: 36.94 | DC128: 35.48 | DD128: 35.48 | DE128: 35.48 | DF128: 35.48 | DG128: 35.81 | DH128: 37.21 | DI128: 42.28 | DJ128: 36.9 | DK128: 35.26 | DL128: 38.95 | DM128: 35.48 | DN128: 29.91 | DO128: 36.86 | DP128: 32.53 | DQ128: 36.12 | DR128: 44.33 | DS128: 35.48 | DT128: 33.91 | DU128: 38.07 | DV128: 37.69 | DW128: 36.08 | DX128: 36.36 | DY128: 33.23 | DZ128: 39.98 | EA128: 36.9
A129: E0193 RR | B129: 685.69 | C129: 708.73 | D129: 809.75 | E129: 738 | F129: 623.82 | G129: 665.71 | H129: 714.23 | I129: 644.68 | J129: 620.58 | K129: 594.5 | L129: 757.41 | M129: 708.73 | N129: 613.98 | O129: 684.56 | P129: 713.11 | Q129: 707.01 | R129: 664.65 | S129: 666.25 | T129: 666.25 | U129: 789.99 | V129: 551.86 | W129: 874.84 | X129: 617.43 | Y129: 615 | Z129: 615 | AA129: 662.51 | AB129: 651.65 | AC129: 809.75 | AD129: 812.83 | AE129: 717.4 | AF129: 637.05 | AG129: 771.98 | AH129: 821.28 | AI129: 708.73 | AJ129: 719.74 | AK129: 764.36 | AL129: 662.12 | AM129: 798.28 | AN129: 635.53 | AO129: 820 | AP129: 841.62 | AQ129: 615.56 | AR129: 662.4 | AS129: 685.27 | AT129: 675.61 | AU129: 717.5 | AV129: 511.91 | AW129: 708.73 | AX129: 708.73 | AY129: 775.17 | AZ129: 708.73 | BA129: 797.32 | BB129: 719.74 | BC129: 631.4 | BD129: 820 | BE129: 697.74 | BF129: 820 | BG129: 852.27 | BH129: 680.4 | BI129: 615.79 | BJ129: 841.62 | BK129: 514.4 | BL129: 711.79 | BM129: 675.15 | BN129: 629.84 | BO129: 808.64 | BP129: 644.16 | BQ129: 615.52 | BR129: 753.03 | BS129: 708.73 | BT129: 665.34 | BU129: 779 | BV129: 717.5 | BW129: 812.83 | BX129: 797.31 | BY129: 535.22 | BZ129: 675.15 | CA129: 672.55 | CB129: 811.29 | CC129: 562.52 | CD129: 650.98 | CE129: 668.98 | CF129: 615.79 | CG129: 615.6 | CH129: 660.74 | CI129: 654.69 | CJ129: 666.25 | CK129: 585.43 | CL129: 628.53 | CM129: 597.31 | CN129: 645.75 | CO129: 662.58 | CP129: 675.15 | CQ129: 671.38 | CR129: 636.01 | CS129: 620.58 | CT129: 620.58 | CU129: 666.25 | CV129: 708.73 | CW129: 668.81 | CX129: 757.83 | CY129: 874.84 | CZ129: 664.65 | DA129: 708.73 | DB129: 854.13 | DC129: 618.32 | DD129: 708.73 | DE129: 666.25 | DF129: 666.25 | DG129: 797.32 | DH129: 685.61 | DI129: 617.43 | DJ129: 712.52 | DK129: 590.32 | DL129: 626.76 | DM129: 708.73 | DN129: 587.79 | DO129: 817.05 | DP129: 615.52 | DQ129: 691.94 | DR129: 662.58 | DS129: 701.6 | DT129: 564.96 | DU129: 686.51 | DV129: 730.88 | DW129: 641.75 | DX129: 697.74 | DY129: 753.38 | DZ129: 741.74 | EA129: 708.73
A130: E0196 RR | B130: 31.06 | C130: 36.95 | D130: 34.97 | E130: 31.98 | F130: 30.28 | G130: 30.75 | H130: 32.87 | I130: 30.75 | J130: 30.75 | K130: 30.55 | L130: 31.42 | M130: 31.42 | N130: 30.16 | O130: 29.23 | P130: 32.06 | Q130: 32.85 | R130: 30.34 | S130: 29.85 | T130: 36.9 | U130: 31.42 | V130: 29.2 | W130: 36.95 | X130: 30.75 | Y130: 30.75 | Z130: 27.35 | AA130: 30.75 | AB130: 30.84 | AC130: 33.35 | AD130: 30.79 | AE130: 30.79 | AF130: 29.57 | AG130: 32.82 | AH130: 34.98 | AI130: 29.3 | AJ130: 30.84 | AK130: 36.92 | AL130: 31.41 | AM130: 31.26 | AN130: 29.75 | AO130: 36.95 | AP130: 35.12 | AQ130: 27.78 | AR130: 29.44 | AS130: 34.87 | AT130: 29.57 | AU130: 33.27 | AV130: 26.23 | AW130: 31.38 | AX130: 31.42 | AY130: 36.92 | AZ130: 31.38 | BA130: 33.26 | BB130: 30.84 | BC130: 35.12 | BD130: 37.71 | BE130: 30.92 | BF130: 35.12 | BG130: 36.92 | BH130: 29.75 | BI130: 28.67 | BJ130: 35.12 | BK130: 26.83 | BL130: 31.01 | BM130: 33.21 | BN130: 31.21 | BO130: 30.75 | BP130: 30.05 | BQ130: 28.19 | BR130: 31.42 | BS130: 26.83 | BT130: 29.57 | BU130: 30.84 | BV130: 30.84 | BW130: 31.37 | BX130: 36.95 | BY130: 24.62 | BZ130: 32.94 | CA130: 30.29 | CB130: 31.29 | CC130: 28.65 | CD130: 36.01 | CE130: 27.79 | CF130: 29.9 | CG130: 29.57 | CH130: 29.57 | CI130: 35.42 | CJ130: 30.75 | CK130: 28.19 | CL130: 28.77 | CM130: 26.15 | CN130: 29.57 | CO130: 30.84 | CP130: 32.94 | CQ130: 32.46 | CR130: 29.2 | CS130: 31.38 | CT130: 30.84 | CU130: 30.75 | CV130: 30.77 | CW130: 30.75 | CX130: 32.39 | CY130: 36.95 | CZ130: 31.13 | DA130: 29.57 | DB130: 36.22 | DC130: 30.21 | DD130: 31.42 | DE130: 30.75 | DF130: 30.75 | DG130: 35.12 | DH130: 33.26 | DI130: 30.75 | DJ130: 31.06 | DK130: 29.12 | DL130: 30.55 | DM130: 29.57 | DN130: 28.93 | DO130: 35.88 | DP130: 28.19 | DQ130: 36.96 | DR130: 31.42 | DS130: 33.27 | DT130: 30.47 | DU130: 31.09 | DV130: 33.26 | DW130: 33.19 | DX130: 30.49 | DY130: 32.75 | DZ130: 30.66 | EA130: 34.85
A131: E0197 RR | B131: 15.63 | C131: 20 | D131: 20.5 | E131: 18.07 | F131: 20.08 | G131: 20.17 | H131: 18.57 | I131: 16.46 | J131: 15.38 | K131: 17.94 | L131: 16.46 | M131: 17.95 | N131: 18.45 | O131: 15.55 | P131: 16.46 | Q131: 15.23 | R131: 18.45 | S131: 19.5 | T131: 20 | U131: 20.72 | V131: 14.45 | W131: 20.24 | X131: 20 | Y131: 17.14 | Z131: 13.5 | AA131: 16.07 | AB131: 15.77 | AC131: 17.94 | AD131: 20.36 | AE131: 15.89 | AF131: 17.89 | AG131: 17.68 | AH131: 18.86 | AI131: 17.65 | AJ131: 15.77 | AK131: 20.08 | AL131: 20.08 | AM131: 17.14 | AN131: 15.68 | AO131: 20.17 | AP131: 16.86 | AQ131: 14.84 | AR131: 17.43 | AS131: 16.27 | AT131: 20 | AU131: 17.14 | AV131: 14.94 | AW131: 19.49 | AX131: 17.95 | AY131: 18.57 | AZ131: 19.49 | BA131: 19.29 | BB131: 15.77 | BC131: 17.14 | BD131: 35.88 | BE131: 17.76 | BF131: 20.36 | BG131: 18.96 | BH131: 16.15 | BI131: 15.31 | BJ131: 18.96 | BK131: 14.87 | BL131: 18.09 | BM131: 19.21 | BN131: 16.55 | BO131: 20.36 | BP131: 17.63 | BQ131: 15.17 | BR131: 19.95 | BS131: 17.14 | BT131: 16.14 | BU131: 18.96 | BV131: 17.14 | BW131: 20.36 | BX131: 20.08 | BY131: 13.61 | BZ131: 20 | CA131: 17.34 | CB131: 20.36 | CC131: 13.5 | CD131: 18.57 | CE131: 16.35 | CF131: 14.35 | CG131: 15.77 | CH131: 15.88 | CI131: 20.34 | CJ131: 15.38 | CK131: 14.51 | CL131: 13.97 | CM131: 13.84 | CN131: 16.95 | CO131: 19.95 | CP131: 20 | CQ131: 18.96 | CR131: 16.61 | CS131: 14.7 | CT131: 17.14 | CU131: 20 | CV131: 17.14 | CW131: 20.17 | CX131: 18.64 | CY131: 20.24 | CZ131: 16.86 | DA131: 20 | DB131: 20.17 | DC131: 15.62 | DD131: 15.38 | DE131: 17.05 | DF131: 15.38 | DG131: 20 | DH131: 18.03 | DI131: 20 | DJ131: 16.84 | DK131: 18.57 | DL131: 18.69 | DM131: 20 | DN131: 13.98 | DO131: 20.36 | DP131: 15.86 | DQ131: 20.08 | DR131: 20 | DS131: 17.14 | DT131: 17.26 | DU131: 20.34 | DV131: 18.97 | DW131: 20.08 | DX131: 20.34 | DY131: 21.46 | DZ131: 18.56 | EA131: 19.48
A132: E0199 NU | B132: 28.88 | C132: 31 | D132: 32.96 | E132: 31.37 | F132: 30.09 | G132: 32.43 | H132: 28.2 | I132: 31.98 | J132: 30.75 | K132: 27.68 | L132: 30.87 | M132: 30.65 | N132: 29.86 | O132: 27.16 | P132: 30.87 | Q132: 28.35 | R132: 30.09 | S132: 29.48 | T132: 33.39 | U132: 31.59 | V132: 28.82 | W132: 32.2 | X132: 30.26 | Y132: 31 | Z132: 25.89 | AA132: 29.46 | AB132: 29.08 | AC132: 29.05 | AD132: 32.96 | AE132: 29.73 | AF132: 26.08 | AG132: 28.54 | AH132: 28.6 | AI132: 30.75 | AJ132: 28.7 | AK132: 29.56 | AL132: 31.71 | AM132: 29.46 | AN132: 30.61 | AO132: 30.75 | AP132: 29.46 | AQ132: 29.38 | AR132: 30.75 | AS132: 31.71 | AT132: 27.68 | AU132: 31 | AV132: 29.46 | AW132: 31 | AX132: 30.24 | AY132: 30.1 | AZ132: 31 | BA132: 29.46 | BB132: 28.7 | BC132: 33.39 | BD132: 87.13 | BE132: 29.58 | BF132: 29.73 | BG132: 30.75 | BH132: 29.56 | BI132: 31.26 | BJ132: 29.46 | BK132: 29.18 | BL132: 28.5 | BM132: 30.7 | BN132: 26.36 | BO132: 33.39 | BP132: 26.36 | BQ132: 27.99 | BR132: 31.01 | BS132: 26.08 | BT132: 29.18 | BU132: 30.75 | BV132: 30.75 | BW132: 33.39 | BX132: 34.03 | BY132: 23.78 | BZ132: 28.38 | CA132: 28.21 | CB132: 33.98 | CC132: 27.66 | CD132: 34.03 | CE132: 26.36 | CF132: 29.38 | CG132: 31.78 | CH132: 30.96 | CI132: 32.25 | CJ132: 30.24 | CK132: 25.89 | CL132: 29.7 | CM132: 29.38 | CN132: 30.75 | CO132: 30.75 | CP132: 28.38 | CQ132: 29.46 | CR132: 28.67 | CS132: 28.38 | CT132: 29.18 | CU132: 30.66 | CV132: 28.38 | CW132: 32.43 | CX132: 31.2 | CY132: 32.2 | CZ132: 29.4 | DA132: 30.24 | DB132: 33.39 | DC132: 29.58 | DD132: 30.65 | DE132: 30.24 | DF132: 30.24 | DG132: 31 | DH132: 32.2 | DI132: 31 | DJ132: 28.05 | DK132: 28.54 | DL132: 28.7 | DM132: 30.24 | DN132: 28.93 | DO132: 33.39 | DP132: 30.74 | DQ132: 31 | DR132: 31 | DS132: 30.75 | DT132: 30.09 | DU132: 31.9 | DV132: 30.62 | DW132: 31.98 | DX132: 31.39 | DY132: 32.72 | DZ132: 30.03 | EA132: 28.5
A133: E0199 RR | B133: 2.89 | C133: 3.1 | D133: 3.3 | E133: 3.14 | F133: 3.01 | G133: 3.24 | H133: 2.82 | I133: 3.2 | J133: 3.08 | K133: 2.77 | L133: 3.09 | M133: 3.06 | N133: 2.98 | O133: 2.72 | P133: 3.09 | Q133: 2.84 | R133: 3.01 | S133: 2.95 | T133: 3.34 | U133: 3.16 | V133: 2.88 | W133: 3.22 | X133: 3.02 | Y133: 3.1 | Z133: 2.59 | AA133: 2.94 | AB133: 2.91 | AC133: 2.9 | AD133: 3.3 | AE133: 2.97 | AF133: 2.6 | AG133: 2.85 | AH133: 2.86 | AI133: 3.08 | AJ133: 2.87 | AK133: 2.95 | AL133: 3.17 | AM133: 2.94 | AN133: 3.06 | AO133: 3.08 | AP133: 2.94 | AQ133: 2.94 | AR133: 3.08 | AS133: 3.17 | AT133: 2.77 | AU133: 3.1 | AV133: 2.94 | AW133: 3.1 | AX133: 3.02 | AY133: 3.01 | AZ133: 3.1 | BA133: 2.94 | BB133: 2.87 | BC133: 3.34 | BD133: 8.71 | BE133: 2.96 | BF133: 2.97 | BG133: 3.08 | BH133: 2.95 | BI133: 3.13 | BJ133: 2.94 | BK133: 2.92 | BL133: 2.85 | BM133: 3.08 | BN133: 2.63 | BO133: 3.34 | BP133: 2.63 | BQ133: 2.8 | BR133: 3.11 | BS133: 2.6 | BT133: 2.92 | BU133: 3.08 | BV133: 3.08 | BW133: 3.34 | BX133: 3.4 | BY133: 2.38 | BZ133: 2.84 | CA133: 2.82 | CB133: 3.4 | CC133: 2.77 | CD133: 3.4 | CE133: 2.63 | CF133: 2.94 | CG133: 3.18 | CH133: 3.1 | CI133: 3.23 | CJ133: 3.02 | CK133: 2.59 | CL133: 2.97 | CM133: 2.94 | CN133: 3.08 | CO133: 3.08 | CP133: 2.84 | CQ133: 2.94 | CR133: 2.87 | CS133: 2.84 | CT133: 2.92 | CU133: 3.06 | CV133: 2.84 | CW133: 3.24 | CX133: 3.12 | CY133: 3.22 | CZ133: 2.94 | DA133: 3.02 | DB133: 3.34 | DC133: 2.96 | DD133: 3.06 | DE133: 3.02 | DF133: 3.02 | DG133: 3.1 | DH133: 3.22 | DI133: 3.1 | DJ133: 2.81 | DK133: 2.85 | DL133: 2.87 | DM133: 3.02 | DN133: 2.89 | DO133: 3.34 | DP133: 3.08 | DQ133: 3.1 | DR133: 3.1 | DS133: 3.08 | DT133: 3.01 | DU133: 3.19 | DV133: 3.06 | DW133: 3.2 | DX133: 3.14 | DY133: 3.27 | DZ133: 3 | EA133: 2.85
A134: E0199 UE | B134: 21.67 | C134: 23.25 | D134: 24.72 | E134: 23.52 | F134: 22.57 | G134: 24.32 | H134: 21.15 | I134: 23.99 | J134: 23.06 | K134: 20.76 | L134: 23.15 | M134: 22.99 | N134: 22.4 | O134: 20.38 | P134: 23.15 | Q134: 21.27 | R134: 22.57 | S134: 22.11 | T134: 25.05 | U134: 23.7 | V134: 21.62 | W134: 24.15 | X134: 22.69 | Y134: 23.25 | Z134: 19.42 | AA134: 22.1 | AB134: 21.81 | AC134: 21.79 | AD134: 24.72 | AE134: 22.29 | AF134: 19.56 | AG134: 21.4 | AH134: 21.45 | AI134: 23.06 | AJ134: 21.53 | AK134: 22.17 | AL134: 23.79 | AM134: 22.1 | AN134: 22.96 | AO134: 23.06 | AP134: 22.1 | AQ134: 22.04 | AR134: 23.06 | AS134: 23.79 | AT134: 20.76 | AU134: 23.25 | AV134: 22.1 | AW134: 23.25 | AX134: 22.68 | AY134: 22.58 | AZ134: 23.25 | BA134: 22.1 | BB134: 21.53 | BC134: 25.05 | BD134: 65.34 | BE134: 22.19 | BF134: 22.29 | BG134: 23.06 | BH134: 22.17 | BI134: 23.45 | BJ134: 22.1 | BK134: 21.88 | BL134: 21.37 | BM134: 23.02 | BN134: 19.77 | BO134: 25.05 | BP134: 19.77 | BQ134: 20.99 | BR134: 23.26 | BS134: 19.56 | BT134: 21.88 | BU134: 23.06 | BV134: 23.06 | BW134: 25.05 | BX134: 25.52 | BY134: 17.84 | BZ134: 21.29 | CA134: 21.16 | CB134: 25.48 | CC134: 20.75 | CD134: 25.52 | CE134: 19.77 | CF134: 22.04 | CG134: 23.83 | CH134: 23.22 | CI134: 24.19 | CJ134: 22.68 | CK134: 19.42 | CL134: 22.28 | CM134: 22.04 | CN134: 23.06 | CO134: 23.06 | CP134: 21.29 | CQ134: 22.1 | CR134: 21.5 | CS134: 21.29 | CT134: 21.88 | CU134: 22.99 | CV134: 21.29 | CW134: 24.32 | CX134: 23.4 | CY134: 24.15 | CZ134: 22.05 | DA134: 22.68 | DB134: 25.05 | DC134: 22.19 | DD134: 22.99 | DE134: 22.68 | DF134: 22.68 | DG134: 23.25 | DH134: 24.15 | DI134: 23.25 | DJ134: 21.04 | DK134: 21.4 | DL134: 21.53 | DM134: 22.68 | DN134: 21.7 | DO134: 25.05 | DP134: 23.05 | DQ134: 23.25 | DR134: 23.25 | DS134: 23.06 | DT134: 22.57 | DU134: 23.92 | DV134: 22.96 | DW134: 23.99 | DX134: 23.54 | DY134: 24.54 | DZ134: 22.53 | EA134: 21.37
A135: E0250 RR | B135: 53.48 | C135: 65.6 | D135: 70.5 | E135: 70.07 | F135: 62.16 | G135: 59.66 | H135: 62.24 | I135: 65.91 | J135: 64.58 | K135: 58.28 | L135: 64.17 | M135: 65.68 | N135: 60.58 | O135: 65.14 | P135: 60.56 | Q135: 67.1 | R135: 62.95 | S135: 68.36 | T135: 61.82 | U135: 75.49 | V135: 56.38 | W135: 70.32 | X135: 61.5 | Y135: 57.91 | Z135: 61.5 | AA135: 61.5 | AB135: 54.26 | AC135: 69.76 | AD135: 70.16 | AE135: 59.2 | AF135: 63.3 | AG135: 76.77 | AH135: 77.03 | AI135: 65.94 | AJ135: 64.06 | AK135: 66.28 | AL135: 53.48 | AM135: 65.62 | AN135: 61.97 | AO135: 66.9 | AP135: 73.78 | AQ135: 63.77 | AR135: 61.67 | AS135: 62.56 | AT135: 71.75 | AU135: 66.03 | AV135: 57.03 | AW135: 66.91 | AX135: 68.68 | AY135: 59.89 | AZ135: 66.81 | BA135: 64.76 | BB135: 64.06 | BC135: 62.92 | BD135: 74.31 | BE135: 62.27 | BF135: 73.8 | BG135: 66.59 | BH135: 68.59 | BI135: 63.77 | BJ135: 70.38 | BK135: 56.55 | BL135: 74.57 | BM135: 69.96 | BN135: 54.35 | BO135: 67.93 | BP135: 55.04 | BQ135: 61.5 | BR135: 61.64 | BS135: 54.26 | BT135: 61.11 | BU135: 66.63 | BV135: 67.09 | BW135: 71.97 | BX135: 69.34 | BY135: 59.33 | BZ135: 55.07 | CA135: 64.72 | CB135: 73.13 | CC135: 55.02 | CD135: 62.37 | CE135: 57.56 | CF135: 63.77 | CG135: 66.64 | CH135: 62.3 | CI135: 56.88 | CJ135: 60.54 | CK135: 66.45 | CL135: 60.76 | CM135: 57.89 | CN135: 62.97 | CO135: 73.47 | CP135: 69.37 | CQ135: 64.29 | CR135: 58.63 | CS135: 62.02 | CT135: 61.5 | CU135: 63.08 | CV135: 62.98 | CW135: 59.66 | CX135: 71.77 | CY135: 66.72 | CZ135: 71.62 | DA135: 60.54 | DB135: 73.47 | DC135: 59.3 | DD135: 60.99 | DE135: 63.44 | DF135: 57.37 | DG135: 67.63 | DH135: 69.15 | DI135: 63.27 | DJ135: 68.46 | DK135: 60.41 | DL135: 66.85 | DM135: 60.54 | DN135: 56.47 | DO135: 76.88 | DP135: 66.03 | DQ135: 72.32 | DR135: 70.5 | DS135: 62.3 | DT135: 57.4 | DU135: 61.95 | DV135: 64.61 | DW135: 61.95 | DX135: 71.75 | DY135: 66.78 | DZ135: 65.82 | EA135: 75.61
A136: E0251 RR | B136: 61.5 | C136: 59.19 | D136: 66.04 | E136: 56.77 | F136: 53.89 | G136: 51.25 | H136: 57.82 | I136: 58.94 | J136: 58.43 | K136: 52.07 | L136: 62.37 | M136: 56.18 | N136: 53.48 | O136: 55.67 | P136: 59.81 | Q136: 54.71 | R136: 58.26 | S136: 61.4 | T136: 52 | U136: 69.63 | V136: 46.13 | W136: 63.9 | X136: 52 | Y136: 53.08 | Z136: 52.99 | AA136: 54.54 | AB136: 61.5 | AC136: 69.01 | AD136: 62.58 | AE136: 60.52 | AF136: 52.17 | AG136: 63.31 | AH136: 61.11 | AI136: 54.15 | AJ136: 61.5 | AK136: 61.3 | AL136: 59.17 | AM136: 60.52 | AN136: 59.84 | AO136: 61.5 | AP136: 67.98 | AQ136: 52.64 | AR136: 51.81 | AS136: 60.09 | AT136: 58.12 | AU136: 61.5 | AV136: 44.51 | AW136: 61.1 | AX136: 54.62 | AY136: 60.35 | AZ136: 61.1 | BA136: 59.99 | BB136: 61.5 | BC136: 51.25 | BD136: 72.33 | BE136: 58.15 | BF136: 66.44 | BG136: 67.81 | BH136: 60.42 | BI136: 52.64 | BJ136: 61.5 | BK136: 48.14 | BL136: 61.5 | BM136: 64.55 | BN136: 53.47 | BO136: 62.45 | BP136: 50.68 | BQ136: 52 | BR136: 61.75 | BS136: 51.82 | BT136: 54 | BU136: 61.1 | BV136: 58.12 | BW136: 62.58 | BX136: 65.37 | BY136: 47.64 | BZ136: 61.5 | CA136: 66.63 | CB136: 62.51 | CC136: 45.47 | CD136: 51.62 | CE136: 51.76 | CF136: 51.56 | CG136: 53.3 | CH136: 54.24 | CI136: 55.63 | CJ136: 52.29 | CK136: 54.48 | CL136: 51.07 | CM136: 47.85 | CN136: 52 | CO136: 61.5 | CP136: 61.5 | CQ136: 61.01 | CR136: 46.13 | CS136: 61.5 | CT136: 61.5 | CU136: 57.2 | CV136: 56.99 | CW136: 51.8 | CX136: 65.25 | CY136: 63.9 | CZ136: 63.81 | DA136: 50.98 | DB136: 70.39 | DC136: 51.91 | DD136: 52 | DE136: 52 | DF136: 52 | DG136: 57.63 | DH136: 61.07 | DI136: 57.4 | DJ136: 61.97 | DK136: 54.45 | DL136: 54.35 | DM136: 51.39 | DN136: 46.46 | DO136: 61.5 | DP136: 53.38 | DQ136: 65.77 | DR136: 72.64 | DS136: 54.24 | DT136: 60.99 | DU136: 53.76 | DV136: 59.11 | DW136: 62.31 | DX136: 60.48 | DY136: 57.04 | DZ136: 62.39 | EA136: 59.19
A137: E0255 RR | B137: 58.35 | C137: 69.96 | D137: 67.86 | E137: 75.97 | F137: 64.96 | G137: 61.5 | H137: 63.5 | I137: 70.16 | J137: 67.65 | K137: 66.55 | L137: 64.43 | M137: 65.5 | N137: 63.86 | O137: 68.31 | P137: 66.52 | Q137: 69.26 | R137: 65.29 | S137: 69.96 | T137: 66.63 | U137: 67.24 | V137: 65.6 | W137: 66.68 | X137: 62.22 | Y137: 63.49 | Z137: 64.96 | AA137: 65.5 | AB137: 58.91 | AC137: 71.07 | AD137: 76.32 | AE137: 63.55 | AF137: 69.7 | AG137: 71.66 | AH137: 71.75 | AI137: 72.18 | AJ137: 65.5 | AK137: 70.35 | AL137: 58.35 | AM137: 71.58 | AN137: 66.63 | AO137: 71.28 | AP137: 71.66 | AQ137: 66.25 | AR137: 68.84 | AS137: 63.86 | AT137: 71.68 | AU137: 72.18 | AV137: 63.78 | AW137: 65.5 | AX137: 67.34 | AY137: 63.5 | AZ137: 65.5 | BA137: 68.41 | BB137: 65.5 | BC137: 67.86 | BD137: 77.77 | BE137: 69.65 | BF137: 69.7 | BG137: 66.4 | BH137: 71.97 | BI137: 66.78 | BJ137: 71.75 | BK137: 64.43 | BL137: 75.07 | BM137: 73.6 | BN137: 61.65 | BO137: 76.32 | BP137: 64.52 | BQ137: 62.49 | BR137: 65.5 | BS137: 57.81 | BT137: 65.1 | BU137: 71.75 | BV137: 72.18 | BW137: 77.47 | BX137: 63.5 | BY137: 66.06 | BZ137: 62.22 | CA137: 64.43 | CB137: 86.82 | CC137: 65.5 | CD137: 67.24 | CE137: 61.84 | CF137: 62.18 | CG137: 71.57 | CH137: 65.5 | CI137: 63.86 | CJ137: 64.23 | CK137: 70.47 | CL137: 59.84 | CM137: 62.18 | CN137: 64.43 | CO137: 71.75 | CP137: 65.5 | CQ137: 69.34 | CR137: 64.78 | CS137: 67.75 | CT137: 65.5 | CU137: 67.86 | CV137: 65.5 | CW137: 61.5 | CX137: 72.93 | CY137: 68.91 | CZ137: 68.91 | DA137: 65.5 | DB137: 71.75 | DC137: 64.43 | DD137: 64.23 | DE137: 67.06 | DF137: 59.99 | DG137: 67.25 | DH137: 71.86 | DI137: 65.5 | DJ137: 71.43 | DK137: 63.93 | DL137: 71.42 | DM137: 65.5 | DN137: 66.04 | DO137: 69.7 | DP137: 70.04 | DQ137: 70.35 | DR137: 65.5 | DS137: 65.5 | DT137: 61.65 | DU137: 63.8 | DV137: 66.42 | DW137: 65.05 | DX137: 72.78 | DY137: 66.68 | DZ137: 67.24 | EA137: 70.73
A138: E0256 RR | B138: 57.18 | C138: 60.82 | D138: 66.63 | E138: 61.82 | F138: 57.26 | G138: 57.4 | H138: 61.27 | I138: 58.64 | J138: 57.4 | K138: 55.03 | L138: 62.4 | M138: 56.53 | N138: 58.17 | O138: 61.35 | P138: 62.4 | Q138: 59.98 | R138: 60.57 | S138: 63.3 | T138: 56.38 | U138: 68.57 | V138: 47.36 | W138: 67.53 | X138: 57.4 | Y138: 55.03 | Z138: 56.6 | AA138: 59.34 | AB138: 57.45 | AC138: 66.63 | AD138: 68.68 | AE138: 55.03 | AF138: 56.81 | AG138: 56.05 | AH138: 56.38 | AI138: 61.82 | AJ138: 57.45 | AK138: 59.21 | AL138: 59.16 | AM138: 56.38 | AN138: 60.25 | AO138: 60.82 | AP138: 59.42 | AQ138: 56.94 | AR138: 61.82 | AS138: 60.08 | AT138: 61.5 | AU138: 63.3 | AV138: 50.17 | AW138: 60.82 | AX138: 57.51 | AY138: 62.81 | AZ138: 60.82 | BA138: 62.5 | BB138: 57.45 | BC138: 56.38 | BD138: 63.55 | BE138: 62.17 | BF138: 66.11 | BG138: 63.45 | BH138: 61.1 | BI138: 56.68 | BJ138: 64.38 | BK138: 51.06 | BL138: 59.81 | BM138: 56.38 | BN138: 51.62 | BO138: 68.68 | BP138: 48.84 | BQ138: 56.82 | BR138: 56.95 | BS138: 55.03 | BT138: 52.92 | BU138: 63.45 | BV138: 63.3 | BW138: 68.68 | BX138: 60.28 | BY138: 48.94 | BZ138: 63.29 | CA138: 60.53 | CB138: 68.68 | CC138: 55.03 | CD138: 55.7 | CE138: 57 | CF138: 55.61 | CG138: 57.07 | CH138: 58.94 | CI138: 60.89 | CJ138: 53.8 | CK138: 56.82 | CL138: 54.42 | CM138: 49.88 | CN138: 58.66 | CO138: 63.01 | CP138: 62.79 | CQ138: 58.84 | CR138: 55.03 | CS138: 63.3 | CT138: 59.34 | CU138: 61.84 | CV138: 59.34 | CW138: 57.4 | CX138: 63.76 | CY138: 66.63 | CZ138: 65.9 | DA138: 55.78 | DB138: 63.3 | DC138: 56.92 | DD138: 55.03 | DE138: 55.03 | DF138: 53.8 | DG138: 63.45 | DH138: 62.55 | DI138: 62.35 | DJ138: 61.72 | DK138: 55.7 | DL138: 56.79 | DM138: 55.78 | DN138: 55.7 | DO138: 66.63 | DP138: 56.82 | DQ138: 59.21 | DR138: 60.28 | DS138: 59.34 | DT138: 53.57 | DU138: 58.23 | DV138: 57.04 | DW138: 58.37 | DX138: 61.5 | DY138: 60.57 | DZ138: 61.75 | EA138: 60.82
A139: E0260 RR | B139: 59.2 | C139: 61.5 | D139: 59.55 | E139: 68.47 | F139: 58.52 | G139: 58.87 | H139: 59.2 | I139: 60.46 | J139: 59.55 | K139: 63.43 | L139: 60.46 | M139: 58.87 | N139: 59.41 | O139: 60.13 | P139: 61.44 | Q139: 70.11 | R139: 60.93 | S139: 59.96 | T139: 58.17 | U139: 57.88 | V139: 58.94 | W139: 58 | X139: 59.96 | Y139: 57.61 | Z139: 65.24 | AA139: 58.87 | AB139: 59.55 | AC139: 67.5 | AD139: 63.29 | AE139: 60.94 | AF139: 67.2 | AG139: 60.8 | AH139: 61.5 | AI139: 61.39 | AJ139: 60.94 | AK139: 62.78 | AL139: 58.23 | AM139: 60.48 | AN139: 60.67 | AO139: 61.5 | AP139: 58.17 | AQ139: 65.63 | AR139: 60.93 | AS139: 62.72 | AT139: 61.39 | AU139: 61.39 | AV139: 58.52 | AW139: 58.87 | AX139: 61.39 | AY139: 58.23 | AZ139: 58.87 | BA139: 66.63 | BB139: 60.94 | BC139: 58.87 | BD139: 58.87 | BE139: 62.5 | BF139: 60.48 | BG139: 60.13 | BH139: 62.4 | BI139: 60.41 | BJ139: 58.87 | BK139: 58.17 | BL139: 67.55 | BM139: 61.39 | BN139: 56.99 | BO139: 67.5 | BP139: 58.23 | BQ139: 66.01 | BR139: 59.96 | BS139: 55.49 | BT139: 64.33 | BU139: 61.12 | BV139: 65.6 | BW139: 63.29 | BX139: 59.41 | BY139: 66.83 | BZ139: 58.87 | CA139: 59.72 | CB139: 67.35 | CC139: 61.5 | CD139: 58.52 | CE139: 60.13 | CF139: 62.89 | CG139: 66.74 | CH139: 61.39 | CI139: 59.2 | CJ139: 58.87 | CK139: 68.87 | CL139: 58.23 | CM139: 63.89 | CN139: 59.96 | CO139: 61.39 | CP139: 59.55 | CQ139: 60.67 | CR139: 58.87 | CS139: 58.87 | CT139: 58.17 | CU139: 58.87 | CV139: 59.55 | CW139: 58.87 | CX139: 64.44 | CY139: 58.9 | CZ139: 59.41 | DA139: 57.61 | DB139: 61.39 | DC139: 60.46 | DD139: 59.25 | DE139: 60.61 | DF139: 58.87 | DG139: 61.39 | DH139: 60.13 | DI139: 61.39 | DJ139: 61.44 | DK139: 52.86 | DL139: 60.46 | DM139: 57.61 | DN139: 59.45 | DO139: 59.96 | DP139: 66.92 | DQ139: 61.32 | DR139: 57.61 | DS139: 61.39 | DT139: 56.21 | DU139: 58.52 | DV139: 58.23 | DW139: 59.76 | DX139: 62.67 | DY139: 61.44 | DZ139: 59.41 | EA139: 61.5
A140: E0261 RR | B140: 54.96 | C140: 60.78 | D140: 57.96 | E140: 65.28 | F140: 55.18 | G140: 56.22 | H140: 57.75 | I140: 59.66 | J140: 59.27 | K140: 65.6 | L140: 63.53 | M140: 60.61 | N140: 58.32 | O140: 60.37 | P140: 62.88 | Q140: 68.52 | R140: 60.48 | S140: 58.43 | T140: 54.12 | U140: 53.97 | V140: 58.43 | W140: 55.18 | X140: 57.96 | Y140: 54.12 | Z140: 60.43 | AA140: 58.43 | AB140: 55.81 | AC140: 66.63 | AD140: 61.5 | AE140: 59.27 | AF140: 67.65 | AG140: 66.63 | AH140: 64.14 | AI140: 63.69 | AJ140: 57.07 | AK140: 62.57 | AL140: 53.16 | AM140: 59.98 | AN140: 61.36 | AO140: 60.78 | AP140: 62.27 | AQ140: 60.74 | AR140: 59.01 | AS140: 57.05 | AT140: 66.63 | AU140: 65.28 | AV140: 54.61 | AW140: 53.81 | AX140: 63.41 | AY140: 55.6 | AZ140: 53.81 | BA140: 61.5 | BB140: 57.07 | BC140: 56.22 | BD140: 54.12 | BE140: 62.88 | BF140: 57.96 | BG140: 58.53 | BH140: 61.76 | BI140: 60.74 | BJ140: 57.07 | BK140: 54.12 | BL140: 66.32 | BM140: 65.6 | BN140: 53.18 | BO140: 63.29 | BP140: 53.97 | BQ140: 59.96 | BR140: 57.96 | BS140: 51.37 | BT140: 62.42 | BU140: 59.27 | BV140: 65.5 | BW140: 61.5 | BX140: 57.09 | BY140: 63.29 | BZ140: 53.81 | CA140: 56.27 | CB140: 62.66 | CC140: 60.57 | CD140: 55.18 | CE140: 59.32 | CF140: 59.61 | CG140: 61.63 | CH140: 59.04 | CI140: 53.97 | CJ140: 55.86 | CK140: 64.58 | CL140: 54.99 | CM140: 59.62 | CN140: 57.96 | CO140: 59.45 | CP140: 54.12 | CQ140: 65.04 | CR140: 57.96 | CS140: 55.86 | CT140: 54.12 | CU140: 56.22 | CV140: 58.43 | CW140: 56.22 | CX140: 67.25 | CY140: 57.09 | CZ140: 57.09 | DA140: 54.33 | DB140: 69.72 | DC140: 60.63 | DD140: 60.58 | DE140: 63.23 | DF140: 56.58 | DG140: 57.96 | DH140: 61.24 | DI140: 59.45 | DJ140: 60.38 | DK140: 50.8 | DL140: 61.03 | DM140: 54.33 | DN140: 59.45 | DO140: 59.45 | DP140: 61.5 | DQ140: 59.72 | DR140: 53.81 | DS140: 58.49 | DT140: 53.16 | DU140: 57.17 | DV140: 62.32 | DW140: 57.89 | DX140: 64.01 | DY140: 59.36 | DZ140: 57.09 | EA140: 62.63
A141: E0271 NU | B141: 121.65 | C141: 107.63 | D141: 104.55 | E141: 132.73 | F141: 103.09 | G141: 107.63 | H141: 134.51 | I141: 124.17 | J141: 124.23 | K141: 120.95 | L141: 117.58 | M141: 130.53 | N141: 121.5 | O141: 124.31 | P141: 117.97 | Q141: 137.17 | R141: 134.67 | S141: 123 | T141: 103.64 | U141: 108.67 | V141: 102.5 | W141: 102.5 | X141: 118.9 | Y141: 107.63 | Z141: 124.23 | AA141: 128.13 | AB141: 123 | AC141: 136.19 | AD141: 150.87 | AE141: 123 | AF141: 115.94 | AG141: 135.19 | AH141: 122.02 | AI141: 127.95 | AJ141: 123 | AK141: 126.71 | AL141: 119.79 | AM141: 137.12 | AN141: 112.36 | AO141: 128.24 | AP141: 137.12 | AQ141: 127.78 | AR141: 127.69 | AS141: 110.29 | AT141: 137.12 | AU141: 127.95 | AV141: 105.58 | AW141: 115.83 | AX141: 112.75 | AY141: 137.75 | AZ141: 115.83 | BA141: 137.12 | BB141: 123 | BC141: 110.5 | BD141: 120.29 | BE141: 114.02 | BF141: 124.11 | BG141: 135.19 | BH141: 132.68 | BI141: 128.09 | BJ141: 150.87 | BK141: 105.58 | BL141: 133.64 | BM141: 124.06 | BN141: 117.06 | BO141: 148.82 | BP141: 113.27 | BQ141: 123 | BR141: 107.63 | BS141: 101.48 | BT141: 110.78 | BU141: 120.75 | BV141: 127.95 | BW141: 153.32 | BX141: 117.36 | BY141: 115.8 | BZ141: 132.23 | CA141: 130.18 | CB141: 149.49 | CC141: 101.85 | CD141: 105.37 | CE141: 115.31 | CF141: 123.51 | CG141: 128.24 | CH141: 121.11 | CI141: 118.58 | CJ141: 112.75 | CK141: 120.29 | CL141: 108.29 | CM141: 122.26 | CN141: 114.55 | CO141: 120.75 | CP141: 128.13 | CQ141: 131.61 | CR141: 102.5 | CS141: 132.23 | CT141: 101.48 | CU141: 118.9 | CV141: 127.95 | CW141: 107.63 | CX141: 127.41 | CY141: 117.78 | CZ141: 117.34 | DA141: 114.58 | DB141: 150.87 | DC141: 116.34 | DD141: 114.58 | DE141: 114.58 | DF141: 112.75 | DG141: 123 | DH141: 134.67 | DI141: 123.33 | DJ141: 142.6 | DK141: 118.13 | DL141: 124.99 | DM141: 114.58 | DN141: 100.75 | DO141: 112.75 | DP141: 123 | DQ141: 114.22 | DR141: 101.48 | DS141: 123 | DT141: 117.44 | DU141: 110.19 | DV141: 113.19 | DW141: 123.16 | DX141: 138.17 | DY141: 124.67 | DZ141: 124.62 | EA141: 129.66
A142: E0271 RR | B142: 12.17 | C142: 10.76 | D142: 10.46 | E142: 13.27 | F142: 10.31 | G142: 10.76 | H142: 13.45 | I142: 12.41 | J142: 12.42 | K142: 12.1 | L142: 11.76 | M142: 13.06 | N142: 12.15 | O142: 12.43 | P142: 11.8 | Q142: 13.71 | R142: 13.47 | S142: 12.3 | T142: 10.36 | U142: 10.87 | V142: 10.25 | W142: 10.25 | X142: 11.89 | Y142: 10.76 | Z142: 12.42 | AA142: 12.81 | AB142: 12.3 | AC142: 13.62 | AD142: 15.09 | AE142: 12.3 | AF142: 11.59 | AG142: 13.52 | AH142: 12.2 | AI142: 12.79 | AJ142: 12.3 | AK142: 12.67 | AL142: 11.98 | AM142: 13.71 | AN142: 11.23 | AO142: 12.82 | AP142: 13.71 | AQ142: 12.78 | AR142: 12.77 | AS142: 11.03 | AT142: 13.71 | AU142: 12.79 | AV142: 10.56 | AW142: 11.58 | AX142: 11.28 | AY142: 13.78 | AZ142: 11.58 | BA142: 13.71 | BB142: 12.3 | BC142: 11.05 | BD142: 12.03 | BE142: 11.4 | BF142: 12.41 | BG142: 13.52 | BH142: 13.26 | BI142: 12.81 | BJ142: 15.09 | BK142: 10.56 | BL142: 13.37 | BM142: 12.4 | BN142: 11.71 | BO142: 14.88 | BP142: 11.33 | BQ142: 12.3 | BR142: 10.76 | BS142: 10.15 | BT142: 11.08 | BU142: 12.07 | BV142: 12.79 | BW142: 15.33 | BX142: 11.74 | BY142: 11.58 | BZ142: 13.22 | CA142: 13.02 | CB142: 14.94 | CC142: 10.19 | CD142: 10.54 | CE142: 11.53 | CF142: 12.35 | CG142: 12.82 | CH142: 12.12 | CI142: 11.86 | CJ142: 11.28 | CK142: 12.03 | CL142: 10.83 | CM142: 12.23 | CN142: 11.46 | CO142: 12.07 | CP142: 12.81 | CQ142: 13.16 | CR142: 10.25 | CS142: 13.22 | CT142: 10.15 | CU142: 11.89 | CV142: 12.79 | CW142: 10.76 | CX142: 12.74 | CY142: 11.78 | CZ142: 11.74 | DA142: 11.46 | DB142: 15.09 | DC142: 11.63 | DD142: 11.46 | DE142: 11.46 | DF142: 11.28 | DG142: 12.3 | DH142: 13.47 | DI142: 12.33 | DJ142: 14.26 | DK142: 11.82 | DL142: 12.49 | DM142: 11.46 | DN142: 10.08 | DO142: 11.28 | DP142: 12.3 | DQ142: 11.42 | DR142: 10.15 | DS142: 12.3 | DT142: 11.75 | DU142: 11.02 | DV142: 11.32 | DW142: 12.32 | DX142: 13.82 | DY142: 12.46 | DZ142: 12.46 | EA142: 12.97
